Workbook

Sheet Front
I5: NRGI gold mining tax model, version 1
I6: Last updated 25 May 2018
B10: PURPOSE
B23: TABLE OF CONTENTS
B44: Relation to IMF's FARI model
B60: Sources
B67: DISCLAIMER
J79: This work is licensed under the Creative Commons Attribution 4.0 International License.
J80: To view a copy of this license, visit http://creativecommons.org/licenses/by/4.0/

Sheet Results
B1: Results dashboard
L2: CHOSEN MINE PROFILE | M2: =Inputs!F195 -> Large mine
B6: Summary assumptions | C6: units
B7: Produced reserves | C7: Ounces | D7: =SUM(Model!G8:BD8) -> 4700000
B8: Production starts | C8: year | D8: =Model!$C$33 -> 3
B9: Production life | C9: year | D9: =MAX(Model!G31:BD31) -> 20
B10: Development costs | C10: $m | D10: =Inputs!C203 -> 500
B11: Production to CAPEX | C11: Units/$m | D11: =D7/D10 -> 9400
B12: Mineral Price | C12: $/units | D12: =Inputs!$G$190 -> 1300
B13: Operating cost per unit | C13: $/units | D13: =Inputs!F182 -> 422
B14: Trasnport and TC/RC | C14: $/units | D14: =(Inputs!C200+Inputs!C199*1000000)/Inputs!C198 -> 78.000065
B15: C1 cash cost less royalties | C15: $/units | D15: =D14+D13 -> 500.000065
B16: Total C1 cash costs | C16: $/units | D16: =D13+(SUM(Model!C510:C512)*1000000/Model!C8)+D14 -> 639.100065
B17: Discount rate (government) | C17: % | D17: =Inputs!F176 -> 0.125
B18: Discount rate (investors) | C18: % | D18: =Inputs!F177 -> 0.125
B19: Inflation | C19: % | D19: =Inputs!F178 -> 0.02
B20: Real interest rate | C20: % | D20: =Inputs!F175 -> 0.05
B21: Leverage (equity/total assets) | C21: % | D21: =Inputs!F173 -> 0.5
B23: Summary results | C23: units
B24: Project pre-tax net cashflow (discounted) | C24: $m | D24: =Model!C27 -> 798.2933794
B25: Pre-tax project IRR | C25: % | D25: =Model!C26 -> 0.3390001325
B26: Post-tax IRR | C26: % | D26: =Model!C481 -> 0.2668195537
B27: Investor hurdle | C27: % | D27: =D18 -> 0.125
B28: IRR above hurdle? | D28: =D26>D27 -> TRUE
B29: Payback period (not discounted) | C29: years | D29: =Model!C396 -> 5.339790478
B30: Payback period (discounted) | C30: years | D30: =Model!C401 -> 6.483862793
B31: AETR (undiscounted) | D31: =Model!C437 -> 0.2861827293
B32: AETR (discounted at 10%)
B35: Use "Select Data" in each graph to adjust axies lengths and selected data fields. For example, when switching project or fiscal regime
B37: SHARE OF PROJECT BENEFITS (i.e. Share of Rent Generation)
B79: SHARE OF PROJECT RISKS (i.e. Progressivity)
B141: SIMPLICITY OF TAX ADMINISTRATION (i.e. Risk of tax abuse)
B186: Tables used to populate charts [do not touch]
B188: Chart 1. AETR | E188: Pasted and re-ordered by macro
C189: AETR | F189: AETR
B190: =TRANSPOSE(Model!G622:Q622) -> Kyrgyz Republic | C190: =TRANSPOSE(Model!G626:Q626) -> 0.3509707486 | E190: Kyrgyz Republic | F190: 0.352820926
B191: Kazakhstan | C191: 0.4607527299 | E191: Mongolia (small mine) | F191: 0.4315331691
B192: Mongolia (large mines) | C192: 0.5572824028 | E192: Peru | F192: 0.456077832
B193: Ghana | C193: 0.5190502265 | E193: Kazakhstan | F193: 0.4631816341
B194: Chile | C194: 0.6424346298 | E194: Ghana | F194: 0.5217864518
B195: Mongolia (small mine) | C195: 0.4292702281 | E195: Western Australia | F195: 0.5336767463
B196: Western Australia | C196: 0.5308781688 | E196: Mongolia (large mines) | F196: 0.5602201729
B197: Indonesia | C197: 0.6577838958 | E197: South Africa | F197: 0.6101978233
B198: Kyrgyz Republic (15% tax on concentrates) | C198: 0.6809985942 | E198: Chile | F198: 0.6458212883
B199: Peru | C199: 0.4536861798 | E199: Indonesia | F199: 0.6612514695
B200: South Africa | C200: 0.6069979727 | E200: Kyrgyz Republic (15% tax on concentrates) | F200: 0.6845885465
B203: Chart 3. METR and Break even price
C204: Breakeven | D204: METR
B205: Peru | C205: 895.6580409 | D205: 0.2596319768
B206: Kyrgyz Republic | C206: 913.6 | D206: 0.295928441
B207: Mongolia (small mine) | C207: 925.6420483 | D207: 0.3180103698
B208: Ghana | C208: 926.5763461 | D208: 0.3196548633 | L208: `
B209: Kazakhstan | C209: 929.588 | D209: 0.3248918816
B210: Western Australia | C210: 966.6347676 | D210: 0.3822748284
B211: Chile | C211: 966.7279878 | D211: 0.382404693
B212: Mongolia (large mines) | C212: 967.933505 | D212: 0.3840782429
B213: Zambia | C213: 968.6021537 | D213: 0.3850018322
B214: South Africa | C214: 970.7555228 | D214: 0.3879539055
B215: Indonesia | C215: 1027.85497 | D215: 0.455602972
B217: Chart 4a. Profile of Government Revenue - comparing regimes (NPV10)
C219: PV | D219: Share
B220: =Model!D404 -> Signature bonus | C220: =Model!C508 -> 0 | D220: =C220/$C$232 -> 0
B221: =Model!D405 -> Custom Duties | C221: =Model!C509 -> 62.085 | D221: 0.06242031723
B222: =Model!D406 -> VAT | C222: =Model!C510 -> 0 | D222: 0
B223: =Model!D407 -> Royalty | C223: =Model!C511 -> 470.47 | D223: 0.4730109793
B224: =Model!D408 -> Variable rate royalty | C224: =Model!C512 -> 183.3 | D224: 0.1842899919
B225: =Model!D409 -> Operating margin tax | C225: =Model!C513 -> 0 | D225: 0
B226: =Model!D410 -> South Africa royalty | C226: =Model!C514 -> 0 | D226: 0
B227: =Model!D411 -> Corporate Income Tax | C227: =Model!C515 -> 0 | D227: 0
B228: =Model!D412 -> Resource Rent Tax | C228: =Model!C516 -> 0 | D228: 0
B229: =Model!D413 -> Variable Profit Tax | C229: =Model!C517 -> 0 | D229: 0
B230: =Model!D415 -> Dividends to state | C230: =Model!C519 -> 0 | D230: 0
B231: =Model!D416 -> Withholding Tax | C231: =Model!C520 -> 278.7730755 | D231: 0.2802787116
B232: =Model!D522 -> Total government revenue | C232: =Model!C522 -> 994.6280755 | D232: 1
C238: Coefficient of variation
B239: Kyrgyz Republic (15% tax on concentrates) | C239: 0.6169519598
B240: Mongolia (small mine) | C240: 0.6791370519
B241: Kazakhstan | C241: 0.6978612212
B242: Western Australia | C242: 0.7153039238
B243: Mongolia (large mines) | C243: 0.7165122144
B244: Indonesia | C244: 0.7257207555
B245: Ghana | C245: 0.7589614903
B246: South Africa | C246: 0.7644241882
B247: Kyrgyz Republic | C247: 0.7667629205
B248: Chile | C248: 0.8010398362
B249: Peru | C249: 0.8230653798
C252: Minus 20% ($mm) | D252: Plus 20% ($mm)
B253: Kyrgyz Republic | C253: -75.24129265 | D253: 84.01963031
B254: Kyrgyz Republic (15% tax on concentrates) | C254: -131.014707 | D254: 150.2030339
B255: Mongolia (small mine) | C255: -135.3790892 | D255: 154.9805582
B256: Kazakhstan | C256: -145.671505 | D256: 171.2971003
B257: Ghana | C257: -163.0925099 | D257: 214.1188934
B258: Peru | C258: -177.6881381 | D258: 196.1507578
B259: Western Australia | C259: -187.2715246 | D259: 193.8152141
B260: Mongolia (large mines) | C260: -187.3453461 | D260: 212.9353021
B261: South Africa | C261: -216.9949221 | D261: 247.2033651
B262: Chile | C262: -233.7916581 | D262: 278.9924216
B263: Indonesia | C263: -234.7169439 | D263: 247.8249437

Sheet Inputs
A1: INPUTS
D3: Choose primary mineral
D4: Gold | E4: =MATCH(D4,Lists!$E$2:$E$7,0) -> 1
D5: Choose co-product
D6: Copper | E6: =MATCH(D6,Lists!$E$2:$E$7,0) -> 2
D8: Fiscal Regime Assumptions - main fiscal instruments
L10: --- Fiscal regime comparators in use ---
D11: SELECT TAX REGIME | F11: 1 | H11: 1 | I11: 2 | J11: 3 | K11: 4 | L11: 5 | M11: 6 | N11: 7 | O11: 8 | P11: 9 | Q11: 10 | R11: 11
D12: Regime name | F12: =INDEX(H12:R12,$F$11) -> Kyrgyz Republic | H12: Kyrgyz Republic | I12: Kazakhstan | J12: Mongolia (large mines) | K12: Ghana | L12: Chile | M12: Mongolia (small mine) | N12: Western Australia | O12: Indonesia | P12: Kyrgyz Republic (15% tax on concentrates) | Q12: Peru | R12: South Africa
H13: =MATCH(H12,'Tax regime profiles'!$G$2:$AT$2,0) -> 1 | I13: =MATCH(I12,'Tax regime profiles'!$G$2:$AT$2,0) -> 2 | J13: =MATCH(J12,'Tax regime profiles'!$G$2:$AT$2,0) -> 11 | K13: =MATCH(K12,'Tax regime profiles'!$G$2:$AT$2,0) -> 6 | L13: =MATCH(L12,'Tax regime profiles'!$G$2:$AT$2,0) -> 3 | M13: =MATCH(M12,'Tax regime profiles'!$G$2:$AT$2,0) -> 13 | N13: =MATCH(N12,'Tax regime profiles'!$G$2:$AT$2,0) -> 4 | O13: =MATCH(O12,'Tax regime profiles'!$G$2:$AT$2,0) -> 7 | P13: =MATCH(P12,'Tax regime profiles'!$G$2:$AT$2,0) -> 25 | Q13: =MATCH(Q12,'Tax regime profiles'!$G$2:$AT$2,0) -> 14 | R13: =MATCH(R12,'Tax regime profiles'!$G$2:$AT$2,0) -> 10
D14: Signature bonus | E14: $mm | F14: =INDEX(H14:R14,$F$219) -> 0 | H14: =INDEX('Tax regime profiles'!$G4:$AT4,Inputs!H$13) -> 0 | I14: =INDEX('Tax regime profiles'!$G4:$AT4,Inputs!I$13) -> 0 | J14: =INDEX('Tax regime profiles'!$G4:$AT4,Inputs!J$13) -> 0 | K14: =INDEX('Tax regime profiles'!$G4:$AT4,Inputs!K$13) -> 0 | L14: =INDEX('Tax regime profiles'!$G4:$AT4,Inputs!L$13) -> 0 | M14: =INDEX('Tax regime profiles'!$G4:$AT4,Inputs!M$13) -> 0 | N14: =INDEX('Tax regime profiles'!$G4:$AT4,Inputs!N$13) -> 0 | O14: =INDEX('Tax regime profiles'!$G4:$AT4,Inputs!O$13) -> 0 | P14: =INDEX('Tax regime profiles'!$G4:$AT4,Inputs!P$13) -> 0 | Q14: =INDEX('Tax regime profiles'!$G4:$AT4,Inputs!Q$13) -> 0 | R14: =INDEX('Tax regime profiles'!$G4:$AT4,Inputs!R$13) -> 0
D15: Front-end taxes
D16: Royalty (gold) | E16: % | F16: =INDEX(H16:R16,$F$219) -> 0.07 | H16: =INDEX('Tax regime profiles'!$G6:$AT6,Inputs!H$13) -> 0.07 | I16: =INDEX('Tax regime profiles'!$G6:$AT6,Inputs!I$13) -> 0.05 | J16: =INDEX('Tax regime profiles'!$G6:$AT6,Inputs!J$13) -> 0.05 | K16: =INDEX('Tax regime profiles'!$G6:$AT6,Inputs!K$13) -> 0.05 | L16: =INDEX('Tax regime profiles'!$G6:$AT6,Inputs!L$13) -> 0 | M16: =INDEX('Tax regime profiles'!$G6:$AT6,Inputs!M$13) -> 0.05 | N16: =INDEX('Tax regime profiles'!$G6:$AT6,Inputs!N$13) -> 0.025 | O16: =INDEX('Tax regime profiles'!$G6:$AT6,Inputs!O$13) -> 0.04 | P16: =INDEX('Tax regime profiles'!$G6:$AT6,Inputs!P$13) -> 0.22 | Q16: =INDEX('Tax regime profiles'!$G6:$AT6,Inputs!Q$13) -> 0 | R16: =INDEX('Tax regime profiles'!$G6:$AT6,Inputs!R$13) -> 0
D17: Royalty (copper) | E17: % | F17: 0.07 | H17: =INDEX('Tax regime profiles'!$G7:$AT7,Inputs!H$13) -> 0.07 | I17: =INDEX('Tax regime profiles'!$G7:$AT7,Inputs!I$13) -> 0.05 | J17: =INDEX('Tax regime profiles'!$G7:$AT7,Inputs!J$13) -> 0.05 | K17: =INDEX('Tax regime profiles'!$G7:$AT7,Inputs!K$13) -> 0.05 | L17: =INDEX('Tax regime profiles'!$G7:$AT7,Inputs!L$13) -> 0 | M17: =INDEX('Tax regime profiles'!$G7:$AT7,Inputs!M$13) -> 0.05 | N17: =INDEX('Tax regime profiles'!$G7:$AT7,Inputs!N$13) -> 0.025 | O17: =INDEX('Tax regime profiles'!$G7:$AT7,Inputs!O$13) -> 0.04 | P17: =INDEX('Tax regime profiles'!$G7:$AT7,Inputs!P$13) -> 0.22 | Q17: =INDEX('Tax regime profiles'!$G7:$AT7,Inputs!Q$13) -> 0 | R17: =INDEX('Tax regime profiles'!$G7:$AT7,Inputs!R$13) -> 0
D18: Royalty (cobalt) | E18: % | F18: 0.05 | H18: =INDEX('Tax regime profiles'!$G8:$AT8,Inputs!H$13) -> 0.05 | I18: =INDEX('Tax regime profiles'!$G8:$AT8,Inputs!I$13) -> 0.05 | J18: =INDEX('Tax regime profiles'!$G8:$AT8,Inputs!J$13) -> 0.05 | K18: =INDEX('Tax regime profiles'!$G8:$AT8,Inputs!K$13) -> 0.05 | L18: =INDEX('Tax regime profiles'!$G8:$AT8,Inputs!L$13) -> 0 | M18: =INDEX('Tax regime profiles'!$G8:$AT8,Inputs!M$13) -> 0.05 | N18: =INDEX('Tax regime profiles'!$G8:$AT8,Inputs!N$13) -> 0.025 | O18: =INDEX('Tax regime profiles'!$G8:$AT8,Inputs!O$13) -> 0.04 | P18: =INDEX('Tax regime profiles'!$G8:$AT8,Inputs!P$13) -> 0.05 | Q18: =INDEX('Tax regime profiles'!$G8:$AT8,Inputs!Q$13) -> 0 | R18: =INDEX('Tax regime profiles'!$G8:$AT8,Inputs!R$13) -> 0
D19: Royalty base (netback/gross) | E19: switch | F19: gross | H19: =INDEX('Tax regime profiles'!$G9:$AT9,Inputs!H$13) -> gross | I19: =INDEX('Tax regime profiles'!$G9:$AT9,Inputs!I$13) -> gross | J19: =INDEX('Tax regime profiles'!$G9:$AT9,Inputs!J$13) -> gross | K19: =INDEX('Tax regime profiles'!$G9:$AT9,Inputs!K$13) -> gross | L19: =INDEX('Tax regime profiles'!$G9:$AT9,Inputs!L$13) -> gross | M19: =INDEX('Tax regime profiles'!$G9:$AT9,Inputs!M$13) -> gross | N19: =INDEX('Tax regime profiles'!$G9:$AT9,Inputs!N$13) -> gross | O19: =INDEX('Tax regime profiles'!$G9:$AT9,Inputs!O$13) -> net | P19: =INDEX('Tax regime profiles'!$G9:$AT9,Inputs!P$13) -> gross | Q19: =INDEX('Tax regime profiles'!$G9:$AT9,Inputs!Q$13) -> gross | R19: =INDEX('Tax regime profiles'!$G9:$AT9,Inputs!R$13) -> gross
D20: VAT deductable (1=Yes, 2 = no) | E20: switch | F20: 1 | H20: =INDEX('Tax regime profiles'!$G10:$AT10,Inputs!H$13) -> 1 | I20: =INDEX('Tax regime profiles'!$G10:$AT10,Inputs!I$13) -> 1 | J20: =INDEX('Tax regime profiles'!$G10:$AT10,Inputs!J$13) -> 1 | K20: =INDEX('Tax regime profiles'!$G10:$AT10,Inputs!K$13) -> 1 | L20: =INDEX('Tax regime profiles'!$G10:$AT10,Inputs!L$13) -> 1 | M20: =INDEX('Tax regime profiles'!$G10:$AT10,Inputs!M$13) -> 1 | N20: =INDEX('Tax regime profiles'!$G10:$AT10,Inputs!N$13) -> 1 | O20: =INDEX('Tax regime profiles'!$G10:$AT10,Inputs!O$13) -> 1 | P20: =INDEX('Tax regime profiles'!$G10:$AT10,Inputs!P$13) -> 1 | Q20: =INDEX('Tax regime profiles'!$G10:$AT10,Inputs!Q$13) -> 1 | R20: =INDEX('Tax regime profiles'!$G10:$AT10,Inputs!R$13) -> 1
D21: Export duty (fixed) | E21: % | F21: 0 | H21: =INDEX('Tax regime profiles'!$G11:$AT11,Inputs!H$13) -> 0 | I21: =INDEX('Tax regime profiles'!$G11:$AT11,Inputs!I$13) -> 0 | J21: =INDEX('Tax regime profiles'!$G11:$AT11,Inputs!J$13) -> 0 | K21: =INDEX('Tax regime profiles'!$G11:$AT11,Inputs!K$13) -> 0 | L21: =INDEX('Tax regime profiles'!$G11:$AT11,Inputs!L$13) -> 0 | M21: =INDEX('Tax regime profiles'!$G11:$AT11,Inputs!M$13) -> 0 | N21: =INDEX('Tax regime profiles'!$G11:$AT11,Inputs!N$13) -> 0 | O21: =INDEX('Tax regime profiles'!$G11:$AT11,Inputs!O$13) -> 0 | P21: =INDEX('Tax regime profiles'!$G11:$AT11,Inputs!P$13) -> 0 | Q21: =INDEX('Tax regime profiles'!$G11:$AT11,Inputs!Q$13) -> 0 | R21: =INDEX('Tax regime profiles'!$G11:$AT11,Inputs!R$13) -> 0
D22: Corporate Income Tax
D23: Corporate Income Tax rate | E23: % | F23: =INDEX(H23:R23,$F$219) -> 0 | H23: =INDEX('Tax regime profiles'!$G13:$AT13,Inputs!H$13) -> 0 | I23: =INDEX('Tax regime profiles'!$G13:$AT13,Inputs!I$13) -> 0.2 | J23: =INDEX('Tax regime profiles'!$G13:$AT13,Inputs!J$13) -> 0.25 | K23: =INDEX('Tax regime profiles'!$G13:$AT13,Inputs!K$13) -> 0.35 | L23: =INDEX('Tax regime profiles'!$G13:$AT13,Inputs!L$13) -> 0.224 | M23: =INDEX('Tax regime profiles'!$G13:$AT13,Inputs!M$13) -> 0.1 | N23: =INDEX('Tax regime profiles'!$G13:$AT13,Inputs!N$13) -> 0.3 | O23: =INDEX('Tax regime profiles'!$G13:$AT13,Inputs!O$13) -> 0.35 | P23: =INDEX('Tax regime profiles'!$G13:$AT13,Inputs!P$13) -> 0 | Q23: =INDEX('Tax regime profiles'!$G13:$AT13,Inputs!Q$13) -> 0.28 | R23: =INDEX('Tax regime profiles'!$G13:$AT13,Inputs!R$13) -> 0
D24: Exploration costs (expensing) | E24: switch | F24: 0 | H24: =INDEX('Tax regime profiles'!$G14:$AT14,Inputs!H$13) -> 0 | I24: =INDEX('Tax regime profiles'!$G14:$AT14,Inputs!I$13) -> deferred | J24: =INDEX('Tax regime profiles'!$G14:$AT14,Inputs!J$13) -> deferred | K24: =INDEX('Tax regime profiles'!$G14:$AT14,Inputs!K$13) -> deferred | L24: =INDEX('Tax regime profiles'!$G14:$AT14,Inputs!L$13) -> deferred | M24: =INDEX('Tax regime profiles'!$G14:$AT14,Inputs!M$13) -> deferred | N24: =INDEX('Tax regime profiles'!$G14:$AT14,Inputs!N$13) -> deferred | O24: =INDEX('Tax regime profiles'!$G14:$AT14,Inputs!O$13) -> deferred | P24: =INDEX('Tax regime profiles'!$G14:$AT14,Inputs!P$13) -> 0 | Q24: =INDEX('Tax regime profiles'!$G14:$AT14,Inputs!Q$13) -> deferred | R24: =INDEX('Tax regime profiles'!$G14:$AT14,Inputs!R$13) -> deferred
D25: Development costs - intangibles (expensing) | E25: switch | F25: 0 | H25: =INDEX('Tax regime profiles'!$G15:$AT15,Inputs!H$13) -> 0 | I25: =INDEX('Tax regime profiles'!$G15:$AT15,Inputs!I$13) -> deferred | J25: =INDEX('Tax regime profiles'!$G15:$AT15,Inputs!J$13) -> deferred | K25: =INDEX('Tax regime profiles'!$G15:$AT15,Inputs!K$13) -> deferred | L25: =INDEX('Tax regime profiles'!$G15:$AT15,Inputs!L$13) -> deferred | M25: =INDEX('Tax regime profiles'!$G15:$AT15,Inputs!M$13) -> deferred | N25: =INDEX('Tax regime profiles'!$G15:$AT15,Inputs!N$13) -> deferred | O25: =INDEX('Tax regime profiles'!$G15:$AT15,Inputs!O$13) -> deferred | P25: =INDEX('Tax regime profiles'!$G15:$AT15,Inputs!P$13) -> 0 | Q25: =INDEX('Tax regime profiles'!$G15:$AT15,Inputs!Q$13) -> deferred | R25: =INDEX('Tax regime profiles'!$G15:$AT15,Inputs!R$13) -> deferred
D26: Development costs - tangibles (depreciation) | E26: switch | F26: 0 | H26: =INDEX('Tax regime profiles'!$G16:$AT16,Inputs!H$13) -> 0 | I26: =INDEX('Tax regime profiles'!$G16:$AT16,Inputs!I$13) -> deferred | J26: =INDEX('Tax regime profiles'!$G16:$AT16,Inputs!J$13) -> deferred | K26: =INDEX('Tax regime profiles'!$G16:$AT16,Inputs!K$13) -> deferred | L26: =INDEX('Tax regime profiles'!$G16:$AT16,Inputs!L$13) -> deferred | M26: =INDEX('Tax regime profiles'!$G16:$AT16,Inputs!M$13) -> deferred | N26: =INDEX('Tax regime profiles'!$G16:$AT16,Inputs!N$13) -> deferred | O26: =INDEX('Tax regime profiles'!$G16:$AT16,Inputs!O$13) -> deferred | P26: =INDEX('Tax regime profiles'!$G16:$AT16,Inputs!P$13) -> 0 | Q26: =INDEX('Tax regime profiles'!$G16:$AT16,Inputs!Q$13) -> deferred | R26: =INDEX('Tax regime profiles'!$G16:$AT16,Inputs!R$13) -> deferred
D27: Loss carry forward | E27: years | F27: 0 | H27: =INDEX('Tax regime profiles'!$G17:$AT17,Inputs!H$13) -> 0 | I27: =INDEX('Tax regime profiles'!$G17:$AT17,Inputs!I$13) -> 10 | J27: =INDEX('Tax regime profiles'!$G17:$AT17,Inputs!J$13) -> 6 | K27: =INDEX('Tax regime profiles'!$G17:$AT17,Inputs!K$13) -> 5 | L27: =INDEX('Tax regime profiles'!$G17:$AT17,Inputs!L$13) -> 100 | M27: =INDEX('Tax regime profiles'!$G17:$AT17,Inputs!M$13) -> 6 | N27: =INDEX('Tax regime profiles'!$G17:$AT17,Inputs!N$13) -> 100 | O27: =INDEX('Tax regime profiles'!$G17:$AT17,Inputs!O$13) -> 5 | P27: =INDEX('Tax regime profiles'!$G17:$AT17,Inputs!P$13) -> 0 | Q27: =INDEX('Tax regime profiles'!$G17:$AT17,Inputs!Q$13) -> 4 | R27: =INDEX('Tax regime profiles'!$G17:$AT17,Inputs!R$13) -> 100
D28: Loss carry forward (limitation) | E28: % | F28: 0 | H28: =INDEX('Tax regime profiles'!$G18:$AT18,Inputs!H$13) -> 0 | I28: =INDEX('Tax regime profiles'!$G18:$AT18,Inputs!I$13) -> 1 | J28: =INDEX('Tax regime profiles'!$G18:$AT18,Inputs!J$13) -> 1 | K28: =INDEX('Tax regime profiles'!$G18:$AT18,Inputs!K$13) -> 1 | L28: =INDEX('Tax regime profiles'!$G18:$AT18,Inputs!L$13) -> 1 | M28: =INDEX('Tax regime profiles'!$G18:$AT18,Inputs!M$13) -> 1 | N28: =INDEX('Tax regime profiles'!$G18:$AT18,Inputs!N$13) -> 1 | O28: =INDEX('Tax regime profiles'!$G18:$AT18,Inputs!O$13) -> 1 | P28: =INDEX('Tax regime profiles'!$G18:$AT18,Inputs!P$13) -> 0 | Q28: =INDEX('Tax regime profiles'!$G18:$AT18,Inputs!Q$13) -> 1 | R28: =INDEX('Tax regime profiles'!$G18:$AT18,Inputs!R$13) -> 1
D29: Depreciation allowance (on tangible and replacement capital) | E29: years | F29: 0 | H29: =INDEX('Tax regime profiles'!$G19:$AT19,Inputs!H$13) -> 0 | I29: =INDEX('Tax regime profiles'!$G19:$AT19,Inputs!I$13) -> 4 | J29: =INDEX('Tax regime profiles'!$G19:$AT19,Inputs!J$13) -> 10 | K29: =INDEX('Tax regime profiles'!$G19:$AT19,Inputs!K$13) -> 5 | L29: =INDEX('Tax regime profiles'!$G19:$AT19,Inputs!L$13) -> 10 | M29: =INDEX('Tax regime profiles'!$G19:$AT19,Inputs!M$13) -> 10 | N29: =INDEX('Tax regime profiles'!$G19:$AT19,Inputs!N$13) -> 20 | O29: =INDEX('Tax regime profiles'!$G19:$AT19,Inputs!O$13) -> 16 | P29: =INDEX('Tax regime profiles'!$G19:$AT19,Inputs!P$13) -> 0 | Q29: =INDEX('Tax regime profiles'!$G19:$AT19,Inputs!Q$13) -> 10 | R29: =INDEX('Tax regime profiles'!$G19:$AT19,Inputs!R$13) -> 1
D30: Non-linear depreciation | E30: switch | F30: 0 | H30: =INDEX('Tax regime profiles'!$G20:$AT20,Inputs!H$13) -> 0 | I30: =INDEX('Tax regime profiles'!$G20:$AT20,Inputs!I$13) -> 0 | J30: =INDEX('Tax regime profiles'!$G20:$AT20,Inputs!J$13) -> 0 | K30: =INDEX('Tax regime profiles'!$G20:$AT20,Inputs!K$13) -> 0 | L30: =INDEX('Tax regime profiles'!$G20:$AT20,Inputs!L$13) -> 0 | M30: =INDEX('Tax regime profiles'!$G20:$AT20,Inputs!M$13) -> 0 | N30: =INDEX('Tax regime profiles'!$G20:$AT20,Inputs!N$13) -> 0 | O30: =INDEX('Tax regime profiles'!$G20:$AT20,Inputs!O$13) -> 0 | P30: =INDEX('Tax regime profiles'!$G20:$AT20,Inputs!P$13) -> 0 | Q30: =INDEX('Tax regime profiles'!$G20:$AT20,Inputs!Q$13) -> 0 | R30: =INDEX('Tax regime profiles'!$G20:$AT20,Inputs!R$13) -> 0
D31: Variable rate tax switches (see Schedules for variables)
D32: Variable rate royalty revenue based (Choose between schedules 1 and 8) | E32: revenue based (Choose between schedules 1 and 8) | F32: =INDEX(H32:R32,$F$219) -> 1 | H32: =INDEX('Tax regime profiles'!$G22:$AT22,Inputs!H$13) -> 1 | I32: =INDEX('Tax regime profiles'!$G22:$AT22,Inputs!I$13) -> 1 | J32: =INDEX('Tax regime profiles'!$G22:$AT22,Inputs!J$13) -> 1 | K32: =INDEX('Tax regime profiles'!$G22:$AT22,Inputs!K$13) -> 1 | L32: =INDEX('Tax regime profiles'!$G22:$AT22,Inputs!L$13) -> 1 | M32: =INDEX('Tax regime profiles'!$G22:$AT22,Inputs!M$13) -> 1 | N32: =INDEX('Tax regime profiles'!$G22:$AT22,Inputs!N$13) -> 1 | O32: =INDEX('Tax regime profiles'!$G22:$AT22,Inputs!O$13) -> 1 | P32: =INDEX('Tax regime profiles'!$G22:$AT22,Inputs!P$13) -> 1 | Q32: =INDEX('Tax regime profiles'!$G22:$AT22,Inputs!Q$13) -> 1 | R32: =INDEX('Tax regime profiles'!$G22:$AT22,Inputs!R$13) -> 1
D33: Variable rate royalty revenue based (Choose between schedules 1 and 8) | E33: revenue based (Choose between schedules 1 and 8) | F33: 0 | H33: =INDEX('Tax regime profiles'!$G23:$AT23,Inputs!H$13) -> 0 | I33: =INDEX('Tax regime profiles'!$G23:$AT23,Inputs!I$13) -> 0 | J33: =INDEX('Tax regime profiles'!$G23:$AT23,Inputs!J$13) -> 0 | K33: =INDEX('Tax regime profiles'!$G23:$AT23,Inputs!K$13) -> 0 | L33: =INDEX('Tax regime profiles'!$G23:$AT23,Inputs!L$13) -> 0 | M33: =INDEX('Tax regime profiles'!$G23:$AT23,Inputs!M$13) -> 0 | N33: =INDEX('Tax regime profiles'!$G23:$AT23,Inputs!N$13) -> 0 | O33: =INDEX('Tax regime profiles'!$G23:$AT23,Inputs!O$13) -> 0 | P33: =INDEX('Tax regime profiles'!$G23:$AT23,Inputs!P$13) -> 0 | Q33: =INDEX('Tax regime profiles'!$G23:$AT23,Inputs!Q$13) -> 0 | R33: =INDEX('Tax regime profiles'!$G23:$AT23,Inputs!R$13) -> 0
D34: Variable rate royalty - price based (Choose between schedules 1 and 4) | E34: switch | F34: 3 | H34: =INDEX('Tax regime profiles'!$G24:$AT24,Inputs!H$13) -> 3 | I34: =INDEX('Tax regime profiles'!$G24:$AT24,Inputs!I$13) -> 1 | J34: =INDEX('Tax regime profiles'!$G24:$AT24,Inputs!J$13) -> 1 | K34: =INDEX('Tax regime profiles'!$G24:$AT24,Inputs!K$13) -> 1 | L34: =INDEX('Tax regime profiles'!$G24:$AT24,Inputs!L$13) -> 1 | M34: =INDEX('Tax regime profiles'!$G24:$AT24,Inputs!M$13) -> 1 | N34: =INDEX('Tax regime profiles'!$G24:$AT24,Inputs!N$13) -> 1 | O34: =INDEX('Tax regime profiles'!$G24:$AT24,Inputs!O$13) -> 1 | P34: =INDEX('Tax regime profiles'!$G24:$AT24,Inputs!P$13) -> 3 | Q34: =INDEX('Tax regime profiles'!$G24:$AT24,Inputs!Q$13) -> 1 | R34: =INDEX('Tax regime profiles'!$G24:$AT24,Inputs!R$13) -> 1
D35: Variable rate royalty - not marginal = 1; marginal = 2 | E35: switch | F35: 1 | H35: =INDEX('Tax regime profiles'!$G25:$AT25,Inputs!H$13) -> 1 | I35: =INDEX('Tax regime profiles'!$G25:$AT25,Inputs!I$13) -> 1 | J35: =INDEX('Tax regime profiles'!$G25:$AT25,Inputs!J$13) -> 1 | K35: =INDEX('Tax regime profiles'!$G25:$AT25,Inputs!K$13) -> 1 | L35: =INDEX('Tax regime profiles'!$G25:$AT25,Inputs!L$13) -> 1 | M35: =INDEX('Tax regime profiles'!$G25:$AT25,Inputs!M$13) -> 1 | N35: =INDEX('Tax regime profiles'!$G25:$AT25,Inputs!N$13) -> 1 | O35: =INDEX('Tax regime profiles'!$G25:$AT25,Inputs!O$13) -> 1 | P35: =INDEX('Tax regime profiles'!$G25:$AT25,Inputs!P$13) -> 1 | Q35: =INDEX('Tax regime profiles'!$G25:$AT25,Inputs!Q$13) -> 1 | R35: =INDEX('Tax regime profiles'!$G25:$AT25,Inputs!R$13) -> 1
D36: Resource Rent Tax rate | E36: % | F36: 0 | H36: =INDEX('Tax regime profiles'!$G26:$AT26,Inputs!H$13) -> 0 | I36: =INDEX('Tax regime profiles'!$G26:$AT26,Inputs!I$13) -> 0 | J36: =INDEX('Tax regime profiles'!$G26:$AT26,Inputs!J$13) -> 0 | K36: =INDEX('Tax regime profiles'!$G26:$AT26,Inputs!K$13) -> 0 | L36: =INDEX('Tax regime profiles'!$G26:$AT26,Inputs!L$13) -> 0 | M36: =INDEX('Tax regime profiles'!$G26:$AT26,Inputs!M$13) -> 0 | N36: =INDEX('Tax regime profiles'!$G26:$AT26,Inputs!N$13) -> 0 | O36: =INDEX('Tax regime profiles'!$G26:$AT26,Inputs!O$13) -> 0 | P36: =INDEX('Tax regime profiles'!$G26:$AT26,Inputs!P$13) -> 0 | Q36: =INDEX('Tax regime profiles'!$G26:$AT26,Inputs!Q$13) -> 0 | R36: =INDEX('Tax regime profiles'!$G26:$AT26,Inputs!R$13) -> 0
D37: RRT threshhold | E37: % | F37: 0 | H37: =INDEX('Tax regime profiles'!$G27:$AT27,Inputs!H$13) -> 0 | I37: =INDEX('Tax regime profiles'!$G27:$AT27,Inputs!I$13) -> 0 | J37: =INDEX('Tax regime profiles'!$G27:$AT27,Inputs!J$13) -> 0 | K37: =INDEX('Tax regime profiles'!$G27:$AT27,Inputs!K$13) -> 0 | L37: =INDEX('Tax regime profiles'!$G27:$AT27,Inputs!L$13) -> 0 | M37: =INDEX('Tax regime profiles'!$G27:$AT27,Inputs!M$13) -> 0 | N37: =INDEX('Tax regime profiles'!$G27:$AT27,Inputs!N$13) -> 0 | O37: =INDEX('Tax regime profiles'!$G27:$AT27,Inputs!O$13) -> 0 | P37: =INDEX('Tax regime profiles'!$G27:$AT27,Inputs!P$13) -> 0 | Q37: =INDEX('Tax regime profiles'!$G27:$AT27,Inputs!Q$13) -> 0 | R37: =INDEX('Tax regime profiles'!$G27:$AT27,Inputs!R$13) -> 0
D38: CIT deductible (yes/no) | E38: switch | F38: 0 | H38: =INDEX('Tax regime profiles'!$G28:$AT28,Inputs!H$13) -> 0 | I38: =INDEX('Tax regime profiles'!$G28:$AT28,Inputs!I$13) -> 0 | J38: =INDEX('Tax regime profiles'!$G28:$AT28,Inputs!J$13) -> 0 | K38: =INDEX('Tax regime profiles'!$G28:$AT28,Inputs!K$13) -> 0 | L38: =INDEX('Tax regime profiles'!$G28:$AT28,Inputs!L$13) -> 0 | M38: =INDEX('Tax regime profiles'!$G28:$AT28,Inputs!M$13) -> 0 | N38: =INDEX('Tax regime profiles'!$G28:$AT28,Inputs!N$13) -> 0 | O38: =INDEX('Tax regime profiles'!$G28:$AT28,Inputs!O$13) -> 0 | P38: =INDEX('Tax regime profiles'!$G28:$AT28,Inputs!P$13) -> 0 | Q38: =INDEX('Tax regime profiles'!$G28:$AT28,Inputs!Q$13) -> 0 | R38: =INDEX('Tax regime profiles'!$G28:$AT28,Inputs!R$13) -> 0
D39: Operating margin tax (Choose 1, 2, 3, 4 from variable rate tax section) | E39: switch | F39: 0 | H39: =INDEX('Tax regime profiles'!$G29:$AT29,Inputs!H$13) -> 0 | I39: =INDEX('Tax regime profiles'!$G29:$AT29,Inputs!I$13) -> 0 | J39: =INDEX('Tax regime profiles'!$G29:$AT29,Inputs!J$13) -> 0 | K39: =INDEX('Tax regime profiles'!$G29:$AT29,Inputs!K$13) -> 0 | L39: =INDEX('Tax regime profiles'!$G29:$AT29,Inputs!L$13) -> 1 | M39: =INDEX('Tax regime profiles'!$G29:$AT29,Inputs!M$13) -> 0 | N39: =INDEX('Tax regime profiles'!$G29:$AT29,Inputs!N$13) -> 0 | O39: =INDEX('Tax regime profiles'!$G29:$AT29,Inputs!O$13) -> 0 | P39: =INDEX('Tax regime profiles'!$G29:$AT29,Inputs!P$13) -> 0 | Q39: =INDEX('Tax regime profiles'!$G29:$AT29,Inputs!Q$13) -> 1 | R39: =INDEX('Tax regime profiles'!$G29:$AT29,Inputs!R$13) -> 0
D40: Schedule (1 to 4) | E40: switch | F40: 1 | H40: =INDEX('Tax regime profiles'!$G30:$AT30,Inputs!H$13) -> 1 | I40: =INDEX('Tax regime profiles'!$G30:$AT30,Inputs!I$13) -> 1 | J40: =INDEX('Tax regime profiles'!$G30:$AT30,Inputs!J$13) -> 1 | K40: =INDEX('Tax regime profiles'!$G30:$AT30,Inputs!K$13) -> 1 | L40: =INDEX('Tax regime profiles'!$G30:$AT30,Inputs!L$13) -> 1 | M40: =INDEX('Tax regime profiles'!$G30:$AT30,Inputs!M$13) -> 1 | N40: =INDEX('Tax regime profiles'!$G30:$AT30,Inputs!N$13) -> 1 | O40: =INDEX('Tax regime profiles'!$G30:$AT30,Inputs!O$13) -> 1 | P40: =INDEX('Tax regime profiles'!$G30:$AT30,Inputs!P$13) -> 1 | Q40: =INDEX('Tax regime profiles'!$G30:$AT30,Inputs!Q$13) -> 2 | R40: =INDEX('Tax regime profiles'!$G30:$AT30,Inputs!R$13) -> 1
D41: South Africa variable royalty | E41: switch | F41: 0 | H41: =INDEX('Tax regime profiles'!$G31:$AT31,Inputs!H$13) -> 0 | I41: =INDEX('Tax regime profiles'!$G31:$AT31,Inputs!I$13) -> 0 | J41: =INDEX('Tax regime profiles'!$G31:$AT31,Inputs!J$13) -> 0 | K41: =INDEX('Tax regime profiles'!$G31:$AT31,Inputs!K$13) -> 0 | L41: =INDEX('Tax regime profiles'!$G31:$AT31,Inputs!L$13) -> 0 | M41: =INDEX('Tax regime profiles'!$G31:$AT31,Inputs!M$13) -> 0 | N41: =INDEX('Tax regime profiles'!$G31:$AT31,Inputs!N$13) -> 0 | O41: =INDEX('Tax regime profiles'!$G31:$AT31,Inputs!O$13) -> 0 | P41: =INDEX('Tax regime profiles'!$G31:$AT31,Inputs!P$13) -> 0 | Q41: =INDEX('Tax regime profiles'!$G31:$AT31,Inputs!Q$13) -> 0 | R41: =INDEX('Tax regime profiles'!$G31:$AT31,Inputs!R$13) -> 1
D42: Variable set (Choose 1, 2, 3) | E42: switch | F42: 1 | H42: =INDEX('Tax regime profiles'!$G32:$AT32,Inputs!H$13) -> 1 | I42: =INDEX('Tax regime profiles'!$G32:$AT32,Inputs!I$13) -> 1 | J42: =INDEX('Tax regime profiles'!$G32:$AT32,Inputs!J$13) -> 1 | K42: =INDEX('Tax regime profiles'!$G32:$AT32,Inputs!K$13) -> 1 | L42: =INDEX('Tax regime profiles'!$G32:$AT32,Inputs!L$13) -> 1 | M42: =INDEX('Tax regime profiles'!$G32:$AT32,Inputs!M$13) -> 1 | N42: =INDEX('Tax regime profiles'!$G32:$AT32,Inputs!N$13) -> 1 | O42: =INDEX('Tax regime profiles'!$G32:$AT32,Inputs!O$13) -> 1 | P42: =INDEX('Tax regime profiles'!$G32:$AT32,Inputs!P$13) -> 1 | Q42: =INDEX('Tax regime profiles'!$G32:$AT32,Inputs!Q$13) -> 1 | R42: =INDEX('Tax regime profiles'!$G32:$AT32,Inputs!R$13) -> 2
D43: EBITDA (=1) or EBIT (=2) | E43: switch | F43: 1 | H43: =INDEX('Tax regime profiles'!$G33:$AT33,Inputs!H$13) -> 1 | I43: =INDEX('Tax regime profiles'!$G33:$AT33,Inputs!I$13) -> 1 | J43: =INDEX('Tax regime profiles'!$G33:$AT33,Inputs!J$13) -> 1 | K43: =INDEX('Tax regime profiles'!$G33:$AT33,Inputs!K$13) -> 1 | L43: =INDEX('Tax regime profiles'!$G33:$AT33,Inputs!L$13) -> 1 | M43: =INDEX('Tax regime profiles'!$G33:$AT33,Inputs!M$13) -> 1 | N43: =INDEX('Tax regime profiles'!$G33:$AT33,Inputs!N$13) -> 1 | O43: =INDEX('Tax regime profiles'!$G33:$AT33,Inputs!O$13) -> 1 | P43: =INDEX('Tax regime profiles'!$G33:$AT33,Inputs!P$13) -> 1 | Q43: =INDEX('Tax regime profiles'!$G33:$AT33,Inputs!Q$13) -> 1 | R43: =INDEX('Tax regime profiles'!$G33:$AT33,Inputs!R$13) -> 2
D44: Variable profit tax - zambia (0 = off, 1 = on) | E44: switch | F44: 0 | H44: =INDEX('Tax regime profiles'!$G34:$AT34,Inputs!H$13) -> 0 | I44: =INDEX('Tax regime profiles'!$G34:$AT34,Inputs!I$13) -> 0 | J44: =INDEX('Tax regime profiles'!$G34:$AT34,Inputs!J$13) -> 0 | K44: =INDEX('Tax regime profiles'!$G34:$AT34,Inputs!K$13) -> 0 | L44: =INDEX('Tax regime profiles'!$G34:$AT34,Inputs!L$13) -> 0 | M44: =INDEX('Tax regime profiles'!$G34:$AT34,Inputs!M$13) -> 0 | N44: =INDEX('Tax regime profiles'!$G34:$AT34,Inputs!N$13) -> 0 | O44: =INDEX('Tax regime profiles'!$G34:$AT34,Inputs!O$13) -> 0 | P44: =INDEX('Tax regime profiles'!$G34:$AT34,Inputs!P$13) -> 0 | Q44: =INDEX('Tax regime profiles'!$G34:$AT34,Inputs!Q$13) -> 0 | R44: =INDEX('Tax regime profiles'!$G34:$AT34,Inputs!R$13) -> 0
D45: South Africa gold profit tax (0 = off, 1 = on) | E45: switch | F45: 0 | H45: =INDEX('Tax regime profiles'!$G36:$AT36,Inputs!H$13) -> 0 | I45: =INDEX('Tax regime profiles'!$G36:$AT36,Inputs!I$13) -> 0 | J45: =INDEX('Tax regime profiles'!$G36:$AT36,Inputs!J$13) -> 0 | K45: =INDEX('Tax regime profiles'!$G36:$AT36,Inputs!K$13) -> 0 | L45: =INDEX('Tax regime profiles'!$G36:$AT36,Inputs!L$13) -> 0 | M45: =INDEX('Tax regime profiles'!$G36:$AT36,Inputs!M$13) -> 0 | N45: =INDEX('Tax regime profiles'!$G36:$AT36,Inputs!N$13) -> 0 | O45: =INDEX('Tax regime profiles'!$G36:$AT36,Inputs!O$13) -> 0 | P45: =INDEX('Tax regime profiles'!$G36:$AT36,Inputs!P$13) -> 0 | Q45: =INDEX('Tax regime profiles'!$G36:$AT36,Inputs!Q$13) -> 0 | R45: =INDEX('Tax regime profiles'!$G36:$AT36,Inputs!R$13) -> 1
D46: a | F46: =INDEX(H46:R46,$F$219) -> 0 | H46: =INDEX('Tax regime profiles'!$G37:$AT37,Inputs!H$13) -> 0 | I46: =INDEX('Tax regime profiles'!$G37:$AT37,Inputs!I$13) -> 0 | J46: =INDEX('Tax regime profiles'!$G37:$AT37,Inputs!J$13) -> 0 | K46: =INDEX('Tax regime profiles'!$G37:$AT37,Inputs!K$13) -> 0 | L46: =INDEX('Tax regime profiles'!$G37:$AT37,Inputs!L$13) -> 0 | M46: =INDEX('Tax regime profiles'!$G37:$AT37,Inputs!M$13) -> 0 | N46: =INDEX('Tax regime profiles'!$G37:$AT37,Inputs!N$13) -> 0 | O46: =INDEX('Tax regime profiles'!$G37:$AT37,Inputs!O$13) -> 0 | P46: =INDEX('Tax regime profiles'!$G37:$AT37,Inputs!P$13) -> 0 | Q46: =INDEX('Tax regime profiles'!$G37:$AT37,Inputs!Q$13) -> 0 | R46: =INDEX('Tax regime profiles'!$G37:$AT37,Inputs!R$13) -> 34
D47: b | F47: =INDEX(H47:R47,$F$219) -> 0 | H47: =INDEX('Tax regime profiles'!$G38:$AT38,Inputs!H$13) -> 0 | I47: =INDEX('Tax regime profiles'!$G38:$AT38,Inputs!I$13) -> 0 | J47: =INDEX('Tax regime profiles'!$G38:$AT38,Inputs!J$13) -> 0 | K47: =INDEX('Tax regime profiles'!$G38:$AT38,Inputs!K$13) -> 0 | L47: =INDEX('Tax regime profiles'!$G38:$AT38,Inputs!L$13) -> 0 | M47: =INDEX('Tax regime profiles'!$G38:$AT38,Inputs!M$13) -> 0 | N47: =INDEX('Tax regime profiles'!$G38:$AT38,Inputs!N$13) -> 0 | O47: =INDEX('Tax regime profiles'!$G38:$AT38,Inputs!O$13) -> 0 | P47: =INDEX('Tax regime profiles'!$G38:$AT38,Inputs!P$13) -> 0 | Q47: =INDEX('Tax regime profiles'!$G38:$AT38,Inputs!Q$13) -> 0 | R47: =INDEX('Tax regime profiles'!$G38:$AT38,Inputs!R$13) -> 5
D48: Surcharge on Cash Flows rate | E48: % | F48: =INDEX(H48:R48,$F$219) -> 0 | H48: =INDEX('Tax regime profiles'!$G39:$AT39,Inputs!H$13) -> 0 | I48: =INDEX('Tax regime profiles'!$G39:$AT39,Inputs!I$13) -> 0 | J48: =INDEX('Tax regime profiles'!$G39:$AT39,Inputs!J$13) -> 0 | K48: =INDEX('Tax regime profiles'!$G39:$AT39,Inputs!K$13) -> 0 | L48: =INDEX('Tax regime profiles'!$G39:$AT39,Inputs!L$13) -> 0 | M48: =INDEX('Tax regime profiles'!$G39:$AT39,Inputs!M$13) -> 0 | N48: =INDEX('Tax regime profiles'!$G39:$AT39,Inputs!N$13) -> 0 | O48: =INDEX('Tax regime profiles'!$G39:$AT39,Inputs!O$13) -> 0 | P48: =INDEX('Tax regime profiles'!$G39:$AT39,Inputs!P$13) -> 0 | Q48: =INDEX('Tax regime profiles'!$G39:$AT39,Inputs!Q$13) -> 0 | R48: =INDEX('Tax regime profiles'!$G39:$AT39,Inputs!R$13) -> 0
D49: CIT deductible (yes/no) | E49: switch | F49: =INDEX(H49:R49,$F$219) -> 0 | H49: =INDEX('Tax regime profiles'!$G40:$AT40,Inputs!H$13) -> 0 | I49: =INDEX('Tax regime profiles'!$G40:$AT40,Inputs!I$13) -> 0 | J49: =INDEX('Tax regime profiles'!$G40:$AT40,Inputs!J$13) -> 0 | K49: =INDEX('Tax regime profiles'!$G40:$AT40,Inputs!K$13) -> 0 | L49: =INDEX('Tax regime profiles'!$G40:$AT40,Inputs!L$13) -> 0 | M49: =INDEX('Tax regime profiles'!$G40:$AT40,Inputs!M$13) -> 0 | N49: =INDEX('Tax regime profiles'!$G40:$AT40,Inputs!N$13) -> 0 | O49: =INDEX('Tax regime profiles'!$G40:$AT40,Inputs!O$13) -> 0 | P49: =INDEX('Tax regime profiles'!$G40:$AT40,Inputs!P$13) -> 0 | Q49: =INDEX('Tax regime profiles'!$G40:$AT40,Inputs!Q$13) -> 0 | R49: =INDEX('Tax regime profiles'!$G40:$AT40,Inputs!R$13) -> 0
D50: Other taxes and provisions
D51: Dividend Withholding Tax | E51: % | F51: =INDEX(H51:R51,$F$219) -> 0.1 | H51: =INDEX('Tax regime profiles'!$G42:$AT42,Inputs!H$13) -> 0.1 | I51: =INDEX('Tax regime profiles'!$G42:$AT42,Inputs!I$13) -> 0.15 | J51: =INDEX('Tax regime profiles'!$G42:$AT42,Inputs!J$13) -> 0.2 | K51: =INDEX('Tax regime profiles'!$G42:$AT42,Inputs!K$13) -> 0.08 | L51: =INDEX('Tax regime profiles'!$G42:$AT42,Inputs!L$13) -> 0.35 | M51: =INDEX('Tax regime profiles'!$G42:$AT42,Inputs!M$13) -> 0.2 | N51: =INDEX('Tax regime profiles'!$G42:$AT42,Inputs!N$13) -> 0.1 | O51: =INDEX('Tax regime profiles'!$G42:$AT42,Inputs!O$13) -> 0.2 | P51: =INDEX('Tax regime profiles'!$G42:$AT42,Inputs!P$13) -> 0.1 | Q51: =INDEX('Tax regime profiles'!$G42:$AT42,Inputs!Q$13) -> 0.05 | R51: =INDEX('Tax regime profiles'!$G42:$AT42,Inputs!R$13) -> 0.2
D52: Interest Withholding Tax | E52: % | F52: 0.1 | H52: =INDEX('Tax regime profiles'!$G43:$AT43,Inputs!H$13) -> 0.1 | I52: =INDEX('Tax regime profiles'!$G43:$AT43,Inputs!I$13) -> 0.15 | J52: =INDEX('Tax regime profiles'!$G43:$AT43,Inputs!J$13) -> 0.2 | K52: =INDEX('Tax regime profiles'!$G43:$AT43,Inputs!K$13) -> 0.08 | L52: =INDEX('Tax regime profiles'!$G43:$AT43,Inputs!L$13) -> 0.35 | M52: =INDEX('Tax regime profiles'!$G43:$AT43,Inputs!M$13) -> 0.2 | N52: =INDEX('Tax regime profiles'!$G43:$AT43,Inputs!N$13) -> 0.1 | O52: =INDEX('Tax regime profiles'!$G43:$AT43,Inputs!O$13) -> 0.2 | P52: =INDEX('Tax regime profiles'!$G43:$AT43,Inputs!P$13) -> 0.1 | Q52: =INDEX('Tax regime profiles'!$G43:$AT43,Inputs!Q$13) -> 0.0499 | R52: =INDEX('Tax regime profiles'!$G43:$AT43,Inputs!R$13) -> 0.15
D53: State equity, free | E53: % | F53: 0 | H53: =INDEX('Tax regime profiles'!$G44:$AT44,Inputs!H$13) -> 0 | I53: =INDEX('Tax regime profiles'!$G44:$AT44,Inputs!I$13) -> 0 | J53: =INDEX('Tax regime profiles'!$G44:$AT44,Inputs!J$13) -> 0 | K53: =INDEX('Tax regime profiles'!$G44:$AT44,Inputs!K$13) -> 0 | L53: =INDEX('Tax regime profiles'!$G44:$AT44,Inputs!L$13) -> 0 | M53: =INDEX('Tax regime profiles'!$G44:$AT44,Inputs!M$13) -> 0 | N53: =INDEX('Tax regime profiles'!$G44:$AT44,Inputs!N$13) -> 0 | O53: =INDEX('Tax regime profiles'!$G44:$AT44,Inputs!O$13) -> 0 | P53: =INDEX('Tax regime profiles'!$G44:$AT44,Inputs!P$13) -> 0 | Q53: =INDEX('Tax regime profiles'!$G44:$AT44,Inputs!Q$13) -> 0 | R53: =INDEX('Tax regime profiles'!$G44:$AT44,Inputs!R$13) -> 0
D54: State equity, paid (progressive schedule) | E54: switch | F54: 0 | H54: =INDEX('Tax regime profiles'!$G45:$AT45,Inputs!H$13) -> 0 | I54: =INDEX('Tax regime profiles'!$G45:$AT45,Inputs!I$13) -> 0 | J54: =INDEX('Tax regime profiles'!$G45:$AT45,Inputs!J$13) -> 0 | K54: =INDEX('Tax regime profiles'!$G45:$AT45,Inputs!K$13) -> 0 | L54: =INDEX('Tax regime profiles'!$G45:$AT45,Inputs!L$13) -> 0 | M54: =INDEX('Tax regime profiles'!$G45:$AT45,Inputs!M$13) -> 0 | N54: =INDEX('Tax regime profiles'!$G45:$AT45,Inputs!N$13) -> 0 | O54: =INDEX('Tax regime profiles'!$G45:$AT45,Inputs!O$13) -> 0 | P54: =INDEX('Tax regime profiles'!$G45:$AT45,Inputs!P$13) -> 0 | Q54: =INDEX('Tax regime profiles'!$G45:$AT45,Inputs!Q$13) -> 0 | R54: =INDEX('Tax regime profiles'!$G45:$AT45,Inputs!R$13) -> 0
D55: Custom duties | E55: % | F55: 0.05 | H55: =INDEX('Tax regime profiles'!$G46:$AT46,Inputs!H$13) -> 0.05 | I55: =INDEX('Tax regime profiles'!$G46:$AT46,Inputs!I$13) -> 0.05 | J55: =INDEX('Tax regime profiles'!$G46:$AT46,Inputs!J$13) -> 0.05 | K55: =INDEX('Tax regime profiles'!$G46:$AT46,Inputs!K$13) -> 0 | L55: =INDEX('Tax regime profiles'!$G46:$AT46,Inputs!L$13) -> 0.06 | M55: =INDEX('Tax regime profiles'!$G46:$AT46,Inputs!M$13) -> 0.05 | N55: =INDEX('Tax regime profiles'!$G46:$AT46,Inputs!N$13) -> 0.05 | O55: =INDEX('Tax regime profiles'!$G46:$AT46,Inputs!O$13) -> 0.069 | P55: =INDEX('Tax regime profiles'!$G46:$AT46,Inputs!P$13) -> 0.05 | Q55: =INDEX('Tax regime profiles'!$G46:$AT46,Inputs!Q$13) -> 0 | R55: =INDEX('Tax regime profiles'!$G46:$AT46,Inputs!R$13) -> 0.058
D56: VAT on all inputs | E56: % | F56: 0 | H56: =INDEX('Tax regime profiles'!$G47:$AT47,Inputs!H$13) -> 0 | I56: =INDEX('Tax regime profiles'!$G47:$AT47,Inputs!I$13) -> 0 | J56: =INDEX('Tax regime profiles'!$G47:$AT47,Inputs!J$13) -> 0 | K56: =INDEX('Tax regime profiles'!$G47:$AT47,Inputs!K$13) -> 0 | L56: =INDEX('Tax regime profiles'!$G47:$AT47,Inputs!L$13) -> 0 | M56: =INDEX('Tax regime profiles'!$G47:$AT47,Inputs!M$13) -> 0 | N56: =INDEX('Tax regime profiles'!$G47:$AT47,Inputs!N$13) -> 0 | O56: =INDEX('Tax regime profiles'!$G47:$AT47,Inputs!O$13) -> 0 | P56: =INDEX('Tax regime profiles'!$G47:$AT47,Inputs!P$13) -> 0 | Q56: =INDEX('Tax regime profiles'!$G47:$AT47,Inputs!Q$13) -> 0 | R56: =INDEX('Tax regime profiles'!$G47:$AT47,Inputs!R$13) -> 0
D57: Decommissioning provision (yes/no) | E57: switch | F57: 0 | H57: =INDEX('Tax regime profiles'!$G48:$AT48,Inputs!H$13) -> 0 | I57: =INDEX('Tax regime profiles'!$G48:$AT48,Inputs!I$13) -> 0 | J57: =INDEX('Tax regime profiles'!$G48:$AT48,Inputs!J$13) -> 0 | K57: =INDEX('Tax regime profiles'!$G48:$AT48,Inputs!K$13) -> 0 | L57: =INDEX('Tax regime profiles'!$G48:$AT48,Inputs!L$13) -> 0 | M57: =INDEX('Tax regime profiles'!$G48:$AT48,Inputs!M$13) -> 0 | N57: =INDEX('Tax regime profiles'!$G48:$AT48,Inputs!N$13) -> 0 | O57: =INDEX('Tax regime profiles'!$G48:$AT48,Inputs!O$13) -> 0 | P57: =INDEX('Tax regime profiles'!$G48:$AT48,Inputs!P$13) -> 0 | Q57: =INDEX('Tax regime profiles'!$G48:$AT48,Inputs!Q$13) -> 0 | R57: =INDEX('Tax regime profiles'!$G48:$AT48,Inputs!R$13) -> 0
D58: Commencement of decommissioning provision | E58: % depletion | F58: 0 | H58: =INDEX('Tax regime profiles'!$G49:$AT49,Inputs!H$13) -> 0 | I58: =INDEX('Tax regime profiles'!$G49:$AT49,Inputs!I$13) -> 0 | J58: =INDEX('Tax regime profiles'!$G49:$AT49,Inputs!J$13) -> 0 | K58: =INDEX('Tax regime profiles'!$G49:$AT49,Inputs!K$13) -> 0 | L58: =INDEX('Tax regime profiles'!$G49:$AT49,Inputs!L$13) -> 0 | M58: =INDEX('Tax regime profiles'!$G49:$AT49,Inputs!M$13) -> 0 | N58: =INDEX('Tax regime profiles'!$G49:$AT49,Inputs!N$13) -> 0 | O58: =INDEX('Tax regime profiles'!$G49:$AT49,Inputs!O$13) -> 0 | P58: =INDEX('Tax regime profiles'!$G49:$AT49,Inputs!P$13) -> 0 | Q58: =INDEX('Tax regime profiles'!$G49:$AT49,Inputs!Q$13) -> 0 | R58: =INDEX('Tax regime profiles'!$G49:$AT49,Inputs!R$13) -> 0
D60: Non-linear depreciation schedules
D62: Depreciation year 1 | H62: 0.6
D63: Depreciation year 2 | H63: 0.2
D64: Depreciation year 3 | H64: 0.1
D65: Depreciation year 4 | H65: 0.05
D66: Depreciation year 5 | H66: 0.05
D67: Depreciation year 6 | H67: 0
D68: Depreciation year 7 | H68: 0
D69: Depreciation year 8 | H69: 0
D70: Depreciation year 9 | H70: 0
D71: Depreciation year 10 | H71: 0
D73: Export duty (for Indonesian analysis)
D76: Investment in smelter | F76: 0 | G76: 0.075 | H76: 0.1 | I76: =H76+10% -> 0.2 | J76: 0.3 | K76: 0.4 | L76: 0.5 | M76: 0.6 | N76: 0.7 | O76: 0.8 | P76: 0.9 | Q76: 1
D77: Export duty on concentrate
D78: Export Duty on Cathode | F78: =F77*$E$214 -> 0 | G78: 0 | H78: 0 | I78: 0 | J78: 0 | K78: 0 | L78: 0 | M78: 0 | N78: 0 | O78: 0 | P78: 0 | Q78: 0
D80: Divestment schedule
D82: SELECT DIVESTMENT SCHEDULE | F82: CUSTOM
D84: Year from production | F84: 0 | G84: 1 | H84: 2 | I84: 3 | J84: 4 | K84: 5 | L84: 6 | M84: 7 | N84: 8 | O84: 9 | P84: 10 | Q84: 11 | R84: 12 | S84: 13 | T84: 14 | U84: 15
D85: Minority equity | F85: =INDEX(F88:F93,MATCH($F$82,$D$88:$D$93,0)) -> 0 | G85: =INDEX(G88:G93,MATCH($F$82,$D$88:$D$93,0)) -> 0 | H85: 0 | I85: 0 | J85: 0 | K85: 0 | L85: 0 | M85: 0 | N85: 0 | O85: 0 | P85: 0 | Q85: 0 | R85: 0 | S85: 0 | T85: 0 | U85: 0
D87: Years from start of production | F87: 0 | G87: 1 | H87: 2 | I87: 3 | J87: 4 | K87: 5 | L87: 6 | M87: 7 | N87: 8 | O87: 9 | P87: 10 | Q87: 11 | R87: 12 | S87: 13 | T87: 14 | U87: 15
D88: Grasberg | F88: 0.0936 | G88: 0.2 | H88: 0.2 | I88: 0.3 | J88: 0.3 | K88: 0.3 | L88: 0.3 | M88: 0.3 | N88: 0.3 | O88: 0.3 | P88: 0.3 | Q88: 0.3 | R88: 0.3 | S88: 0.3 | T88: 0.3 | U88: 0.3
D89: Batu Hijau shares to PT AMI | F89: 0 | G89: 0.56 | H89: 0.56 | I89: 0.56 | J89: 0.56 | K89: 0.56 | L89: 0.56 | M89: 0.56 | N89: 0.56 | O89: 0.56 | P89: 0.56 | Q89: 0.56 | R89: 0.56 | S89: 0.56 | T89: 0.56 | U89: 0.56
D90: Processing or refining activities conducted by the company (law) | F90: 0 | G90: 0 | H90: 0 | I90: 0 | J90: 0 | K90: 0 | L90: 0.2 | M90: 0.2 | N90: 0.2 | O90: 0.2 | P90: 0.3 | Q90: 0.3 | R90: 0.3 | S90: 0.3 | T90: 0.3 | U90: 0.4
D91: Processing or refining activities conducted by a third party (law) | F91: 0 | G91: 0 | H91: 0 | I91: 0 | J91: 0 | K91: 0 | L91: 0.2 | M91: 0.3 | N91: 0.37 | O91: 0.44 | P91: 0.51 | Q91: 0.51 | R91: 0.51 | S91: 0.51 | T91: 0.51 | U91: 0.51
D92: Company conducts the underground, or a mix of underground and open pit (law) | F92: 0 | G92: 0 | H92: 0 | I92: 0 | J92: 0 | K92: 0 | L92: 0.2 | M92: 0.2 | N92: 0.25 | O92: 0.25 | P92: 0.3 | Q92: 0.3 | R92: 0.3 | S92: 0.3 | T92: 0.3 | U92: 0.3
D93: CUSTOM | F93: 0 | G93: 0 | H93: 0 | I93: 0 | J93: 0 | K93: 0 | L93: 0 | M93: 0 | N93: 0 | O93: 0 | P93: 0 | Q93: 0 | R93: 0 | S93: 0 | T93: 0 | U93: 0
D96: Variable rate tax - schedules
D97: "Variable rate taxes" are taxes whose rate depends on some economic measure such as the project's operating margin or commodity price.
D99: Variable rate royalty on revenue | F99: Schedule | H99: 1 - No VRR | J99: 2 - Chile VRR | L99: 3 - [Peru???]
D100: Bracket | E100: Lower limit ($mm) | F100: Marginal rate | H100: Lower limit ($mm) | I100: Marginal rate | J100: Lower limit ($mm) | K100: Marginal rate | L100: Lower limit ($mm) | M100: Marginal rate
D101: 1 | E101: =CHOOSE($F$34,H101,J101,L101,N101,P101,R101,T101,V101) -> 72 | F101: =CHOOSE($F$34,I101,K101,M101,O101,Q101,S101,U101,W101) -> 0 | J101: =6000*12000/1000000 -> 72 | K101: 0 | L101: =6000*12000/1000000 -> 72 | M101: 0
D102: 2 | E102: =CHOOSE($F$34,H102,J102,L102,N102,P102,R102,T102,V102) -> 90 | F102: =CHOOSE($F$34,I102,K102,M102,O102,Q102,S102,U102,W102) -> 0.005 | J102: =6000*15000/1000000 -> 90 | K102: 0.005 | L102: =6000*15000/1000000 -> 90 | M102: 0.005
D103: 3 | E103: 120 | F103: 0.01 | J103: =6000*20000/1000000 -> 120 | K103: 0.01 | L103: =6000*20000/1000000 -> 120 | M103: 0.01
D104: 4 | E104: 150 | F104: 0.015 | J104: =6000*25000/1000000 -> 150 | K104: 0.015 | L104: =6000*25000/1000000 -> 150 | M104: 0.015
D105: 5 | E105: 180 | F105: 0.02 | J105: =6000*30000/1000000 -> 180 | K105: 0.02 | L105: =6000*30000/1000000 -> 180 | M105: 0.02
D106: 6 | E106: 210 | F106: 0.025 | J106: =6000*35000/1000000 -> 210 | K106: 0.025 | L106: =6000*35000/1000000 -> 210 | M106: 0.025
D107: 7 | E107: 240 | F107: 0.03 | J107: =6000*40000/1000000 -> 240 | K107: 0.03 | L107: =6000*40000/1000000 -> 240 | M107: 0.03
D108: 8 | E108: 350 | F108: 0.045 | J108: 350 | K108: 0.045 | L108: 350 | M108: 0.045
D109: 9 | E109: 0 | F109: 0
D110: 10 | E110: 0 | F110: 0
D111: 11 | E111: 0 | F111: 0
D112: 12 | E112: 0 | F112: 0
D113: 13 | E113: 0 | F113: 0
D114: 14 | E114: 0 | F114: 0
D116: Variable rate royalty on price | F116: Schedule | H116: 1 - No VRR | J116: 2 - Kyrgyz option | L116: 3 - Kyrgyzstan Revenue Tax | N116: 4 -Kyrgyz RT +3% | P116: 5 - DRC Copper | R116: 6 - DRC Gold | T116: 7 - DRC Cobalt | V116: 8 - Zambia
D117: Bracket | E117: Lower limit ($mm) | F117: Marginal rate | H117: Lower limit ($ per oz) | I117: Marginal rate | J117: Lower limit ($ per oz) | K117: Marginal rate | L117: Lower limit ($ per oz) | M117: Marginal rate | N117: Lower limit ($mm) | O117: Marginal rate | P117: Lower limit ($mm) | Q117: Marginal rate | R117: Lower limit ($mm) | S117: Marginal rate | T117: Lower limit ($mm) | U117: Marginal rate | V117: Lower limit ($mm) | W117: Marginal rate
D118: 1 | E118: =CHOOSE($F$34,H118,J118,L118,N118,P118,R118,T118,V118) -> 0 | F118: =CHOOSE($F$34,I118,K118,M118,O118,Q118,S118,U118,W118) -> 0.01 | H118: 0 | I118: 0 | J118: 0 | K118: 0.01 | L118: 0 | M118: 0.01 | N118: 0 | O118: =M118+3% -> 0.04 | P118: 0 | Q118: 0.03 | R118: 0 | S118: 0.03 | T118: 0 | U118: 0.02 | V118: 0 | W118: 0.04
D119: 2 | E119: =CHOOSE($F$34,H119,J119,L119,N119,P119,R119,T119,V119) -> 1300 | F119: =CHOOSE($F$34,I119,K119,M119,O119,Q119,S119,U119,W119) -> 0.03 | H119: 0 | I119: 0 | J119: 800 | K119: =K118+1% -> 0.02 | L119: 1300 | M119: 0.03 | N119: 1300 | O119: =M119+3% -> 0.06 | P119: 6000 | Q119: 0.04 | R119: 1000 | S119: 0.035 | T119: 20 | U119: 0.03 | V119: 4500 | W119: 0.05
D120: 3 | E120: 1400 | F120: 0.05 | H120: 0 | I120: 0 | J120: 900 | K120: =K119+1% -> 0.03 | L120: 1400 | M120: 0.05 | N120: 1400 | O120: 0.08 | P120: 7000 | Q120: 0.05 | R120: 1300 | S120: 0.04 | T120: 30 | U120: 0.04 | V120: 6000 | W120: 0.06
D121: 4 | E121: 1500 | F121: 0.07 | H121: 0 | I121: 0 | J121: 1000 | K121: =K120+1% -> 0.04 | L121: 1500 | M121: 0.07 | N121: 1500 | O121: 0.1 | P121: 8000 | Q121: 0.06 | R121: 1600 | S121: 0.05 | T121: 40 | U121: 0.05 | V121: 50000 | W121: 0.06
D122: 5 | E122: 1600 | F122: 0.1 | H122: 0 | I122: 0 | J122: 1100 | K122: =K121+1% -> 0.05 | L122: 1600 | M122: 0.1 | N122: 1600 | O122: 0.13 | P122: 50000 | Q122: 0.06 | R122: 2000 | S122: 0.06 | T122: 50 | U122: 0.06 | V122: 50000 | W122: 0.06
D123: 6 | E123: 1700 | F123: 0.13 | H123: 0 | I123: 0 | J123: 1200 | K123: =K122+1% -> 0.06 | L123: 1700 | M123: 0.13 | N123: 1700 | O123: 0.16 | P123: 50000 | Q123: 0.06 | R123: 50000 | S123: 0.06 | T123: 60 | U123: 0.07 | V123: 50000 | W123: 0.06
D124: 7 | E124: 1800 | F124: 0.14 | H124: 0 | I124: 0 | J124: 1300 | K124: =K123+2% -> 0.08 | L124: 1800 | M124: 0.14 | N124: 1800 | O124: 0.17 | P124: 50000 | Q124: 0.06 | R124: 50000 | S124: 0.06 | T124: 70 | U124: 0.08 | V124: 50000 | W124: 0.06
D125: 8 | E125: 1900 | F125: 0.15 | H125: 0 | I125: 0 | J125: 1400 | K125: 0.1 | L125: 1900 | M125: 0.15 | N125: 1900 | O125: 0.18 | P125: 50000 | Q125: 0.06 | R125: 50000 | S125: 0.06 | T125: 80 | U125: 0.09 | V125: 50000 | W125: 0.06
D126: 9 | E126: 2000 | F126: 0.16 | H126: 0 | I126: 0 | J126: 1500 | K126: 0.12 | L126: 2000 | M126: 0.16 | N126: 2000 | O126: 0.19 | P126: 50000 | Q126: 0.06 | R126: 50000 | S126: 0.06 | T126: 90 | U126: 0.1 | V126: 50000 | W126: 0.06
D127: 10 | E127: 2100 | F127: 0.17 | H127: 0 | I127: 0 | J127: 1600 | K127: 0.14 | L127: 2100 | M127: 0.17 | N127: 2100 | O127: 0.2 | P127: 50000 | Q127: 0.06 | R127: 50000 | S127: 0.06 | T127: 90 | U127: 0.1 | V127: 50000 | W127: 0.06
D128: 11 | E128: 2200 | F128: 0.18 | H128: 0 | I128: 0 | J128: 1700 | K128: 0.16 | L128: 2200 | M128: 0.18 | N128: 2200 | O128: 0.21 | P128: 50000 | Q128: 0.06 | R128: 50000 | S128: 0.06 | T128: 90 | U128: 0.1 | V128: 50000 | W128: 0.06
D129: 12 | E129: 2300 | F129: 0.19 | H129: 0 | I129: 0 | J129: 1800 | K129: 0.18 | L129: 2300 | M129: 0.19 | N129: 2300 | O129: 0.22 | P129: 50000 | Q129: 0.06 | R129: 50000 | S129: 0.06 | T129: 90 | U129: 0.1 | V129: 50000 | W129: 0.06
D130: 13 | E130: 2400 | F130: 0.2 | H130: 0 | I130: 0 | J130: 1900 | K130: 0.2 | L130: 2400 | M130: 0.2 | N130: 2400 | O130: 0.23 | P130: 50000 | Q130: 0.06 | R130: 50000 | S130: 0.06 | T130: 90 | U130: 0.1 | V130: 50000 | W130: 0.06
D131: 14 | E131: 3000 | F131: 0.2 | H131: 0 | I131: 0 | J131: 3000 | K131: 0.2 | L131: 3000 | M131: 0.2 | N131: 3000 | O131: 0.23 | P131: 50000 | Q131: 0.06 | R131: 50000 | S131: 0.06 | T131: 90 | U131: 0.1 | V131: 50000 | W131: 0.06
D133: Operating margin tax | F133: Schedule | H133: 1 - No OMT | J133: 2 - Peru | L133: 3 - Chile | N133: 4 - CUSTOM
D134: Bracket | E134: Lower limit | F134: Marginal rate | H134: Lower limit | I134: Marginal rate | J134: Lower limit | K134: Marginal rate | L134: Lower limit | M134: Marginal rate | N134: Lower limit | O134: Marginal rate
D135: 1 | E135: =CHOOSE($F$40,H135,J135,L135,N135) -> 0 | F135: =CHOOSE($F$40,I135,K135,M135,O135) -> 0 | H135: 0 | I135: 0 | J135: 0 | K135: 0.03 | L135: 0 | M135: 0.05 | N135: 0 | O135: 0
D136: 2 | E136: 0.4 | F136: 0.15 | H136: 0.4 | I136: 0.15 | J136: 0.1 | K136: 0.0415 | L136: 0.35 | M136: 0.08 | N136: 0.4 | O136: 0.15
D137: 3 | E137: 0.45 | F137: 0.2 | H137: 0.45 | I137: 0.2 | J137: 0.15 | K137: 0.053 | L137: 0.4 | M137: 0.105 | N137: 0.45 | O137: 0.2
D138: 4 | E138: 0.5 | F138: 0.25 | H138: 0.5 | I138: 0.25 | J138: 0.2 | K138: 0.0645 | L138: 0.45 | M138: 0.13 | N138: 0.5 | O138: 0.25
D139: 5 | E139: 0.6 | F139: 0.3 | H139: 0.6 | I139: 0.3 | J139: 0.25 | K139: 0.076 | L139: 0.5 | M139: 0.155 | N139: 0.6 | O139: 0.3 | Q139: ` | S139: `
D140: 6 | E140: 0.7 | F140: 0.35 | H140: 0.7 | I140: 0.35 | J140: 0.3 | K140: 0.0875 | L140: 0.55 | M140: 0.18 | N140: 0.7 | O140: 0.35
D141: 7 | E141: 0.8 | F141: 0.45 | H141: 0.8 | I141: 0.45 | J141: 0.35 | K141: 0.099 | L141: 0.6 | M141: 0.21 | N141: 0.8 | O141: 0.45
D142: 8 | E142: 0.8 | F142: 0.45 | H142: 0.8 | I142: 0.45 | J142: 0.4 | K142: 0.1105 | L142: 0.65 | M142: 0.24 | N142: 0.8 | O142: 0.45
D143: 9 | E143: 0.8 | F143: 0.45 | H143: 0.8 | I143: 0.45 | J143: 0.45 | K143: 0.122 | L143: 0.7 | M143: 0.275 | N143: 0.8 | O143: 0.45
D144: 10 | E144: 0.8 | F144: 0.45 | H144: 0.8 | I144: 0.45 | J144: 0.5 | K144: 0.1335 | L144: 0.75 | M144: 0.31 | N144: 0.8 | O144: 0.45
D145: 11 | E145: 0.8 | F145: 0.45 | H145: 0.8 | I145: 0.45 | J145: 0.55 | K145: 0.145 | L145: 0.8 | M145: 0.345 | N145: 0.8 | O145: 0.45
D146: 12 | E146: 0.8 | F146: 0.45 | H146: 0.8 | I146: 0.45 | J146: 0.6 | K146: 0.1565 | L146: 0.85 | M146: 0.345 | N146: 0.8 | O146: 0.45
D147: 13 | E147: 0.8 | F147: 0.45 | H147: 0.8 | I147: 0.45 | J147: 0.65 | K147: 0.168 | L147: 0.85 | M147: 0.345 | N147: 0.8 | O147: 0.45
D148: 14 | E148: 0.8 | F148: 0.45 | H148: 0.8 | I148: 0.45 | J148: 0.7 | K148: 0.1795 | L148: 0.85 | M148: 0.345 | N148: 0.8 | O148: 0.45
D149: 15 | E149: 0.8 | F149: 0.45 | H149: 0.8 | I149: 0.45 | J149: 0.75 | K149: 0.191 | L149: 0.85 | M149: 0.345 | N149: 0.8 | O149: 0.45
D150: 16 | E150: 0.8 | F150: 0.45 | H150: 0.8 | I150: 0.45 | J150: 0.8 | K150: 0.2 | L150: 0.85 | M150: 0.345 | N150: 0.8 | O150: 0.45
D151: 17 | E151: 0.8 | F151: 0.45 | H151: 0.8 | I151: 0.45 | J151: 0.85 | K151: 0.204 | L151: 0.85 | M151: 0.345 | N151: 0.8 | O151: 0.45
D152: Variable profit tax - Zambia
D153: Formula variable "a" | F153: 0.15
D154: Formula variable "c" | F154: 0.08
D156: South Africa Variable Royalty version | F156: Refined (1) | G156: Unrefined (2) | H156: New option (3)
D157: Constant | F157: 0.005 | G157: 0.005 | H157: 0.02
D158: Factor | F158: 12.5 | G158: 9 | H158: 5
D159: Rate cap | F159: 0.05 | G159: 0.07 | H159: 0.15
D161: South African profit tax | F161: y = a - (b/X) | H161: Alternatives
D162: a | F162: 20 | H162: 34 | I162: 45
D163: b | F163: 5 | H163: 5 | I163: 5
D167: International trade assumptions
D169: Tax treaties reduce WHT rates to zero? (1 = statutory WHT rates, 0 = 0% rates) | F169: 1
D171: Economic and financing assumptions
D173: Leverage | E173: % | F173: 0.5
D174: Repayment period (beginning production) | E174: years | F174: 5
D175: Real interest rate | E175: % | F175: 0.05
D176: Discount rate government | E176: % | F176: 0.125
D177: Discount rate contractor | E177: % | F177: 0.125
D178: Inflation rate | E178: % | F178: 0.02
D179: Discount on state equity purchase | E179: % | F179: 0
D180: Prices
D181: Primary mineral price | E181: $/units | F181: 1300
D182: Opex | E182: USD/units | F182: 422
D184: Costs subject to import duties and VAT
D185: Opex | E185: % | F185: 0.5
D186: Capex | E186: % | F186: 0.5
D188: Price assumptions | E188: year | G188: 1 | H188: 2 | I188: 3 | J188: 4 | K188: 5 | L188: 6 | M188: 7 | N188: 8 | O188: 9 | P188: 10 | Q188: 11 | R188: 12 | S188: 13 | T188: 14 | U188: 15 | V188: 16 | W188: 17 | X188: 18 | Y188: 19 | Z188: 20 | AA188: 21 | AB188: 22 | AC188: 23 | AD188: 24 | AE188: 25 | AF188: 26 | AG188: 27 | AH188: 28 | AI188: 29 | AJ188: 30 | AK188: 31 | AL188: 32 | AM188: 33 | AN188: 34 | AO188: 35 | AP188: 36 | AQ188: 37 | AR188: 38 | AS188: 39 | AT188: 40 | AU188: 41 | AV188: 42 | AW188: 43 | AX188: 44 | AY188: 45 | AZ188: 46 | BA188: 47 | BB188: 48 | BC188: 49 | BD188: 50
D190: Price | G190: =Mineral_price -> 1300 | H190: =$F$218 -> 1300 | I190: =$F$218 -> 1300 | J190: 1300 | K190: 1300 | L190: 1300 | M190: 1300 | N190: 1300 | O190: 1300 | P190: 1300 | Q190: 1300 | R190: 1300 | S190: 1300 | T190: 1300 | U190: 1300 | V190: 1300 | W190: 1300 | X190: 1300 | Y190: 1300 | Z190: 1300 | AA190: 1300 | AB190: 1300 | AC190: 1300 | AD190: 1300 | AE190: 1300 | AF190: 1300 | AG190: 1300 | AH190: 1300 | AI190: 1300 | AJ190: 1300 | AK190: 1300 | AL190: 1300 | AM190: 1300 | AN190: 1300 | AO190: 1300 | AP190: 1300 | AQ190: 1300 | AR190: 1300 | AS190: 1300 | AT190: 1300 | AU190: 1300 | AV190: 1300 | AW190: 1300 | AX190: 1300 | AY190: 1300 | AZ190: 1300 | BA190: 1300 | BB190: 1300 | BC190: 1300 | BD190: 1300
D193: Project assumptions (REAL values)
D195: SELECT PROJECT (from list in Project Economics for Mines Sheet) | F195: Large mine | H195: =MATCH(F195,Lists!$C$2:$C$7,0) -> 2
C197: Total | E197: year | F197: Notes | G197: 1 | H197: 2 | I197: 3 | J197: 4 | K197: 5 | L197: 6 | M197: 7 | N197: 8 | O197: 9 | P197: 10 | Q197: 11 | R197: 12 | S197: 13 | T197: 14 | U197: 15 | V197: 16 | W197: 17 | X197: 18 | Y197: 19 | Z197: 20 | AA197: 21 | AB197: 22 | AC197: 23 | AD197: 24 | AE197: 25 | AF197: 26 | AG197: 27 | AH197: 28 | AI197: 29 | AJ197: 30 | AK197: 31 | AL197: 32 | AM197: 33 | AN197: 34 | AO197: 35 | AP197: 36 | AQ197: 37 | AR197: 38 | AS197: 39 | AT197: 40 | AU197: 41 | AV197: 42 | AW197: 43 | AX197: 44 | AY197: 45 | AZ197: 46 | BA197: 47 | BB197: 48 | BC197: 49 | BD197: 50
C198: =SUM(G198:BD198) -> 4700000 | D198: Production of Gold | E198: =CHOOSE($H$195,'Mine profiles'!C3,'Mine profiles'!C17,'Mine profiles'!#REF!) -> ounces | G198: =CHOOSE($H$195,'Mine profiles'!E3,'Mine profiles'!E17,'Mine profiles'!#REF!) -> 0 | H198: =CHOOSE($H$195,'Mine profiles'!F3,'Mine profiles'!F17,'Mine profiles'!#REF!) -> 0 | I198: =CHOOSE($H$195,'Mine profiles'!G3,'Mine profiles'!G17,'Mine profiles'!#REF!) -> 100000 | J198: =CHOOSE($H$195,'Mine profiles'!H3,'Mine profiles'!H17,'Mine profiles'!#REF!) -> 250000 | K198: =CHOOSE($H$195,'Mine profiles'!I3,'Mine profiles'!I17,'Mine profiles'!#REF!) -> 250000 | L198: =CHOOSE($H$195,'Mine profiles'!J3,'Mine profiles'!J17,'Mine profiles'!#REF!) -> 250000 | M198: =CHOOSE($H$195,'Mine profiles'!K3,'Mine profiles'!K17,'Mine profiles'!#REF!) -> 250000 | N198: =CHOOSE($H$195,'Mine profiles'!L3,'Mine profiles'!L17,'Mine profiles'!#REF!) -> 250000 | O198: =CHOOSE($H$195,'Mine profiles'!M3,'Mine profiles'!M17,'Mine profiles'!#REF!) -> 250000 | P198: =CHOOSE($H$195,'Mine profiles'!N3,'Mine profiles'!N17,'Mine profiles'!#REF!) -> 250000 | Q198: =CHOOSE($H$195,'Mine profiles'!O3,'Mine profiles'!O17,'Mine profiles'!#REF!) -> 250000 | R198: =CHOOSE($H$195,'Mine profiles'!P3,'Mine profiles'!P17,'Mine profiles'!#REF!) -> 250000 | S198: =CHOOSE($H$195,'Mine profiles'!Q3,'Mine profiles'!Q17,'Mine profiles'!#REF!) -> 250000 | T198: =CHOOSE($H$195,'Mine profiles'!R3,'Mine profiles'!R17,'Mine profiles'!#REF!) -> 250000 | U198: =CHOOSE($H$195,'Mine profiles'!S3,'Mine profiles'!S17,'Mine profiles'!#REF!) -> 250000 | V198: =CHOOSE($H$195,'Mine profiles'!T3,'Mine profiles'!T17,'Mine profiles'!#REF!) -> 250000 | W198: =CHOOSE($H$195,'Mine profiles'!U3,'Mine profiles'!U17,'Mine profiles'!#REF!) -> 250000 | X198: =CHOOSE($H$195,'Mine profiles'!V3,'Mine profiles'!V17,'Mine profiles'!#REF!) -> 250000 | Y198: =CHOOSE($H$195,'Mine profiles'!W3,'Mine profiles'!W17,'Mine profiles'!#REF!) -> 250000 | Z198: =CHOOSE($H$195,'Mine profiles'!X3,'Mine profiles'!X17,'Mine profiles'!#REF!) -> 250000 | AA198: =CHOOSE($H$195,'Mine profiles'!Y3,'Mine profiles'!Y17,'Mine profiles'!#REF!) -> 250000 | AB198: =CHOOSE($H$195,'Mine profiles'!Z3,'Mine profiles'!Z17,'Mine profiles'!#REF!) -> 100000 | AC198: =CHOOSE($H$195,'Mine profiles'!AA3,'Mine profiles'!AA17,'Mine profiles'!#REF!) -> 0 | AD198: =CHOOSE($H$195,'Mine profiles'!AB3,'Mine profiles'!AB17,'Mine profiles'!#REF!) -> 0 | AE198: =CHOOSE($H$195,'Mine profiles'!AC3,'Mine profiles'!AC17,'Mine profiles'!#REF!) -> 0 | AF198: =CHOOSE($H$195,'Mine profiles'!AD3,'Mine profiles'!AD17,'Mine profiles'!#REF!) -> 0 | AG198: =CHOOSE($H$195,'Mine profiles'!AE3,'Mine profiles'!AE17,'Mine profiles'!#REF!) -> 0 | AH198: =CHOOSE($H$195,'Mine profiles'!AF3,'Mine profiles'!AF17,'Mine profiles'!#REF!) -> 0 | AI198: =CHOOSE($H$195,'Mine profiles'!AG3,'Mine profiles'!AG17,'Mine profiles'!#REF!) -> 0 | AJ198: =CHOOSE($H$195,'Mine profiles'!AH3,'Mine profiles'!AH17,'Mine profiles'!#REF!) -> 0 | AK198: =CHOOSE($H$195,'Mine profiles'!AI3,'Mine profiles'!AI17,'Mine profiles'!#REF!) -> 0 | AL198: =CHOOSE($H$195,'Mine profiles'!AJ3,'Mine profiles'!AJ17,'Mine profiles'!#REF!) -> 0 | AM198: =CHOOSE($H$195,'Mine profiles'!AK3,'Mine profiles'!AK17,'Mine profiles'!#REF!) -> 0 | AN198: =CHOOSE($H$195,'Mine profiles'!AL3,'Mine profiles'!AL17,'Mine profiles'!#REF!) -> 0 | AO198: =CHOOSE($H$195,'Mine profiles'!AM3,'Mine profiles'!AM17,'Mine profiles'!#REF!) -> 0 | AP198: =CHOOSE($H$195,'Mine profiles'!AN3,'Mine profiles'!AN17,'Mine profiles'!#REF!) -> 0 | AQ198: =CHOOSE($H$195,'Mine profiles'!AO3,'Mine profiles'!AO17,'Mine profiles'!#REF!) -> 0 | AR198: =CHOOSE($H$195,'Mine profiles'!AP3,'Mine profiles'!AP17,'Mine profiles'!#REF!) -> 0 | AS198: =CHOOSE($H$195,'Mine profiles'!AQ3,'Mine profiles'!AQ17,'Mine profiles'!#REF!) -> 0 | AT198: =CHOOSE($H$195,'Mine profiles'!AR3,'Mine profiles'!AR17,'Mine profiles'!#REF!) -> 0 | AU198: =CHOOSE($H$195,'Mine profiles'!AS3,'Mine profiles'!AS17,'Mine profiles'!#REF!) -> 0 | AV198: =CHOOSE($H$195,'Mine profiles'!AT3,'Mine profiles'!AT17,'Mine profiles'!#REF!) -> 0 | AW198: =CHOOSE($H$195,'Mine profiles'!AU3,'Mine profiles'!AU17,'Mine profiles'!#REF!) -> 0 | AX198: =CHOOSE($H$195,'Mine profiles'!AV3,'Mine profiles'!AV17,'Mine profiles'!#REF!) -> 0 | AY198: =CHOOSE($H$195,'Mine profiles'!AW3,'Mine profiles'!AW17,'Mine profiles'!#REF!) -> 0 | AZ198: =CHOOSE($H$195,'Mine profiles'!AX3,'Mine profiles'!AX17,'Mine profiles'!#REF!) -> 0 | BA198: =CHOOSE($H$195,'Mine profiles'!AY3,'Mine profiles'!AY17,'Mine profiles'!#REF!) -> 0 | BB198: =CHOOSE($H$195,'Mine profiles'!AZ3,'Mine profiles'!AZ17,'Mine profiles'!#REF!) -> 0 | BC198: =CHOOSE($H$195,'Mine profiles'!BA3,'Mine profiles'!BA17,'Mine profiles'!#REF!) -> 0 | BD198: =CHOOSE($H$195,'Mine profiles'!BB3,'Mine profiles'!BB17,'Mine profiles'!#REF!) -> 0
C199: 366.6 | D199: Transport post-fiscal point | E199: =CHOOSE($H$195,'Mine profiles'!C4,'Mine profiles'!C18,'Mine profiles'!#REF!) -> $mm const | G199: =CHOOSE($H$195,'Mine profiles'!E4,'Mine profiles'!E18,'Mine profiles'!#REF!) -> 0 | H199: =CHOOSE($H$195,'Mine profiles'!F4,'Mine profiles'!F18,'Mine profiles'!#REF!) -> 0 | I199: =CHOOSE($H$195,'Mine profiles'!G4,'Mine profiles'!G18,'Mine profiles'!#REF!) -> 7.8 | J199: =CHOOSE($H$195,'Mine profiles'!H4,'Mine profiles'!H18,'Mine profiles'!#REF!) -> 19.5 | K199: =CHOOSE($H$195,'Mine profiles'!I4,'Mine profiles'!I18,'Mine profiles'!#REF!) -> 19.5 | L199: =CHOOSE($H$195,'Mine profiles'!J4,'Mine profiles'!J18,'Mine profiles'!#REF!) -> 19.5 | M199: =CHOOSE($H$195,'Mine profiles'!K4,'Mine profiles'!K18,'Mine profiles'!#REF!) -> 19.5 | N199: =CHOOSE($H$195,'Mine profiles'!L4,'Mine profiles'!L18,'Mine profiles'!#REF!) -> 19.5 | O199: =CHOOSE($H$195,'Mine profiles'!M4,'Mine profiles'!M18,'Mine profiles'!#REF!) -> 19.5 | P199: =CHOOSE($H$195,'Mine profiles'!N4,'Mine profiles'!N18,'Mine profiles'!#REF!) -> 19.5 | Q199: =CHOOSE($H$195,'Mine profiles'!O4,'Mine profiles'!O18,'Mine profiles'!#REF!) -> 19.5 | R199: =CHOOSE($H$195,'Mine profiles'!P4,'Mine profiles'!P18,'Mine profiles'!#REF!) -> 19.5 | S199: =CHOOSE($H$195,'Mine profiles'!Q4,'Mine profiles'!Q18,'Mine profiles'!#REF!) -> 19.5 | T199: =CHOOSE($H$195,'Mine profiles'!R4,'Mine profiles'!R18,'Mine profiles'!#REF!) -> 19.5 | U199: =CHOOSE($H$195,'Mine profiles'!S4,'Mine profiles'!S18,'Mine profiles'!#REF!) -> 19.5 | V199: =CHOOSE($H$195,'Mine profiles'!T4,'Mine profiles'!T18,'Mine profiles'!#REF!) -> 19.5 | W199: =CHOOSE($H$195,'Mine profiles'!U4,'Mine profiles'!U18,'Mine profiles'!#REF!) -> 19.5 | X199: =CHOOSE($H$195,'Mine profiles'!V4,'Mine profiles'!V18,'Mine profiles'!#REF!) -> 19.5 | Y199: =CHOOSE($H$195,'Mine profiles'!W4,'Mine profiles'!W18,'Mine profiles'!#REF!) -> 19.5 | Z199: =CHOOSE($H$195,'Mine profiles'!X4,'Mine profiles'!X18,'Mine profiles'!#REF!) -> 19.5 | AA199: =CHOOSE($H$195,'Mine profiles'!Y4,'Mine profiles'!Y18,'Mine profiles'!#REF!) -> 19.5 | AB199: =CHOOSE($H$195,'Mine profiles'!Z4,'Mine profiles'!Z18,'Mine profiles'!#REF!) -> 7.8 | AC199: =CHOOSE($H$195,'Mine profiles'!AA4,'Mine profiles'!AA18,'Mine profiles'!#REF!) -> 0 | AD199: =CHOOSE($H$195,'Mine profiles'!AB4,'Mine profiles'!AB18,'Mine profiles'!#REF!) -> 0 | AE199: =CHOOSE($H$195,'Mine profiles'!AC4,'Mine profiles'!AC18,'Mine profiles'!#REF!) -> 0 | AF199: =CHOOSE($H$195,'Mine profiles'!AD4,'Mine profiles'!AD18,'Mine profiles'!#REF!) -> 0 | AG199: =CHOOSE($H$195,'Mine profiles'!AE4,'Mine profiles'!AE18,'Mine profiles'!#REF!) -> 0 | AH199: =CHOOSE($H$195,'Mine profiles'!AF4,'Mine profiles'!AF18,'Mine profiles'!#REF!) -> 0 | AI199: =CHOOSE($H$195,'Mine profiles'!AG4,'Mine profiles'!AG18,'Mine profiles'!#REF!) -> 0 | AJ199: =CHOOSE($H$195,'Mine profiles'!AH4,'Mine profiles'!AH18,'Mine profiles'!#REF!) -> 0 | AK199: =CHOOSE($H$195,'Mine profiles'!AI4,'Mine profiles'!AI18,'Mine profiles'!#REF!) -> 0 | AL199: =CHOOSE($H$195,'Mine profiles'!AJ4,'Mine profiles'!AJ18,'Mine profiles'!#REF!) -> 0 | AM199: =CHOOSE($H$195,'Mine profiles'!AK4,'Mine profiles'!AK18,'Mine profiles'!#REF!) -> 0 | AN199: =CHOOSE($H$195,'Mine profiles'!AL4,'Mine profiles'!AL18,'Mine profiles'!#REF!) -> 0 | AO199: =CHOOSE($H$195,'Mine profiles'!AM4,'Mine profiles'!AM18,'Mine profiles'!#REF!) -> 0 | AP199: =CHOOSE($H$195,'Mine profiles'!AN4,'Mine profiles'!AN18,'Mine profiles'!#REF!) -> 0 | AQ199: =CHOOSE($H$195,'Mine profiles'!AO4,'Mine profiles'!AO18,'Mine profiles'!#REF!) -> 0 | AR199: =CHOOSE($H$195,'Mine profiles'!AP4,'Mine profiles'!AP18,'Mine profiles'!#REF!) -> 0 | AS199: =CHOOSE($H$195,'Mine profiles'!AQ4,'Mine profiles'!AQ18,'Mine profiles'!#REF!) -> 0 | AT199: =CHOOSE($H$195,'Mine profiles'!AR4,'Mine profiles'!AR18,'Mine profiles'!#REF!) -> 0 | AU199: =CHOOSE($H$195,'Mine profiles'!AS4,'Mine profiles'!AS18,'Mine profiles'!#REF!) -> 0 | AV199: =CHOOSE($H$195,'Mine profiles'!AT4,'Mine profiles'!AT18,'Mine profiles'!#REF!) -> 0 | AW199: =CHOOSE($H$195,'Mine profiles'!AU4,'Mine profiles'!AU18,'Mine profiles'!#REF!) -> 0 | AX199: =CHOOSE($H$195,'Mine profiles'!AV4,'Mine profiles'!AV18,'Mine profiles'!#REF!) -> 0 | AY199: =CHOOSE($H$195,'Mine profiles'!AW4,'Mine profiles'!AW18,'Mine profiles'!#REF!) -> 0 | AZ199: =CHOOSE($H$195,'Mine profiles'!AX4,'Mine profiles'!AX18,'Mine profiles'!#REF!) -> 0 | BA199: =CHOOSE($H$195,'Mine profiles'!AY4,'Mine profiles'!AY18,'Mine profiles'!#REF!) -> 0 | BB199: =CHOOSE($H$195,'Mine profiles'!AZ4,'Mine profiles'!AZ18,'Mine profiles'!#REF!) -> 0 | BC199: =CHOOSE($H$195,'Mine profiles'!BA4,'Mine profiles'!BA18,'Mine profiles'!#REF!) -> 0 | BD199: =CHOOSE($H$195,'Mine profiles'!BB4,'Mine profiles'!BB18,'Mine profiles'!#REF!) -> 0
C200: 305.5 | D200: Refining and processing post-fiscal point | E200: =CHOOSE($H$195,'Mine profiles'!C5,'Mine profiles'!C19,'Mine profiles'!#REF!) -> $mm const | G200: =CHOOSE($H$195,'Mine profiles'!E5,'Mine profiles'!E19,'Mine profiles'!#REF!) -> 0 | H200: =CHOOSE($H$195,'Mine profiles'!F5,'Mine profiles'!F19,'Mine profiles'!#REF!) -> 0 | I200: =CHOOSE($H$195,'Mine profiles'!G5,'Mine profiles'!G19,'Mine profiles'!#REF!) -> 6.5 | J200: =CHOOSE($H$195,'Mine profiles'!H5,'Mine profiles'!H19,'Mine profiles'!#REF!) -> 16.25 | K200: =CHOOSE($H$195,'Mine profiles'!I5,'Mine profiles'!I19,'Mine profiles'!#REF!) -> 16.25 | L200: =CHOOSE($H$195,'Mine profiles'!J5,'Mine profiles'!J19,'Mine profiles'!#REF!) -> 16.25 | M200: =CHOOSE($H$195,'Mine profiles'!K5,'Mine profiles'!K19,'Mine profiles'!#REF!) -> 16.25 | N200: =CHOOSE($H$195,'Mine profiles'!L5,'Mine profiles'!L19,'Mine profiles'!#REF!) -> 16.25 | O200: =CHOOSE($H$195,'Mine profiles'!M5,'Mine profiles'!M19,'Mine profiles'!#REF!) -> 16.25 | P200: =CHOOSE($H$195,'Mine profiles'!N5,'Mine profiles'!N19,'Mine profiles'!#REF!) -> 16.25 | Q200: =CHOOSE($H$195,'Mine profiles'!O5,'Mine profiles'!O19,'Mine profiles'!#REF!) -> 16.25 | R200: =CHOOSE($H$195,'Mine profiles'!P5,'Mine profiles'!P19,'Mine profiles'!#REF!) -> 16.25 | S200: =CHOOSE($H$195,'Mine profiles'!Q5,'Mine profiles'!Q19,'Mine profiles'!#REF!) -> 16.25 | T200: =CHOOSE($H$195,'Mine profiles'!R5,'Mine profiles'!R19,'Mine profiles'!#REF!) -> 16.25 | U200: =CHOOSE($H$195,'Mine profiles'!S5,'Mine profiles'!S19,'Mine profiles'!#REF!) -> 16.25 | V200: =CHOOSE($H$195,'Mine profiles'!T5,'Mine profiles'!T19,'Mine profiles'!#REF!) -> 16.25 | W200: =CHOOSE($H$195,'Mine profiles'!U5,'Mine profiles'!U19,'Mine profiles'!#REF!) -> 16.25 | X200: =CHOOSE($H$195,'Mine profiles'!V5,'Mine profiles'!V19,'Mine profiles'!#REF!) -> 16.25 | Y200: =CHOOSE($H$195,'Mine profiles'!W5,'Mine profiles'!W19,'Mine profiles'!#REF!) -> 16.25 | Z200: =CHOOSE($H$195,'Mine profiles'!X5,'Mine profiles'!X19,'Mine profiles'!#REF!) -> 16.25 | AA200: =CHOOSE($H$195,'Mine profiles'!Y5,'Mine profiles'!Y19,'Mine profiles'!#REF!) -> 16.25 | AB200: =CHOOSE($H$195,'Mine profiles'!Z5,'Mine profiles'!Z19,'Mine profiles'!#REF!) -> 6.5 | AC200: =CHOOSE($H$195,'Mine profiles'!AA5,'Mine profiles'!AA19,'Mine profiles'!#REF!) -> 0 | AD200: =CHOOSE($H$195,'Mine profiles'!AB5,'Mine profiles'!AB19,'Mine profiles'!#REF!) -> 0 | AE200: =CHOOSE($H$195,'Mine profiles'!AC5,'Mine profiles'!AC19,'Mine profiles'!#REF!) -> 0 | AF200: =CHOOSE($H$195,'Mine profiles'!AD5,'Mine profiles'!AD19,'Mine profiles'!#REF!) -> 0 | AG200: =CHOOSE($H$195,'Mine profiles'!AE5,'Mine profiles'!AE19,'Mine profiles'!#REF!) -> 0 | AH200: =CHOOSE($H$195,'Mine profiles'!AF5,'Mine profiles'!AF19,'Mine profiles'!#REF!) -> 0 | AI200: =CHOOSE($H$195,'Mine profiles'!AG5,'Mine profiles'!AG19,'Mine profiles'!#REF!) -> 0 | AJ200: =CHOOSE($H$195,'Mine profiles'!AH5,'Mine profiles'!AH19,'Mine profiles'!#REF!) -> 0 | AK200: =CHOOSE($H$195,'Mine profiles'!AI5,'Mine profiles'!AI19,'Mine profiles'!#REF!) -> 0 | AL200: =CHOOSE($H$195,'Mine profiles'!AJ5,'Mine profiles'!AJ19,'Mine profiles'!#REF!) -> 0 | AM200: =CHOOSE($H$195,'Mine profiles'!AK5,'Mine profiles'!AK19,'Mine profiles'!#REF!) -> 0 | AN200: =CHOOSE($H$195,'Mine profiles'!AL5,'Mine profiles'!AL19,'Mine profiles'!#REF!) -> 0 | AO200: =CHOOSE($H$195,'Mine profiles'!AM5,'Mine profiles'!AM19,'Mine profiles'!#REF!) -> 0 | AP200: =CHOOSE($H$195,'Mine profiles'!AN5,'Mine profiles'!AN19,'Mine profiles'!#REF!) -> 0 | AQ200: =CHOOSE($H$195,'Mine profiles'!AO5,'Mine profiles'!AO19,'Mine profiles'!#REF!) -> 0 | AR200: =CHOOSE($H$195,'Mine profiles'!AP5,'Mine profiles'!AP19,'Mine profiles'!#REF!) -> 0 | AS200: =CHOOSE($H$195,'Mine profiles'!AQ5,'Mine profiles'!AQ19,'Mine profiles'!#REF!) -> 0 | AT200: =CHOOSE($H$195,'Mine profiles'!AR5,'Mine profiles'!AR19,'Mine profiles'!#REF!) -> 0 | AU200: =CHOOSE($H$195,'Mine profiles'!AS5,'Mine profiles'!AS19,'Mine profiles'!#REF!) -> 0 | AV200: =CHOOSE($H$195,'Mine profiles'!AT5,'Mine profiles'!AT19,'Mine profiles'!#REF!) -> 0 | AW200: =CHOOSE($H$195,'Mine profiles'!AU5,'Mine profiles'!AU19,'Mine profiles'!#REF!) -> 0 | AX200: =CHOOSE($H$195,'Mine profiles'!AV5,'Mine profiles'!AV19,'Mine profiles'!#REF!) -> 0 | AY200: =CHOOSE($H$195,'Mine profiles'!AW5,'Mine profiles'!AW19,'Mine profiles'!#REF!) -> 0 | AZ200: =CHOOSE($H$195,'Mine profiles'!AX5,'Mine profiles'!AX19,'Mine profiles'!#REF!) -> 0 | BA200: =CHOOSE($H$195,'Mine profiles'!AY5,'Mine profiles'!AY19,'Mine profiles'!#REF!) -> 0 | BB200: =CHOOSE($H$195,'Mine profiles'!AZ5,'Mine profiles'!AZ19,'Mine profiles'!#REF!) -> 0 | BC200: =CHOOSE($H$195,'Mine profiles'!BA5,'Mine profiles'!BA19,'Mine profiles'!#REF!) -> 0 | BD200: =CHOOSE($H$195,'Mine profiles'!BB5,'Mine profiles'!BB19,'Mine profiles'!#REF!) -> 0
C201: 0 | D201: Exploration costs (expensed) | E201: =CHOOSE($H$195,'Mine profiles'!C6,'Mine profiles'!C20,'Mine profiles'!#REF!) -> $mm const | G201: =CHOOSE($H$195,'Mine profiles'!E6,'Mine profiles'!E20,'Mine profiles'!#REF!) -> 0 | H201: =CHOOSE($H$195,'Mine profiles'!F6,'Mine profiles'!F20,'Mine profiles'!#REF!) -> 0 | I201: =CHOOSE($H$195,'Mine profiles'!G6,'Mine profiles'!G20,'Mine profiles'!#REF!) -> 0 | J201: =CHOOSE($H$195,'Mine profiles'!H6,'Mine profiles'!H20,'Mine profiles'!#REF!) -> 0 | K201: =CHOOSE($H$195,'Mine profiles'!I6,'Mine profiles'!I20,'Mine profiles'!#REF!) -> 0 | L201: =CHOOSE($H$195,'Mine profiles'!J6,'Mine profiles'!J20,'Mine profiles'!#REF!) -> 0 | M201: =CHOOSE($H$195,'Mine profiles'!K6,'Mine profiles'!K20,'Mine profiles'!#REF!) -> 0 | N201: =CHOOSE($H$195,'Mine profiles'!L6,'Mine profiles'!L20,'Mine profiles'!#REF!) -> 0 | O201: =CHOOSE($H$195,'Mine profiles'!M6,'Mine profiles'!M20,'Mine profiles'!#REF!) -> 0 | P201: =CHOOSE($H$195,'Mine profiles'!N6,'Mine profiles'!N20,'Mine profiles'!#REF!) -> 0 | Q201: =CHOOSE($H$195,'Mine profiles'!O6,'Mine profiles'!O20,'Mine profiles'!#REF!) -> 0 | R201: =CHOOSE($H$195,'Mine profiles'!P6,'Mine profiles'!P20,'Mine profiles'!#REF!) -> 0 | S201: =CHOOSE($H$195,'Mine profiles'!Q6,'Mine profiles'!Q20,'Mine profiles'!#REF!) -> 0 | T201: =CHOOSE($H$195,'Mine profiles'!R6,'Mine profiles'!R20,'Mine profiles'!#REF!) -> 0 | U201: =CHOOSE($H$195,'Mine profiles'!S6,'Mine profiles'!S20,'Mine profiles'!#REF!) -> 0 | V201: =CHOOSE($H$195,'Mine profiles'!T6,'Mine profiles'!T20,'Mine profiles'!#REF!) -> 0 | W201: =CHOOSE($H$195,'Mine profiles'!U6,'Mine profiles'!U20,'Mine profiles'!#REF!) -> 0 | X201: =CHOOSE($H$195,'Mine profiles'!V6,'Mine profiles'!V20,'Mine profiles'!#REF!) -> 0 | Y201: =CHOOSE($H$195,'Mine profiles'!W6,'Mine profiles'!W20,'Mine profiles'!#REF!) -> 0 | Z201: =CHOOSE($H$195,'Mine profiles'!X6,'Mine profiles'!X20,'Mine profiles'!#REF!) -> 0 | AA201: =CHOOSE($H$195,'Mine profiles'!Y6,'Mine profiles'!Y20,'Mine profiles'!#REF!) -> 0 | AB201: =CHOOSE($H$195,'Mine profiles'!Z6,'Mine profiles'!Z20,'Mine profiles'!#REF!) -> 0 | AC201: =CHOOSE($H$195,'Mine profiles'!AA6,'Mine profiles'!AA20,'Mine profiles'!#REF!) -> 0 | AD201: =CHOOSE($H$195,'Mine profiles'!AB6,'Mine profiles'!AB20,'Mine profiles'!#REF!) -> 0 | AE201: =CHOOSE($H$195,'Mine profiles'!AC6,'Mine profiles'!AC20,'Mine profiles'!#REF!) -> 0 | AF201: =CHOOSE($H$195,'Mine profiles'!AD6,'Mine profiles'!AD20,'Mine profiles'!#REF!) -> 0 | AG201: =CHOOSE($H$195,'Mine profiles'!AE6,'Mine profiles'!AE20,'Mine profiles'!#REF!) -> 0 | AH201: =CHOOSE($H$195,'Mine profiles'!AF6,'Mine profiles'!AF20,'Mine profiles'!#REF!) -> 0 | AI201: =CHOOSE($H$195,'Mine profiles'!AG6,'Mine profiles'!AG20,'Mine profiles'!#REF!) -> 0 | AJ201: =CHOOSE($H$195,'Mine profiles'!AH6,'Mine profiles'!AH20,'Mine profiles'!#REF!) -> 0 | AK201: =CHOOSE($H$195,'Mine profiles'!AI6,'Mine profiles'!AI20,'Mine profiles'!#REF!) -> 0 | AL201: =CHOOSE($H$195,'Mine profiles'!AJ6,'Mine profiles'!AJ20,'Mine profiles'!#REF!) -> 0 | AM201: =CHOOSE($H$195,'Mine profiles'!AK6,'Mine profiles'!AK20,'Mine profiles'!#REF!) -> 0 | AN201: =CHOOSE($H$195,'Mine profiles'!AL6,'Mine profiles'!AL20,'Mine profiles'!#REF!) -> 0 | AO201: =CHOOSE($H$195,'Mine profiles'!AM6,'Mine profiles'!AM20,'Mine profiles'!#REF!) -> 0 | AP201: =CHOOSE($H$195,'Mine profiles'!AN6,'Mine profiles'!AN20,'Mine profiles'!#REF!) -> 0 | AQ201: =CHOOSE($H$195,'Mine profiles'!AO6,'Mine profiles'!AO20,'Mine profiles'!#REF!) -> 0 | AR201: =CHOOSE($H$195,'Mine profiles'!AP6,'Mine profiles'!AP20,'Mine profiles'!#REF!) -> 0 | AS201: =CHOOSE($H$195,'Mine profiles'!AQ6,'Mine profiles'!AQ20,'Mine profiles'!#REF!) -> 0 | AT201: =CHOOSE($H$195,'Mine profiles'!AR6,'Mine profiles'!AR20,'Mine profiles'!#REF!) -> 0 | AU201: =CHOOSE($H$195,'Mine profiles'!AS6,'Mine profiles'!AS20,'Mine profiles'!#REF!) -> 0 | AV201: =CHOOSE($H$195,'Mine profiles'!AT6,'Mine profiles'!AT20,'Mine profiles'!#REF!) -> 0 | AW201: =CHOOSE($H$195,'Mine profiles'!AU6,'Mine profiles'!AU20,'Mine profiles'!#REF!) -> 0 | AX201: =CHOOSE($H$195,'Mine profiles'!AV6,'Mine profiles'!AV20,'Mine profiles'!#REF!) -> 0 | AY201: =CHOOSE($H$195,'Mine profiles'!AW6,'Mine profiles'!AW20,'Mine profiles'!#REF!) -> 0 | AZ201: =CHOOSE($H$195,'Mine profiles'!AX6,'Mine profiles'!AX20,'Mine profiles'!#REF!) -> 0 | BA201: =CHOOSE($H$195,'Mine profiles'!AY6,'Mine profiles'!AY20,'Mine profiles'!#REF!) -> 0 | BB201: =CHOOSE($H$195,'Mine profiles'!AZ6,'Mine profiles'!AZ20,'Mine profiles'!#REF!) -> 0 | BC201: =CHOOSE($H$195,'Mine profiles'!BA6,'Mine profiles'!BA20,'Mine profiles'!#REF!) -> 0 | BD201: =CHOOSE($H$195,'Mine profiles'!BB6,'Mine profiles'!BB20,'Mine profiles'!#REF!) -> 0
C202: 0 | D202: Development costs - intangibles (expensed) | E202: =CHOOSE($H$195,'Mine profiles'!C7,'Mine profiles'!C21,'Mine profiles'!#REF!) -> $mm const | G202: =CHOOSE($H$195,'Mine profiles'!E7,'Mine profiles'!E21,'Mine profiles'!#REF!) -> 0 | H202: =CHOOSE($H$195,'Mine profiles'!F7,'Mine profiles'!F21,'Mine profiles'!#REF!) -> 0 | I202: =CHOOSE($H$195,'Mine profiles'!G7,'Mine profiles'!G21,'Mine profiles'!#REF!) -> 0 | J202: =CHOOSE($H$195,'Mine profiles'!H7,'Mine profiles'!H21,'Mine profiles'!#REF!) -> 0 | K202: =CHOOSE($H$195,'Mine profiles'!I7,'Mine profiles'!I21,'Mine profiles'!#REF!) -> 0 | L202: =CHOOSE($H$195,'Mine profiles'!J7,'Mine profiles'!J21,'Mine profiles'!#REF!) -> 0 | M202: =CHOOSE($H$195,'Mine profiles'!K7,'Mine profiles'!K21,'Mine profiles'!#REF!) -> 0 | N202: =CHOOSE($H$195,'Mine profiles'!L7,'Mine profiles'!L21,'Mine profiles'!#REF!) -> 0 | O202: =CHOOSE($H$195,'Mine profiles'!M7,'Mine profiles'!M21,'Mine profiles'!#REF!) -> 0 | P202: =CHOOSE($H$195,'Mine profiles'!N7,'Mine profiles'!N21,'Mine profiles'!#REF!) -> 0 | Q202: =CHOOSE($H$195,'Mine profiles'!O7,'Mine profiles'!O21,'Mine profiles'!#REF!) -> 0 | R202: =CHOOSE($H$195,'Mine profiles'!P7,'Mine profiles'!P21,'Mine profiles'!#REF!) -> 0 | S202: =CHOOSE($H$195,'Mine profiles'!Q7,'Mine profiles'!Q21,'Mine profiles'!#REF!) -> 0 | T202: =CHOOSE($H$195,'Mine profiles'!R7,'Mine profiles'!R21,'Mine profiles'!#REF!) -> 0 | U202: =CHOOSE($H$195,'Mine profiles'!S7,'Mine profiles'!S21,'Mine profiles'!#REF!) -> 0 | V202: =CHOOSE($H$195,'Mine profiles'!T7,'Mine profiles'!T21,'Mine profiles'!#REF!) -> 0 | W202: =CHOOSE($H$195,'Mine profiles'!U7,'Mine profiles'!U21,'Mine profiles'!#REF!) -> 0 | X202: =CHOOSE($H$195,'Mine profiles'!V7,'Mine profiles'!V21,'Mine profiles'!#REF!) -> 0 | Y202: =CHOOSE($H$195,'Mine profiles'!W7,'Mine profiles'!W21,'Mine profiles'!#REF!) -> 0 | Z202: =CHOOSE($H$195,'Mine profiles'!X7,'Mine profiles'!X21,'Mine profiles'!#REF!) -> 0 | AA202: =CHOOSE($H$195,'Mine profiles'!Y7,'Mine profiles'!Y21,'Mine profiles'!#REF!) -> 0 | AB202: =CHOOSE($H$195,'Mine profiles'!Z7,'Mine profiles'!Z21,'Mine profiles'!#REF!) -> 0 | AC202: =CHOOSE($H$195,'Mine profiles'!AA7,'Mine profiles'!AA21,'Mine profiles'!#REF!) -> 0 | AD202: =CHOOSE($H$195,'Mine profiles'!AB7,'Mine profiles'!AB21,'Mine profiles'!#REF!) -> 0 | AE202: =CHOOSE($H$195,'Mine profiles'!AC7,'Mine profiles'!AC21,'Mine profiles'!#REF!) -> 0 | AF202: =CHOOSE($H$195,'Mine profiles'!AD7,'Mine profiles'!AD21,'Mine profiles'!#REF!) -> 0 | AG202: =CHOOSE($H$195,'Mine profiles'!AE7,'Mine profiles'!AE21,'Mine profiles'!#REF!) -> 0 | AH202: =CHOOSE($H$195,'Mine profiles'!AF7,'Mine profiles'!AF21,'Mine profiles'!#REF!) -> 0 | AI202: =CHOOSE($H$195,'Mine profiles'!AG7,'Mine profiles'!AG21,'Mine profiles'!#REF!) -> 0 | AJ202: =CHOOSE($H$195,'Mine profiles'!AH7,'Mine profiles'!AH21,'Mine profiles'!#REF!) -> 0 | AK202: =CHOOSE($H$195,'Mine profiles'!AI7,'Mine profiles'!AI21,'Mine profiles'!#REF!) -> 0 | AL202: =CHOOSE($H$195,'Mine profiles'!AJ7,'Mine profiles'!AJ21,'Mine profiles'!#REF!) -> 0 | AM202: =CHOOSE($H$195,'Mine profiles'!AK7,'Mine profiles'!AK21,'Mine profiles'!#REF!) -> 0 | AN202: =CHOOSE($H$195,'Mine profiles'!AL7,'Mine profiles'!AL21,'Mine profiles'!#REF!) -> 0 | AO202: =CHOOSE($H$195,'Mine profiles'!AM7,'Mine profiles'!AM21,'Mine profiles'!#REF!) -> 0 | AP202: =CHOOSE($H$195,'Mine profiles'!AN7,'Mine profiles'!AN21,'Mine profiles'!#REF!) -> 0 | AQ202: =CHOOSE($H$195,'Mine profiles'!AO7,'Mine profiles'!AO21,'Mine profiles'!#REF!) -> 0 | AR202: =CHOOSE($H$195,'Mine profiles'!AP7,'Mine profiles'!AP21,'Mine profiles'!#REF!) -> 0 | AS202: =CHOOSE($H$195,'Mine profiles'!AQ7,'Mine profiles'!AQ21,'Mine profiles'!#REF!) -> 0 | AT202: =CHOOSE($H$195,'Mine profiles'!AR7,'Mine profiles'!AR21,'Mine profiles'!#REF!) -> 0 | AU202: =CHOOSE($H$195,'Mine profiles'!AS7,'Mine profiles'!AS21,'Mine profiles'!#REF!) -> 0 | AV202: =CHOOSE($H$195,'Mine profiles'!AT7,'Mine profiles'!AT21,'Mine profiles'!#REF!) -> 0 | AW202: =CHOOSE($H$195,'Mine profiles'!AU7,'Mine profiles'!AU21,'Mine profiles'!#REF!) -> 0 | AX202: =CHOOSE($H$195,'Mine profiles'!AV7,'Mine profiles'!AV21,'Mine profiles'!#REF!) -> 0 | AY202: =CHOOSE($H$195,'Mine profiles'!AW7,'Mine profiles'!AW21,'Mine profiles'!#REF!) -> 0 | AZ202: =CHOOSE($H$195,'Mine profiles'!AX7,'Mine profiles'!AX21,'Mine profiles'!#REF!) -> 0 | BA202: =CHOOSE($H$195,'Mine profiles'!AY7,'Mine profiles'!AY21,'Mine profiles'!#REF!) -> 0 | BB202: =CHOOSE($H$195,'Mine profiles'!AZ7,'Mine profiles'!AZ21,'Mine profiles'!#REF!) -> 0 | BC202: =CHOOSE($H$195,'Mine profiles'!BA7,'Mine profiles'!BA21,'Mine profiles'!#REF!) -> 0 | BD202: =CHOOSE($H$195,'Mine profiles'!BB7,'Mine profiles'!BB21,'Mine profiles'!#REF!) -> 0
C203: 500 | D203: Development costs - tangibles (depreciable) | E203: =CHOOSE($H$195,'Mine profiles'!C8,'Mine profiles'!C22,'Mine profiles'!#REF!) -> $mm const | G203: =CHOOSE($H$195,'Mine profiles'!E8,'Mine profiles'!E22,'Mine profiles'!#REF!) -> 150 | H203: =CHOOSE($H$195,'Mine profiles'!F8,'Mine profiles'!F22,'Mine profiles'!#REF!) -> 250 | I203: =CHOOSE($H$195,'Mine profiles'!G8,'Mine profiles'!G22,'Mine profiles'!#REF!) -> 100 | J203: =CHOOSE($H$195,'Mine profiles'!H8,'Mine profiles'!H22,'Mine profiles'!#REF!) -> 0 | K203: =CHOOSE($H$195,'Mine profiles'!I8,'Mine profiles'!I22,'Mine profiles'!#REF!) -> 0 | L203: =CHOOSE($H$195,'Mine profiles'!J8,'Mine profiles'!J22,'Mine profiles'!#REF!) -> 0 | M203: =CHOOSE($H$195,'Mine profiles'!K8,'Mine profiles'!K22,'Mine profiles'!#REF!) -> 0 | N203: =CHOOSE($H$195,'Mine profiles'!L8,'Mine profiles'!L22,'Mine profiles'!#REF!) -> 0 | O203: =CHOOSE($H$195,'Mine profiles'!M8,'Mine profiles'!M22,'Mine profiles'!#REF!) -> 0 | P203: =CHOOSE($H$195,'Mine profiles'!N8,'Mine profiles'!N22,'Mine profiles'!#REF!) -> 0 | Q203: =CHOOSE($H$195,'Mine profiles'!O8,'Mine profiles'!O22,'Mine profiles'!#REF!) -> 0 | R203: =CHOOSE($H$195,'Mine profiles'!P8,'Mine profiles'!P22,'Mine profiles'!#REF!) -> 0 | S203: =CHOOSE($H$195,'Mine profiles'!Q8,'Mine profiles'!Q22,'Mine profiles'!#REF!) -> 0 | T203: =CHOOSE($H$195,'Mine profiles'!R8,'Mine profiles'!R22,'Mine profiles'!#REF!) -> 0 | U203: =CHOOSE($H$195,'Mine profiles'!S8,'Mine profiles'!S22,'Mine profiles'!#REF!) -> 0 | V203: =CHOOSE($H$195,'Mine profiles'!T8,'Mine profiles'!T22,'Mine profiles'!#REF!) -> 0 | W203: =CHOOSE($H$195,'Mine profiles'!U8,'Mine profiles'!U22,'Mine profiles'!#REF!) -> 0 | X203: =CHOOSE($H$195,'Mine profiles'!V8,'Mine profiles'!V22,'Mine profiles'!#REF!) -> 0 | Y203: =CHOOSE($H$195,'Mine profiles'!W8,'Mine profiles'!W22,'Mine profiles'!#REF!) -> 0 | Z203: =CHOOSE($H$195,'Mine profiles'!X8,'Mine profiles'!X22,'Mine profiles'!#REF!) -> 0 | AA203: =CHOOSE($H$195,'Mine profiles'!Y8,'Mine profiles'!Y22,'Mine profiles'!#REF!) -> 0 | AB203: =CHOOSE($H$195,'Mine profiles'!Z8,'Mine profiles'!Z22,'Mine profiles'!#REF!) -> 0 | AC203: =CHOOSE($H$195,'Mine profiles'!AA8,'Mine profiles'!AA22,'Mine profiles'!#REF!) -> 0 | AD203: =CHOOSE($H$195,'Mine profiles'!AB8,'Mine profiles'!AB22,'Mine profiles'!#REF!) -> 0 | AE203: =CHOOSE($H$195,'Mine profiles'!AC8,'Mine profiles'!AC22,'Mine profiles'!#REF!) -> 0 | AF203: =CHOOSE($H$195,'Mine profiles'!AD8,'Mine profiles'!AD22,'Mine profiles'!#REF!) -> 0 | AG203: =CHOOSE($H$195,'Mine profiles'!AE8,'Mine profiles'!AE22,'Mine profiles'!#REF!) -> 0 | AH203: =CHOOSE($H$195,'Mine profiles'!AF8,'Mine profiles'!AF22,'Mine profiles'!#REF!) -> 0 | AI203: =CHOOSE($H$195,'Mine profiles'!AG8,'Mine profiles'!AG22,'Mine profiles'!#REF!) -> 0 | AJ203: =CHOOSE($H$195,'Mine profiles'!AH8,'Mine profiles'!AH22,'Mine profiles'!#REF!) -> 0 | AK203: =CHOOSE($H$195,'Mine profiles'!AI8,'Mine profiles'!AI22,'Mine profiles'!#REF!) -> 0 | AL203: =CHOOSE($H$195,'Mine profiles'!AJ8,'Mine profiles'!AJ22,'Mine profiles'!#REF!) -> 0 | AM203: =CHOOSE($H$195,'Mine profiles'!AK8,'Mine profiles'!AK22,'Mine profiles'!#REF!) -> 0 | AN203: =CHOOSE($H$195,'Mine profiles'!AL8,'Mine profiles'!AL22,'Mine profiles'!#REF!) -> 0 | AO203: =CHOOSE($H$195,'Mine profiles'!AM8,'Mine profiles'!AM22,'Mine profiles'!#REF!) -> 0 | AP203: =CHOOSE($H$195,'Mine profiles'!AN8,'Mine profiles'!AN22,'Mine profiles'!#REF!) -> 0 | AQ203: =CHOOSE($H$195,'Mine profiles'!AO8,'Mine profiles'!AO22,'Mine profiles'!#REF!) -> 0 | AR203: =CHOOSE($H$195,'Mine profiles'!AP8,'Mine profiles'!AP22,'Mine profiles'!#REF!) -> 0 | AS203: =CHOOSE($H$195,'Mine profiles'!AQ8,'Mine profiles'!AQ22,'Mine profiles'!#REF!) -> 0 | AT203: =CHOOSE($H$195,'Mine profiles'!AR8,'Mine profiles'!AR22,'Mine profiles'!#REF!) -> 0 | AU203: =CHOOSE($H$195,'Mine profiles'!AS8,'Mine profiles'!AS22,'Mine profiles'!#REF!) -> 0 | AV203: =CHOOSE($H$195,'Mine profiles'!AT8,'Mine profiles'!AT22,'Mine profiles'!#REF!) -> 0 | AW203: =CHOOSE($H$195,'Mine profiles'!AU8,'Mine profiles'!AU22,'Mine profiles'!#REF!) -> 0 | AX203: =CHOOSE($H$195,'Mine profiles'!AV8,'Mine profiles'!AV22,'Mine profiles'!#REF!) -> 0 | AY203: =CHOOSE($H$195,'Mine profiles'!AW8,'Mine profiles'!AW22,'Mine profiles'!#REF!) -> 0 | AZ203: =CHOOSE($H$195,'Mine profiles'!AX8,'Mine profiles'!AX22,'Mine profiles'!#REF!) -> 0 | BA203: =CHOOSE($H$195,'Mine profiles'!AY8,'Mine profiles'!AY22,'Mine profiles'!#REF!) -> 0 | BB203: =CHOOSE($H$195,'Mine profiles'!AZ8,'Mine profiles'!AZ22,'Mine profiles'!#REF!) -> 0 | BC203: =CHOOSE($H$195,'Mine profiles'!BA8,'Mine profiles'!BA22,'Mine profiles'!#REF!) -> 0 | BD203: =CHOOSE($H$195,'Mine profiles'!BB8,'Mine profiles'!BB22,'Mine profiles'!#REF!) -> 0
C204: 90 | D204: Replacement capital costs (depreciable) | E204: =CHOOSE($H$195,'Mine profiles'!C9,'Mine profiles'!C23,'Mine profiles'!#REF!) -> $mm const | G204: =CHOOSE($H$195,'Mine profiles'!E9,'Mine profiles'!E23,'Mine profiles'!#REF!) -> 0 | H204: =CHOOSE($H$195,'Mine profiles'!F9,'Mine profiles'!F23,'Mine profiles'!#REF!) -> 0 | I204: =CHOOSE($H$195,'Mine profiles'!G9,'Mine profiles'!G23,'Mine profiles'!#REF!) -> 4.5 | J204: =CHOOSE($H$195,'Mine profiles'!H9,'Mine profiles'!H23,'Mine profiles'!#REF!) -> 4.5 | K204: =CHOOSE($H$195,'Mine profiles'!I9,'Mine profiles'!I23,'Mine profiles'!#REF!) -> 4.5 | L204: =CHOOSE($H$195,'Mine profiles'!J9,'Mine profiles'!J23,'Mine profiles'!#REF!) -> 4.5 | M204: =CHOOSE($H$195,'Mine profiles'!K9,'Mine profiles'!K23,'Mine profiles'!#REF!) -> 4.5 | N204: =CHOOSE($H$195,'Mine profiles'!L9,'Mine profiles'!L23,'Mine profiles'!#REF!) -> 4.5 | O204: =CHOOSE($H$195,'Mine profiles'!M9,'Mine profiles'!M23,'Mine profiles'!#REF!) -> 4.5 | P204: =CHOOSE($H$195,'Mine profiles'!N9,'Mine profiles'!N23,'Mine profiles'!#REF!) -> 4.5 | Q204: =CHOOSE($H$195,'Mine profiles'!O9,'Mine profiles'!O23,'Mine profiles'!#REF!) -> 4.5 | R204: =CHOOSE($H$195,'Mine profiles'!P9,'Mine profiles'!P23,'Mine profiles'!#REF!) -> 4.5 | S204: =CHOOSE($H$195,'Mine profiles'!Q9,'Mine profiles'!Q23,'Mine profiles'!#REF!) -> 4.5 | T204: =CHOOSE($H$195,'Mine profiles'!R9,'Mine profiles'!R23,'Mine profiles'!#REF!) -> 4.5 | U204: =CHOOSE($H$195,'Mine profiles'!S9,'Mine profiles'!S23,'Mine profiles'!#REF!) -> 4.5 | V204: =CHOOSE($H$195,'Mine profiles'!T9,'Mine profiles'!T23,'Mine profiles'!#REF!) -> 4.5 | W204: =CHOOSE($H$195,'Mine profiles'!U9,'Mine profiles'!U23,'Mine profiles'!#REF!) -> 4.5 | X204: =CHOOSE($H$195,'Mine profiles'!V9,'Mine profiles'!V23,'Mine profiles'!#REF!) -> 4.5 | Y204: =CHOOSE($H$195,'Mine profiles'!W9,'Mine profiles'!W23,'Mine profiles'!#REF!) -> 4.5 | Z204: =CHOOSE($H$195,'Mine profiles'!X9,'Mine profiles'!X23,'Mine profiles'!#REF!) -> 4.5 | AA204: =CHOOSE($H$195,'Mine profiles'!Y9,'Mine profiles'!Y23,'Mine profiles'!#REF!) -> 4.5 | AB204: =CHOOSE($H$195,'Mine profiles'!Z9,'Mine profiles'!Z23,'Mine profiles'!#REF!) -> 4.5 | AC204: =CHOOSE($H$195,'Mine profiles'!AA9,'Mine profiles'!AA23,'Mine profiles'!#REF!) -> 0 | AD204: =CHOOSE($H$195,'Mine profiles'!AB9,'Mine profiles'!AB23,'Mine profiles'!#REF!) -> 0 | AE204: =CHOOSE($H$195,'Mine profiles'!AC9,'Mine profiles'!AC23,'Mine profiles'!#REF!) -> 0 | AF204: =CHOOSE($H$195,'Mine profiles'!AD9,'Mine profiles'!AD23,'Mine profiles'!#REF!) -> 0 | AG204: =CHOOSE($H$195,'Mine profiles'!AE9,'Mine profiles'!AE23,'Mine profiles'!#REF!) -> 0 | AH204: =CHOOSE($H$195,'Mine profiles'!AF9,'Mine profiles'!AF23,'Mine profiles'!#REF!) -> 0 | AI204: =CHOOSE($H$195,'Mine profiles'!AG9,'Mine profiles'!AG23,'Mine profiles'!#REF!) -> 0 | AJ204: =CHOOSE($H$195,'Mine profiles'!AH9,'Mine profiles'!AH23,'Mine profiles'!#REF!) -> 0 | AK204: =CHOOSE($H$195,'Mine profiles'!AI9,'Mine profiles'!AI23,'Mine profiles'!#REF!) -> 0 | AL204: =CHOOSE($H$195,'Mine profiles'!AJ9,'Mine profiles'!AJ23,'Mine profiles'!#REF!) -> 0 | AM204: =CHOOSE($H$195,'Mine profiles'!AK9,'Mine profiles'!AK23,'Mine profiles'!#REF!) -> 0 | AN204: =CHOOSE($H$195,'Mine profiles'!AL9,'Mine profiles'!AL23,'Mine profiles'!#REF!) -> 0 | AO204: =CHOOSE($H$195,'Mine profiles'!AM9,'Mine profiles'!AM23,'Mine profiles'!#REF!) -> 0 | AP204: =CHOOSE($H$195,'Mine profiles'!AN9,'Mine profiles'!AN23,'Mine profiles'!#REF!) -> 0 | AQ204: =CHOOSE($H$195,'Mine profiles'!AO9,'Mine profiles'!AO23,'Mine profiles'!#REF!) -> 0 | AR204: =CHOOSE($H$195,'Mine profiles'!AP9,'Mine profiles'!AP23,'Mine profiles'!#REF!) -> 0 | AS204: =CHOOSE($H$195,'Mine profiles'!AQ9,'Mine profiles'!AQ23,'Mine profiles'!#REF!) -> 0 | AT204: =CHOOSE($H$195,'Mine profiles'!AR9,'Mine profiles'!AR23,'Mine profiles'!#REF!) -> 0 | AU204: =CHOOSE($H$195,'Mine profiles'!AS9,'Mine profiles'!AS23,'Mine profiles'!#REF!) -> 0 | AV204: =CHOOSE($H$195,'Mine profiles'!AT9,'Mine profiles'!AT23,'Mine profiles'!#REF!) -> 0 | AW204: =CHOOSE($H$195,'Mine profiles'!AU9,'Mine profiles'!AU23,'Mine profiles'!#REF!) -> 0 | AX204: =CHOOSE($H$195,'Mine profiles'!AV9,'Mine profiles'!AV23,'Mine profiles'!#REF!) -> 0 | AY204: =CHOOSE($H$195,'Mine profiles'!AW9,'Mine profiles'!AW23,'Mine profiles'!#REF!) -> 0 | AZ204: =CHOOSE($H$195,'Mine profiles'!AX9,'Mine profiles'!AX23,'Mine profiles'!#REF!) -> 0 | BA204: =CHOOSE($H$195,'Mine profiles'!AY9,'Mine profiles'!AY23,'Mine profiles'!#REF!) -> 0 | BB204: =CHOOSE($H$195,'Mine profiles'!AZ9,'Mine profiles'!AZ23,'Mine profiles'!#REF!) -> 0 | BC204: =CHOOSE($H$195,'Mine profiles'!BA9,'Mine profiles'!BA23,'Mine profiles'!#REF!) -> 0 | BD204: =CHOOSE($H$195,'Mine profiles'!BB9,'Mine profiles'!BB23,'Mine profiles'!#REF!) -> 0
C205: 0 | D205: Unofficial taxes | E205: =CHOOSE($H$195,'Mine profiles'!C10,'Mine profiles'!C24,'Mine profiles'!#REF!) -> $/ounce | G205: =CHOOSE($H$195,'Mine profiles'!E10,'Mine profiles'!E24,'Mine profiles'!#REF!) -> 0 | H205: =CHOOSE($H$195,'Mine profiles'!F10,'Mine profiles'!F24,'Mine profiles'!#REF!) -> 0 | I205: =CHOOSE($H$195,'Mine profiles'!G10,'Mine profiles'!G24,'Mine profiles'!#REF!) -> 0 | J205: =CHOOSE($H$195,'Mine profiles'!H10,'Mine profiles'!H24,'Mine profiles'!#REF!) -> 0 | K205: =CHOOSE($H$195,'Mine profiles'!I10,'Mine profiles'!I24,'Mine profiles'!#REF!) -> 0 | L205: =CHOOSE($H$195,'Mine profiles'!J10,'Mine profiles'!J24,'Mine profiles'!#REF!) -> 0 | M205: =CHOOSE($H$195,'Mine profiles'!K10,'Mine profiles'!K24,'Mine profiles'!#REF!) -> 0 | N205: =CHOOSE($H$195,'Mine profiles'!L10,'Mine profiles'!L24,'Mine profiles'!#REF!) -> 0 | O205: =CHOOSE($H$195,'Mine profiles'!M10,'Mine profiles'!M24,'Mine profiles'!#REF!) -> 0 | P205: =CHOOSE($H$195,'Mine profiles'!N10,'Mine profiles'!N24,'Mine profiles'!#REF!) -> 0 | Q205: =CHOOSE($H$195,'Mine profiles'!O10,'Mine profiles'!O24,'Mine profiles'!#REF!) -> 0 | R205: =CHOOSE($H$195,'Mine profiles'!P10,'Mine profiles'!P24,'Mine profiles'!#REF!) -> 0 | S205: =CHOOSE($H$195,'Mine profiles'!Q10,'Mine profiles'!Q24,'Mine profiles'!#REF!) -> 0 | T205: =CHOOSE($H$195,'Mine profiles'!R10,'Mine profiles'!R24,'Mine profiles'!#REF!) -> 0 | U205: =CHOOSE($H$195,'Mine profiles'!S10,'Mine profiles'!S24,'Mine profiles'!#REF!) -> 0 | V205: =CHOOSE($H$195,'Mine profiles'!T10,'Mine profiles'!T24,'Mine profiles'!#REF!) -> 0 | W205: =CHOOSE($H$195,'Mine profiles'!U10,'Mine profiles'!U24,'Mine profiles'!#REF!) -> 0 | X205: =CHOOSE($H$195,'Mine profiles'!V10,'Mine profiles'!V24,'Mine profiles'!#REF!) -> 0 | Y205: =CHOOSE($H$195,'Mine profiles'!W10,'Mine profiles'!W24,'Mine profiles'!#REF!) -> 0 | Z205: =CHOOSE($H$195,'Mine profiles'!X10,'Mine profiles'!X24,'Mine profiles'!#REF!) -> 0 | AA205: =CHOOSE($H$195,'Mine profiles'!Y10,'Mine profiles'!Y24,'Mine profiles'!#REF!) -> 0 | AB205: =CHOOSE($H$195,'Mine profiles'!Z10,'Mine profiles'!Z24,'Mine profiles'!#REF!) -> 0 | AC205: =CHOOSE($H$195,'Mine profiles'!AA10,'Mine profiles'!AA24,'Mine profiles'!#REF!) -> 0 | AD205: =CHOOSE($H$195,'Mine profiles'!AB10,'Mine profiles'!AB24,'Mine profiles'!#REF!) -> 0 | AE205: =CHOOSE($H$195,'Mine profiles'!AC10,'Mine profiles'!AC24,'Mine profiles'!#REF!) -> 0 | AF205: =CHOOSE($H$195,'Mine profiles'!AD10,'Mine profiles'!AD24,'Mine profiles'!#REF!) -> 0 | AG205: =CHOOSE($H$195,'Mine profiles'!AE10,'Mine profiles'!AE24,'Mine profiles'!#REF!) -> 0 | AH205: =CHOOSE($H$195,'Mine profiles'!AF10,'Mine profiles'!AF24,'Mine profiles'!#REF!) -> 0 | AI205: =CHOOSE($H$195,'Mine profiles'!AG10,'Mine profiles'!AG24,'Mine profiles'!#REF!) -> 0 | AJ205: =CHOOSE($H$195,'Mine profiles'!AH10,'Mine profiles'!AH24,'Mine profiles'!#REF!) -> 0 | AK205: =CHOOSE($H$195,'Mine profiles'!AI10,'Mine profiles'!AI24,'Mine profiles'!#REF!) -> 0 | AL205: =CHOOSE($H$195,'Mine profiles'!AJ10,'Mine profiles'!AJ24,'Mine profiles'!#REF!) -> 0 | AM205: =CHOOSE($H$195,'Mine profiles'!AK10,'Mine profiles'!AK24,'Mine profiles'!#REF!) -> 0 | AN205: =CHOOSE($H$195,'Mine profiles'!AL10,'Mine profiles'!AL24,'Mine profiles'!#REF!) -> 0 | AO205: =CHOOSE($H$195,'Mine profiles'!AM10,'Mine profiles'!AM24,'Mine profiles'!#REF!) -> 0 | AP205: =CHOOSE($H$195,'Mine profiles'!AN10,'Mine profiles'!AN24,'Mine profiles'!#REF!) -> 0 | AQ205: =CHOOSE($H$195,'Mine profiles'!AO10,'Mine profiles'!AO24,'Mine profiles'!#REF!) -> 0 | AR205: =CHOOSE($H$195,'Mine profiles'!AP10,'Mine profiles'!AP24,'Mine profiles'!#REF!) -> 0 | AS205: =CHOOSE($H$195,'Mine profiles'!AQ10,'Mine profiles'!AQ24,'Mine profiles'!#REF!) -> 0 | AT205: =CHOOSE($H$195,'Mine profiles'!AR10,'Mine profiles'!AR24,'Mine profiles'!#REF!) -> 0 | AU205: =CHOOSE($H$195,'Mine profiles'!AS10,'Mine profiles'!AS24,'Mine profiles'!#REF!) -> 0 | AV205: =CHOOSE($H$195,'Mine profiles'!AT10,'Mine profiles'!AT24,'Mine profiles'!#REF!) -> 0 | AW205: =CHOOSE($H$195,'Mine profiles'!AU10,'Mine profiles'!AU24,'Mine profiles'!#REF!) -> 0 | AX205: =CHOOSE($H$195,'Mine profiles'!AV10,'Mine profiles'!AV24,'Mine profiles'!#REF!) -> 0 | AY205: =CHOOSE($H$195,'Mine profiles'!AW10,'Mine profiles'!AW24,'Mine profiles'!#REF!) -> 0 | AZ205: =CHOOSE($H$195,'Mine profiles'!AX10,'Mine profiles'!AX24,'Mine profiles'!#REF!) -> 0 | BA205: =CHOOSE($H$195,'Mine profiles'!AY10,'Mine profiles'!AY24,'Mine profiles'!#REF!) -> 0 | BB205: =CHOOSE($H$195,'Mine profiles'!AZ10,'Mine profiles'!AZ24,'Mine profiles'!#REF!) -> 0 | BC205: =CHOOSE($H$195,'Mine profiles'!BA10,'Mine profiles'!BA24,'Mine profiles'!#REF!) -> 0 | BD205: =CHOOSE($H$195,'Mine profiles'!BB10,'Mine profiles'!BB24,'Mine profiles'!#REF!) -> 0
C206: 0 | D206: Decommissioning costs | E206: =CHOOSE($H$195,'Mine profiles'!C11,'Mine profiles'!C25,'Mine profiles'!#REF!) -> $mm const | G206: =CHOOSE($H$195,'Mine profiles'!E11,'Mine profiles'!E25,'Mine profiles'!#REF!) -> 0 | H206: =CHOOSE($H$195,'Mine profiles'!F11,'Mine profiles'!F25,'Mine profiles'!#REF!) -> 0 | I206: =CHOOSE($H$195,'Mine profiles'!G11,'Mine profiles'!G25,'Mine profiles'!#REF!) -> 0 | J206: =CHOOSE($H$195,'Mine profiles'!H11,'Mine profiles'!H25,'Mine profiles'!#REF!) -> 0 | K206: =CHOOSE($H$195,'Mine profiles'!I11,'Mine profiles'!I25,'Mine profiles'!#REF!) -> 0 | L206: =CHOOSE($H$195,'Mine profiles'!J11,'Mine profiles'!J25,'Mine profiles'!#REF!) -> 0 | M206: =CHOOSE($H$195,'Mine profiles'!K11,'Mine profiles'!K25,'Mine profiles'!#REF!) -> 0 | N206: =CHOOSE($H$195,'Mine profiles'!L11,'Mine profiles'!L25,'Mine profiles'!#REF!) -> 0 | O206: =CHOOSE($H$195,'Mine profiles'!M11,'Mine profiles'!M25,'Mine profiles'!#REF!) -> 0 | P206: =CHOOSE($H$195,'Mine profiles'!N11,'Mine profiles'!N25,'Mine profiles'!#REF!) -> 0 | Q206: =CHOOSE($H$195,'Mine profiles'!O11,'Mine profiles'!O25,'Mine profiles'!#REF!) -> 0 | R206: =CHOOSE($H$195,'Mine profiles'!P11,'Mine profiles'!P25,'Mine profiles'!#REF!) -> 0 | S206: =CHOOSE($H$195,'Mine profiles'!Q11,'Mine profiles'!Q25,'Mine profiles'!#REF!) -> 0 | T206: =CHOOSE($H$195,'Mine profiles'!R11,'Mine profiles'!R25,'Mine profiles'!#REF!) -> 0 | U206: =CHOOSE($H$195,'Mine profiles'!S11,'Mine profiles'!S25,'Mine profiles'!#REF!) -> 0 | V206: =CHOOSE($H$195,'Mine profiles'!T11,'Mine profiles'!T25,'Mine profiles'!#REF!) -> 0 | W206: =CHOOSE($H$195,'Mine profiles'!U11,'Mine profiles'!U25,'Mine profiles'!#REF!) -> 0 | X206: =CHOOSE($H$195,'Mine profiles'!V11,'Mine profiles'!V25,'Mine profiles'!#REF!) -> 0 | Y206: =CHOOSE($H$195,'Mine profiles'!W11,'Mine profiles'!W25,'Mine profiles'!#REF!) -> 0 | Z206: =CHOOSE($H$195,'Mine profiles'!X11,'Mine profiles'!X25,'Mine profiles'!#REF!) -> 0 | AA206: =CHOOSE($H$195,'Mine profiles'!Y11,'Mine profiles'!Y25,'Mine profiles'!#REF!) -> 0 | AB206: =CHOOSE($H$195,'Mine profiles'!Z11,'Mine profiles'!Z25,'Mine profiles'!#REF!) -> 0 | AC206: =CHOOSE($H$195,'Mine profiles'!AA11,'Mine profiles'!AA25,'Mine profiles'!#REF!) -> 0 | AD206: =CHOOSE($H$195,'Mine profiles'!AB11,'Mine profiles'!AB25,'Mine profiles'!#REF!) -> 0 | AE206: =CHOOSE($H$195,'Mine profiles'!AC11,'Mine profiles'!AC25,'Mine profiles'!#REF!) -> 0 | AF206: =CHOOSE($H$195,'Mine profiles'!AD11,'Mine profiles'!AD25,'Mine profiles'!#REF!) -> 0 | AG206: =CHOOSE($H$195,'Mine profiles'!AE11,'Mine profiles'!AE25,'Mine profiles'!#REF!) -> 0 | AH206: =CHOOSE($H$195,'Mine profiles'!AF11,'Mine profiles'!AF25,'Mine profiles'!#REF!) -> 0 | AI206: =CHOOSE($H$195,'Mine profiles'!AG11,'Mine profiles'!AG25,'Mine profiles'!#REF!) -> 0 | AJ206: =CHOOSE($H$195,'Mine profiles'!AH11,'Mine profiles'!AH25,'Mine profiles'!#REF!) -> 0 | AK206: =CHOOSE($H$195,'Mine profiles'!AI11,'Mine profiles'!AI25,'Mine profiles'!#REF!) -> 0 | AL206: =CHOOSE($H$195,'Mine profiles'!AJ11,'Mine profiles'!AJ25,'Mine profiles'!#REF!) -> 0 | AM206: =CHOOSE($H$195,'Mine profiles'!AK11,'Mine profiles'!AK25,'Mine profiles'!#REF!) -> 0 | AN206: =CHOOSE($H$195,'Mine profiles'!AL11,'Mine profiles'!AL25,'Mine profiles'!#REF!) -> 0 | AO206: =CHOOSE($H$195,'Mine profiles'!AM11,'Mine profiles'!AM25,'Mine profiles'!#REF!) -> 0 | AP206: =CHOOSE($H$195,'Mine profiles'!AN11,'Mine profiles'!AN25,'Mine profiles'!#REF!) -> 0 | AQ206: =CHOOSE($H$195,'Mine profiles'!AO11,'Mine profiles'!AO25,'Mine profiles'!#REF!) -> 0 | AR206: =CHOOSE($H$195,'Mine profiles'!AP11,'Mine profiles'!AP25,'Mine profiles'!#REF!) -> 0 | AS206: =CHOOSE($H$195,'Mine profiles'!AQ11,'Mine profiles'!AQ25,'Mine profiles'!#REF!) -> 0 | AT206: =CHOOSE($H$195,'Mine profiles'!AR11,'Mine profiles'!AR25,'Mine profiles'!#REF!) -> 0 | AU206: =CHOOSE($H$195,'Mine profiles'!AS11,'Mine profiles'!AS25,'Mine profiles'!#REF!) -> 0 | AV206: =CHOOSE($H$195,'Mine profiles'!AT11,'Mine profiles'!AT25,'Mine profiles'!#REF!) -> 0 | AW206: =CHOOSE($H$195,'Mine profiles'!AU11,'Mine profiles'!AU25,'Mine profiles'!#REF!) -> 0 | AX206: =CHOOSE($H$195,'Mine profiles'!AV11,'Mine profiles'!AV25,'Mine profiles'!#REF!) -> 0 | AY206: =CHOOSE($H$195,'Mine profiles'!AW11,'Mine profiles'!AW25,'Mine profiles'!#REF!) -> 0 | AZ206: =CHOOSE($H$195,'Mine profiles'!AX11,'Mine profiles'!AX25,'Mine profiles'!#REF!) -> 0 | BA206: =CHOOSE($H$195,'Mine profiles'!AY11,'Mine profiles'!AY25,'Mine profiles'!#REF!) -> 0 | BB206: =CHOOSE($H$195,'Mine profiles'!AZ11,'Mine profiles'!AZ25,'Mine profiles'!#REF!) -> 0 | BC206: =CHOOSE($H$195,'Mine profiles'!BA11,'Mine profiles'!BA25,'Mine profiles'!#REF!) -> 0 | BD206: =CHOOSE($H$195,'Mine profiles'!BB11,'Mine profiles'!BB25,'Mine profiles'!#REF!) -> 0
D207: Associated mineral (proportion of main mineral revenue value) | E207: % | F207: =CHOOSE($H$195,'Mine profiles'!D12,'Mine profiles'!D26,'Mine profiles'!#REF!) -> 0.1
D211: Units of conversion
D213: lbs to tonnes | E213: 2204.622622
D214: units of cathode in concentrate | E214: =1/3 -> 0.3333333333
D216: DO NOT DELETE - variables for Sensitivity calculations
D218: Price changer 2 | F218: =Model!E770 -> 1300
D219: Fiscal regime selector | F219: =Model!F526 -> 1
D220: Cost changer 2 | F220: =Model!E771 -> 422

Sheet Model
A2: Error check: | C2: =AND(A:A) -> TRUE | E2: year | G2: 1 | H2: =G2+1 -> 2 | I2: 3 | J2: 4 | K2: 5 | L2: 6 | M2: 7 | N2: 8 | O2: 9 | P2: 10 | Q2: 11 | R2: 12 | S2: 13 | T2: 14 | U2: 15 | V2: 16 | W2: 17 | X2: 18 | Y2: 19 | Z2: 20 | AA2: 21 | AB2: 22 | AC2: 23 | AD2: 24 | AE2: 25 | AF2: 26 | AG2: 27 | AH2: 28 | AI2: 29 | AJ2: 30 | AK2: 31 | AL2: 32 | AM2: 33 | AN2: =AM2+1 -> 34 | AO2: 35 | AP2: 36 | AQ2: 37 | AR2: 38 | AS2: 39 | AT2: 40 | AU2: 41 | AV2: 42 | AW2: 43 | AX2: 44 | AY2: 45 | AZ2: 46 | BA2: 47 | BB2: 48 | BC2: 49 | BD2: 50
A4: Project Cashflow
D7: Project Pre-Tax Cash Flow: Real | E7: year | G7: =G$2 -> 1 | H7: 2 | I7: 3 | J7: 4 | K7: 5 | L7: 6 | M7: 7 | N7: 8 | O7: 9 | P7: 10 | Q7: 11 | R7: 12 | S7: 13 | T7: 14 | U7: 15 | V7: 16 | W7: 17 | X7: 18 | Y7: 19 | Z7: 20 | AA7: 21 | AB7: 22 | AC7: 23 | AD7: 24 | AE7: 25 | AF7: 26 | AG7: 27 | AH7: 28 | AI7: 29 | AJ7: 30 | AK7: 31 | AL7: 32 | AM7: =AM$2 -> 33 | AN7: 34 | AO7: 35 | AP7: 36 | AQ7: 37 | AR7: 38 | AS7: 39 | AT7: 40 | AU7: 41 | AV7: 42 | AW7: 43 | AX7: 44 | AY7: 45 | AZ7: 46 | BA7: 47 | BB7: 48 | BC7: 49 | BD7: 50
C8: =SUM(G8:BD8) -> 4700000 | D8: Production | E8: ounces | G8: =Inputs!G198 -> 0 | H8: =Inputs!H198 -> 0 | I8: =Inputs!I198 -> 100000 | J8: =Inputs!J198 -> 250000 | K8: =Inputs!K198 -> 250000 | L8: =Inputs!L198 -> 250000 | M8: =Inputs!M198 -> 250000 | N8: =Inputs!N198 -> 250000 | O8: =Inputs!O198 -> 250000 | P8: =Inputs!P198 -> 250000 | Q8: =Inputs!Q198 -> 250000 | R8: =Inputs!R198 -> 250000 | S8: =Inputs!S198 -> 250000 | T8: =Inputs!T198 -> 250000 | U8: =Inputs!U198 -> 250000 | V8: =Inputs!V198 -> 250000 | W8: =Inputs!W198 -> 250000 | X8: =Inputs!X198 -> 250000 | Y8: =Inputs!Y198 -> 250000 | Z8: =Inputs!Z198 -> 250000 | AA8: =Inputs!AA198 -> 250000 | AB8: =Inputs!AB198 -> 100000 | AC8: =Inputs!AC198 -> 0 | AD8: =Inputs!AD198 -> 0 | AE8: =Inputs!AE198 -> 0 | AF8: =Inputs!AF198 -> 0 | AG8: =Inputs!AG198 -> 0 | AH8: =Inputs!AH198 -> 0 | AI8: =Inputs!AI198 -> 0 | AJ8: =Inputs!AJ198 -> 0 | AK8: =Inputs!AK198 -> 0 | AL8: =Inputs!AL198 -> 0 | AM8: =Inputs!AM198 -> 0 | AN8: =Inputs!AN198 -> 0 | AO8: =Inputs!AO198 -> 0 | AP8: =Inputs!AP198 -> 0 | AQ8: =Inputs!AQ198 -> 0 | AR8: =Inputs!AR198 -> 0 | AS8: =Inputs!AS198 -> 0 | AT8: =Inputs!AT198 -> 0 | AU8: =Inputs!AU198 -> 0 | AV8: =Inputs!AV198 -> 0 | AW8: =Inputs!AW198 -> 0 | AX8: =Inputs!AX198 -> 0 | AY8: =Inputs!AY198 -> 0 | AZ8: =Inputs!AZ198 -> 0 | BA8: =Inputs!BA198 -> 0 | BB8: =Inputs!BB198 -> 0 | BC8: =Inputs!BC198 -> 0 | BD8: =Inputs!BD198 -> 0
C9: 6110 | D9: Primary revenue | E9: $mm const | G9: =G8*Inputs!G190/1000000 -> 0 | H9: =H8*Inputs!H190/1000000 -> 0 | I9: =I8*Inputs!I190/1000000 -> 130 | J9: =J8*Inputs!J190/1000000 -> 325 | K9: =K8*Inputs!K190/1000000 -> 325 | L9: =L8*Inputs!L190/1000000 -> 325 | M9: =M8*Inputs!M190/1000000 -> 325 | N9: =N8*Inputs!N190/1000000 -> 325 | O9: =O8*Inputs!O190/1000000 -> 325 | P9: =P8*Inputs!P190/1000000 -> 325 | Q9: =Q8*Inputs!Q190/1000000 -> 325 | R9: =R8*Inputs!R190/1000000 -> 325 | S9: =S8*Inputs!S190/1000000 -> 325 | T9: =T8*Inputs!T190/1000000 -> 325 | U9: =U8*Inputs!U190/1000000 -> 325 | V9: =V8*Inputs!V190/1000000 -> 325 | W9: =W8*Inputs!W190/1000000 -> 325 | X9: =X8*Inputs!X190/1000000 -> 325 | Y9: =Y8*Inputs!Y190/1000000 -> 325 | Z9: =Z8*Inputs!Z190/1000000 -> 325 | AA9: =AA8*Inputs!AA190/1000000 -> 325 | AB9: =AB8*Inputs!AB190/1000000 -> 130 | AC9: =AC8*Inputs!AC190/1000000 -> 0 | AD9: =AD8*Inputs!AD190/1000000 -> 0 | AE9: =AE8*Inputs!AE190/1000000 -> 0 | AF9: =AF8*Inputs!AF190/1000000 -> 0 | AG9: =AG8*Inputs!AG190/1000000 -> 0 | AH9: =AH8*Inputs!AH190/1000000 -> 0 | AI9: =AI8*Inputs!AI190/1000000 -> 0 | AJ9: =AJ8*Inputs!AJ190/1000000 -> 0 | AK9: =AK8*Inputs!AK190/1000000 -> 0 | AL9: =AL8*Inputs!AL190/1000000 -> 0 | AM9: =AM8*Inputs!AM190/1000000 -> 0 | AN9: =AN8*Inputs!AN190/1000000 -> 0 | AO9: =AO8*Inputs!AO190/1000000 -> 0 | AP9: =AP8*Inputs!AP190/1000000 -> 0 | AQ9: =AQ8*Inputs!AQ190/1000000 -> 0 | AR9: =AR8*Inputs!AR190/1000000 -> 0 | AS9: =AS8*Inputs!AS190/1000000 -> 0 | AT9: =AT8*Inputs!AT190/1000000 -> 0 | AU9: =AU8*Inputs!AU190/1000000 -> 0 | AV9: =AV8*Inputs!AV190/1000000 -> 0 | AW9: =AW8*Inputs!AW190/1000000 -> 0 | AX9: =AX8*Inputs!AX190/1000000 -> 0 | AY9: =AY8*Inputs!AY190/1000000 -> 0 | AZ9: =AZ8*Inputs!AZ190/1000000 -> 0 | BA9: =BA8*Inputs!BA190/1000000 -> 0 | BB9: =BB8*Inputs!BB190/1000000 -> 0 | BC9: =BC8*Inputs!BC190/1000000 -> 0 | BD9: =BD8*Inputs!BD190/1000000 -> 0
C10: 611 | D10: Co-produce revenue | E10: $mm const | G10: =G9*Inputs!$F$207 -> 0 | H10: =H9*Inputs!$F$207 -> 0 | I10: =I9*Inputs!$F$207 -> 13 | J10: =J9*Inputs!$F$207 -> 32.5 | K10: =K9*Inputs!$F$207 -> 32.5 | L10: =L9*Inputs!$F$207 -> 32.5 | M10: =M9*Inputs!$F$207 -> 32.5 | N10: =N9*Inputs!$F$207 -> 32.5 | O10: =O9*Inputs!$F$207 -> 32.5 | P10: =P9*Inputs!$F$207 -> 32.5 | Q10: =Q9*Inputs!$F$207 -> 32.5 | R10: =R9*Inputs!$F$207 -> 32.5 | S10: =S9*Inputs!$F$207 -> 32.5 | T10: =T9*Inputs!$F$207 -> 32.5 | U10: =U9*Inputs!$F$207 -> 32.5 | V10: =V9*Inputs!$F$207 -> 32.5 | W10: =W9*Inputs!$F$207 -> 32.5 | X10: =X9*Inputs!$F$207 -> 32.5 | Y10: =Y9*Inputs!$F$207 -> 32.5 | Z10: =Z9*Inputs!$F$207 -> 32.5 | AA10: =AA9*Inputs!$F$207 -> 32.5 | AB10: =AB9*Inputs!$F$207 -> 13 | AC10: =AC9*Inputs!$F$207 -> 0 | AD10: =AD9*Inputs!$F$207 -> 0 | AE10: =AE9*Inputs!$F$207 -> 0 | AF10: =AF9*Inputs!$F$207 -> 0 | AG10: =AG9*Inputs!$F$207 -> 0 | AH10: =AH9*Inputs!$F$207 -> 0 | AI10: =AI9*Inputs!$F$207 -> 0 | AJ10: =AJ9*Inputs!$F$207 -> 0 | AK10: =AK9*Inputs!$F$207 -> 0 | AL10: =AL9*Inputs!$F$207 -> 0 | AM10: =AM9*Inputs!$F$207 -> 0 | AN10: =AN9*Inputs!$F$207 -> 0 | AO10: =AO9*Inputs!$F$207 -> 0 | AP10: =AP9*Inputs!$F$207 -> 0 | AQ10: =AQ9*Inputs!$F$207 -> 0 | AR10: =AR9*Inputs!$F$207 -> 0 | AS10: =AS9*Inputs!$F$207 -> 0 | AT10: =AT9*Inputs!$F$207 -> 0 | AU10: =AU9*Inputs!$F$207 -> 0 | AV10: =AV9*Inputs!$F$207 -> 0 | AW10: =AW9*Inputs!$F$207 -> 0 | AX10: =AX9*Inputs!$F$207 -> 0 | AY10: =AY9*Inputs!$F$207 -> 0 | AZ10: =AZ9*Inputs!$F$207 -> 0 | BA10: =BA9*Inputs!$F$207 -> 0 | BB10: =BB9*Inputs!$F$207 -> 0 | BC10: =BC9*Inputs!$F$207 -> 0 | BD10: =BD9*Inputs!$F$207 -> 0
C11: 6721 | D11: Total gross revenue | E11: $mm const | G11: =SUM(G9:G10) -> 0 | H11: =SUM(H9:H10) -> 0 | I11: 143 | J11: 357.5 | K11: 357.5 | L11: 357.5 | M11: 357.5 | N11: 357.5 | O11: 357.5 | P11: 357.5 | Q11: 357.5 | R11: 357.5 | S11: 357.5 | T11: 357.5 | U11: 357.5 | V11: 357.5 | W11: 357.5 | X11: 357.5 | Y11: 357.5 | Z11: 357.5 | AA11: 357.5 | AB11: 143 | AC11: 0 | AD11: 0 | AE11: 0 | AF11: 0 | AG11: 0 | AH11: 0 | AI11: 0 | AJ11: 0 | AK11: 0 | AL11: 0 | AM11: 0 | AN11: 0 | AO11: 0 | AP11: 0 | AQ11: 0 | AR11: 0 | AS11: 0 | AT11: 0 | AU11: 0 | AV11: 0 | AW11: 0 | AX11: 0 | AY11: 0 | AZ11: 0 | BA11: 0 | BB11: 0 | BC11: 0 | BD11: 0
C12: 672.1 | D12: Transport and processing post-fiscal point | E12: $mm const | G12: =Inputs!G199+Inputs!G200 -> 0 | H12: =Inputs!H199+Inputs!H200 -> 0 | I12: =Inputs!I199+Inputs!I200 -> 14.3 | J12: =Inputs!J199+Inputs!J200 -> 35.75 | K12: =Inputs!K199+Inputs!K200 -> 35.75 | L12: =Inputs!L199+Inputs!L200 -> 35.75 | M12: =Inputs!M199+Inputs!M200 -> 35.75 | N12: =Inputs!N199+Inputs!N200 -> 35.75 | O12: =Inputs!O199+Inputs!O200 -> 35.75 | P12: =Inputs!P199+Inputs!P200 -> 35.75 | Q12: =Inputs!Q199+Inputs!Q200 -> 35.75 | R12: =Inputs!R199+Inputs!R200 -> 35.75 | S12: =Inputs!S199+Inputs!S200 -> 35.75 | T12: =Inputs!T199+Inputs!T200 -> 35.75 | U12: =Inputs!U199+Inputs!U200 -> 35.75 | V12: =Inputs!V199+Inputs!V200 -> 35.75 | W12: =Inputs!W199+Inputs!W200 -> 35.75 | X12: =Inputs!X199+Inputs!X200 -> 35.75 | Y12: =Inputs!Y199+Inputs!Y200 -> 35.75 | Z12: =Inputs!Z199+Inputs!Z200 -> 35.75 | AA12: =Inputs!AA199+Inputs!AA200 -> 35.75 | AB12: =Inputs!AB199+Inputs!AB200 -> 14.3 | AC12: =Inputs!AC199+Inputs!AC200 -> 0 | AD12: =Inputs!AD199+Inputs!AD200 -> 0 | AE12: =Inputs!AE199+Inputs!AE200 -> 0 | AF12: =Inputs!AF199+Inputs!AF200 -> 0 | AG12: =Inputs!AG199+Inputs!AG200 -> 0 | AH12: =Inputs!AH199+Inputs!AH200 -> 0 | AI12: =Inputs!AI199+Inputs!AI200 -> 0 | AJ12: =Inputs!AJ199+Inputs!AJ200 -> 0 | AK12: =Inputs!AK199+Inputs!AK200 -> 0 | AL12: =Inputs!AL199+Inputs!AL200 -> 0 | AM12: =Inputs!AM199+Inputs!AM200 -> 0 | AN12: =Inputs!AN199+Inputs!AN200 -> 0 | AO12: =Inputs!AO199+Inputs!AO200 -> 0 | AP12: =Inputs!AP199+Inputs!AP200 -> 0 | AQ12: =Inputs!AQ199+Inputs!AQ200 -> 0 | AR12: =Inputs!AR199+Inputs!AR200 -> 0 | AS12: =Inputs!AS199+Inputs!AS200 -> 0 | AT12: =Inputs!AT199+Inputs!AT200 -> 0 | AU12: =Inputs!AU199+Inputs!AU200 -> 0 | AV12: =Inputs!AV199+Inputs!AV200 -> 0 | AW12: =Inputs!AW199+Inputs!AW200 -> 0 | AX12: =Inputs!AX199+Inputs!AX200 -> 0 | AY12: =Inputs!AY199+Inputs!AY200 -> 0 | AZ12: =Inputs!AZ199+Inputs!AZ200 -> 0 | BA12: =Inputs!BA199+Inputs!BA200 -> 0 | BB12: =Inputs!BB199+Inputs!BB200 -> 0 | BC12: =Inputs!BC199+Inputs!BC200 -> 0 | BD12: =Inputs!BD199+Inputs!BD200 -> 0
A13: =ROUND(C13-(C11-C12),5)=0 -> TRUE | C13: =SUM(G13:BD13) -> 6048.9 | D13: Net revenue | E13: $mm const | G13: =G11-G12 -> 0 | H13: =H11-H12 -> 0 | I13: 128.7 | J13: 321.75 | K13: 321.75 | L13: 321.75 | M13: 321.75 | N13: 321.75 | O13: 321.75 | P13: 321.75 | Q13: 321.75 | R13: 321.75 | S13: 321.75 | T13: 321.75 | U13: 321.75 | V13: 321.75 | W13: 321.75 | X13: 321.75 | Y13: 321.75 | Z13: 321.75 | AA13: 321.75 | AB13: 128.7 | AC13: 0 | AD13: 0 | AE13: 0 | AF13: 0 | AG13: 0 | AH13: 0 | AI13: 0 | AJ13: 0 | AK13: 0 | AL13: 0 | AM13: 0 | AN13: 0 | AO13: 0 | AP13: 0 | AQ13: 0 | AR13: 0 | AS13: 0 | AT13: 0 | AU13: 0 | AV13: 0 | AW13: 0 | AX13: 0 | AY13: 0 | AZ13: 0 | BA13: 0 | BB13: 0 | BC13: 0 | BD13: 0
C14: 0 | D14: Exploration costs (expensed) | E14: $mm const | G14: =Inputs!G201 -> 0 | H14: =Inputs!H201 -> 0 | I14: =Inputs!I201 -> 0 | J14: =Inputs!J201 -> 0 | K14: =Inputs!K201 -> 0 | L14: =Inputs!L201 -> 0 | M14: =Inputs!M201 -> 0 | N14: =Inputs!N201 -> 0 | O14: =Inputs!O201 -> 0 | P14: =Inputs!P201 -> 0 | Q14: =Inputs!Q201 -> 0 | R14: =Inputs!R201 -> 0 | S14: =Inputs!S201 -> 0 | T14: =Inputs!T201 -> 0 | U14: =Inputs!U201 -> 0 | V14: =Inputs!V201 -> 0 | W14: =Inputs!W201 -> 0 | X14: =Inputs!X201 -> 0 | Y14: =Inputs!Y201 -> 0 | Z14: =Inputs!Z201 -> 0 | AA14: =Inputs!AA201 -> 0 | AB14: =Inputs!AB201 -> 0 | AC14: =Inputs!AC201 -> 0 | AD14: =Inputs!AD201 -> 0 | AE14: =Inputs!AE201 -> 0 | AF14: =Inputs!AF201 -> 0 | AG14: =Inputs!AG201 -> 0 | AH14: =Inputs!AH201 -> 0 | AI14: =Inputs!AI201 -> 0 | AJ14: =Inputs!AJ201 -> 0 | AK14: =Inputs!AK201 -> 0 | AL14: =Inputs!AL201 -> 0 | AM14: =Inputs!AM201 -> 0 | AN14: =Inputs!AN201 -> 0 | AO14: =Inputs!AO201 -> 0 | AP14: =Inputs!AP201 -> 0 | AQ14: =Inputs!AQ201 -> 0 | AR14: =Inputs!AR201 -> 0 | AS14: =Inputs!AS201 -> 0 | AT14: =Inputs!AT201 -> 0 | AU14: =Inputs!AU201 -> 0 | AV14: =Inputs!AV201 -> 0 | AW14: =Inputs!AW201 -> 0 | AX14: =Inputs!AX201 -> 0 | AY14: =Inputs!AY201 -> 0 | AZ14: =Inputs!AZ201 -> 0 | BA14: =Inputs!BA201 -> 0 | BB14: =Inputs!BB201 -> 0 | BC14: =Inputs!BC201 -> 0 | BD14: =Inputs!BD201 -> 0
C15: 0 | D15: Development costs - intangibles (expensed) | E15: $mm const | G15: =Inputs!G202 -> 0 | H15: =Inputs!H202 -> 0 | I15: =Inputs!I202 -> 0 | J15: =Inputs!J202 -> 0 | K15: =Inputs!K202 -> 0 | L15: =Inputs!L202 -> 0 | M15: =Inputs!M202 -> 0 | N15: =Inputs!N202 -> 0 | O15: =Inputs!O202 -> 0 | P15: =Inputs!P202 -> 0 | Q15: =Inputs!Q202 -> 0 | R15: =Inputs!R202 -> 0 | S15: =Inputs!S202 -> 0 | T15: =Inputs!T202 -> 0 | U15: =Inputs!U202 -> 0 | V15: =Inputs!V202 -> 0 | W15: =Inputs!W202 -> 0 | X15: =Inputs!X202 -> 0 | Y15: =Inputs!Y202 -> 0 | Z15: =Inputs!Z202 -> 0 | AA15: =Inputs!AA202 -> 0 | AB15: =Inputs!AB202 -> 0 | AC15: =Inputs!AC202 -> 0 | AD15: =Inputs!AD202 -> 0 | AE15: =Inputs!AE202 -> 0 | AF15: =Inputs!AF202 -> 0 | AG15: =Inputs!AG202 -> 0 | AH15: =Inputs!AH202 -> 0 | AI15: =Inputs!AI202 -> 0 | AJ15: =Inputs!AJ202 -> 0 | AK15: =Inputs!AK202 -> 0 | AL15: =Inputs!AL202 -> 0 | AM15: =Inputs!AM202 -> 0 | AN15: =Inputs!AN202 -> 0 | AO15: =Inputs!AO202 -> 0 | AP15: =Inputs!AP202 -> 0 | AQ15: =Inputs!AQ202 -> 0 | AR15: =Inputs!AR202 -> 0 | AS15: =Inputs!AS202 -> 0 | AT15: =Inputs!AT202 -> 0 | AU15: =Inputs!AU202 -> 0 | AV15: =Inputs!AV202 -> 0 | AW15: =Inputs!AW202 -> 0 | AX15: =Inputs!AX202 -> 0 | AY15: =Inputs!AY202 -> 0 | AZ15: =Inputs!AZ202 -> 0 | BA15: =Inputs!BA202 -> 0 | BB15: =Inputs!BB202 -> 0 | BC15: =Inputs!BC202 -> 0 | BD15: =Inputs!BD202 -> 0
C16: 500 | D16: Development costs - tangibles (depreciable) | E16: $mm const | G16: =Inputs!G203 -> 150 | H16: =Inputs!H203 -> 250 | I16: =Inputs!I203 -> 100 | J16: =Inputs!J203 -> 0 | K16: =Inputs!K203 -> 0 | L16: =Inputs!L203 -> 0 | M16: =Inputs!M203 -> 0 | N16: =Inputs!N203 -> 0 | O16: =Inputs!O203 -> 0 | P16: =Inputs!P203 -> 0 | Q16: =Inputs!Q203 -> 0 | R16: =Inputs!R203 -> 0 | S16: =Inputs!S203 -> 0 | T16: =Inputs!T203 -> 0 | U16: =Inputs!U203 -> 0 | V16: =Inputs!V203 -> 0 | W16: =Inputs!W203 -> 0 | X16: =Inputs!X203 -> 0 | Y16: =Inputs!Y203 -> 0 | Z16: =Inputs!Z203 -> 0 | AA16: =Inputs!AA203 -> 0 | AB16: =Inputs!AB203 -> 0 | AC16: =Inputs!AC203 -> 0 | AD16: =Inputs!AD203 -> 0 | AE16: =Inputs!AE203 -> 0 | AF16: =Inputs!AF203 -> 0 | AG16: =Inputs!AG203 -> 0 | AH16: =Inputs!AH203 -> 0 | AI16: =Inputs!AI203 -> 0 | AJ16: =Inputs!AJ203 -> 0 | AK16: =Inputs!AK203 -> 0 | AL16: =Inputs!AL203 -> 0 | AM16: =Inputs!AM203 -> 0 | AN16: =Inputs!AN203 -> 0 | AO16: =Inputs!AO203 -> 0 | AP16: =Inputs!AP203 -> 0 | AQ16: =Inputs!AQ203 -> 0 | AR16: =Inputs!AR203 -> 0 | AS16: =Inputs!AS203 -> 0 | AT16: =Inputs!AT203 -> 0 | AU16: =Inputs!AU203 -> 0 | AV16: =Inputs!AV203 -> 0 | AW16: =Inputs!AW203 -> 0 | AX16: =Inputs!AX203 -> 0 | AY16: =Inputs!AY203 -> 0 | AZ16: =Inputs!AZ203 -> 0 | BA16: =Inputs!BA203 -> 0 | BB16: =Inputs!BB203 -> 0 | BC16: =Inputs!BC203 -> 0 | BD16: =Inputs!BD203 -> 0
C17: 90 | D17: Replacement capital costs (depreciable) | E17: $mm const | G17: =Inputs!G204 -> 0 | H17: =Inputs!H204 -> 0 | I17: =Inputs!I204 -> 4.5 | J17: =Inputs!J204 -> 4.5 | K17: =Inputs!K204 -> 4.5 | L17: =Inputs!L204 -> 4.5 | M17: =Inputs!M204 -> 4.5 | N17: =Inputs!N204 -> 4.5 | O17: =Inputs!O204 -> 4.5 | P17: =Inputs!P204 -> 4.5 | Q17: =Inputs!Q204 -> 4.5 | R17: =Inputs!R204 -> 4.5 | S17: =Inputs!S204 -> 4.5 | T17: =Inputs!T204 -> 4.5 | U17: =Inputs!U204 -> 4.5 | V17: =Inputs!V204 -> 4.5 | W17: =Inputs!W204 -> 4.5 | X17: =Inputs!X204 -> 4.5 | Y17: =Inputs!Y204 -> 4.5 | Z17: =Inputs!Z204 -> 4.5 | AA17: =Inputs!AA204 -> 4.5 | AB17: =Inputs!AB204 -> 4.5 | AC17: =Inputs!AC204 -> 0 | AD17: =Inputs!AD204 -> 0 | AE17: =Inputs!AE204 -> 0 | AF17: =Inputs!AF204 -> 0 | AG17: =Inputs!AG204 -> 0 | AH17: =Inputs!AH204 -> 0 | AI17: =Inputs!AI204 -> 0 | AJ17: =Inputs!AJ204 -> 0 | AK17: =Inputs!AK204 -> 0 | AL17: =Inputs!AL204 -> 0 | AM17: =Inputs!AM204 -> 0 | AN17: =Inputs!AN204 -> 0 | AO17: =Inputs!AO204 -> 0 | AP17: =Inputs!AP204 -> 0 | AQ17: =Inputs!AQ204 -> 0 | AR17: =Inputs!AR204 -> 0 | AS17: =Inputs!AS204 -> 0 | AT17: =Inputs!AT204 -> 0 | AU17: =Inputs!AU204 -> 0 | AV17: =Inputs!AV204 -> 0 | AW17: =Inputs!AW204 -> 0 | AX17: =Inputs!AX204 -> 0 | AY17: =Inputs!AY204 -> 0 | AZ17: =Inputs!AZ204 -> 0 | BA17: =Inputs!BA204 -> 0 | BB17: =Inputs!BB204 -> 0 | BC17: =Inputs!BC204 -> 0 | BD17: =Inputs!BD204 -> 0
D18: Operating costs - mining | E18: $mm const | G18: =Inputs!$F$220*G$8/1000000 -> 0 | H18: =Inputs!$F$220*H$8/1000000 -> 0 | I18: =Inputs!$F$220*I$8/1000000 -> 42.2 | J18: =Inputs!$F$220*J$8/1000000 -> 105.5 | K18: =Inputs!$F$220*K$8/1000000 -> 105.5 | L18: =Inputs!$F$220*L$8/1000000 -> 105.5 | M18: =Inputs!$F$220*M$8/1000000 -> 105.5 | N18: =Inputs!$F$220*N$8/1000000 -> 105.5 | O18: =Inputs!$F$220*O$8/1000000 -> 105.5 | P18: =Inputs!$F$220*P$8/1000000 -> 105.5 | Q18: =Inputs!$F$220*Q$8/1000000 -> 105.5 | R18: =Inputs!$F$220*R$8/1000000 -> 105.5 | S18: =Inputs!$F$220*S$8/1000000 -> 105.5 | T18: =Inputs!$F$220*T$8/1000000 -> 105.5 | U18: =Inputs!$F$220*U$8/1000000 -> 105.5 | V18: =Inputs!$F$220*V$8/1000000 -> 105.5 | W18: =Inputs!$F$220*W$8/1000000 -> 105.5 | X18: =Inputs!$F$220*X$8/1000000 -> 105.5 | Y18: =Inputs!$F$220*Y$8/1000000 -> 105.5 | Z18: =Inputs!$F$220*Z$8/1000000 -> 105.5 | AA18: =Inputs!$F$220*AA$8/1000000 -> 105.5 | AB18: =Inputs!$F$220*AB$8/1000000 -> 42.2 | AC18: =Inputs!$F$220*AC$8/1000000 -> 0 | AD18: =Inputs!$F$220*AD$8/1000000 -> 0 | AE18: =Inputs!$F$220*AE$8/1000000 -> 0 | AF18: =Inputs!$F$220*AF$8/1000000 -> 0 | AG18: =Inputs!$F$220*AG$8/1000000 -> 0 | AH18: =Inputs!$F$220*AH$8/1000000 -> 0 | AI18: =Inputs!$F$220*AI$8/1000000 -> 0 | AJ18: =Inputs!$F$220*AJ$8/1000000 -> 0 | AK18: =Inputs!$F$220*AK$8/1000000 -> 0 | AL18: =Inputs!$F$220*AL$8/1000000 -> 0 | AM18: =Inputs!$F$220*AM$8/1000000 -> 0 | AN18: =Inputs!$F$220*AN$8/1000000 -> 0 | AO18: =Inputs!$F$220*AO$8/1000000 -> 0 | AP18: =Inputs!$F$220*AP$8/1000000 -> 0 | AQ18: =Inputs!$F$220*AQ$8/1000000 -> 0 | AR18: =Inputs!$F$220*AR$8/1000000 -> 0 | AS18: =Inputs!$F$220*AS$8/1000000 -> 0 | AT18: =Inputs!$F$220*AT$8/1000000 -> 0 | AU18: =Inputs!$F$220*AU$8/1000000 -> 0 | AV18: =Inputs!$F$220*AV$8/1000000 -> 0 | AW18: =Inputs!$F$220*AW$8/1000000 -> 0 | AX18: =Inputs!$F$220*AX$8/1000000 -> 0 | AY18: =Inputs!$F$220*AY$8/1000000 -> 0 | AZ18: =Inputs!$F$220*AZ$8/1000000 -> 0 | BA18: =Inputs!$F$220*BA$8/1000000 -> 0 | BB18: =Inputs!$F$220*BB$8/1000000 -> 0 | BC18: =Inputs!$F$220*BC$8/1000000 -> 0 | BD18: =Inputs!$F$220*BD$8/1000000 -> 0
C19: =SUM(G19:BD19) -> 1983.4 | D19: Total Operating costs | E19: $mm const | G19: =SUM(G18:G18) -> 0 | H19: 0 | I19: 42.2 | J19: 105.5 | K19: 105.5 | L19: 105.5 | M19: 105.5 | N19: 105.5 | O19: 105.5 | P19: 105.5 | Q19: 105.5 | R19: 105.5 | S19: 105.5 | T19: 105.5 | U19: 105.5 | V19: 105.5 | W19: 105.5 | X19: 105.5 | Y19: 105.5 | Z19: 105.5 | AA19: 105.5 | AB19: 42.2 | AC19: 0 | AD19: 0 | AE19: 0 | AF19: 0 | AG19: 0 | AH19: 0 | AI19: 0 | AJ19: 0 | AK19: 0 | AL19: 0 | AM19: =SUM(AM18:AM18) -> 0 | AN19: 0 | AO19: 0 | AP19: 0 | AQ19: 0 | AR19: 0 | AS19: 0 | AT19: 0 | AU19: 0 | AV19: 0 | AW19: 0 | AX19: 0 | AY19: 0 | AZ19: 0 | BA19: 0 | BB19: 0 | BC19: 0 | BD19: 0
C20: 0 | D20: Unofficial taxes | E20: $mm const | G20: =Inputs!G205 -> 0 | H20: =Inputs!H205 -> 0 | I20: =Inputs!I205 -> 0 | J20: =Inputs!J205 -> 0 | K20: =Inputs!K205 -> 0 | L20: =Inputs!L205 -> 0 | M20: =Inputs!M205 -> 0 | N20: =Inputs!N205 -> 0 | O20: =Inputs!O205 -> 0 | P20: =Inputs!P205 -> 0 | Q20: =Inputs!Q205 -> 0 | R20: =Inputs!R205 -> 0 | S20: =Inputs!S205 -> 0 | T20: =Inputs!T205 -> 0 | U20: =Inputs!U205 -> 0 | V20: =Inputs!V205 -> 0 | W20: =Inputs!W205 -> 0 | X20: =Inputs!X205 -> 0 | Y20: =Inputs!Y205 -> 0 | Z20: =Inputs!Z205 -> 0 | AA20: =Inputs!AA205 -> 0 | AB20: =Inputs!AB205 -> 0 | AC20: =Inputs!AC205 -> 0 | AD20: =Inputs!AD205 -> 0 | AE20: =Inputs!AE205 -> 0 | AF20: =Inputs!AF205 -> 0 | AG20: =Inputs!AG205 -> 0 | AH20: =Inputs!AH205 -> 0 | AI20: =Inputs!AI205 -> 0 | AJ20: =Inputs!AJ205 -> 0 | AK20: =Inputs!AK205 -> 0 | AL20: =Inputs!AL205 -> 0 | AM20: =Inputs!AM205 -> 0 | AN20: =Inputs!AN205 -> 0 | AO20: =Inputs!AO205 -> 0 | AP20: =Inputs!AP205 -> 0 | AQ20: =Inputs!AQ205 -> 0 | AR20: =Inputs!AR205 -> 0 | AS20: =Inputs!AS205 -> 0 | AT20: =Inputs!AT205 -> 0 | AU20: =Inputs!AU205 -> 0 | AV20: =Inputs!AV205 -> 0 | AW20: =Inputs!AW205 -> 0 | AX20: =Inputs!AX205 -> 0 | AY20: =Inputs!AY205 -> 0 | AZ20: =Inputs!AZ205 -> 0 | BA20: =Inputs!BA205 -> 0 | BB20: =Inputs!BB205 -> 0 | BC20: =Inputs!BC205 -> 0 | BD20: =Inputs!BD205 -> 0
C21: 0 | D21: Decommissioning costs | E21: $mm const | G21: =Inputs!G206 -> 0 | H21: =Inputs!H206 -> 0 | I21: =Inputs!I206 -> 0 | J21: =Inputs!J206 -> 0 | K21: =Inputs!K206 -> 0 | L21: =Inputs!L206 -> 0 | M21: =Inputs!M206 -> 0 | N21: =Inputs!N206 -> 0 | O21: =Inputs!O206 -> 0 | P21: =Inputs!P206 -> 0 | Q21: =Inputs!Q206 -> 0 | R21: =Inputs!R206 -> 0 | S21: =Inputs!S206 -> 0 | T21: =Inputs!T206 -> 0 | U21: =Inputs!U206 -> 0 | V21: =Inputs!V206 -> 0 | W21: =Inputs!W206 -> 0 | X21: =Inputs!X206 -> 0 | Y21: =Inputs!Y206 -> 0 | Z21: =Inputs!Z206 -> 0 | AA21: =Inputs!AA206 -> 0 | AB21: =Inputs!AB206 -> 0 | AC21: =Inputs!AC206 -> 0 | AD21: =Inputs!AD206 -> 0 | AE21: =Inputs!AE206 -> 0 | AF21: =Inputs!AF206 -> 0 | AG21: =Inputs!AG206 -> 0 | AH21: =Inputs!AH206 -> 0 | AI21: =Inputs!AI206 -> 0 | AJ21: =Inputs!AJ206 -> 0 | AK21: =Inputs!AK206 -> 0 | AL21: =Inputs!AL206 -> 0 | AM21: =Inputs!AM206 -> 0 | AN21: =Inputs!AN206 -> 0 | AO21: =Inputs!AO206 -> 0 | AP21: =Inputs!AP206 -> 0 | AQ21: =Inputs!AQ206 -> 0 | AR21: =Inputs!AR206 -> 0 | AS21: =Inputs!AS206 -> 0 | AT21: =Inputs!AT206 -> 0 | AU21: =Inputs!AU206 -> 0 | AV21: =Inputs!AV206 -> 0 | AW21: =Inputs!AW206 -> 0 | AX21: =Inputs!AX206 -> 0 | AY21: =Inputs!AY206 -> 0 | AZ21: =Inputs!AZ206 -> 0 | BA21: =Inputs!BA206 -> 0 | BB21: =Inputs!BB206 -> 0 | BC21: =Inputs!BC206 -> 0 | BD21: =Inputs!BD206 -> 0
C22: =SUM(G22:BD22) -> 2573.4 | D22: Total costs | E22: $mm const | G22: =SUM(G14:G17)+G19+G20+G21 -> 150 | H22: 250 | I22: 146.7 | J22: 110 | K22: 110 | L22: 110 | M22: 110 | N22: 110 | O22: 110 | P22: 110 | Q22: 110 | R22: 110 | S22: 110 | T22: 110 | U22: 110 | V22: 110 | W22: 110 | X22: 110 | Y22: 110 | Z22: 110 | AA22: 110 | AB22: 46.7 | AC22: 0 | AD22: 0 | AE22: 0 | AF22: 0 | AG22: 0 | AH22: 0 | AI22: 0 | AJ22: 0 | AK22: 0 | AL22: 0 | AM22: =SUM(AM14:AM17)+AM19+AM20+AM21 -> 0 | AN22: 0 | AO22: 0 | AP22: 0 | AQ22: 0 | AR22: 0 | AS22: 0 | AT22: 0 | AU22: 0 | AV22: 0 | AW22: 0 | AX22: 0 | AY22: 0 | AZ22: 0 | BA22: 0 | BB22: 0 | BC22: 0 | BD22: 0
A23: =ROUND(C23-(C13-SUM(C14:C21)),5)=0 -> TRUE | C23: =SUM(G23:BD23) -> 3475.5 | D23: Project pre-tax, pre-royalty, customs cash flows | E23: $mm const | G23: =G13-G22 -> -150 | H23: -250 | I23: -18 | J23: 211.75 | K23: 211.75 | L23: 211.75 | M23: 211.75 | N23: 211.75 | O23: 211.75 | P23: 211.75 | Q23: 211.75 | R23: 211.75 | S23: 211.75 | T23: 211.75 | U23: 211.75 | V23: 211.75 | W23: 211.75 | X23: 211.75 | Y23: 211.75 | Z23: 211.75 | AA23: 211.75 | AB23: 82 | AC23: 0 | AD23: 0 | AE23: 0 | AF23: 0 | AG23: 0 | AH23: 0 | AI23: 0 | AJ23: 0 | AK23: 0 | AL23: 0 | AM23: =AM13-AM22 -> 0 | AN23: 0 | AO23: 0 | AP23: 0 | AQ23: 0 | AR23: 0 | AS23: 0 | AT23: 0 | AU23: 0 | AV23: 0 | AW23: 0 | AX23: 0 | AY23: 0 | AZ23: 0 | BA23: 0 | BB23: 0 | BC23: 0 | BD23: 0
C25: =AVERAGE(G25:BD25) -> 0.6171717172 | D25: Operating margin (EBITDA/Gross revenue) | E25: % | G25: =IFERROR(G23/G13,"") ->  | I25: -0.1398601399 | J25: 0.6581196581 | K25: 0.6581196581 | L25: 0.6581196581 | M25: 0.6581196581 | N25: 0.6581196581 | O25: 0.6581196581 | P25: 0.6581196581 | Q25: 0.6581196581 | R25: 0.6581196581 | S25: 0.6581196581 | T25: 0.6581196581 | U25: 0.6581196581 | V25: 0.6581196581 | W25: 0.6581196581 | X25: 0.6581196581 | Y25: 0.6581196581 | Z25: 0.6581196581 | AA25: 0.6581196581 | AB25: 0.6371406371 | AM25: =IFERROR(AM23/AM13,"") -> 
C26: =IFERROR(IRR($G23:BD23),0) -> 0.3390001325 | D26: Internal rate of return (real) | E26: % | G26: =IFERROR(IRR($G23:G23),"--") -> -- | H26: =IFERROR(IRR($G23:H23),"--") -> -- | I26: =IFERROR(IRR($G23:I23),"--") -> -- | J26: =IFERROR(IRR($G23:J23),"--") -> -0.2588247619 | K26: =IFERROR(IRR($G23:K23),"--") -> 0.004653013589 | L26: =IFERROR(IRR($G23:L23),"--") -> 0.1355439107 | M26: =IFERROR(IRR($G23:M23),"--") -> 0.2086576665 | N26: =IFERROR(IRR($G23:N23),"--") -> 0.2525616791 | O26: =IFERROR(IRR($G23:O23),"--") -> 0.2802814107 | P26: =IFERROR(IRR($G23:P23),"--") -> 0.2984362609 | Q26: =IFERROR(IRR($G23:Q23),"--") -> 0.3106599335 | R26: =IFERROR(IRR($G23:R23),"--") -> 0.3190671894 | S26: =IFERROR(IRR($G23:S23),"--") -> 0.3249465008 | T26: =IFERROR(IRR($G23:T23),"--") -> 0.3291122608 | U26: =IFERROR(IRR($G23:U23),"--") -> 0.3320948016 | V26: =IFERROR(IRR($G23:V23),"--") -> 0.3342480254 | W26: =IFERROR(IRR($G23:W23),"--") -> 0.3358129071 | X26: =IFERROR(IRR($G23:X23),"--") -> 0.336956285 | Y26: =IFERROR(IRR($G23:Y23),"--") -> 0.3377952719 | Z26: =IFERROR(IRR($G23:Z23),"--") -> 0.3384130168 | AA26: =IFERROR(IRR($G23:AA23),"--") -> 0.3388691117 | AB26: =IFERROR(IRR($G23:AB23),"--") -> 0.3390001325 | AC26: =IFERROR(IRR($G23:AC23),"--") -> 0.3390001325 | AD26: =IFERROR(IRR($G23:AD23),"--") -> 0.3390001325 | AE26: =IFERROR(IRR($G23:AE23),"--") -> 0.3390001325 | AF26: =IFERROR(IRR($G23:AF23),"--") -> 0.3390001325 | AG26: =IFERROR(IRR($G23:AG23),"--") -> 0.3390001325 | AH26: =IFERROR(IRR($G23:AH23),"--") -> 0.3390001325 | AI26: =IFERROR(IRR($G23:AI23),"--") -> 0.3390001325 | AJ26: =IFERROR(IRR($G23:AJ23),"--") -> 0.3390001325 | AK26: =IFERROR(IRR($G23:AK23),"--") -> 0.3390001325 | AL26: =IFERROR(IRR($G23:AL23),"--") -> 0.3390001325 | AM26: =IFERROR(IRR($G23:AM23),"--") -> 0.3390001325 | AN26: =IFERROR(IRR($G23:AN23),"--") -> 0.3390001325 | AO26: =IFERROR(IRR($G23:AO23),"--") -> 0.3390001325 | AP26: =IFERROR(IRR($G23:AP23),"--") -> 0.3390001325 | AQ26: =IFERROR(IRR($G23:AQ23),"--") -> 0.3390001325 | AR26: =IFERROR(IRR($G23:AR23),"--") -> 0.3390001325 | AS26: =IFERROR(IRR($G23:AS23),"--") -> 0.3390001325 | AT26: =IFERROR(IRR($G23:AT23),"--") -> 0.3390001325 | AU26: =IFERROR(IRR($G23:AU23),"--") -> 0.3390001325 | AV26: =IFERROR(IRR($G23:AV23),"--") -> 0.3390001325 | AW26: =IFERROR(IRR($G23:AW23),"--") -> 0.3390001325 | AX26: =IFERROR(IRR($G23:AX23),"--") -> 0.3390001325 | AY26: =IFERROR(IRR($G23:AY23),"--") -> 0.3390001325 | AZ26: =IFERROR(IRR($G23:AZ23),"--") -> 0.3390001325 | BA26: =IFERROR(IRR($G23:BA23),"--") -> 0.3390001325 | BB26: =IFERROR(IRR($G23:BB23),"--") -> 0.3390001325 | BC26: =IFERROR(IRR($G23:BC23),"--") -> 0.3390001325 | BD26: =IFERROR(IRR($G23:BD23),"--") -> 0.3390001325
C27: =NPV(Inputs!$F$176,$H$23:$BD$23)+$G$23 -> 798.2933794 | D27: ="Project pre-tax cash flows NPV"&Inputs!$F$176*100 -> Project pre-tax cash flows NPV12.5 | E27: $mm const
D29: Flags
C30: =MAX(G30:BD30) -> 50 | D30: Project years | E30: years | G30: =(SUM($G$8:G22)>0)*1+F30 -> 1 | H30: =(SUM($G$8:H22)>0)*1+G30 -> 2 | I30: =(SUM($G$8:I22)>0)*1+H30 -> 3 | J30: =(SUM($G$8:J22)>0)*1+I30 -> 4 | K30: =(SUM($G$8:K22)>0)*1+J30 -> 5 | L30: =(SUM($G$8:L22)>0)*1+K30 -> 6 | M30: =(SUM($G$8:M22)>0)*1+L30 -> 7 | N30: =(SUM($G$8:N22)>0)*1+M30 -> 8 | O30: =(SUM($G$8:O22)>0)*1+N30 -> 9 | P30: =(SUM($G$8:P22)>0)*1+O30 -> 10 | Q30: =(SUM($G$8:Q22)>0)*1+P30 -> 11 | R30: =(SUM($G$8:R22)>0)*1+Q30 -> 12 | S30: =(SUM($G$8:S22)>0)*1+R30 -> 13 | T30: =(SUM($G$8:T22)>0)*1+S30 -> 14 | U30: =(SUM($G$8:U22)>0)*1+T30 -> 15 | V30: =(SUM($G$8:V22)>0)*1+U30 -> 16 | W30: =(SUM($G$8:W22)>0)*1+V30 -> 17 | X30: =(SUM($G$8:X22)>0)*1+W30 -> 18 | Y30: =(SUM($G$8:Y22)>0)*1+X30 -> 19 | Z30: =(SUM($G$8:Z22)>0)*1+Y30 -> 20 | AA30: =(SUM($G$8:AA22)>0)*1+Z30 -> 21 | AB30: =(SUM($G$8:AB22)>0)*1+AA30 -> 22 | AC30: =(SUM($G$8:AC22)>0)*1+AB30 -> 23 | AD30: =(SUM($G$8:AD22)>0)*1+AC30 -> 24 | AE30: =(SUM($G$8:AE22)>0)*1+AD30 -> 25 | AF30: =(SUM($G$8:AF22)>0)*1+AE30 -> 26 | AG30: =(SUM($G$8:AG22)>0)*1+AF30 -> 27 | AH30: =(SUM($G$8:AH22)>0)*1+AG30 -> 28 | AI30: =(SUM($G$8:AI22)>0)*1+AH30 -> 29 | AJ30: =(SUM($G$8:AJ22)>0)*1+AI30 -> 30 | AK30: =(SUM($G$8:AK22)>0)*1+AJ30 -> 31 | AL30: =(SUM($G$8:AL22)>0)*1+AK30 -> 32 | AM30: =(SUM($G$8:AM22)>0)*1+AL30 -> 33 | AN30: =(SUM($G$8:AN22)>0)*1+AM30 -> 34 | AO30: =(SUM($G$8:AO22)>0)*1+AN30 -> 35 | AP30: =(SUM($G$8:AP22)>0)*1+AO30 -> 36 | AQ30: =(SUM($G$8:AQ22)>0)*1+AP30 -> 37 | AR30: =(SUM($G$8:AR22)>0)*1+AQ30 -> 38 | AS30: =(SUM($G$8:AS22)>0)*1+AR30 -> 39 | AT30: =(SUM($G$8:AT22)>0)*1+AS30 -> 40 | AU30: =(SUM($G$8:AU22)>0)*1+AT30 -> 41 | AV30: =(SUM($G$8:AV22)>0)*1+AU30 -> 42 | AW30: =(SUM($G$8:AW22)>0)*1+AV30 -> 43 | AX30: =(SUM($G$8:AX22)>0)*1+AW30 -> 44 | AY30: =(SUM($G$8:AY22)>0)*1+AX30 -> 45 | AZ30: =(SUM($G$8:AZ22)>0)*1+AY30 -> 46 | BA30: =(SUM($G$8:BA22)>0)*1+AZ30 -> 47 | BB30: =(SUM($G$8:BB22)>0)*1+BA30 -> 48 | BC30: =(SUM($G$8:BC22)>0)*1+BB30 -> 49 | BD30: =(SUM($G$8:BD22)>0)*1+BC30 -> 50
C31: =MAX(G31:BD31) -> 20 | D31: Production year | E31: years | G31: =((G8>0)*1+F31)*(G8>0) -> 0 | H31: 0 | I31: 1 | J31: 2 | K31: 3 | L31: 4 | M31: 5 | N31: 6 | O31: 7 | P31: 8 | Q31: 9 | R31: 10 | S31: 11 | T31: 12 | U31: 13 | V31: 14 | W31: 15 | X31: 16 | Y31: 17 | Z31: 18 | AA31: 19 | AB31: 20 | AC31: 0 | AD31: 0 | AE31: 0 | AF31: 0 | AG31: 0 | AH31: 0 | AI31: 0 | AJ31: 0 | AK31: 0 | AL31: 0 | AM31: =((AM8>0)*1+AL31)*(AM8>0) -> 0 | AN31: 0 | AO31: 0 | AP31: 0 | AQ31: 0 | AR31: 0 | AS31: 0 | AT31: 0 | AU31: 0 | AV31: 0 | AW31: 0 | AX31: 0 | AY31: 0 | AZ31: 0 | BA31: 0 | BB31: 0 | BC31: 0 | BD31: 0
C32: =MAX(G32:BD32) -> 20 | D32: Remaining production years | E32: years | G32: =($C$31-G31+1)*(G8>0) -> 0 | H32: 0 | I32: 20 | J32: 19 | K32: 18 | L32: 17 | M32: 16 | N32: 15 | O32: 14 | P32: 13 | Q32: 12 | R32: 11 | S32: 10 | T32: 9 | U32: 8 | V32: 7 | W32: 6 | X32: 5 | Y32: 4 | Z32: 3 | AA32: 2 | AB32: 1 | AC32: 0 | AD32: 0 | AE32: 0 | AF32: 0 | AG32: 0 | AH32: 0 | AI32: 0 | AJ32: 0 | AK32: 0 | AL32: 0 | AM32: =($C$31-AM31+1)*(AM8>0) -> 0 | AN32: 0 | AO32: 0 | AP32: 0 | AQ32: 0 | AR32: 0 | AS32: 0 | AT32: 0 | AU32: 0 | AV32: 0 | AW32: 0 | AX32: 0 | AY32: 0 | AZ32: 0 | BA32: 0 | BB32: 0 | BC32: 0 | BD32: 0
C33: =SUM(G33:BD33) -> 3 | D33: Year production starts | E33: years | G33: =IF(G31=1,G30,0) -> 0 | H33: =IF(H31=1,H30,0) -> 0 | I33: 3 | J33: 0 | K33: 0 | L33: 0 | M33: 0 | N33: 0 | O33: 0 | P33: 0 | Q33: 0 | R33: 0 | S33: 0 | T33: 0 | U33: 0 | V33: 0 | W33: 0 | X33: 0 | Y33: 0 | Z33: 0 | AA33: 0 | AB33: 0 | AC33: 0 | AD33: 0 | AE33: 0 | AF33: 0 | AG33: 0 | AH33: 0 | AI33: 0 | AJ33: 0 | AK33: 0 | AL33: 0 | AM33: 0 | AN33: 0 | AO33: 0 | AP33: 0 | AQ33: 0 | AR33: 0 | AS33: 0 | AT33: 0 | AU33: 0 | AV33: 0 | AW33: 0 | AX33: 0 | AY33: 0 | AZ33: 0 | BA33: 0 | BB33: 0 | BC33: 0 | BD33: 0
D36: Payback period
C37: =MAX(G37:BD37) -> 211.75 | D37: Project pre-tax cash flow | E37: $mm const | G37: =G23 -> -150 | H37: -250 | I37: -18 | J37: 211.75 | K37: 211.75 | L37: 211.75 | M37: 211.75 | N37: 211.75 | O37: 211.75 | P37: 211.75 | Q37: 211.75 | R37: 211.75 | S37: 211.75 | T37: 211.75 | U37: 211.75 | V37: 211.75 | W37: 211.75 | X37: 211.75 | Y37: 211.75 | Z37: 211.75 | AA37: 211.75 | AB37: 82 | AC37: 0 | AD37: 0 | AE37: 0 | AF37: 0 | AG37: 0 | AH37: 0 | AI37: 0 | AJ37: 0 | AK37: 0 | AL37: 0 | AM37: =AM23 -> 0 | AN37: 0 | AO37: 0 | AP37: 0 | AQ37: 0 | AR37: 0 | AS37: 0 | AT37: 0 | AU37: 0 | AV37: 0 | AW37: 0 | AX37: 0 | AY37: 0 | AZ37: 0 | BA37: 0 | BB37: 0 | BC37: 0 | BD37: 0
C38: =MAX(G38:BD38) -> 3475.5 | D38: Cumulative project pre-tax cash flow | E38: $mm const | G38: =G37+F38 -> -150 | H38: -400 | I38: -418 | J38: -206.25 | K38: 5.5 | L38: 217.25 | M38: 429 | N38: 640.75 | O38: 852.5 | P38: 1064.25 | Q38: 1276 | R38: 1487.75 | S38: 1699.5 | T38: 1911.25 | U38: 2123 | V38: 2334.75 | W38: 2546.5 | X38: 2758.25 | Y38: 2970 | Z38: 3181.75 | AA38: 3393.5 | AB38: 3475.5 | AC38: 3475.5 | AD38: 3475.5 | AE38: 3475.5 | AF38: 3475.5 | AG38: 3475.5 | AH38: 3475.5 | AI38: 3475.5 | AJ38: 3475.5 | AK38: 3475.5 | AL38: 3475.5 | AM38: =AM37+AL38 -> 3475.5 | AN38: 3475.5 | AO38: 3475.5 | AP38: 3475.5 | AQ38: 3475.5 | AR38: 3475.5 | AS38: 3475.5 | AT38: 3475.5 | AU38: 3475.5 | AV38: 3475.5 | AW38: 3475.5 | AX38: 3475.5 | AY38: 3475.5 | AZ38: 3475.5 | BA38: 3475.5 | BB38: 3475.5 | BC38: 3475.5 | BD38: 3475.5
C39: =MAX(G39:BD39) -> 4.974025974 | D39: Payback period | E39: years | G39: =IF(AND(G38<=0,H38>0),G30+(-G38/H37),0) -> 0 | H39: 0 | I39: 0 | J39: 4.974025974 | K39: 0 | L39: 0 | M39: 0 | N39: 0 | O39: 0 | P39: 0 | Q39: 0 | R39: 0 | S39: 0 | T39: 0 | U39: 0 | V39: 0 | W39: 0 | X39: 0 | Y39: 0 | Z39: 0 | AA39: 0 | AB39: 0 | AC39: 0 | AD39: 0 | AE39: 0 | AF39: 0 | AG39: 0 | AH39: 0 | AI39: 0 | AJ39: 0 | AK39: 0 | AL39: 0 | AM39: =IF(AND(AM38<=0,AN38>0),AM30+(-AM38/AN37),0) -> 0 | AN39: 0 | AO39: 0 | AP39: 0 | AQ39: 0 | AR39: 0 | AS39: 0 | AT39: 0 | AU39: 0 | AV39: 0 | AW39: 0 | AX39: 0 | AY39: 0 | AZ39: 0 | BA39: 0 | BB39: 0 | BC39: 0 | BD39: 0
D41: Inflation
D42: Inflation index | E42: index | G42: =IF(Inputs!G$197=1,1,(1+Inputs!$F$178)^(Inputs!G$197-1)) -> 1 | H42: =IF(Inputs!H$197=1,1,(1+Inputs!$F$178)^(Inputs!H$197-1)) -> 1.02 | I42: =IF(Inputs!I$197=1,1,(1+Inputs!$F$178)^(Inputs!I$197-1)) -> 1.0404 | J42: =IF(Inputs!J$197=1,1,(1+Inputs!$F$178)^(Inputs!J$197-1)) -> 1.061208 | K42: =IF(Inputs!K$197=1,1,(1+Inputs!$F$178)^(Inputs!K$197-1)) -> 1.08243216 | L42: =IF(Inputs!L$197=1,1,(1+Inputs!$F$178)^(Inputs!L$197-1)) -> 1.104080803 | M42: =IF(Inputs!M$197=1,1,(1+Inputs!$F$178)^(Inputs!M$197-1)) -> 1.126162419 | N42: =IF(Inputs!N$197=1,1,(1+Inputs!$F$178)^(Inputs!N$197-1)) -> 1.148685668 | O42: =IF(Inputs!O$197=1,1,(1+Inputs!$F$178)^(Inputs!O$197-1)) -> 1.171659381 | P42: =IF(Inputs!P$197=1,1,(1+Inputs!$F$178)^(Inputs!P$197-1)) -> 1.195092569 | Q42: =IF(Inputs!Q$197=1,1,(1+Inputs!$F$178)^(Inputs!Q$197-1)) -> 1.21899442 | R42: =IF(Inputs!R$197=1,1,(1+Inputs!$F$178)^(Inputs!R$197-1)) -> 1.243374308 | S42: =IF(Inputs!S$197=1,1,(1+Inputs!$F$178)^(Inputs!S$197-1)) -> 1.268241795 | T42: =IF(Inputs!T$197=1,1,(1+Inputs!$F$178)^(Inputs!T$197-1)) -> 1.29360663 | U42: =IF(Inputs!U$197=1,1,(1+Inputs!$F$178)^(Inputs!U$197-1)) -> 1.319478763 | V42: =IF(Inputs!V$197=1,1,(1+Inputs!$F$178)^(Inputs!V$197-1)) -> 1.345868338 | W42: =IF(Inputs!W$197=1,1,(1+Inputs!$F$178)^(Inputs!W$197-1)) -> 1.372785705 | X42: =IF(Inputs!X$197=1,1,(1+Inputs!$F$178)^(Inputs!X$197-1)) -> 1.400241419 | Y42: =IF(Inputs!Y$197=1,1,(1+Inputs!$F$178)^(Inputs!Y$197-1)) -> 1.428246248 | Z42: =IF(Inputs!Z$197=1,1,(1+Inputs!$F$178)^(Inputs!Z$197-1)) -> 1.456811173 | AA42: =IF(Inputs!AA$197=1,1,(1+Inputs!$F$178)^(Inputs!AA$197-1)) -> 1.485947396 | AB42: =IF(Inputs!AB$197=1,1,(1+Inputs!$F$178)^(Inputs!AB$197-1)) -> 1.515666344 | AC42: =IF(Inputs!AC$197=1,1,(1+Inputs!$F$178)^(Inputs!AC$197-1)) -> 1.545979671 | AD42: =IF(Inputs!AD$197=1,1,(1+Inputs!$F$178)^(Inputs!AD$197-1)) -> 1.576899264 | AE42: =IF(Inputs!AE$197=1,1,(1+Inputs!$F$178)^(Inputs!AE$197-1)) -> 1.608437249 | AF42: =IF(Inputs!AF$197=1,1,(1+Inputs!$F$178)^(Inputs!AF$197-1)) -> 1.640605994 | AG42: =IF(Inputs!AG$197=1,1,(1+Inputs!$F$178)^(Inputs!AG$197-1)) -> 1.673418114 | AH42: =IF(Inputs!AH$197=1,1,(1+Inputs!$F$178)^(Inputs!AH$197-1)) -> 1.706886477 | AI42: =IF(Inputs!AI$197=1,1,(1+Inputs!$F$178)^(Inputs!AI$197-1)) -> 1.741024206 | AJ42: =IF(Inputs!AJ$197=1,1,(1+Inputs!$F$178)^(Inputs!AJ$197-1)) -> 1.77584469 | AK42: =IF(Inputs!AK$197=1,1,(1+Inputs!$F$178)^(Inputs!AK$197-1)) -> 1.811361584 | AL42: =IF(Inputs!AL$197=1,1,(1+Inputs!$F$178)^(Inputs!AL$197-1)) -> 1.847588816 | AM42: =IF(Inputs!AM$197=1,1,(1+Inputs!$F$178)^(Inputs!AM$197-1)) -> 1.884540592 | AN42: =IF(Inputs!AN$197=1,1,(1+Inputs!$F$178)^(Inputs!AN$197-1)) -> 1.922231404 | AO42: =IF(Inputs!AO$197=1,1,(1+Inputs!$F$178)^(Inputs!AO$197-1)) -> 1.960676032 | AP42: =IF(Inputs!AP$197=1,1,(1+Inputs!$F$178)^(Inputs!AP$197-1)) -> 1.999889553 | AQ42: =IF(Inputs!AQ$197=1,1,(1+Inputs!$F$178)^(Inputs!AQ$197-1)) -> 2.039887344 | AR42: =IF(Inputs!AR$197=1,1,(1+Inputs!$F$178)^(Inputs!AR$197-1)) -> 2.080685091 | AS42: =IF(Inputs!AS$197=1,1,(1+Inputs!$F$178)^(Inputs!AS$197-1)) -> 2.122298792 | AT42: =IF(Inputs!AT$197=1,1,(1+Inputs!$F$178)^(Inputs!AT$197-1)) -> 2.164744768 | AU42: =IF(Inputs!AU$197=1,1,(1+Inputs!$F$178)^(Inputs!AU$197-1)) -> 2.208039664 | AV42: =IF(Inputs!AV$197=1,1,(1+Inputs!$F$178)^(Inputs!AV$197-1)) -> 2.252200457 | AW42: =IF(Inputs!AW$197=1,1,(1+Inputs!$F$178)^(Inputs!AW$197-1)) -> 2.297244466 | AX42: =IF(Inputs!AX$197=1,1,(1+Inputs!$F$178)^(Inputs!AX$197-1)) -> 2.343189355 | AY42: =IF(Inputs!AY$197=1,1,(1+Inputs!$F$178)^(Inputs!AY$197-1)) -> 2.390053142 | AZ42: =IF(Inputs!AZ$197=1,1,(1+Inputs!$F$178)^(Inputs!AZ$197-1)) -> 2.437854205 | BA42: =IF(Inputs!BA$197=1,1,(1+Inputs!$F$178)^(Inputs!BA$197-1)) -> 2.486611289 | BB42: =IF(Inputs!BB$197=1,1,(1+Inputs!$F$178)^(Inputs!BB$197-1)) -> 2.536343515 | BC42: =IF(Inputs!BC$197=1,1,(1+Inputs!$F$178)^(Inputs!BC$197-1)) -> 2.587070385 | BD42: =IF(Inputs!BD$197=1,1,(1+Inputs!$F$178)^(Inputs!BD$197-1)) -> 2.638811793
D44: Project Pre-Tax Cash Flow: Nominal | E44: year | G44: =G$2 -> 1 | H44: 2 | I44: 3 | J44: 4 | K44: 5 | L44: 6 | M44: 7 | N44: 8 | O44: 9 | P44: 10 | Q44: 11 | R44: 12 | S44: 13 | T44: 14 | U44: 15 | V44: 16 | W44: 17 | X44: 18 | Y44: 19 | Z44: 20 | AA44: 21 | AB44: 22 | AC44: 23 | AD44: 24 | AE44: 25 | AF44: 26 | AG44: 27 | AH44: 28 | AI44: 29 | AJ44: 30 | AK44: 31 | AL44: 32 | AM44: =AM$2 -> 33 | AN44: 34 | AO44: 35 | AP44: 36 | AQ44: 37 | AR44: 38 | AS44: 39 | AT44: 40 | AU44: 41 | AV44: 42 | AW44: 43 | AX44: 44 | AY44: 45 | AZ44: 46 | BA44: 47 | BB44: 48 | BC44: 49 | BD44: 50
C45: =SUM(G45:BD45) -> 7717.236713 | D45: Primary revenue | E45: $mm const | G45: =G9*G$42 -> 0 | H45: 0 | I45: 135.252 | J45: 344.8926 | K45: 351.790452 | L45: 358.826261 | M45: 366.0027863 | N45: 373.322842 | O45: 380.7892988 | P45: 388.4050848 | Q45: 396.1731865 | R45: 404.0966502 | S45: 412.1785832 | T45: 420.4221549 | U45: 428.830598 | V45: 437.40721 | W45: 446.1553542 | X45: 455.0784612 | Y45: 464.1800305 | Z45: 473.4636311 | AA45: 482.9329037 | AB45: 197.0366247 | AC45: 0 | AD45: 0 | AE45: 0 | AF45: 0 | AG45: 0 | AH45: 0 | AI45: 0 | AJ45: 0 | AK45: 0 | AL45: 0 | AM45: =AM9*AM$42 -> 0 | AN45: 0 | AO45: 0 | AP45: 0 | AQ45: 0 | AR45: 0 | AS45: 0 | AT45: 0 | AU45: 0 | AV45: 0 | AW45: 0 | AX45: 0 | AY45: 0 | AZ45: 0 | BA45: 0 | BB45: 0 | BC45: 0 | BD45: 0
C46: =SUM(G46:BD46) -> 771.7236713 | D46: Co-produce revenue | E46: $mm const | G46: =G10*G$42 -> 0 | H46: 0 | I46: 13.5252 | J46: 34.48926 | K46: 35.1790452 | L46: 35.8826261 | M46: 36.60027863 | N46: 37.3322842 | O46: 38.07892988 | P46: 38.84050848 | Q46: 39.61731865 | R46: 40.40966502 | S46: 41.21785832 | T46: 42.04221549 | U46: 42.8830598 | V46: 43.740721 | W46: 44.61553542 | X46: 45.50784612 | Y46: 46.41800305 | Z46: 47.34636311 | AA46: 48.29329037 | AB46: 19.70366247 | AC46: 0 | AD46: 0 | AE46: 0 | AF46: 0 | AG46: 0 | AH46: 0 | AI46: 0 | AJ46: 0 | AK46: 0 | AL46: 0 | AM46: =AM10*AM$42 -> 0 | AN46: 0 | AO46: 0 | AP46: 0 | AQ46: 0 | AR46: 0 | AS46: 0 | AT46: 0 | AU46: 0 | AV46: 0 | AW46: 0 | AX46: 0 | AY46: 0 | AZ46: 0 | BA46: 0 | BB46: 0 | BC46: 0 | BD46: 0
C47: =SUM(G47:BD47) -> 8488.960384 | D47: Total gross revenue | E47: $mm const | G47: =G11*G$42 -> 0 | H47: 0 | I47: 148.7772 | J47: 379.38186 | K47: 386.9694972 | L47: 394.7088871 | M47: 402.6030649 | N47: 410.6551262 | O47: 418.8682287 | P47: 427.2455933 | Q47: 435.7905051 | R47: 444.5063153 | S47: 453.3964416 | T47: 462.4643704 | U47: 471.7136578 | V47: 481.147931 | W47: 490.7708896 | X47: 500.5863074 | Y47: 510.5980335 | Z47: 520.8099942 | AA47: 531.2261941 | AB47: 216.7402872 | AC47: 0 | AD47: 0 | AE47: 0 | AF47: 0 | AG47: 0 | AH47: 0 | AI47: 0 | AJ47: 0 | AK47: 0 | AL47: 0 | AM47: =AM11*AM$42 -> 0 | AN47: 0 | AO47: 0 | AP47: 0 | AQ47: 0 | AR47: 0 | AS47: 0 | AT47: 0 | AU47: 0 | AV47: 0 | AW47: 0 | AX47: 0 | AY47: 0 | AZ47: 0 | BA47: 0 | BB47: 0 | BC47: 0 | BD47: 0
C48: =SUM(G48:BD48) -> 848.8960384 | D48: Transport and processing post-fiscal point | E48: $mm nominal | G48: =G12*G$42 -> 0 | H48: 0 | I48: 14.87772 | J48: 37.938186 | K48: 38.69694972 | L48: 39.47088871 | M48: 40.26030649 | N48: 41.06551262 | O48: 41.88682287 | P48: 42.72455933 | Q48: 43.57905051 | R48: 44.45063153 | S48: 45.33964416 | T48: 46.24643704 | U48: 47.17136578 | V48: 48.1147931 | W48: 49.07708896 | X48: 50.05863074 | Y48: 51.05980335 | Z48: 52.08099942 | AA48: 53.12261941 | AB48: 21.67402872 | AC48: 0 | AD48: 0 | AE48: 0 | AF48: 0 | AG48: 0 | AH48: 0 | AI48: 0 | AJ48: 0 | AK48: 0 | AL48: 0 | AM48: =AM12*AM$42 -> 0 | AN48: 0 | AO48: 0 | AP48: 0 | AQ48: 0 | AR48: 0 | AS48: 0 | AT48: 0 | AU48: 0 | AV48: 0 | AW48: 0 | AX48: 0 | AY48: 0 | AZ48: 0 | BA48: 0 | BB48: 0 | BC48: 0 | BD48: 0
A49: =ROUND(C49-(C47-C48),5)=0 -> TRUE | C49: =SUM(G49:BD49) -> 7640.064346 | D49: Net revenue | E49: $mm nominal | G49: =G13*G$42 -> 0 | H49: 0 | I49: 133.89948 | J49: 341.443674 | K49: 348.2725475 | L49: 355.2379984 | M49: 362.3427584 | N49: 369.5896136 | O49: 376.9814058 | P49: 384.521034 | Q49: 392.2114546 | R49: 400.0556837 | S49: 408.0567974 | T49: 416.2179333 | U49: 424.542292 | V49: 433.0331379 | W49: 441.6938006 | X49: 450.5276766 | Y49: 459.5382302 | Z49: 468.7289948 | AA49: 478.1035747 | AB49: 195.0662585 | AC49: 0 | AD49: 0 | AE49: 0 | AF49: 0 | AG49: 0 | AH49: 0 | AI49: 0 | AJ49: 0 | AK49: 0 | AL49: 0 | AM49: =AM13*AM$42 -> 0 | AN49: 0 | AO49: 0 | AP49: 0 | AQ49: 0 | AR49: 0 | AS49: 0 | AT49: 0 | AU49: 0 | AV49: 0 | AW49: 0 | AX49: 0 | AY49: 0 | AZ49: 0 | BA49: 0 | BB49: 0 | BC49: 0 | BD49: 0
C50: 0 | D50: Exploration costs (expensed) | E50: $mm nominal | G50: =G14*G$42 -> 0 | H50: 0 | I50: 0 | J50: 0 | K50: 0 | L50: 0 | M50: 0 | N50: 0 | O50: 0 | P50: 0 | Q50: 0 | R50: 0 | S50: 0 | T50: 0 | U50: 0 | V50: 0 | W50: 0 | X50: 0 | Y50: 0 | Z50: 0 | AA50: 0 | AB50: 0 | AC50: 0 | AD50: 0 | AE50: 0 | AF50: 0 | AG50: 0 | AH50: 0 | AI50: 0 | AJ50: 0 | AK50: 0 | AL50: 0 | AM50: =AM14*AM$42 -> 0 | AN50: 0 | AO50: 0 | AP50: 0 | AQ50: 0 | AR50: 0 | AS50: 0 | AT50: 0 | AU50: 0 | AV50: 0 | AW50: 0 | AX50: 0 | AY50: 0 | AZ50: 0 | BA50: 0 | BB50: 0 | BC50: 0 | BD50: 0
C51: 0 | D51: Development costs - intangibles (expensed) | E51: $mm nominal | G51: =G15*G$42 -> 0 | H51: 0 | I51: 0 | J51: 0 | K51: 0 | L51: 0 | M51: 0 | N51: 0 | O51: 0 | P51: 0 | Q51: 0 | R51: 0 | S51: 0 | T51: 0 | U51: 0 | V51: 0 | W51: 0 | X51: 0 | Y51: 0 | Z51: 0 | AA51: 0 | AB51: 0 | AC51: 0 | AD51: 0 | AE51: 0 | AF51: 0 | AG51: 0 | AH51: 0 | AI51: 0 | AJ51: 0 | AK51: 0 | AL51: 0 | AM51: =AM15*AM$42 -> 0 | AN51: 0 | AO51: 0 | AP51: 0 | AQ51: 0 | AR51: 0 | AS51: 0 | AT51: 0 | AU51: 0 | AV51: 0 | AW51: 0 | AX51: 0 | AY51: 0 | AZ51: 0 | BA51: 0 | BB51: 0 | BC51: 0 | BD51: 0
C52: 509.04 | D52: Development costs - tangibles (depreciable) | E52: $mm nominal | G52: =G16*G$42 -> 150 | H52: 255 | I52: 104.04 | J52: 0 | K52: 0 | L52: 0 | M52: 0 | N52: 0 | O52: 0 | P52: 0 | Q52: 0 | R52: 0 | S52: 0 | T52: 0 | U52: 0 | V52: 0 | W52: 0 | X52: 0 | Y52: 0 | Z52: 0 | AA52: 0 | AB52: 0 | AC52: 0 | AD52: 0 | AE52: 0 | AF52: 0 | AG52: 0 | AH52: 0 | AI52: 0 | AJ52: 0 | AK52: 0 | AL52: 0 | AM52: =AM16*AM$42 -> 0 | AN52: 0 | AO52: 0 | AP52: 0 | AQ52: 0 | AR52: 0 | AS52: 0 | AT52: 0 | AU52: 0 | AV52: 0 | AW52: 0 | AX52: 0 | AY52: 0 | AZ52: 0 | BA52: 0 | BB52: 0 | BC52: 0 | BD52: 0
C53: 113.7554259 | D53: Replacement capital costs (depreciable) | E53: $mm nominal | G53: =G17*G$42 -> 0 | H53: 0 | I53: 4.6818 | J53: 4.775436 | K53: 4.87094472 | L53: 4.968363614 | M53: 5.067730887 | N53: 5.169085504 | O53: 5.272467215 | P53: 5.377916559 | Q53: 5.48547489 | R53: 5.595184388 | S53: 5.707088076 | T53: 5.821229837 | U53: 5.937654434 | V53: 6.056407522 | W53: 6.177535673 | X53: 6.301086386 | Y53: 6.427108114 | Z53: 6.555650276 | AA53: 6.686763282 | AB53: 6.820498548 | AC53: 0 | AD53: 0 | AE53: 0 | AF53: 0 | AG53: 0 | AH53: 0 | AI53: 0 | AJ53: 0 | AK53: 0 | AL53: 0 | AM53: =AM17*AM$42 -> 0 | AN53: 0 | AO53: 0 | AP53: 0 | AQ53: 0 | AR53: 0 | AS53: 0 | AT53: 0 | AU53: 0 | AV53: 0 | AW53: 0 | AX53: 0 | AY53: 0 | AZ53: 0 | BA53: 0 | BB53: 0 | BC53: 0 | BD53: 0
C54: =SUM(G54:BD54) -> 2505.133764 | D54: Operating costs | E54: $mm nominal | G54: =G19*G$42 -> 0 | H54: 0 | I54: 43.90488 | J54: 111.957444 | K54: 114.1965929 | L54: 116.4805247 | M54: 118.8101352 | N54: 121.1863379 | O54: 123.6100647 | P54: 126.082266 | Q54: 128.6039113 | R54: 131.1759895 | S54: 133.7995093 | T54: 136.4754995 | U54: 139.2050095 | V54: 141.9891097 | W54: 144.8288919 | X54: 147.7254697 | Y54: 150.6799791 | Z54: 153.6935787 | AA54: 156.7674503 | AB54: 63.96111971 | AC54: 0 | AD54: 0 | AE54: 0 | AF54: 0 | AG54: 0 | AH54: 0 | AI54: 0 | AJ54: 0 | AK54: 0 | AL54: 0 | AM54: =AM19*AM$42 -> 0 | AN54: 0 | AO54: 0 | AP54: 0 | AQ54: 0 | AR54: 0 | AS54: 0 | AT54: 0 | AU54: 0 | AV54: 0 | AW54: 0 | AX54: 0 | AY54: 0 | AZ54: 0 | BA54: 0 | BB54: 0 | BC54: 0 | BD54: 0
C55: 0 | D55: Unofficial taxes | E55: $mm nominal | G55: =G20*G$42 -> 0 | H55: 0 | I55: 0 | J55: 0 | K55: 0 | L55: 0 | M55: 0 | N55: 0 | O55: 0 | P55: 0 | Q55: 0 | R55: 0 | S55: 0 | T55: 0 | U55: 0 | V55: 0 | W55: 0 | X55: 0 | Y55: 0 | Z55: 0 | AA55: 0 | AB55: 0 | AC55: 0 | AD55: 0 | AE55: 0 | AF55: 0 | AG55: 0 | AH55: 0 | AI55: 0 | AJ55: 0 | AK55: 0 | AL55: 0 | AM55: =AM20*AM$42 -> 0 | AN55: 0 | AO55: 0 | AP55: 0 | AQ55: 0 | AR55: 0 | AS55: 0 | AT55: 0 | AU55: 0 | AV55: 0 | AW55: 0 | AX55: 0 | AY55: 0 | AZ55: 0 | BA55: 0 | BB55: 0 | BC55: 0 | BD55: 0
C56: 0 | D56: Decommissioning costs | E56: $mm nominal | G56: =G21*G$42 -> 0 | H56: 0 | I56: 0 | J56: 0 | K56: 0 | L56: 0 | M56: 0 | N56: 0 | O56: 0 | P56: 0 | Q56: 0 | R56: 0 | S56: 0 | T56: 0 | U56: 0 | V56: 0 | W56: 0 | X56: 0 | Y56: 0 | Z56: 0 | AA56: 0 | AB56: 0 | AC56: 0 | AD56: 0 | AE56: 0 | AF56: 0 | AG56: 0 | AH56: 0 | AI56: 0 | AJ56: 0 | AK56: 0 | AL56: 0 | AM56: =AM21*AM$42 -> 0 | AN56: 0 | AO56: 0 | AP56: 0 | AQ56: 0 | AR56: 0 | AS56: 0 | AT56: 0 | AU56: 0 | AV56: 0 | AW56: 0 | AX56: 0 | AY56: 0 | AZ56: 0 | BA56: 0 | BB56: 0 | BC56: 0 | BD56: 0
C57: =SUM(G57:BD57) -> 3127.92919 | D57: Total costs | E57: $mm nominal | G57: =SUM(G50:G56) -> 150 | H57: =SUM(H50:H56) -> 255 | I57: =SUM(I50:I56) -> 152.62668 | J57: 116.73288 | K57: 119.0675376 | L57: 121.4488884 | M57: 123.8778661 | N57: 126.3554234 | O57: 128.8825319 | P57: 131.4601825 | Q57: 134.0893862 | R57: 136.7711739 | S57: 139.5065974 | T57: =SUM(T50:T56) -> 142.2967293 | U57: 145.1426639 | V57: 148.0455172 | W57: 151.0064276 | X57: 154.0265561 | Y57: 157.1070872 | Z57: 160.249229 | AA57: 163.4542136 | AB57: 70.78161826 | AC57: 0 | AD57: 0 | AE57: 0 | AF57: 0 | AG57: 0 | AH57: 0 | AI57: 0 | AJ57: 0 | AK57: 0 | AL57: 0 | AM57: 0 | AN57: 0 | AO57: 0 | AP57: 0 | AQ57: 0 | AR57: 0 | AS57: 0 | AT57: 0 | AU57: 0 | AV57: 0 | AW57: 0 | AX57: 0 | AY57: 0 | AZ57: 0 | BA57: 0 | BB57: 0 | BC57: 0 | BD57: 0
A58: =ROUND(C58-(C49-SUM(C50:C56)),5)=0 -> TRUE | C58: =SUM(G58:BD58) -> 4512.135156 | D58: Project pre-tax, pre-royalty, customs cash flows | E58: $mm nominal | G58: =G49-G57 -> -150 | H58: =H49-H57 -> -255 | I58: -18.7272 | J58: 224.710794 | K58: 229.2050099 | L58: 233.7891101 | M58: 238.4648923 | N58: 243.2341901 | O58: 248.0988739 | P58: 253.0608514 | Q58: 258.1220684 | R58: 263.2845098 | S58: 268.5502 | T58: =T49-T57 -> 273.921204 | U58: 279.3996281 | V58: 284.9876206 | W58: 290.6873731 | X58: 296.5011205 | Y58: 302.4311429 | Z58: 308.4797658 | AA58: 314.6493611 | AB58: 124.2846402 | AC58: 0 | AD58: 0 | AE58: 0 | AF58: 0 | AG58: 0 | AH58: 0 | AI58: 0 | AJ58: 0 | AK58: 0 | AL58: 0 | AM58: 0 | AN58: 0 | AO58: 0 | AP58: 0 | AQ58: 0 | AR58: 0 | AS58: 0 | AT58: 0 | AU58: 0 | AV58: 0 | AW58: 0 | AX58: 0 | AY58: 0 | AZ58: 0 | BA58: 0 | BB58: 0 | BC58: 0 | BD58: 0
C61: =IFERROR(IRR($G58:BD58),0) -> 0.3657801351 | D61: Internal rate of return (nominal) | E61: % | G61: =IFERROR(IRR($G58:G58),"--") -> -- | H61: =IFERROR(IRR($G58:H58),"--") -> -- | I61: =IFERROR(IRR($G58:I58),"--") -> -- | J61: =IFERROR(IRR($G58:J58),"--") -> -0.2440012572 | K61: =IFERROR(IRR($G58:K58),"--") -> 0.02474607386 | L61: =IFERROR(IRR($G58:L58),"--") -> 0.158254789 | M61: =IFERROR(IRR($G58:M58),"--") -> 0.2328308198 | N61: =IFERROR(IRR($G58:N58),"--") -> 0.2776129126 | O61: =IFERROR(IRR($G58:O58),"--") -> 0.3058870389 | P61: =IFERROR(IRR($G58:P58),"--") -> 0.3244049861 | Q61: =IFERROR(IRR($G58:Q58),"--") -> 0.3368731321 | R61: =IFERROR(IRR($G58:R58),"--") -> 0.3454485332 | S61: =IFERROR(IRR($G58:S58),"--") -> 0.3514454308 | T61: =IFERROR(IRR($G58:T58),"--") -> 0.355694506 | U61: =IFERROR(IRR($G58:U58),"--") -> 0.3587366977 | V61: =IFERROR(IRR($G58:V58),"--") -> 0.3609329859 | W61: =IFERROR(IRR($G58:W58),"--") -> 0.3625291652 | X61: =IFERROR(IRR($G58:X58),"--") -> 0.3636954107 | Y61: =IFERROR(IRR($G58:Y58),"--") -> 0.3645511774 | Z61: =IFERROR(IRR($G58:Z58),"--") -> 0.3651812771 | AA61: =IFERROR(IRR($G58:AA58),"--") -> 0.3656464939 | AB61: =IFERROR(IRR($G58:AB58),"--") -> 0.3657801351 | AC61: =IFERROR(IRR($G58:AC58),"--") -> 0.3657801351 | AD61: =IFERROR(IRR($G58:AD58),"--") -> 0.3657801351 | AE61: =IFERROR(IRR($G58:AE58),"--") -> 0.3657801351 | AF61: =IFERROR(IRR($G58:AF58),"--") -> 0.3657801351 | AG61: =IFERROR(IRR($G58:AG58),"--") -> 0.3657801351 | AH61: =IFERROR(IRR($G58:AH58),"--") -> 0.3657801351 | AI61: =IFERROR(IRR($G58:AI58),"--") -> 0.3657801351 | AJ61: =IFERROR(IRR($G58:AJ58),"--") -> 0.3657801351 | AK61: =IFERROR(IRR($G58:AK58),"--") -> 0.3657801351 | AL61: =IFERROR(IRR($G58:AL58),"--") -> 0.3657801351 | AM61: =IFERROR(IRR($G58:AM58),"--") -> 0.3657801351 | AN61: =IFERROR(IRR($G58:AN58),"--") -> 0.3657801351 | AO61: =IFERROR(IRR($G58:AO58),"--") -> 0.3657801351 | AP61: =IFERROR(IRR($G58:AP58),"--") -> 0.3657801351 | AQ61: =IFERROR(IRR($G58:AQ58),"--") -> 0.3657801351 | AR61: =IFERROR(IRR($G58:AR58),"--") -> 0.3657801351 | AS61: =IFERROR(IRR($G58:AS58),"--") -> 0.3657801351 | AT61: =IFERROR(IRR($G58:AT58),"--") -> 0.3657801351 | AU61: =IFERROR(IRR($G58:AU58),"--") -> 0.3657801351 | AV61: =IFERROR(IRR($G58:AV58),"--") -> 0.3657801351 | AW61: =IFERROR(IRR($G58:AW58),"--") -> 0.3657801351 | AX61: =IFERROR(IRR($G58:AX58),"--") -> 0.3657801351 | AY61: =IFERROR(IRR($G58:AY58),"--") -> 0.3657801351 | AZ61: =IFERROR(IRR($G58:AZ58),"--") -> 0.3657801351 | BA61: =IFERROR(IRR($G58:BA58),"--") -> 0.3657801351 | BB61: =IFERROR(IRR($G58:BB58),"--") -> 0.3657801351 | BC61: =IFERROR(IRR($G58:BC58),"--") -> 0.3657801351 | BD61: =IFERROR(IRR($G58:BD58),"--") -> 0.3657801351
C62: =NPV(Inputs!$F$176,$H$58:$BD$58)+$G$58 -> 1020.099088 | D62: ="Project pre-tax cash flows NPV"&Inputs!$F$176*100 -> Project pre-tax cash flows NPV12.5 | E62: $mm nominal
A65: TAX CALCULATIONS
C67: Total | D67: Decommissioning
C68: =SUM(G68:BD68) -> 0 | D68: Decommissioning year | E68: years | G68: =Inputs!G197*(G69>0) -> 0 | H68: =Inputs!H197*(H69>0) -> 0 | I68: =Inputs!I197*(I69>0) -> 0 | J68: =Inputs!J197*(J69>0) -> 0 | K68: =Inputs!K197*(K69>0) -> 0 | L68: =Inputs!L197*(L69>0) -> 0 | M68: =Inputs!M197*(M69>0) -> 0 | N68: =Inputs!N197*(N69>0) -> 0 | O68: =Inputs!O197*(O69>0) -> 0 | P68: =Inputs!P197*(P69>0) -> 0 | Q68: =Inputs!Q197*(Q69>0) -> 0 | R68: =Inputs!R197*(R69>0) -> 0 | S68: =Inputs!S197*(S69>0) -> 0 | T68: =Inputs!T197*(T69>0) -> 0 | U68: =Inputs!U197*(U69>0) -> 0 | V68: =Inputs!V197*(V69>0) -> 0 | W68: =Inputs!W197*(W69>0) -> 0 | X68: =Inputs!X197*(X69>0) -> 0 | Y68: =Inputs!Y197*(Y69>0) -> 0 | Z68: =Inputs!Z197*(Z69>0) -> 0 | AA68: =Inputs!AA197*(AA69>0) -> 0 | AB68: =Inputs!AB197*(AB69>0) -> 0 | AC68: =Inputs!AC197*(AC69>0) -> 0 | AD68: =Inputs!AD197*(AD69>0) -> 0 | AE68: =Inputs!AE197*(AE69>0) -> 0 | AF68: =Inputs!AF197*(AF69>0) -> 0 | AG68: =Inputs!AG197*(AG69>0) -> 0 | AH68: =Inputs!AH197*(AH69>0) -> 0 | AI68: =Inputs!AI197*(AI69>0) -> 0 | AJ68: =Inputs!AJ197*(AJ69>0) -> 0 | AK68: =Inputs!AK197*(AK69>0) -> 0 | AL68: =Inputs!AL197*(AL69>0) -> 0 | AM68: =Inputs!AM197*(AM69>0) -> 0 | AN68: =Inputs!AN197*(AN69>0) -> 0 | AO68: =Inputs!AO197*(AO69>0) -> 0 | AP68: =Inputs!AP197*(AP69>0) -> 0 | AQ68: =Inputs!AQ197*(AQ69>0) -> 0 | AR68: =Inputs!AR197*(AR69>0) -> 0 | AS68: =Inputs!AS197*(AS69>0) -> 0 | AT68: =Inputs!AT197*(AT69>0) -> 0 | AU68: =Inputs!AU197*(AU69>0) -> 0 | AV68: =Inputs!AV197*(AV69>0) -> 0 | AW68: =Inputs!AW197*(AW69>0) -> 0 | AX68: =Inputs!AX197*(AX69>0) -> 0 | AY68: =Inputs!AY197*(AY69>0) -> 0 | AZ68: =Inputs!AZ197*(AZ69>0) -> 0 | BA68: =Inputs!BA197*(BA69>0) -> 0 | BB68: =Inputs!BB197*(BB69>0) -> 0 | BC68: =Inputs!BC197*(BC69>0) -> 0 | BD68: =Inputs!BD197*(BD69>0) -> 0
C69: =SUM(G69:BD69) -> 0 | D69: Decommissioning costs spent | E69: $mm nominal | G69: =G56 -> 0 | H69: 0 | I69: 0 | J69: 0 | K69: 0 | L69: 0 | M69: 0 | N69: 0 | O69: 0 | P69: 0 | Q69: 0 | R69: 0 | S69: 0 | T69: 0 | U69: 0 | V69: 0 | W69: 0 | X69: 0 | Y69: 0 | Z69: 0 | AA69: 0 | AB69: 0 | AC69: 0 | AD69: 0 | AE69: 0 | AF69: 0 | AG69: 0 | AH69: 0 | AI69: 0 | AJ69: 0 | AK69: 0 | AL69: 0 | AM69: =AM56 -> 0 | AN69: 0 | AO69: 0 | AP69: 0 | AQ69: 0 | AR69: 0 | AS69: 0 | AT69: 0 | AU69: 0 | AV69: 0 | AW69: 0 | AX69: 0 | AY69: 0 | AZ69: 0 | BA69: 0 | BB69: 0 | BC69: 0 | BD69: 0
C70: =SUM(G70:BD70) -> 0 | D70: Decommissioning costs real terms | E70: $mm const | G70: =G69/G42 -> 0 | H70: 0 | I70: 0 | J70: 0 | K70: 0 | L70: 0 | M70: 0 | N70: 0 | O70: 0 | P70: 0 | Q70: 0 | R70: 0 | S70: 0 | T70: 0 | U70: 0 | V70: 0 | W70: 0 | X70: 0 | Y70: 0 | Z70: 0 | AA70: 0 | AB70: 0 | AC70: 0 | AD70: 0 | AE70: 0 | AF70: 0 | AG70: 0 | AH70: 0 | AI70: 0 | AJ70: 0 | AK70: 0 | AL70: 0 | AM70: =AM69/AM42 -> 0 | AN70: 0 | AO70: 0 | AP70: 0 | AQ70: 0 | AR70: 0 | AS70: 0 | AT70: 0 | AU70: 0 | AV70: 0 | AW70: 0 | AX70: 0 | AY70: 0 | AZ70: 0 | BA70: 0 | BB70: 0 | BC70: 0 | BD70: 0
D71: Escalated decommissioning costs, end of year | E71: $mm nominal | G71: =$C$70*G42*(Inputs!G197<=$C$68)*(1+Inputs!$F$178) -> 0 | H71: =$C$70*H42*(Inputs!H197<=$C$68)*(1+Inputs!$F$178) -> 0 | I71: =$C$70*I42*(Inputs!I197<=$C$68)*(1+Inputs!$F$178) -> 0 | J71: =$C$70*J42*(Inputs!J197<=$C$68)*(1+Inputs!$F$178) -> 0 | K71: =$C$70*K42*(Inputs!K197<=$C$68)*(1+Inputs!$F$178) -> 0 | L71: =$C$70*L42*(Inputs!L197<=$C$68)*(1+Inputs!$F$178) -> 0 | M71: =$C$70*M42*(Inputs!M197<=$C$68)*(1+Inputs!$F$178) -> 0 | N71: =$C$70*N42*(Inputs!N197<=$C$68)*(1+Inputs!$F$178) -> 0 | O71: =$C$70*O42*(Inputs!O197<=$C$68)*(1+Inputs!$F$178) -> 0 | P71: =$C$70*P42*(Inputs!P197<=$C$68)*(1+Inputs!$F$178) -> 0 | Q71: =$C$70*Q42*(Inputs!Q197<=$C$68)*(1+Inputs!$F$178) -> 0 | R71: =$C$70*R42*(Inputs!R197<=$C$68)*(1+Inputs!$F$178) -> 0 | S71: =$C$70*S42*(Inputs!S197<=$C$68)*(1+Inputs!$F$178) -> 0 | T71: =$C$70*T42*(Inputs!T197<=$C$68)*(1+Inputs!$F$178) -> 0 | U71: =$C$70*U42*(Inputs!U197<=$C$68)*(1+Inputs!$F$178) -> 0 | V71: =$C$70*V42*(Inputs!V197<=$C$68)*(1+Inputs!$F$178) -> 0 | W71: =$C$70*W42*(Inputs!W197<=$C$68)*(1+Inputs!$F$178) -> 0 | X71: =$C$70*X42*(Inputs!X197<=$C$68)*(1+Inputs!$F$178) -> 0 | Y71: =$C$70*Y42*(Inputs!Y197<=$C$68)*(1+Inputs!$F$178) -> 0 | Z71: =$C$70*Z42*(Inputs!Z197<=$C$68)*(1+Inputs!$F$178) -> 0 | AA71: =$C$70*AA42*(Inputs!AA197<=$C$68)*(1+Inputs!$F$178) -> 0 | AB71: =$C$70*AB42*(Inputs!AB197<=$C$68)*(1+Inputs!$F$178) -> 0 | AC71: =$C$70*AC42*(Inputs!AC197<=$C$68)*(1+Inputs!$F$178) -> 0 | AD71: =$C$70*AD42*(Inputs!AD197<=$C$68)*(1+Inputs!$F$178) -> 0 | AE71: =$C$70*AE42*(Inputs!AE197<=$C$68)*(1+Inputs!$F$178) -> 0 | AF71: =$C$70*AF42*(Inputs!AF197<=$C$68)*(1+Inputs!$F$178) -> 0 | AG71: =$C$70*AG42*(Inputs!AG197<=$C$68)*(1+Inputs!$F$178) -> 0 | AH71: =$C$70*AH42*(Inputs!AH197<=$C$68)*(1+Inputs!$F$178) -> 0 | AI71: =$C$70*AI42*(Inputs!AI197<=$C$68)*(1+Inputs!$F$178) -> 0 | AJ71: =$C$70*AJ42*(Inputs!AJ197<=$C$68)*(1+Inputs!$F$178) -> 0 | AK71: =$C$70*AK42*(Inputs!AK197<=$C$68)*(1+Inputs!$F$178) -> 0 | AL71: =$C$70*AL42*(Inputs!AL197<=$C$68)*(1+Inputs!$F$178) -> 0 | AM71: =$C$70*AM42*(Inputs!AM197<=$C$68)*(1+Inputs!$F$178) -> 0 | AN71: =$C$70*AN42*(Inputs!AN197<=$C$68)*(1+Inputs!$F$178) -> 0 | AO71: =$C$70*AO42*(Inputs!AO197<=$C$68)*(1+Inputs!$F$178) -> 0 | AP71: =$C$70*AP42*(Inputs!AP197<=$C$68)*(1+Inputs!$F$178) -> 0 | AQ71: =$C$70*AQ42*(Inputs!AQ197<=$C$68)*(1+Inputs!$F$178) -> 0 | AR71: =$C$70*AR42*(Inputs!AR197<=$C$68)*(1+Inputs!$F$178) -> 0 | AS71: =$C$70*AS42*(Inputs!AS197<=$C$68)*(1+Inputs!$F$178) -> 0 | AT71: =$C$70*AT42*(Inputs!AT197<=$C$68)*(1+Inputs!$F$178) -> 0 | AU71: =$C$70*AU42*(Inputs!AU197<=$C$68)*(1+Inputs!$F$178) -> 0 | AV71: =$C$70*AV42*(Inputs!AV197<=$C$68)*(1+Inputs!$F$178) -> 0 | AW71: =$C$70*AW42*(Inputs!AW197<=$C$68)*(1+Inputs!$F$178) -> 0 | AX71: =$C$70*AX42*(Inputs!AX197<=$C$68)*(1+Inputs!$F$178) -> 0 | AY71: =$C$70*AY42*(Inputs!AY197<=$C$68)*(1+Inputs!$F$178) -> 0 | AZ71: =$C$70*AZ42*(Inputs!AZ197<=$C$68)*(1+Inputs!$F$178) -> 0 | BA71: =$C$70*BA42*(Inputs!BA197<=$C$68)*(1+Inputs!$F$178) -> 0 | BB71: =$C$70*BB42*(Inputs!BB197<=$C$68)*(1+Inputs!$F$178) -> 0 | BC71: =$C$70*BC42*(Inputs!BC197<=$C$68)*(1+Inputs!$F$178) -> 0 | BD71: =$C$70*BD42*(Inputs!BD197<=$C$68)*(1+Inputs!$F$178) -> 0
D73: % reserves produced, end of year | E73: % | G73: =SUM(Inputs!$G$198:G198)/Inputs!$C$198 -> 0 | H73: =SUM(Inputs!$G$198:H198)/Inputs!$C$198 -> 0 | I73: =SUM(Inputs!$G$198:I198)/Inputs!$C$198 -> 0.02127659574 | J73: =SUM(Inputs!$G$198:J198)/Inputs!$C$198 -> 0.07446808511 | K73: =SUM(Inputs!$G$198:K198)/Inputs!$C$198 -> 0.1276595745 | L73: =SUM(Inputs!$G$198:L198)/Inputs!$C$198 -> 0.1808510638 | M73: =SUM(Inputs!$G$198:M198)/Inputs!$C$198 -> 0.2340425532 | N73: =SUM(Inputs!$G$198:N198)/Inputs!$C$198 -> 0.2872340426 | O73: =SUM(Inputs!$G$198:O198)/Inputs!$C$198 -> 0.3404255319 | P73: =SUM(Inputs!$G$198:P198)/Inputs!$C$198 -> 0.3936170213 | Q73: =SUM(Inputs!$G$198:Q198)/Inputs!$C$198 -> 0.4468085106 | R73: =SUM(Inputs!$G$198:R198)/Inputs!$C$198 -> 0.5 | S73: =SUM(Inputs!$G$198:S198)/Inputs!$C$198 -> 0.5531914894 | T73: =SUM(Inputs!$G$198:T198)/Inputs!$C$198 -> 0.6063829787 | U73: =SUM(Inputs!$G$198:U198)/Inputs!$C$198 -> 0.6595744681 | V73: =SUM(Inputs!$G$198:V198)/Inputs!$C$198 -> 0.7127659574 | W73: =SUM(Inputs!$G$198:W198)/Inputs!$C$198 -> 0.7659574468 | X73: =SUM(Inputs!$G$198:X198)/Inputs!$C$198 -> 0.8191489362 | Y73: =SUM(Inputs!$G$198:Y198)/Inputs!$C$198 -> 0.8723404255 | Z73: =SUM(Inputs!$G$198:Z198)/Inputs!$C$198 -> 0.9255319149 | AA73: =SUM(Inputs!$G$198:AA198)/Inputs!$C$198 -> 0.9787234043 | AB73: =SUM(Inputs!$G$198:AB198)/Inputs!$C$198 -> 1 | AC73: =SUM(Inputs!$G$198:AC198)/Inputs!$C$198 -> 1 | AD73: =SUM(Inputs!$G$198:AD198)/Inputs!$C$198 -> 1 | AE73: =SUM(Inputs!$G$198:AE198)/Inputs!$C$198 -> 1 | AF73: =SUM(Inputs!$G$198:AF198)/Inputs!$C$198 -> 1 | AG73: =SUM(Inputs!$G$198:AG198)/Inputs!$C$198 -> 1 | AH73: =SUM(Inputs!$G$198:AH198)/Inputs!$C$198 -> 1 | AI73: =SUM(Inputs!$G$198:AI198)/Inputs!$C$198 -> 1 | AJ73: =SUM(Inputs!$G$198:AJ198)/Inputs!$C$198 -> 1 | AK73: =SUM(Inputs!$G$198:AK198)/Inputs!$C$198 -> 1 | AL73: =SUM(Inputs!$G$198:AL198)/Inputs!$C$198 -> 1 | AM73: =SUM(Inputs!$G$198:AM198)/Inputs!$C$198 -> 1 | AN73: =SUM(Inputs!$G$198:AN198)/Inputs!$C$198 -> 1 | AO73: =SUM(Inputs!$G$198:AO198)/Inputs!$C$198 -> 1 | AP73: =SUM(Inputs!$G$198:AP198)/Inputs!$C$198 -> 1 | AQ73: =SUM(Inputs!$G$198:AQ198)/Inputs!$C$198 -> 1 | AR73: =SUM(Inputs!$G$198:AR198)/Inputs!$C$198 -> 1 | AS73: =SUM(Inputs!$G$198:AS198)/Inputs!$C$198 -> 1 | AT73: =SUM(Inputs!$G$198:AT198)/Inputs!$C$198 -> 1 | AU73: =SUM(Inputs!$G$198:AU198)/Inputs!$C$198 -> 1 | AV73: =SUM(Inputs!$G$198:AV198)/Inputs!$C$198 -> 1 | AW73: =SUM(Inputs!$G$198:AW198)/Inputs!$C$198 -> 1 | AX73: =SUM(Inputs!$G$198:AX198)/Inputs!$C$198 -> 1 | AY73: =SUM(Inputs!$G$198:AY198)/Inputs!$C$198 -> 1 | AZ73: =SUM(Inputs!$G$198:AZ198)/Inputs!$C$198 -> 1 | BA73: =SUM(Inputs!$G$198:BA198)/Inputs!$C$198 -> 1 | BB73: =SUM(Inputs!$G$198:BB198)/Inputs!$C$198 -> 1 | BC73: =SUM(Inputs!$G$198:BC198)/Inputs!$C$198 -> 1 | BD73: =SUM(Inputs!$G$198:BD198)/Inputs!$C$198 -> 1
D74: Remaining recoverable reserves, end of year | E74: tons | G74: =Inputs!$C$198-SUM(Inputs!$G$198:G198) -> 4700000 | H74: =Inputs!$C$198-SUM(Inputs!$G$198:H198) -> 4700000 | I74: =Inputs!$C$198-SUM(Inputs!$G$198:I198) -> 4600000 | J74: =Inputs!$C$198-SUM(Inputs!$G$198:J198) -> 4350000 | K74: =Inputs!$C$198-SUM(Inputs!$G$198:K198) -> 4100000 | L74: =Inputs!$C$198-SUM(Inputs!$G$198:L198) -> 3850000 | M74: =Inputs!$C$198-SUM(Inputs!$G$198:M198) -> 3600000 | N74: =Inputs!$C$198-SUM(Inputs!$G$198:N198) -> 3350000 | O74: =Inputs!$C$198-SUM(Inputs!$G$198:O198) -> 3100000 | P74: =Inputs!$C$198-SUM(Inputs!$G$198:P198) -> 2850000 | Q74: =Inputs!$C$198-SUM(Inputs!$G$198:Q198) -> 2600000 | R74: =Inputs!$C$198-SUM(Inputs!$G$198:R198) -> 2350000 | S74: =Inputs!$C$198-SUM(Inputs!$G$198:S198) -> 2100000 | T74: =Inputs!$C$198-SUM(Inputs!$G$198:T198) -> 1850000 | U74: =Inputs!$C$198-SUM(Inputs!$G$198:U198) -> 1600000 | V74: =Inputs!$C$198-SUM(Inputs!$G$198:V198) -> 1350000 | W74: =Inputs!$C$198-SUM(Inputs!$G$198:W198) -> 1100000 | X74: =Inputs!$C$198-SUM(Inputs!$G$198:X198) -> 850000 | Y74: =Inputs!$C$198-SUM(Inputs!$G$198:Y198) -> 600000 | Z74: =Inputs!$C$198-SUM(Inputs!$G$198:Z198) -> 350000 | AA74: =Inputs!$C$198-SUM(Inputs!$G$198:AA198) -> 100000 | AB74: =Inputs!$C$198-SUM(Inputs!$G$198:AB198) -> 0 | AC74: =Inputs!$C$198-SUM(Inputs!$G$198:AC198) -> 0 | AD74: =Inputs!$C$198-SUM(Inputs!$G$198:AD198) -> 0 | AE74: =Inputs!$C$198-SUM(Inputs!$G$198:AE198) -> 0 | AF74: =Inputs!$C$198-SUM(Inputs!$G$198:AF198) -> 0 | AG74: =Inputs!$C$198-SUM(Inputs!$G$198:AG198) -> 0 | AH74: =Inputs!$C$198-SUM(Inputs!$G$198:AH198) -> 0 | AI74: =Inputs!$C$198-SUM(Inputs!$G$198:AI198) -> 0 | AJ74: =Inputs!$C$198-SUM(Inputs!$G$198:AJ198) -> 0 | AK74: =Inputs!$C$198-SUM(Inputs!$G$198:AK198) -> 0 | AL74: =Inputs!$C$198-SUM(Inputs!$G$198:AL198) -> 0 | AM74: =Inputs!$C$198-SUM(Inputs!$G$198:AM198) -> 0 | AN74: =Inputs!$C$198-SUM(Inputs!$G$198:AN198) -> 0 | AO74: =Inputs!$C$198-SUM(Inputs!$G$198:AO198) -> 0 | AP74: =Inputs!$C$198-SUM(Inputs!$G$198:AP198) -> 0 | AQ74: =Inputs!$C$198-SUM(Inputs!$G$198:AQ198) -> 0 | AR74: =Inputs!$C$198-SUM(Inputs!$G$198:AR198) -> 0 | AS74: =Inputs!$C$198-SUM(Inputs!$G$198:AS198) -> 0 | AT74: =Inputs!$C$198-SUM(Inputs!$G$198:AT198) -> 0 | AU74: =Inputs!$C$198-SUM(Inputs!$G$198:AU198) -> 0 | AV74: =Inputs!$C$198-SUM(Inputs!$G$198:AV198) -> 0 | AW74: =Inputs!$C$198-SUM(Inputs!$G$198:AW198) -> 0 | AX74: =Inputs!$C$198-SUM(Inputs!$G$198:AX198) -> 0 | AY74: =Inputs!$C$198-SUM(Inputs!$G$198:AY198) -> 0 | AZ74: =Inputs!$C$198-SUM(Inputs!$G$198:AZ198) -> 0 | BA74: =Inputs!$C$198-SUM(Inputs!$G$198:BA198) -> 0 | BB74: =Inputs!$C$198-SUM(Inputs!$G$198:BB198) -> 0 | BC74: =Inputs!$C$198-SUM(Inputs!$G$198:BC198) -> 0 | BD74: =Inputs!$C$198-SUM(Inputs!$G$198:BD198) -> 0
D75: Decommissioning fund flag | E75: flag | G75: =1*(G73>Inputs!$F$58)*(Inputs!G198>0) -> 0 | H75: =1*(H73>Inputs!$F$58)*(Inputs!H198>0) -> 0 | I75: =1*(I73>Inputs!$F$58)*(Inputs!I198>0) -> 1 | J75: =1*(J73>Inputs!$F$58)*(Inputs!J198>0) -> 1 | K75: =1*(K73>Inputs!$F$58)*(Inputs!K198>0) -> 1 | L75: =1*(L73>Inputs!$F$58)*(Inputs!L198>0) -> 1 | M75: =1*(M73>Inputs!$F$58)*(Inputs!M198>0) -> 1 | N75: =1*(N73>Inputs!$F$58)*(Inputs!N198>0) -> 1 | O75: =1*(O73>Inputs!$F$58)*(Inputs!O198>0) -> 1 | P75: =1*(P73>Inputs!$F$58)*(Inputs!P198>0) -> 1 | Q75: =1*(Q73>Inputs!$F$58)*(Inputs!Q198>0) -> 1 | R75: =1*(R73>Inputs!$F$58)*(Inputs!R198>0) -> 1 | S75: =1*(S73>Inputs!$F$58)*(Inputs!S198>0) -> 1 | T75: =1*(T73>Inputs!$F$58)*(Inputs!T198>0) -> 1 | U75: =1*(U73>Inputs!$F$58)*(Inputs!U198>0) -> 1 | V75: =1*(V73>Inputs!$F$58)*(Inputs!V198>0) -> 1 | W75: =1*(W73>Inputs!$F$58)*(Inputs!W198>0) -> 1 | X75: =1*(X73>Inputs!$F$58)*(Inputs!X198>0) -> 1 | Y75: =1*(Y73>Inputs!$F$58)*(Inputs!Y198>0) -> 1 | Z75: =1*(Z73>Inputs!$F$58)*(Inputs!Z198>0) -> 1 | AA75: =1*(AA73>Inputs!$F$58)*(Inputs!AA198>0) -> 1 | AB75: =1*(AB73>Inputs!$F$58)*(Inputs!AB198>0) -> 1 | AC75: =1*(AC73>Inputs!$F$58)*(Inputs!AC198>0) -> 0 | AD75: =1*(AD73>Inputs!$F$58)*(Inputs!AD198>0) -> 0 | AE75: =1*(AE73>Inputs!$F$58)*(Inputs!AE198>0) -> 0 | AF75: =1*(AF73>Inputs!$F$58)*(Inputs!AF198>0) -> 0 | AG75: =1*(AG73>Inputs!$F$58)*(Inputs!AG198>0) -> 0 | AH75: =1*(AH73>Inputs!$F$58)*(Inputs!AH198>0) -> 0 | AI75: =1*(AI73>Inputs!$F$58)*(Inputs!AI198>0) -> 0 | AJ75: =1*(AJ73>Inputs!$F$58)*(Inputs!AJ198>0) -> 0 | AK75: =1*(AK73>Inputs!$F$58)*(Inputs!AK198>0) -> 0 | AL75: =1*(AL73>Inputs!$F$58)*(Inputs!AL198>0) -> 0 | AM75: =1*(AM73>Inputs!$F$58)*(Inputs!AM198>0) -> 0 | AN75: =1*(AN73>Inputs!$F$58)*(Inputs!AN198>0) -> 0 | AO75: =1*(AO73>Inputs!$F$58)*(Inputs!AO198>0) -> 0 | AP75: =1*(AP73>Inputs!$F$58)*(Inputs!AP198>0) -> 0 | AQ75: =1*(AQ73>Inputs!$F$58)*(Inputs!AQ198>0) -> 0 | AR75: =1*(AR73>Inputs!$F$58)*(Inputs!AR198>0) -> 0 | AS75: =1*(AS73>Inputs!$F$58)*(Inputs!AS198>0) -> 0 | AT75: =1*(AT73>Inputs!$F$58)*(Inputs!AT198>0) -> 0 | AU75: =1*(AU73>Inputs!$F$58)*(Inputs!AU198>0) -> 0 | AV75: =1*(AV73>Inputs!$F$58)*(Inputs!AV198>0) -> 0 | AW75: =1*(AW73>Inputs!$F$58)*(Inputs!AW198>0) -> 0 | AX75: =1*(AX73>Inputs!$F$58)*(Inputs!AX198>0) -> 0 | AY75: =1*(AY73>Inputs!$F$58)*(Inputs!AY198>0) -> 0 | AZ75: =1*(AZ73>Inputs!$F$58)*(Inputs!AZ198>0) -> 0 | BA75: =1*(BA73>Inputs!$F$58)*(Inputs!BA198>0) -> 0 | BB75: =1*(BB73>Inputs!$F$58)*(Inputs!BB198>0) -> 0 | BC75: =1*(BC73>Inputs!$F$58)*(Inputs!BC198>0) -> 0 | BD75: =1*(BD73>Inputs!$F$58)*(Inputs!BD198>0) -> 0
C76: =SUM(G76:BD76) -> 4700000 | D76: Production during decommissioning period | E76: tons | G76: =G75*Inputs!G198 -> 0 | H76: =H75*Inputs!H198 -> 0 | I76: =I75*Inputs!I198 -> 100000 | J76: =J75*Inputs!J198 -> 250000 | K76: =K75*Inputs!K198 -> 250000 | L76: =L75*Inputs!L198 -> 250000 | M76: =M75*Inputs!M198 -> 250000 | N76: =N75*Inputs!N198 -> 250000 | O76: =O75*Inputs!O198 -> 250000 | P76: =P75*Inputs!P198 -> 250000 | Q76: =Q75*Inputs!Q198 -> 250000 | R76: =R75*Inputs!R198 -> 250000 | S76: =S75*Inputs!S198 -> 250000 | T76: =T75*Inputs!T198 -> 250000 | U76: =U75*Inputs!U198 -> 250000 | V76: =V75*Inputs!V198 -> 250000 | W76: =W75*Inputs!W198 -> 250000 | X76: =X75*Inputs!X198 -> 250000 | Y76: =Y75*Inputs!Y198 -> 250000 | Z76: =Z75*Inputs!Z198 -> 250000 | AA76: =AA75*Inputs!AA198 -> 250000 | AB76: =AB75*Inputs!AB198 -> 100000 | AC76: =AC75*Inputs!AC198 -> 0 | AD76: =AD75*Inputs!AD198 -> 0 | AE76: =AE75*Inputs!AE198 -> 0 | AF76: =AF75*Inputs!AF198 -> 0 | AG76: =AG75*Inputs!AG198 -> 0 | AH76: =AH75*Inputs!AH198 -> 0 | AI76: =AI75*Inputs!AI198 -> 0 | AJ76: =AJ75*Inputs!AJ198 -> 0 | AK76: =AK75*Inputs!AK198 -> 0 | AL76: =AL75*Inputs!AL198 -> 0 | AM76: =AM75*Inputs!AM198 -> 0 | AN76: =AN75*Inputs!AN198 -> 0 | AO76: =AO75*Inputs!AO198 -> 0 | AP76: =AP75*Inputs!AP198 -> 0 | AQ76: =AQ75*Inputs!AQ198 -> 0 | AR76: =AR75*Inputs!AR198 -> 0 | AS76: =AS75*Inputs!AS198 -> 0 | AT76: =AT75*Inputs!AT198 -> 0 | AU76: =AU75*Inputs!AU198 -> 0 | AV76: =AV75*Inputs!AV198 -> 0 | AW76: =AW75*Inputs!AW198 -> 0 | AX76: =AX75*Inputs!AX198 -> 0 | AY76: =AY75*Inputs!AY198 -> 0 | AZ76: =AZ75*Inputs!AZ198 -> 0 | BA76: =BA75*Inputs!BA198 -> 0 | BB76: =BB75*Inputs!BB198 -> 0 | BC76: =BC75*Inputs!BC198 -> 0 | BD76: =BD75*Inputs!BD198 -> 0
C77: 49350000 | D77: Cumulative production during decommissioning period | E77: tons | G77: =(G76+F77)*G75 -> 0 | H77: 0 | I77: 100000 | J77: 350000 | K77: 600000 | L77: 850000 | M77: 1100000 | N77: 1350000 | O77: 1600000 | P77: 1850000 | Q77: 2100000 | R77: 2350000 | S77: 2600000 | T77: 2850000 | U77: 3100000 | V77: 3350000 | W77: 3600000 | X77: 3850000 | Y77: 4100000 | Z77: 4350000 | AA77: 4600000 | AB77: 4700000 | AC77: 0 | AD77: 0 | AE77: 0 | AF77: 0 | AG77: 0 | AH77: 0 | AI77: 0 | AJ77: 0 | AK77: 0 | AL77: 0 | AM77: =(AM76+AL77)*AM75 -> 0 | AN77: 0 | AO77: 0 | AP77: 0 | AQ77: 0 | AR77: 0 | AS77: 0 | AT77: 0 | AU77: 0 | AV77: 0 | AW77: 0 | AX77: 0 | AY77: 0 | AZ77: 0 | BA77: 0 | BB77: 0 | BC77: 0 | BD77: 0
C78: 0 | D78: Decommissioning fund opening balance | E78: $mm nominal | G78: =F82 -> 0 | H78: 0 | I78: 0 | J78: 0 | K78: 0 | L78: 0 | M78: 0 | N78: 0 | O78: 0 | P78: 0 | Q78: 0 | R78: 0 | S78: 0 | T78: 0 | U78: 0 | V78: 0 | W78: 0 | X78: 0 | Y78: 0 | Z78: 0 | AA78: 0 | AB78: 0 | AC78: 0 | AD78: 0 | AE78: 0 | AF78: 0 | AG78: 0 | AH78: 0 | AI78: 0 | AJ78: 0 | AK78: 0 | AL78: 0 | AM78: =AL82 -> 0 | AN78: 0 | AO78: 0 | AP78: 0 | AQ78: 0 | AR78: 0 | AS78: 0 | AT78: 0 | AU78: 0 | AV78: 0 | AW78: 0 | AX78: 0 | AY78: 0 | AZ78: 0 | BA78: 0 | BB78: 0 | BC78: 0 | BD78: 0
C79: 0 | D79: Provision allowed current period | E79: $mm nominal | G79: =IF(G75<>0,(G71-G78)*IFERROR(G76/F74,1)*(Inputs!$F$57="yes"),0) -> 0 | H79: =IF(H75<>0,(H71-H78)*IFERROR(H76/G74,1)*(Inputs!$F$57="yes"),0) -> 0 | I79: =IF(I75<>0,(I71-I78)*IFERROR(I76/H74,1)*(Inputs!$F$57="yes"),0) -> 0 | J79: =IF(J75<>0,(J71-J78)*IFERROR(J76/I74,1)*(Inputs!$F$57="yes"),0) -> 0 | K79: =IF(K75<>0,(K71-K78)*IFERROR(K76/J74,1)*(Inputs!$F$57="yes"),0) -> 0 | L79: =IF(L75<>0,(L71-L78)*IFERROR(L76/K74,1)*(Inputs!$F$57="yes"),0) -> 0 | M79: =IF(M75<>0,(M71-M78)*IFERROR(M76/L74,1)*(Inputs!$F$57="yes"),0) -> 0 | N79: =IF(N75<>0,(N71-N78)*IFERROR(N76/M74,1)*(Inputs!$F$57="yes"),0) -> 0 | O79: =IF(O75<>0,(O71-O78)*IFERROR(O76/N74,1)*(Inputs!$F$57="yes"),0) -> 0 | P79: =IF(P75<>0,(P71-P78)*IFERROR(P76/O74,1)*(Inputs!$F$57="yes"),0) -> 0 | Q79: =IF(Q75<>0,(Q71-Q78)*IFERROR(Q76/P74,1)*(Inputs!$F$57="yes"),0) -> 0 | R79: =IF(R75<>0,(R71-R78)*IFERROR(R76/Q74,1)*(Inputs!$F$57="yes"),0) -> 0 | S79: =IF(S75<>0,(S71-S78)*IFERROR(S76/R74,1)*(Inputs!$F$57="yes"),0) -> 0 | T79: =IF(T75<>0,(T71-T78)*IFERROR(T76/S74,1)*(Inputs!$F$57="yes"),0) -> 0 | U79: =IF(U75<>0,(U71-U78)*IFERROR(U76/T74,1)*(Inputs!$F$57="yes"),0) -> 0 | V79: =IF(V75<>0,(V71-V78)*IFERROR(V76/U74,1)*(Inputs!$F$57="yes"),0) -> 0 | W79: =IF(W75<>0,(W71-W78)*IFERROR(W76/V74,1)*(Inputs!$F$57="yes"),0) -> 0 | X79: =IF(X75<>0,(X71-X78)*IFERROR(X76/W74,1)*(Inputs!$F$57="yes"),0) -> 0 | Y79: =IF(Y75<>0,(Y71-Y78)*IFERROR(Y76/X74,1)*(Inputs!$F$57="yes"),0) -> 0 | Z79: =IF(Z75<>0,(Z71-Z78)*IFERROR(Z76/Y74,1)*(Inputs!$F$57="yes"),0) -> 0 | AA79: =IF(AA75<>0,(AA71-AA78)*IFERROR(AA76/Z74,1)*(Inputs!$F$57="yes"),0) -> 0 | AB79: =IF(AB75<>0,(AB71-AB78)*IFERROR(AB76/AA74,1)*(Inputs!$F$57="yes"),0) -> 0 | AC79: =IF(AC75<>0,(AC71-AC78)*IFERROR(AC76/AB74,1)*(Inputs!$F$57="yes"),0) -> 0 | AD79: =IF(AD75<>0,(AD71-AD78)*IFERROR(AD76/AC74,1)*(Inputs!$F$57="yes"),0) -> 0 | AE79: =IF(AE75<>0,(AE71-AE78)*IFERROR(AE76/AD74,1)*(Inputs!$F$57="yes"),0) -> 0 | AF79: =IF(AF75<>0,(AF71-AF78)*IFERROR(AF76/AE74,1)*(Inputs!$F$57="yes"),0) -> 0 | AG79: =IF(AG75<>0,(AG71-AG78)*IFERROR(AG76/AF74,1)*(Inputs!$F$57="yes"),0) -> 0 | AH79: =IF(AH75<>0,(AH71-AH78)*IFERROR(AH76/AG74,1)*(Inputs!$F$57="yes"),0) -> 0 | AI79: =IF(AI75<>0,(AI71-AI78)*IFERROR(AI76/AH74,1)*(Inputs!$F$57="yes"),0) -> 0 | AJ79: =IF(AJ75<>0,(AJ71-AJ78)*IFERROR(AJ76/AI74,1)*(Inputs!$F$57="yes"),0) -> 0 | AK79: =IF(AK75<>0,(AK71-AK78)*IFERROR(AK76/AJ74,1)*(Inputs!$F$57="yes"),0) -> 0 | AL79: =IF(AL75<>0,(AL71-AL78)*IFERROR(AL76/AK74,1)*(Inputs!$F$57="yes"),0) -> 0 | AM79: =IF(AM75<>0,(AM71-AM78)*IFERROR(AM76/AL74,1)*(Inputs!$F$57="yes"),0) -> 0 | AN79: =IF(AN75<>0,(AN71-AN78)*IFERROR(AN76/AM74,1)*(Inputs!$F$57="yes"),0) -> 0 | AO79: =IF(AO75<>0,(AO71-AO78)*IFERROR(AO76/AN74,1)*(Inputs!$F$57="yes"),0) -> 0 | AP79: =IF(AP75<>0,(AP71-AP78)*IFERROR(AP76/AO74,1)*(Inputs!$F$57="yes"),0) -> 0 | AQ79: =IF(AQ75<>0,(AQ71-AQ78)*IFERROR(AQ76/AP74,1)*(Inputs!$F$57="yes"),0) -> 0 | AR79: =IF(AR75<>0,(AR71-AR78)*IFERROR(AR76/AQ74,1)*(Inputs!$F$57="yes"),0) -> 0 | AS79: =IF(AS75<>0,(AS71-AS78)*IFERROR(AS76/AR74,1)*(Inputs!$F$57="yes"),0) -> 0 | AT79: =IF(AT75<>0,(AT71-AT78)*IFERROR(AT76/AS74,1)*(Inputs!$F$57="yes"),0) -> 0 | AU79: =IF(AU75<>0,(AU71-AU78)*IFERROR(AU76/AT74,1)*(Inputs!$F$57="yes"),0) -> 0 | AV79: =IF(AV75<>0,(AV71-AV78)*IFERROR(AV76/AU74,1)*(Inputs!$F$57="yes"),0) -> 0 | AW79: =IF(AW75<>0,(AW71-AW78)*IFERROR(AW76/AV74,1)*(Inputs!$F$57="yes"),0) -> 0 | AX79: =IF(AX75<>0,(AX71-AX78)*IFERROR(AX76/AW74,1)*(Inputs!$F$57="yes"),0) -> 0 | AY79: =IF(AY75<>0,(AY71-AY78)*IFERROR(AY76/AX74,1)*(Inputs!$F$57="yes"),0) -> 0 | AZ79: =IF(AZ75<>0,(AZ71-AZ78)*IFERROR(AZ76/AY74,1)*(Inputs!$F$57="yes"),0) -> 0 | BA79: =IF(BA75<>0,(BA71-BA78)*IFERROR(BA76/AZ74,1)*(Inputs!$F$57="yes"),0) -> 0 | BB79: =IF(BB75<>0,(BB71-BB78)*IFERROR(BB76/BA74,1)*(Inputs!$F$57="yes"),0) -> 0 | BC79: =IF(BC75<>0,(BC71-BC78)*IFERROR(BC76/BB74,1)*(Inputs!$F$57="yes"),0) -> 0 | BD79: =IF(BD75<>0,(BD71-BD78)*IFERROR(BD76/BC74,1)*(Inputs!$F$57="yes"),0) -> 0
C80: 0 | D80: Withdrawal to meet decommissioning costs | E80: $mm nominal | G80: =MIN(G69,F82)*-1 -> 0 | H80: 0 | I80: 0 | J80: 0 | K80: 0 | L80: 0 | M80: 0 | N80: 0 | O80: 0 | P80: 0 | Q80: 0 | R80: 0 | S80: 0 | T80: 0 | U80: 0 | V80: 0 | W80: 0 | X80: 0 | Y80: 0 | Z80: 0 | AA80: 0 | AB80: 0 | AC80: 0 | AD80: 0 | AE80: 0 | AF80: 0 | AG80: 0 | AH80: 0 | AI80: 0 | AJ80: 0 | AK80: 0 | AL80: 0 | AM80: =MIN(AM69,AL82)*-1 -> 0 | AN80: 0 | AO80: 0 | AP80: 0 | AQ80: 0 | AR80: 0 | AS80: 0 | AT80: 0 | AU80: 0 | AV80: 0 | AW80: 0 | AX80: 0 | AY80: 0 | AZ80: 0 | BA80: 0 | BB80: 0 | BC80: 0 | BD80: 0
C81: 0 | D81: Surplus balance | E81: $mm nominal | G81: =(G80<>0)*(G78+G80)*-1 -> 0 | H81: 0 | I81: 0 | J81: 0 | K81: 0 | L81: 0 | M81: 0 | N81: 0 | O81: 0 | P81: 0 | Q81: 0 | R81: 0 | S81: 0 | T81: 0 | U81: 0 | V81: 0 | W81: 0 | X81: 0 | Y81: 0 | Z81: 0 | AA81: 0 | AB81: 0 | AC81: 0 | AD81: 0 | AE81: 0 | AF81: 0 | AG81: 0 | AH81: 0 | AI81: 0 | AJ81: 0 | AK81: 0 | AL81: 0 | AM81: =(AM80<>0)*(AM78+AM80)*-1 -> 0 | AN81: 0 | AO81: 0 | AP81: 0 | AQ81: 0 | AR81: 0 | AS81: 0 | AT81: 0 | AU81: 0 | AV81: 0 | AW81: 0 | AX81: 0 | AY81: 0 | AZ81: 0 | BA81: 0 | BB81: 0 | BC81: 0 | BD81: 0
D82: Closing balance | E82: $mm nominal | G82: =SUM(G78:G81) -> 0 | H82: 0 | I82: 0 | J82: 0 | K82: 0 | L82: 0 | M82: 0 | N82: 0 | O82: 0 | P82: 0 | Q82: 0 | R82: 0 | S82: 0 | T82: 0 | U82: 0 | V82: 0 | W82: 0 | X82: 0 | Y82: 0 | Z82: 0 | AA82: 0 | AB82: 0 | AC82: 0 | AD82: 0 | AE82: 0 | AF82: 0 | AG82: 0 | AH82: 0 | AI82: 0 | AJ82: 0 | AK82: 0 | AL82: 0 | AM82: =SUM(AM78:AM81) -> 0 | AN82: 0 | AO82: 0 | AP82: 0 | AQ82: 0 | AR82: 0 | AS82: 0 | AT82: 0 | AU82: 0 | AV82: 0 | AW82: 0 | AX82: 0 | AY82: 0 | AZ82: 0 | BA82: 0 | BB82: 0 | BC82: 0 | BD82: 0
D85: OTHER TAX TYPES
D87: Bonus
C88: =SUM(G88:BD88) -> 0 | D88: Signature bonus | E88: $mm nominal | G88: =(G30=1)*Inputs!$F$14 -> 0 | H88: =(H30=1)*Inputs!$F$14 -> 0 | I88: =(I30=1)*Inputs!$F$14 -> 0 | J88: =(J30=1)*Inputs!$F$14 -> 0 | K88: =(K30=1)*Inputs!$F$14 -> 0 | L88: =(L30=1)*Inputs!$F$14 -> 0 | M88: =(M30=1)*Inputs!$F$14 -> 0 | N88: =(N30=1)*Inputs!$F$14 -> 0 | O88: =(O30=1)*Inputs!$F$14 -> 0 | P88: =(P30=1)*Inputs!$F$14 -> 0 | Q88: =(Q30=1)*Inputs!$F$14 -> 0 | R88: =(R30=1)*Inputs!$F$14 -> 0 | S88: =(S30=1)*Inputs!$F$14 -> 0 | T88: =(T30=1)*Inputs!$F$14 -> 0 | U88: =(U30=1)*Inputs!$F$14 -> 0 | V88: =(V30=1)*Inputs!$F$14 -> 0 | W88: =(W30=1)*Inputs!$F$14 -> 0 | X88: =(X30=1)*Inputs!$F$14 -> 0 | Y88: =(Y30=1)*Inputs!$F$14 -> 0 | Z88: =(Z30=1)*Inputs!$F$14 -> 0 | AA88: =(AA30=1)*Inputs!$F$14 -> 0 | AB88: =(AB30=1)*Inputs!$F$14 -> 0 | AC88: =(AC30=1)*Inputs!$F$14 -> 0 | AD88: =(AD30=1)*Inputs!$F$14 -> 0 | AE88: =(AE30=1)*Inputs!$F$14 -> 0 | AF88: =(AF30=1)*Inputs!$F$14 -> 0 | AG88: =(AG30=1)*Inputs!$F$14 -> 0 | AH88: =(AH30=1)*Inputs!$F$14 -> 0 | AI88: =(AI30=1)*Inputs!$F$14 -> 0 | AJ88: =(AJ30=1)*Inputs!$F$14 -> 0 | AK88: =(AK30=1)*Inputs!$F$14 -> 0 | AL88: =(AL30=1)*Inputs!$F$14 -> 0 | AM88: =(AM30=1)*Inputs!$F$14 -> 0 | AN88: =(AN30=1)*Inputs!$F$14 -> 0 | AO88: =(AO30=1)*Inputs!$F$14 -> 0 | AP88: =(AP30=1)*Inputs!$F$14 -> 0 | AQ88: =(AQ30=1)*Inputs!$F$14 -> 0 | AR88: =(AR30=1)*Inputs!$F$14 -> 0 | AS88: =(AS30=1)*Inputs!$F$14 -> 0 | AT88: =(AT30=1)*Inputs!$F$14 -> 0 | AU88: =(AU30=1)*Inputs!$F$14 -> 0 | AV88: =(AV30=1)*Inputs!$F$14 -> 0 | AW88: =(AW30=1)*Inputs!$F$14 -> 0 | AX88: =(AX30=1)*Inputs!$F$14 -> 0 | AY88: =(AY30=1)*Inputs!$F$14 -> 0 | AZ88: =(AZ30=1)*Inputs!$F$14 -> 0 | BA88: =(BA30=1)*Inputs!$F$14 -> 0 | BB88: =(BB30=1)*Inputs!$F$14 -> 0 | BC88: =(BC30=1)*Inputs!$F$14 -> 0 | BD88: =(BD30=1)*Inputs!$F$14 -> 0
D90: Import duties
C91: =SUM(G91:BD91) -> 75.35434409 | D91: Import duties | E91: $mm nominal | G91: =(G54*Inputs!$F$55*Inputs!$F$185)+(SUM(Model!G51:G52)*Inputs!$F$55*Inputs!$F$186) -> 3.75 | H91: =(H54*Inputs!$F$55*Inputs!$F$185)+(SUM(Model!H51:H52)*Inputs!$F$55*Inputs!$F$186) -> 6.375 | I91: =(I54*Inputs!$F$55*Inputs!$F$185)+(SUM(Model!I51:I52)*Inputs!$F$55*Inputs!$F$186) -> 3.698622 | J91: =(J54*Inputs!$F$55*Inputs!$F$185)+(SUM(Model!J51:J52)*Inputs!$F$55*Inputs!$F$186) -> 2.7989361 | K91: =(K54*Inputs!$F$55*Inputs!$F$185)+(SUM(Model!K51:K52)*Inputs!$F$55*Inputs!$F$186) -> 2.854914822 | L91: =(L54*Inputs!$F$55*Inputs!$F$185)+(SUM(Model!L51:L52)*Inputs!$F$55*Inputs!$F$186) -> 2.912013118 | M91: =(M54*Inputs!$F$55*Inputs!$F$185)+(SUM(Model!M51:M52)*Inputs!$F$55*Inputs!$F$186) -> 2.970253381 | N91: =(N54*Inputs!$F$55*Inputs!$F$185)+(SUM(Model!N51:N52)*Inputs!$F$55*Inputs!$F$186) -> 3.029658448 | O91: =(O54*Inputs!$F$55*Inputs!$F$185)+(SUM(Model!O51:O52)*Inputs!$F$55*Inputs!$F$186) -> 3.090251617 | P91: =(P54*Inputs!$F$55*Inputs!$F$185)+(SUM(Model!P51:P52)*Inputs!$F$55*Inputs!$F$186) -> 3.15205665 | Q91: =(Q54*Inputs!$F$55*Inputs!$F$185)+(SUM(Model!Q51:Q52)*Inputs!$F$55*Inputs!$F$186) -> 3.215097783 | R91: =(R54*Inputs!$F$55*Inputs!$F$185)+(SUM(Model!R51:R52)*Inputs!$F$55*Inputs!$F$186) -> 3.279399738 | S91: =(S54*Inputs!$F$55*Inputs!$F$185)+(SUM(Model!S51:S52)*Inputs!$F$55*Inputs!$F$186) -> 3.344987733 | T91: =(T54*Inputs!$F$55*Inputs!$F$185)+(SUM(Model!T51:T52)*Inputs!$F$55*Inputs!$F$186) -> 3.411887488 | U91: =(U54*Inputs!$F$55*Inputs!$F$185)+(SUM(Model!U51:U52)*Inputs!$F$55*Inputs!$F$186) -> 3.480125238 | V91: =(V54*Inputs!$F$55*Inputs!$F$185)+(SUM(Model!V51:V52)*Inputs!$F$55*Inputs!$F$186) -> 3.549727742 | W91: =(W54*Inputs!$F$55*Inputs!$F$185)+(SUM(Model!W51:W52)*Inputs!$F$55*Inputs!$F$186) -> 3.620722297 | X91: =(X54*Inputs!$F$55*Inputs!$F$185)+(SUM(Model!X51:X52)*Inputs!$F$55*Inputs!$F$186) -> 3.693136743 | Y91: =(Y54*Inputs!$F$55*Inputs!$F$185)+(SUM(Model!Y51:Y52)*Inputs!$F$55*Inputs!$F$186) -> 3.766999478 | Z91: =(Z54*Inputs!$F$55*Inputs!$F$185)+(SUM(Model!Z51:Z52)*Inputs!$F$55*Inputs!$F$186) -> 3.842339468 | AA91: =(AA54*Inputs!$F$55*Inputs!$F$185)+(SUM(Model!AA51:AA52)*Inputs!$F$55*Inputs!$F$186) -> 3.919186257 | AB91: =(AB54*Inputs!$F$55*Inputs!$F$185)+(SUM(Model!AB51:AB52)*Inputs!$F$55*Inputs!$F$186) -> 1.599027993 | AC91: =(AC54*Inputs!$F$55*Inputs!$F$185)+(SUM(Model!AC51:AC52)*Inputs!$F$55*Inputs!$F$186) -> 0 | AD91: =(AD54*Inputs!$F$55*Inputs!$F$185)+(SUM(Model!AD51:AD52)*Inputs!$F$55*Inputs!$F$186) -> 0 | AE91: =(AE54*Inputs!$F$55*Inputs!$F$185)+(SUM(Model!AE51:AE52)*Inputs!$F$55*Inputs!$F$186) -> 0 | AF91: =(AF54*Inputs!$F$55*Inputs!$F$185)+(SUM(Model!AF51:AF52)*Inputs!$F$55*Inputs!$F$186) -> 0 | AG91: =(AG54*Inputs!$F$55*Inputs!$F$185)+(SUM(Model!AG51:AG52)*Inputs!$F$55*Inputs!$F$186) -> 0 | AH91: =(AH54*Inputs!$F$55*Inputs!$F$185)+(SUM(Model!AH51:AH52)*Inputs!$F$55*Inputs!$F$186) -> 0 | AI91: =(AI54*Inputs!$F$55*Inputs!$F$185)+(SUM(Model!AI51:AI52)*Inputs!$F$55*Inputs!$F$186) -> 0 | AJ91: =(AJ54*Inputs!$F$55*Inputs!$F$185)+(SUM(Model!AJ51:AJ52)*Inputs!$F$55*Inputs!$F$186) -> 0 | AK91: =(AK54*Inputs!$F$55*Inputs!$F$185)+(SUM(Model!AK51:AK52)*Inputs!$F$55*Inputs!$F$186) -> 0 | AL91: =(AL54*Inputs!$F$55*Inputs!$F$185)+(SUM(Model!AL51:AL52)*Inputs!$F$55*Inputs!$F$186) -> 0 | AM91: =(AM54*Inputs!$F$55*Inputs!$F$185)+(SUM(Model!AM51:AM52)*Inputs!$F$55*Inputs!$F$186) -> 0 | AN91: =(AN54*Inputs!$F$55*Inputs!$F$185)+(SUM(Model!AN51:AN52)*Inputs!$F$55*Inputs!$F$186) -> 0 | AO91: =(AO54*Inputs!$F$55*Inputs!$F$185)+(SUM(Model!AO51:AO52)*Inputs!$F$55*Inputs!$F$186) -> 0 | AP91: =(AP54*Inputs!$F$55*Inputs!$F$185)+(SUM(Model!AP51:AP52)*Inputs!$F$55*Inputs!$F$186) -> 0 | AQ91: =(AQ54*Inputs!$F$55*Inputs!$F$185)+(SUM(Model!AQ51:AQ52)*Inputs!$F$55*Inputs!$F$186) -> 0 | AR91: =(AR54*Inputs!$F$55*Inputs!$F$185)+(SUM(Model!AR51:AR52)*Inputs!$F$55*Inputs!$F$186) -> 0 | AS91: =(AS54*Inputs!$F$55*Inputs!$F$185)+(SUM(Model!AS51:AS52)*Inputs!$F$55*Inputs!$F$186) -> 0 | AT91: =(AT54*Inputs!$F$55*Inputs!$F$185)+(SUM(Model!AT51:AT52)*Inputs!$F$55*Inputs!$F$186) -> 0 | AU91: =(AU54*Inputs!$F$55*Inputs!$F$185)+(SUM(Model!AU51:AU52)*Inputs!$F$55*Inputs!$F$186) -> 0 | AV91: =(AV54*Inputs!$F$55*Inputs!$F$185)+(SUM(Model!AV51:AV52)*Inputs!$F$55*Inputs!$F$186) -> 0 | AW91: =(AW54*Inputs!$F$55*Inputs!$F$185)+(SUM(Model!AW51:AW52)*Inputs!$F$55*Inputs!$F$186) -> 0 | AX91: =(AX54*Inputs!$F$55*Inputs!$F$185)+(SUM(Model!AX51:AX52)*Inputs!$F$55*Inputs!$F$186) -> 0 | AY91: =(AY54*Inputs!$F$55*Inputs!$F$185)+(SUM(Model!AY51:AY52)*Inputs!$F$55*Inputs!$F$186) -> 0 | AZ91: =(AZ54*Inputs!$F$55*Inputs!$F$185)+(SUM(Model!AZ51:AZ52)*Inputs!$F$55*Inputs!$F$186) -> 0 | BA91: =(BA54*Inputs!$F$55*Inputs!$F$185)+(SUM(Model!BA51:BA52)*Inputs!$F$55*Inputs!$F$186) -> 0 | BB91: =(BB54*Inputs!$F$55*Inputs!$F$185)+(SUM(Model!BB51:BB52)*Inputs!$F$55*Inputs!$F$186) -> 0 | BC91: =(BC54*Inputs!$F$55*Inputs!$F$185)+(SUM(Model!BC51:BC52)*Inputs!$F$55*Inputs!$F$186) -> 0 | BD91: =(BD54*Inputs!$F$55*Inputs!$F$185)+(SUM(Model!BD51:BD52)*Inputs!$F$55*Inputs!$F$186) -> 0
D93: VAT
D94: VAT-able costs | E94: $mm nominal | G94: =SUM(G52:G53)*Inputs!$F$186+Model!G54*Inputs!$F$185+G91 -> 78.75 | H94: =SUM(H52:H53)*Inputs!$F$186+Model!H54*Inputs!$F$185+H91 -> 133.875 | I94: =SUM(I52:I53)*Inputs!$F$186+Model!I54*Inputs!$F$185+I91 -> 80.011962 | J94: =SUM(J52:J53)*Inputs!$F$186+Model!J54*Inputs!$F$185+J91 -> 61.1653761 | K94: =SUM(K52:K53)*Inputs!$F$186+Model!K54*Inputs!$F$185+K91 -> 62.38868362 | L94: =SUM(L52:L53)*Inputs!$F$186+Model!L54*Inputs!$F$185+L91 -> 63.63645729 | M94: =SUM(M52:M53)*Inputs!$F$186+Model!M54*Inputs!$F$185+M91 -> 64.90918644 | N94: =SUM(N52:N53)*Inputs!$F$186+Model!N54*Inputs!$F$185+N91 -> 66.20737017 | O94: =SUM(O52:O53)*Inputs!$F$186+Model!O54*Inputs!$F$185+O91 -> 67.53151757 | P94: =SUM(P52:P53)*Inputs!$F$186+Model!P54*Inputs!$F$185+P91 -> 68.88214792 | Q94: =SUM(Q52:Q53)*Inputs!$F$186+Model!Q54*Inputs!$F$185+Q91 -> 70.25979088 | R94: =SUM(R52:R53)*Inputs!$F$186+Model!R54*Inputs!$F$185+R91 -> 71.6649867 | S94: =SUM(S52:S53)*Inputs!$F$186+Model!S54*Inputs!$F$185+S91 -> 73.09828643 | T94: =SUM(T52:T53)*Inputs!$F$186+Model!T54*Inputs!$F$185+T91 -> 74.56025216 | U94: =SUM(U52:U53)*Inputs!$F$186+Model!U54*Inputs!$F$185+U91 -> 76.05145721 | V94: =SUM(V52:V53)*Inputs!$F$186+Model!V54*Inputs!$F$185+V91 -> 77.57248635 | W94: =SUM(W52:W53)*Inputs!$F$186+Model!W54*Inputs!$F$185+W91 -> 79.12393608 | X94: =SUM(X52:X53)*Inputs!$F$186+Model!X54*Inputs!$F$185+X91 -> 80.7064148 | Y94: =SUM(Y52:Y53)*Inputs!$F$186+Model!Y54*Inputs!$F$185+Y91 -> 82.32054309 | Z94: =SUM(Z52:Z53)*Inputs!$F$186+Model!Z54*Inputs!$F$185+Z91 -> 83.96695396 | AA94: =SUM(AA52:AA53)*Inputs!$F$186+Model!AA54*Inputs!$F$185+AA91 -> 85.64629304 | AB94: =SUM(AB52:AB53)*Inputs!$F$186+Model!AB54*Inputs!$F$185+AB91 -> 36.98983712 | AC94: =SUM(AC52:AC53)*Inputs!$F$186+Model!AC54*Inputs!$F$185+AC91 -> 0 | AD94: =SUM(AD52:AD53)*Inputs!$F$186+Model!AD54*Inputs!$F$185+AD91 -> 0 | AE94: =SUM(AE52:AE53)*Inputs!$F$186+Model!AE54*Inputs!$F$185+AE91 -> 0 | AF94: =SUM(AF52:AF53)*Inputs!$F$186+Model!AF54*Inputs!$F$185+AF91 -> 0 | AG94: =SUM(AG52:AG53)*Inputs!$F$186+Model!AG54*Inputs!$F$185+AG91 -> 0 | AH94: =SUM(AH52:AH53)*Inputs!$F$186+Model!AH54*Inputs!$F$185+AH91 -> 0 | AI94: =SUM(AI52:AI53)*Inputs!$F$186+Model!AI54*Inputs!$F$185+AI91 -> 0 | AJ94: =SUM(AJ52:AJ53)*Inputs!$F$186+Model!AJ54*Inputs!$F$185+AJ91 -> 0 | AK94: =SUM(AK52:AK53)*Inputs!$F$186+Model!AK54*Inputs!$F$185+AK91 -> 0 | AL94: =SUM(AL52:AL53)*Inputs!$F$186+Model!AL54*Inputs!$F$185+AL91 -> 0 | AM94: =SUM(AM52:AM53)*Inputs!$F$186+Model!AM54*Inputs!$F$185+AM91 -> 0 | AN94: =SUM(AN52:AN53)*Inputs!$F$186+Model!AN54*Inputs!$F$185+AN91 -> 0 | AO94: =SUM(AO52:AO53)*Inputs!$F$186+Model!AO54*Inputs!$F$185+AO91 -> 0 | AP94: =SUM(AP52:AP53)*Inputs!$F$186+Model!AP54*Inputs!$F$185+AP91 -> 0 | AQ94: =SUM(AQ52:AQ53)*Inputs!$F$186+Model!AQ54*Inputs!$F$185+AQ91 -> 0 | AR94: =SUM(AR52:AR53)*Inputs!$F$186+Model!AR54*Inputs!$F$185+AR91 -> 0 | AS94: =SUM(AS52:AS53)*Inputs!$F$186+Model!AS54*Inputs!$F$185+AS91 -> 0 | AT94: =SUM(AT52:AT53)*Inputs!$F$186+Model!AT54*Inputs!$F$185+AT91 -> 0 | AU94: =SUM(AU52:AU53)*Inputs!$F$186+Model!AU54*Inputs!$F$185+AU91 -> 0 | AV94: =SUM(AV52:AV53)*Inputs!$F$186+Model!AV54*Inputs!$F$185+AV91 -> 0 | AW94: =SUM(AW52:AW53)*Inputs!$F$186+Model!AW54*Inputs!$F$185+AW91 -> 0 | AX94: =SUM(AX52:AX53)*Inputs!$F$186+Model!AX54*Inputs!$F$185+AX91 -> 0 | AY94: =SUM(AY52:AY53)*Inputs!$F$186+Model!AY54*Inputs!$F$185+AY91 -> 0 | AZ94: =SUM(AZ52:AZ53)*Inputs!$F$186+Model!AZ54*Inputs!$F$185+AZ91 -> 0 | BA94: =SUM(BA52:BA53)*Inputs!$F$186+Model!BA54*Inputs!$F$185+BA91 -> 0 | BB94: =SUM(BB52:BB53)*Inputs!$F$186+Model!BB54*Inputs!$F$185+BB91 -> 0 | BC94: =SUM(BC52:BC53)*Inputs!$F$186+Model!BC54*Inputs!$F$185+BC91 -> 0 | BD94: =SUM(BD52:BD53)*Inputs!$F$186+Model!BD54*Inputs!$F$185+BD91 -> 0
D95: VAT payable | E95: $mm nominal | G95: =G94*Inputs!$F$56 -> 0 | H95: =H94*Inputs!$F$56 -> 0 | I95: =I94*Inputs!$F$56 -> 0 | J95: =J94*Inputs!$F$56 -> 0 | K95: =K94*Inputs!$F$56 -> 0 | L95: =L94*Inputs!$F$56 -> 0 | M95: =M94*Inputs!$F$56 -> 0 | N95: =N94*Inputs!$F$56 -> 0 | O95: =O94*Inputs!$F$56 -> 0 | P95: =P94*Inputs!$F$56 -> 0 | Q95: =Q94*Inputs!$F$56 -> 0 | R95: =R94*Inputs!$F$56 -> 0 | S95: =S94*Inputs!$F$56 -> 0 | T95: =T94*Inputs!$F$56 -> 0 | U95: =U94*Inputs!$F$56 -> 0 | V95: =V94*Inputs!$F$56 -> 0 | W95: =W94*Inputs!$F$56 -> 0 | X95: =X94*Inputs!$F$56 -> 0 | Y95: =Y94*Inputs!$F$56 -> 0 | Z95: =Z94*Inputs!$F$56 -> 0 | AA95: =AA94*Inputs!$F$56 -> 0 | AB95: =AB94*Inputs!$F$56 -> 0 | AC95: =AC94*Inputs!$F$56 -> 0 | AD95: =AD94*Inputs!$F$56 -> 0 | AE95: =AE94*Inputs!$F$56 -> 0 | AF95: =AF94*Inputs!$F$56 -> 0 | AG95: =AG94*Inputs!$F$56 -> 0 | AH95: =AH94*Inputs!$F$56 -> 0 | AI95: =AI94*Inputs!$F$56 -> 0 | AJ95: =AJ94*Inputs!$F$56 -> 0 | AK95: =AK94*Inputs!$F$56 -> 0 | AL95: =AL94*Inputs!$F$56 -> 0 | AM95: =AM94*Inputs!$F$56 -> 0 | AN95: =AN94*Inputs!$F$56 -> 0 | AO95: =AO94*Inputs!$F$56 -> 0 | AP95: =AP94*Inputs!$F$56 -> 0 | AQ95: =AQ94*Inputs!$F$56 -> 0 | AR95: =AR94*Inputs!$F$56 -> 0 | AS95: =AS94*Inputs!$F$56 -> 0 | AT95: =AT94*Inputs!$F$56 -> 0 | AU95: =AU94*Inputs!$F$56 -> 0 | AV95: =AV94*Inputs!$F$56 -> 0 | AW95: =AW94*Inputs!$F$56 -> 0 | AX95: =AX94*Inputs!$F$56 -> 0 | AY95: =AY94*Inputs!$F$56 -> 0 | AZ95: =AZ94*Inputs!$F$56 -> 0 | BA95: =BA94*Inputs!$F$56 -> 0 | BB95: =BB94*Inputs!$F$56 -> 0 | BC95: =BC94*Inputs!$F$56 -> 0 | BD95: =BD94*Inputs!$F$56 -> 0
D98: ROYALTIES
D100: Royalty
C101: =SUM(G101:BD101) -> 7717.236713 | D101: Primary gross revenue | E101: $mm nominal | G101: =G45 -> 0 | H101: =H45 -> 0 | I101: 135.252 | J101: 344.8926 | K101: 351.790452 | L101: 358.826261 | M101: 366.0027863 | N101: 373.322842 | O101: 380.7892988 | P101: 388.4050848 | Q101: 396.1731865 | R101: 404.0966502 | S101: 412.1785832 | T101: 420.4221549 | U101: 428.830598 | V101: 437.40721 | W101: 446.1553542 | X101: 455.0784612 | Y101: 464.1800305 | Z101: 473.4636311 | AA101: 482.9329037 | AB101: 197.0366247 | AC101: 0 | AD101: 0 | AE101: 0 | AF101: 0 | AG101: 0 | AH101: 0 | AI101: 0 | AJ101: 0 | AK101: 0 | AL101: 0 | AM101: =AM45 -> 0 | AN101: 0 | AO101: 0 | AP101: 0 | AQ101: 0 | AR101: 0 | AS101: 0 | AT101: 0 | AU101: 0 | AV101: 0 | AW101: 0 | AX101: 0 | AY101: 0 | AZ101: 0 | BA101: 0 | BB101: 0 | BC101: 0 | BD101: 0
C102: =SUM(G102:BD102) -> 6876.057911 | D102: Net revenue (net backed) | E102: $mm nominal | G102: =G49*(1-Inputs!$F$207) -> 0 | H102: =H49*(1-Inputs!$F$207) -> 0 | I102: =I49*(1-Inputs!$F$207) -> 120.509532 | J102: =J49*(1-Inputs!$F$207) -> 307.2993066 | K102: =K49*(1-Inputs!$F$207) -> 313.4452927 | L102: =L49*(1-Inputs!$F$207) -> 319.7141986 | M102: =M49*(1-Inputs!$F$207) -> 326.1084826 | N102: =N49*(1-Inputs!$F$207) -> 332.6306522 | O102: =O49*(1-Inputs!$F$207) -> 339.2832653 | P102: =P49*(1-Inputs!$F$207) -> 346.0689306 | Q102: =Q49*(1-Inputs!$F$207) -> 352.9903092 | R102: =R49*(1-Inputs!$F$207) -> 360.0501154 | S102: =S49*(1-Inputs!$F$207) -> 367.2511177 | T102: =T49*(1-Inputs!$F$207) -> 374.59614 | U102: =U49*(1-Inputs!$F$207) -> 382.0880628 | V102: =V49*(1-Inputs!$F$207) -> 389.7298241 | W102: =W49*(1-Inputs!$F$207) -> 397.5244206 | X102: =X49*(1-Inputs!$F$207) -> 405.474909 | Y102: =Y49*(1-Inputs!$F$207) -> 413.5844071 | Z102: =Z49*(1-Inputs!$F$207) -> 421.8560953 | AA102: =AA49*(1-Inputs!$F$207) -> 430.2932172 | AB102: =AB49*(1-Inputs!$F$207) -> 175.5596326 | AC102: =AC49*(1-Inputs!$F$207) -> 0 | AD102: =AD49*(1-Inputs!$F$207) -> 0 | AE102: =AE49*(1-Inputs!$F$207) -> 0 | AF102: =AF49*(1-Inputs!$F$207) -> 0 | AG102: =AG49*(1-Inputs!$F$207) -> 0 | AH102: =AH49*(1-Inputs!$F$207) -> 0 | AI102: =AI49*(1-Inputs!$F$207) -> 0 | AJ102: =AJ49*(1-Inputs!$F$207) -> 0 | AK102: =AK49*(1-Inputs!$F$207) -> 0 | AL102: =AL49*(1-Inputs!$F$207) -> 0 | AM102: =AM49*(1-Inputs!$F$207) -> 0 | AN102: =AN49*(1-Inputs!$F$207) -> 0 | AO102: =AO49*(1-Inputs!$F$207) -> 0 | AP102: =AP49*(1-Inputs!$F$207) -> 0 | AQ102: =AQ49*(1-Inputs!$F$207) -> 0 | AR102: =AR49*(1-Inputs!$F$207) -> 0 | AS102: =AS49*(1-Inputs!$F$207) -> 0 | AT102: =AT49*(1-Inputs!$F$207) -> 0 | AU102: =AU49*(1-Inputs!$F$207) -> 0 | AV102: =AV49*(1-Inputs!$F$207) -> 0 | AW102: =AW49*(1-Inputs!$F$207) -> 0 | AX102: =AX49*(1-Inputs!$F$207) -> 0 | AY102: =AY49*(1-Inputs!$F$207) -> 0 | AZ102: =AZ49*(1-Inputs!$F$207) -> 0 | BA102: =BA49*(1-Inputs!$F$207) -> 0 | BB102: =BB49*(1-Inputs!$F$207) -> 0 | BC102: =BC49*(1-Inputs!$F$207) -> 0 | BD102: =BD49*(1-Inputs!$F$207) -> 0
D103: VAT deducted | E103: $mm nominal | G103: =G95 -> 0 | H103: 0 | I103: 0 | J103: 0 | K103: 0 | L103: 0 | M103: 0 | N103: 0 | O103: 0 | P103: 0 | Q103: 0 | R103: 0 | S103: 0 | T103: 0 | U103: 0 | V103: 0 | W103: 0 | X103: 0 | Y103: 0 | Z103: 0 | AA103: 0 | AB103: 0 | AC103: 0 | AD103: 0 | AE103: 0 | AF103: 0 | AG103: 0 | AH103: 0 | AI103: 0 | AJ103: 0 | AK103: 0 | AL103: 0 | AM103: =AM95 -> 0 | AN103: 0 | AO103: 0 | AP103: 0 | AQ103: 0 | AR103: 0 | AS103: 0 | AT103: 0 | AU103: 0 | AV103: 0 | AW103: 0 | AX103: 0 | AY103: 0 | AZ103: 0 | BA103: 0 | BB103: 0 | BC103: 0 | BD103: 0
C104: =SUM(G104:BD104) -> 7717.236713 | D104: Royalty base | E104: $mm nominal | G104: =IF(Inputs!$F$20=1,IF(G$31=0,0,IF(Inputs!$F$19="gross",G101,G102))-IF(G101>0,Model!G103,0),IF(G31=0,0,IF(Inputs!$F$19="gross",G101,G102))) -> 0 | H104: =IF(Inputs!$F$20=1,IF(H$31=0,0,IF(Inputs!$F$19="gross",H101,H102))-IF(H101>0,Model!H103,0),IF(H31=0,0,IF(Inputs!$F$19="gross",H101,H102))) -> 0 | I104: =IF(Inputs!$F$20=1,IF(I$31=0,0,IF(Inputs!$F$19="gross",I101,I102))-IF(I101>0,Model!I103,0),IF(I31=0,0,IF(Inputs!$F$19="gross",I101,I102))) -> 135.252 | J104: =IF(Inputs!$F$20=1,IF(J$31=0,0,IF(Inputs!$F$19="gross",J101,J102))-IF(J101>0,Model!J103,0),IF(J31=0,0,IF(Inputs!$F$19="gross",J101,J102))) -> 344.8926 | K104: =IF(Inputs!$F$20=1,IF(K$31=0,0,IF(Inputs!$F$19="gross",K101,K102))-IF(K101>0,Model!K103,0),IF(K31=0,0,IF(Inputs!$F$19="gross",K101,K102))) -> 351.790452 | L104: =IF(Inputs!$F$20=1,IF(L$31=0,0,IF(Inputs!$F$19="gross",L101,L102))-IF(L101>0,Model!L103,0),IF(L31=0,0,IF(Inputs!$F$19="gross",L101,L102))) -> 358.826261 | M104: =IF(Inputs!$F$20=1,IF(M$31=0,0,IF(Inputs!$F$19="gross",M101,M102))-IF(M101>0,Model!M103,0),IF(M31=0,0,IF(Inputs!$F$19="gross",M101,M102))) -> 366.0027863 | N104: =IF(Inputs!$F$20=1,IF(N$31=0,0,IF(Inputs!$F$19="gross",N101,N102))-IF(N101>0,Model!N103,0),IF(N31=0,0,IF(Inputs!$F$19="gross",N101,N102))) -> 373.322842 | O104: =IF(Inputs!$F$20=1,IF(O$31=0,0,IF(Inputs!$F$19="gross",O101,O102))-IF(O101>0,Model!O103,0),IF(O31=0,0,IF(Inputs!$F$19="gross",O101,O102))) -> 380.7892988 | P104: =IF(Inputs!$F$20=1,IF(P$31=0,0,IF(Inputs!$F$19="gross",P101,P102))-IF(P101>0,Model!P103,0),IF(P31=0,0,IF(Inputs!$F$19="gross",P101,P102))) -> 388.4050848 | Q104: =IF(Inputs!$F$20=1,IF(Q$31=0,0,IF(Inputs!$F$19="gross",Q101,Q102))-IF(Q101>0,Model!Q103,0),IF(Q31=0,0,IF(Inputs!$F$19="gross",Q101,Q102))) -> 396.1731865 | R104: =IF(Inputs!$F$20=1,IF(R$31=0,0,IF(Inputs!$F$19="gross",R101,R102))-IF(R101>0,Model!R103,0),IF(R31=0,0,IF(Inputs!$F$19="gross",R101,R102))) -> 404.0966502 | S104: =IF(Inputs!$F$20=1,IF(S$31=0,0,IF(Inputs!$F$19="gross",S101,S102))-IF(S101>0,Model!S103,0),IF(S31=0,0,IF(Inputs!$F$19="gross",S101,S102))) -> 412.1785832 | T104: =IF(Inputs!$F$20=1,IF(T$31=0,0,IF(Inputs!$F$19="gross",T101,T102))-IF(T101>0,Model!T103,0),IF(T31=0,0,IF(Inputs!$F$19="gross",T101,T102))) -> 420.4221549 | U104: =IF(Inputs!$F$20=1,IF(U$31=0,0,IF(Inputs!$F$19="gross",U101,U102))-IF(U101>0,Model!U103,0),IF(U31=0,0,IF(Inputs!$F$19="gross",U101,U102))) -> 428.830598 | V104: =IF(Inputs!$F$20=1,IF(V$31=0,0,IF(Inputs!$F$19="gross",V101,V102))-IF(V101>0,Model!V103,0),IF(V31=0,0,IF(Inputs!$F$19="gross",V101,V102))) -> 437.40721 | W104: =IF(Inputs!$F$20=1,IF(W$31=0,0,IF(Inputs!$F$19="gross",W101,W102))-IF(W101>0,Model!W103,0),IF(W31=0,0,IF(Inputs!$F$19="gross",W101,W102))) -> 446.1553542 | X104: =IF(Inputs!$F$20=1,IF(X$31=0,0,IF(Inputs!$F$19="gross",X101,X102))-IF(X101>0,Model!X103,0),IF(X31=0,0,IF(Inputs!$F$19="gross",X101,X102))) -> 455.0784612 | Y104: =IF(Inputs!$F$20=1,IF(Y$31=0,0,IF(Inputs!$F$19="gross",Y101,Y102))-IF(Y101>0,Model!Y103,0),IF(Y31=0,0,IF(Inputs!$F$19="gross",Y101,Y102))) -> 464.1800305 | Z104: =IF(Inputs!$F$20=1,IF(Z$31=0,0,IF(Inputs!$F$19="gross",Z101,Z102))-IF(Z101>0,Model!Z103,0),IF(Z31=0,0,IF(Inputs!$F$19="gross",Z101,Z102))) -> 473.4636311 | AA104: =IF(Inputs!$F$20=1,IF(AA$31=0,0,IF(Inputs!$F$19="gross",AA101,AA102))-IF(AA101>0,Model!AA103,0),IF(AA31=0,0,IF(Inputs!$F$19="gross",AA101,AA102))) -> 482.9329037 | AB104: =IF(Inputs!$F$20=1,IF(AB$31=0,0,IF(Inputs!$F$19="gross",AB101,AB102))-IF(AB101>0,Model!AB103,0),IF(AB31=0,0,IF(Inputs!$F$19="gross",AB101,AB102))) -> 197.0366247 | AC104: =IF(Inputs!$F$20=1,IF(AC$31=0,0,IF(Inputs!$F$19="gross",AC101,AC102))-IF(AC101>0,Model!AC103,0),IF(AC31=0,0,IF(Inputs!$F$19="gross",AC101,AC102))) -> 0 | AD104: =IF(Inputs!$F$20=1,IF(AD$31=0,0,IF(Inputs!$F$19="gross",AD101,AD102))-IF(AD101>0,Model!AD103,0),IF(AD31=0,0,IF(Inputs!$F$19="gross",AD101,AD102))) -> 0 | AE104: =IF(Inputs!$F$20=1,IF(AE$31=0,0,IF(Inputs!$F$19="gross",AE101,AE102))-IF(AE101>0,Model!AE103,0),IF(AE31=0,0,IF(Inputs!$F$19="gross",AE101,AE102))) -> 0 | AF104: =IF(Inputs!$F$20=1,IF(AF$31=0,0,IF(Inputs!$F$19="gross",AF101,AF102))-IF(AF101>0,Model!AF103,0),IF(AF31=0,0,IF(Inputs!$F$19="gross",AF101,AF102))) -> 0 | AG104: =IF(Inputs!$F$20=1,IF(AG$31=0,0,IF(Inputs!$F$19="gross",AG101,AG102))-IF(AG101>0,Model!AG103,0),IF(AG31=0,0,IF(Inputs!$F$19="gross",AG101,AG102))) -> 0 | AH104: =IF(Inputs!$F$20=1,IF(AH$31=0,0,IF(Inputs!$F$19="gross",AH101,AH102))-IF(AH101>0,Model!AH103,0),IF(AH31=0,0,IF(Inputs!$F$19="gross",AH101,AH102))) -> 0 | AI104: =IF(Inputs!$F$20=1,IF(AI$31=0,0,IF(Inputs!$F$19="gross",AI101,AI102))-IF(AI101>0,Model!AI103,0),IF(AI31=0,0,IF(Inputs!$F$19="gross",AI101,AI102))) -> 0 | AJ104: =IF(Inputs!$F$20=1,IF(AJ$31=0,0,IF(Inputs!$F$19="gross",AJ101,AJ102))-IF(AJ101>0,Model!AJ103,0),IF(AJ31=0,0,IF(Inputs!$F$19="gross",AJ101,AJ102))) -> 0 | AK104: =IF(Inputs!$F$20=1,IF(AK$31=0,0,IF(Inputs!$F$19="gross",AK101,AK102))-IF(AK101>0,Model!AK103,0),IF(AK31=0,0,IF(Inputs!$F$19="gross",AK101,AK102))) -> 0 | AL104: =IF(Inputs!$F$20=1,IF(AL$31=0,0,IF(Inputs!$F$19="gross",AL101,AL102))-IF(AL101>0,Model!AL103,0),IF(AL31=0,0,IF(Inputs!$F$19="gross",AL101,AL102))) -> 0 | AM104: =IF(Inputs!$F$20=1,IF(AM$31=0,0,IF(Inputs!$F$19="gross",AM101,AM102))-IF(AM101>0,Model!AM103,0),IF(AM31=0,0,IF(Inputs!$F$19="gross",AM101,AM102))) -> 0 | AN104: =IF(Inputs!$F$20=1,IF(AN$31=0,0,IF(Inputs!$F$19="gross",AN101,AN102))-IF(AN101>0,Model!AN103,0),IF(AN31=0,0,IF(Inputs!$F$19="gross",AN101,AN102))) -> 0 | AO104: =IF(Inputs!$F$20=1,IF(AO$31=0,0,IF(Inputs!$F$19="gross",AO101,AO102))-IF(AO101>0,Model!AO103,0),IF(AO31=0,0,IF(Inputs!$F$19="gross",AO101,AO102))) -> 0 | AP104: =IF(Inputs!$F$20=1,IF(AP$31=0,0,IF(Inputs!$F$19="gross",AP101,AP102))-IF(AP101>0,Model!AP103,0),IF(AP31=0,0,IF(Inputs!$F$19="gross",AP101,AP102))) -> 0 | AQ104: =IF(Inputs!$F$20=1,IF(AQ$31=0,0,IF(Inputs!$F$19="gross",AQ101,AQ102))-IF(AQ101>0,Model!AQ103,0),IF(AQ31=0,0,IF(Inputs!$F$19="gross",AQ101,AQ102))) -> 0 | AR104: =IF(Inputs!$F$20=1,IF(AR$31=0,0,IF(Inputs!$F$19="gross",AR101,AR102))-IF(AR101>0,Model!AR103,0),IF(AR31=0,0,IF(Inputs!$F$19="gross",AR101,AR102))) -> 0 | AS104: =IF(Inputs!$F$20=1,IF(AS$31=0,0,IF(Inputs!$F$19="gross",AS101,AS102))-IF(AS101>0,Model!AS103,0),IF(AS31=0,0,IF(Inputs!$F$19="gross",AS101,AS102))) -> 0 | AT104: =IF(Inputs!$F$20=1,IF(AT$31=0,0,IF(Inputs!$F$19="gross",AT101,AT102))-IF(AT101>0,Model!AT103,0),IF(AT31=0,0,IF(Inputs!$F$19="gross",AT101,AT102))) -> 0 | AU104: =IF(Inputs!$F$20=1,IF(AU$31=0,0,IF(Inputs!$F$19="gross",AU101,AU102))-IF(AU101>0,Model!AU103,0),IF(AU31=0,0,IF(Inputs!$F$19="gross",AU101,AU102))) -> 0 | AV104: =IF(Inputs!$F$20=1,IF(AV$31=0,0,IF(Inputs!$F$19="gross",AV101,AV102))-IF(AV101>0,Model!AV103,0),IF(AV31=0,0,IF(Inputs!$F$19="gross",AV101,AV102))) -> 0 | AW104: =IF(Inputs!$F$20=1,IF(AW$31=0,0,IF(Inputs!$F$19="gross",AW101,AW102))-IF(AW101>0,Model!AW103,0),IF(AW31=0,0,IF(Inputs!$F$19="gross",AW101,AW102))) -> 0 | AX104: =IF(Inputs!$F$20=1,IF(AX$31=0,0,IF(Inputs!$F$19="gross",AX101,AX102))-IF(AX101>0,Model!AX103,0),IF(AX31=0,0,IF(Inputs!$F$19="gross",AX101,AX102))) -> 0 | AY104: =IF(Inputs!$F$20=1,IF(AY$31=0,0,IF(Inputs!$F$19="gross",AY101,AY102))-IF(AY101>0,Model!AY103,0),IF(AY31=0,0,IF(Inputs!$F$19="gross",AY101,AY102))) -> 0 | AZ104: =IF(Inputs!$F$20=1,IF(AZ$31=0,0,IF(Inputs!$F$19="gross",AZ101,AZ102))-IF(AZ101>0,Model!AZ103,0),IF(AZ31=0,0,IF(Inputs!$F$19="gross",AZ101,AZ102))) -> 0 | BA104: =IF(Inputs!$F$20=1,IF(BA$31=0,0,IF(Inputs!$F$19="gross",BA101,BA102))-IF(BA101>0,Model!BA103,0),IF(BA31=0,0,IF(Inputs!$F$19="gross",BA101,BA102))) -> 0 | BB104: =IF(Inputs!$F$20=1,IF(BB$31=0,0,IF(Inputs!$F$19="gross",BB101,BB102))-IF(BB101>0,Model!BB103,0),IF(BB31=0,0,IF(Inputs!$F$19="gross",BB101,BB102))) -> 0 | BC104: =IF(Inputs!$F$20=1,IF(BC$31=0,0,IF(Inputs!$F$19="gross",BC101,BC102))-IF(BC101>0,Model!BC103,0),IF(BC31=0,0,IF(Inputs!$F$19="gross",BC101,BC102))) -> 0 | BD104: =IF(Inputs!$F$20=1,IF(BD$31=0,0,IF(Inputs!$F$19="gross",BD101,BD102))-IF(BD101>0,Model!BD103,0),IF(BD31=0,0,IF(Inputs!$F$19="gross",BD101,BD102))) -> 0
D105: Rate | E105: % | G105: =CHOOSE(Inputs!$E$4,Inputs!$F$16,Inputs!$F$17,Inputs!$F$18)+Inputs!$F$21 -> 0.07 | H105: =CHOOSE(Inputs!$E$4,Inputs!$F$16,Inputs!$F$17,Inputs!$F$18)+Inputs!$F$21 -> 0.07 | I105: =CHOOSE(Inputs!$E$4,Inputs!$F$16,Inputs!$F$17,Inputs!$F$18)+Inputs!$F$21 -> 0.07 | J105: =CHOOSE(Inputs!$E$4,Inputs!$F$16,Inputs!$F$17,Inputs!$F$18)+Inputs!$F$21 -> 0.07 | K105: =CHOOSE(Inputs!$E$4,Inputs!$F$16,Inputs!$F$17,Inputs!$F$18)+Inputs!$F$21 -> 0.07 | L105: =CHOOSE(Inputs!$E$4,Inputs!$F$16,Inputs!$F$17,Inputs!$F$18)+Inputs!$F$21 -> 0.07 | M105: =CHOOSE(Inputs!$E$4,Inputs!$F$16,Inputs!$F$17,Inputs!$F$18)+Inputs!$F$21 -> 0.07 | N105: =CHOOSE(Inputs!$E$4,Inputs!$F$16,Inputs!$F$17,Inputs!$F$18)+Inputs!$F$21 -> 0.07 | O105: =CHOOSE(Inputs!$E$4,Inputs!$F$16,Inputs!$F$17,Inputs!$F$18)+Inputs!$F$21 -> 0.07 | P105: =CHOOSE(Inputs!$E$4,Inputs!$F$16,Inputs!$F$17,Inputs!$F$18)+Inputs!$F$21 -> 0.07 | Q105: =CHOOSE(Inputs!$E$4,Inputs!$F$16,Inputs!$F$17,Inputs!$F$18)+Inputs!$F$21 -> 0.07 | R105: =CHOOSE(Inputs!$E$4,Inputs!$F$16,Inputs!$F$17,Inputs!$F$18)+Inputs!$F$21 -> 0.07 | S105: =CHOOSE(Inputs!$E$4,Inputs!$F$16,Inputs!$F$17,Inputs!$F$18)+Inputs!$F$21 -> 0.07 | T105: =CHOOSE(Inputs!$E$4,Inputs!$F$16,Inputs!$F$17,Inputs!$F$18)+Inputs!$F$21 -> 0.07 | U105: =CHOOSE(Inputs!$E$4,Inputs!$F$16,Inputs!$F$17,Inputs!$F$18)+Inputs!$F$21 -> 0.07 | V105: =CHOOSE(Inputs!$E$4,Inputs!$F$16,Inputs!$F$17,Inputs!$F$18)+Inputs!$F$21 -> 0.07 | W105: =CHOOSE(Inputs!$E$4,Inputs!$F$16,Inputs!$F$17,Inputs!$F$18)+Inputs!$F$21 -> 0.07 | X105: =CHOOSE(Inputs!$E$4,Inputs!$F$16,Inputs!$F$17,Inputs!$F$18)+Inputs!$F$21 -> 0.07 | Y105: =CHOOSE(Inputs!$E$4,Inputs!$F$16,Inputs!$F$17,Inputs!$F$18)+Inputs!$F$21 -> 0.07 | Z105: =CHOOSE(Inputs!$E$4,Inputs!$F$16,Inputs!$F$17,Inputs!$F$18)+Inputs!$F$21 -> 0.07 | AA105: =CHOOSE(Inputs!$E$4,Inputs!$F$16,Inputs!$F$17,Inputs!$F$18)+Inputs!$F$21 -> 0.07 | AB105: =CHOOSE(Inputs!$E$4,Inputs!$F$16,Inputs!$F$17,Inputs!$F$18)+Inputs!$F$21 -> 0.07 | AC105: =CHOOSE(Inputs!$E$4,Inputs!$F$16,Inputs!$F$17,Inputs!$F$18)+Inputs!$F$21 -> 0.07 | AD105: =CHOOSE(Inputs!$E$4,Inputs!$F$16,Inputs!$F$17,Inputs!$F$18)+Inputs!$F$21 -> 0.07 | AE105: =CHOOSE(Inputs!$E$4,Inputs!$F$16,Inputs!$F$17,Inputs!$F$18)+Inputs!$F$21 -> 0.07 | AF105: =CHOOSE(Inputs!$E$4,Inputs!$F$16,Inputs!$F$17,Inputs!$F$18)+Inputs!$F$21 -> 0.07 | AG105: =CHOOSE(Inputs!$E$4,Inputs!$F$16,Inputs!$F$17,Inputs!$F$18)+Inputs!$F$21 -> 0.07 | AH105: =CHOOSE(Inputs!$E$4,Inputs!$F$16,Inputs!$F$17,Inputs!$F$18)+Inputs!$F$21 -> 0.07 | AI105: =CHOOSE(Inputs!$E$4,Inputs!$F$16,Inputs!$F$17,Inputs!$F$18)+Inputs!$F$21 -> 0.07 | AJ105: =CHOOSE(Inputs!$E$4,Inputs!$F$16,Inputs!$F$17,Inputs!$F$18)+Inputs!$F$21 -> 0.07 | AK105: =CHOOSE(Inputs!$E$4,Inputs!$F$16,Inputs!$F$17,Inputs!$F$18)+Inputs!$F$21 -> 0.07 | AL105: =CHOOSE(Inputs!$E$4,Inputs!$F$16,Inputs!$F$17,Inputs!$F$18)+Inputs!$F$21 -> 0.07 | AM105: =CHOOSE(Inputs!$E$4,Inputs!$F$16,Inputs!$F$17,Inputs!$F$18)+Inputs!$F$21 -> 0.07 | AN105: =CHOOSE(Inputs!$E$4,Inputs!$F$16,Inputs!$F$17,Inputs!$F$18)+Inputs!$F$21 -> 0.07 | AO105: =CHOOSE(Inputs!$E$4,Inputs!$F$16,Inputs!$F$17,Inputs!$F$18)+Inputs!$F$21 -> 0.07 | AP105: =CHOOSE(Inputs!$E$4,Inputs!$F$16,Inputs!$F$17,Inputs!$F$18)+Inputs!$F$21 -> 0.07 | AQ105: =CHOOSE(Inputs!$E$4,Inputs!$F$16,Inputs!$F$17,Inputs!$F$18)+Inputs!$F$21 -> 0.07 | AR105: =CHOOSE(Inputs!$E$4,Inputs!$F$16,Inputs!$F$17,Inputs!$F$18)+Inputs!$F$21 -> 0.07 | AS105: =CHOOSE(Inputs!$E$4,Inputs!$F$16,Inputs!$F$17,Inputs!$F$18)+Inputs!$F$21 -> 0.07 | AT105: =CHOOSE(Inputs!$E$4,Inputs!$F$16,Inputs!$F$17,Inputs!$F$18)+Inputs!$F$21 -> 0.07 | AU105: =CHOOSE(Inputs!$E$4,Inputs!$F$16,Inputs!$F$17,Inputs!$F$18)+Inputs!$F$21 -> 0.07 | AV105: =CHOOSE(Inputs!$E$4,Inputs!$F$16,Inputs!$F$17,Inputs!$F$18)+Inputs!$F$21 -> 0.07 | AW105: =CHOOSE(Inputs!$E$4,Inputs!$F$16,Inputs!$F$17,Inputs!$F$18)+Inputs!$F$21 -> 0.07 | AX105: =CHOOSE(Inputs!$E$4,Inputs!$F$16,Inputs!$F$17,Inputs!$F$18)+Inputs!$F$21 -> 0.07 | AY105: =CHOOSE(Inputs!$E$4,Inputs!$F$16,Inputs!$F$17,Inputs!$F$18)+Inputs!$F$21 -> 0.07 | AZ105: =CHOOSE(Inputs!$E$4,Inputs!$F$16,Inputs!$F$17,Inputs!$F$18)+Inputs!$F$21 -> 0.07 | BA105: =CHOOSE(Inputs!$E$4,Inputs!$F$16,Inputs!$F$17,Inputs!$F$18)+Inputs!$F$21 -> 0.07 | BB105: =CHOOSE(Inputs!$E$4,Inputs!$F$16,Inputs!$F$17,Inputs!$F$18)+Inputs!$F$21 -> 0.07 | BC105: =CHOOSE(Inputs!$E$4,Inputs!$F$16,Inputs!$F$17,Inputs!$F$18)+Inputs!$F$21 -> 0.07 | BD105: =CHOOSE(Inputs!$E$4,Inputs!$F$16,Inputs!$F$17,Inputs!$F$18)+Inputs!$F$21 -> 0.07
C106: =SUM(G106:BD106) -> 540.2065699 | D106: Royalty payable (primary mineral) | E106: $mm nominal | G106: =G104*G105 -> 0 | H106: 0 | I106: =I104*I105 -> 9.46764 | J106: 24.142482 | K106: 24.62533164 | L106: 25.11783827 | M106: 25.62019504 | N106: 26.13259894 | O106: 26.65525092 | P106: 27.18835594 | Q106: 27.73212305 | R106: 28.28676552 | S106: 28.85250083 | T106: 29.42955084 | U106: 30.01814186 | V106: 30.6185047 | W106: 31.23087479 | X106: 31.85549229 | Y106: 32.49260213 | Z106: 33.14245418 | AA106: 33.80530326 | AB106: 13.79256373 | AC106: 0 | AD106: 0 | AE106: 0 | AF106: 0 | AG106: 0 | AH106: 0 | AI106: 0 | AJ106: 0 | AK106: 0 | AL106: 0 | AM106: =AM104*AM105 -> 0 | AN106: 0 | AO106: 0 | AP106: 0 | AQ106: 0 | AR106: 0 | AS106: 0 | AT106: 0 | AU106: 0 | AV106: 0 | AW106: 0 | AX106: 0 | AY106: 0 | AZ106: 0 | BA106: 0 | BB106: 0 | BC106: 0 | BD106: 0
C109: =SUM(G109:BD109) -> 771.7236713 | D109: Co-product gross revenue | E109: $mm nominal | G109: =G46 -> 0 | H109: =H46 -> 0 | I109: 13.5252 | J109: 34.48926 | K109: 35.1790452 | L109: 35.8826261 | M109: 36.60027863 | N109: 37.3322842 | O109: 38.07892988 | P109: 38.84050848 | Q109: 39.61731865 | R109: 40.40966502 | S109: 41.21785832 | T109: 42.04221549 | U109: 42.8830598 | V109: 43.740721 | W109: 44.61553542 | X109: 45.50784612 | Y109: 46.41800305 | Z109: 47.34636311 | AA109: 48.29329037 | AB109: 19.70366247 | AC109: 0 | AD109: 0 | AE109: 0 | AF109: 0 | AG109: 0 | AH109: 0 | AI109: 0 | AJ109: 0 | AK109: 0 | AL109: 0 | AM109: 0 | AN109: 0 | AO109: 0 | AP109: 0 | AQ109: 0 | AR109: 0 | AS109: 0 | AT109: 0 | AU109: 0 | AV109: 0 | AW109: 0 | AX109: 0 | AY109: 0 | AZ109: 0 | BA109: 0 | BB109: 0 | BC109: 0 | BD109: 0
C110: =SUM(G110:BD110) -> 84.88960384 | D110: Net revenue (net backed) | E110: $mm nominal | G110: =G48*Inputs!$F$207 -> 0 | H110: =H48*Inputs!$F$207 -> 0 | I110: =I48*Inputs!$F$207 -> 1.487772 | J110: =J48*Inputs!$F$207 -> 3.7938186 | K110: =K48*Inputs!$F$207 -> 3.869694972 | L110: =L48*Inputs!$F$207 -> 3.947088871 | M110: =M48*Inputs!$F$207 -> 4.026030649 | N110: =N48*Inputs!$F$207 -> 4.106551262 | O110: =O48*Inputs!$F$207 -> 4.188682287 | P110: =P48*Inputs!$F$207 -> 4.272455933 | Q110: =Q48*Inputs!$F$207 -> 4.357905051 | R110: =R48*Inputs!$F$207 -> 4.445063153 | S110: =S48*Inputs!$F$207 -> 4.533964416 | T110: =T48*Inputs!$F$207 -> 4.624643704 | U110: =U48*Inputs!$F$207 -> 4.717136578 | V110: =V48*Inputs!$F$207 -> 4.81147931 | W110: =W48*Inputs!$F$207 -> 4.907708896 | X110: =X48*Inputs!$F$207 -> 5.005863074 | Y110: =Y48*Inputs!$F$207 -> 5.105980335 | Z110: =Z48*Inputs!$F$207 -> 5.208099942 | AA110: =AA48*Inputs!$F$207 -> 5.312261941 | AB110: =AB48*Inputs!$F$207 -> 2.167402872 | AC110: =AC48*Inputs!$F$207 -> 0 | AD110: =AD48*Inputs!$F$207 -> 0 | AE110: =AE48*Inputs!$F$207 -> 0 | AF110: =AF48*Inputs!$F$207 -> 0 | AG110: =AG48*Inputs!$F$207 -> 0 | AH110: =AH48*Inputs!$F$207 -> 0 | AI110: =AI48*Inputs!$F$207 -> 0 | AJ110: =AJ48*Inputs!$F$207 -> 0 | AK110: =AK48*Inputs!$F$207 -> 0 | AL110: =AL48*Inputs!$F$207 -> 0 | AM110: =AM48*Inputs!$F$207 -> 0 | AN110: =AN48*Inputs!$F$207 -> 0 | AO110: =AO48*Inputs!$F$207 -> 0 | AP110: =AP48*Inputs!$F$207 -> 0 | AQ110: =AQ48*Inputs!$F$207 -> 0 | AR110: =AR48*Inputs!$F$207 -> 0 | AS110: =AS48*Inputs!$F$207 -> 0 | AT110: =AT48*Inputs!$F$207 -> 0 | AU110: =AU48*Inputs!$F$207 -> 0 | AV110: =AV48*Inputs!$F$207 -> 0 | AW110: =AW48*Inputs!$F$207 -> 0 | AX110: =AX48*Inputs!$F$207 -> 0 | AY110: =AY48*Inputs!$F$207 -> 0 | AZ110: =AZ48*Inputs!$F$207 -> 0 | BA110: =BA48*Inputs!$F$207 -> 0 | BB110: =BB48*Inputs!$F$207 -> 0 | BC110: =BC48*Inputs!$F$207 -> 0 | BD110: =BD48*Inputs!$F$207 -> 0
D111: VAT deducted | E111: $mm nominal | G111: =G103 -> 0 | H111: 0 | I111: 0 | J111: 0 | K111: 0 | L111: 0 | M111: 0 | N111: 0 | O111: 0 | P111: 0 | Q111: 0 | R111: 0 | S111: 0 | T111: 0 | U111: 0 | V111: 0 | W111: 0 | X111: 0 | Y111: 0 | Z111: 0 | AA111: 0 | AB111: 0 | AC111: 0 | AD111: 0 | AE111: 0 | AF111: 0 | AG111: 0 | AH111: 0 | AI111: 0 | AJ111: 0 | AK111: 0 | AL111: 0 | AM111: 0 | AN111: 0 | AO111: 0 | AP111: 0 | AQ111: 0 | AR111: 0 | AS111: 0 | AT111: 0 | AU111: 0 | AV111: 0 | AW111: 0 | AX111: 0 | AY111: 0 | AZ111: 0 | BA111: 0 | BB111: 0 | BC111: 0 | BD111: 0
C112: =SUM(G112:BD112) -> 771.7236713 | D112: Royalty base | E112: $mm nominal | G112: =IF(Inputs!$F$20=1,IF(G$31=0,0,IF(Inputs!$F$19="gross",G109,G110))-IF(G109>0,Model!G111,0),IF(G39=0,0,IF(Inputs!$F$19="gross",G109,G110))) -> 0 | H112: =IF(Inputs!$F$20=1,IF(H$31=0,0,IF(Inputs!$F$19="gross",H109,H110))-IF(H109>0,Model!H111,0),IF(H39=0,0,IF(Inputs!$F$19="gross",H109,H110))) -> 0 | I112: =IF(Inputs!$F$20=1,IF(I$31=0,0,IF(Inputs!$F$19="gross",I109,I110))-IF(I109>0,Model!I111,0),IF(I39=0,0,IF(Inputs!$F$19="gross",I109,I110))) -> 13.5252 | J112: =IF(Inputs!$F$20=1,IF(J$31=0,0,IF(Inputs!$F$19="gross",J109,J110))-IF(J109>0,Model!J111,0),IF(J39=0,0,IF(Inputs!$F$19="gross",J109,J110))) -> 34.48926 | K112: =IF(Inputs!$F$20=1,IF(K$31=0,0,IF(Inputs!$F$19="gross",K109,K110))-IF(K109>0,Model!K111,0),IF(K39=0,0,IF(Inputs!$F$19="gross",K109,K110))) -> 35.1790452 | L112: =IF(Inputs!$F$20=1,IF(L$31=0,0,IF(Inputs!$F$19="gross",L109,L110))-IF(L109>0,Model!L111,0),IF(L39=0,0,IF(Inputs!$F$19="gross",L109,L110))) -> 35.8826261 | M112: =IF(Inputs!$F$20=1,IF(M$31=0,0,IF(Inputs!$F$19="gross",M109,M110))-IF(M109>0,Model!M111,0),IF(M39=0,0,IF(Inputs!$F$19="gross",M109,M110))) -> 36.60027863 | N112: =IF(Inputs!$F$20=1,IF(N$31=0,0,IF(Inputs!$F$19="gross",N109,N110))-IF(N109>0,Model!N111,0),IF(N39=0,0,IF(Inputs!$F$19="gross",N109,N110))) -> 37.3322842 | O112: =IF(Inputs!$F$20=1,IF(O$31=0,0,IF(Inputs!$F$19="gross",O109,O110))-IF(O109>0,Model!O111,0),IF(O39=0,0,IF(Inputs!$F$19="gross",O109,O110))) -> 38.07892988 | P112: =IF(Inputs!$F$20=1,IF(P$31=0,0,IF(Inputs!$F$19="gross",P109,P110))-IF(P109>0,Model!P111,0),IF(P39=0,0,IF(Inputs!$F$19="gross",P109,P110))) -> 38.84050848 | Q112: =IF(Inputs!$F$20=1,IF(Q$31=0,0,IF(Inputs!$F$19="gross",Q109,Q110))-IF(Q109>0,Model!Q111,0),IF(Q39=0,0,IF(Inputs!$F$19="gross",Q109,Q110))) -> 39.61731865 | R112: =IF(Inputs!$F$20=1,IF(R$31=0,0,IF(Inputs!$F$19="gross",R109,R110))-IF(R109>0,Model!R111,0),IF(R39=0,0,IF(Inputs!$F$19="gross",R109,R110))) -> 40.40966502 | S112: =IF(Inputs!$F$20=1,IF(S$31=0,0,IF(Inputs!$F$19="gross",S109,S110))-IF(S109>0,Model!S111,0),IF(S39=0,0,IF(Inputs!$F$19="gross",S109,S110))) -> 41.21785832 | T112: =IF(Inputs!$F$20=1,IF(T$31=0,0,IF(Inputs!$F$19="gross",T109,T110))-IF(T109>0,Model!T111,0),IF(T39=0,0,IF(Inputs!$F$19="gross",T109,T110))) -> 42.04221549 | U112: =IF(Inputs!$F$20=1,IF(U$31=0,0,IF(Inputs!$F$19="gross",U109,U110))-IF(U109>0,Model!U111,0),IF(U39=0,0,IF(Inputs!$F$19="gross",U109,U110))) -> 42.8830598 | V112: =IF(Inputs!$F$20=1,IF(V$31=0,0,IF(Inputs!$F$19="gross",V109,V110))-IF(V109>0,Model!V111,0),IF(V39=0,0,IF(Inputs!$F$19="gross",V109,V110))) -> 43.740721 | W112: =IF(Inputs!$F$20=1,IF(W$31=0,0,IF(Inputs!$F$19="gross",W109,W110))-IF(W109>0,Model!W111,0),IF(W39=0,0,IF(Inputs!$F$19="gross",W109,W110))) -> 44.61553542 | X112: =IF(Inputs!$F$20=1,IF(X$31=0,0,IF(Inputs!$F$19="gross",X109,X110))-IF(X109>0,Model!X111,0),IF(X39=0,0,IF(Inputs!$F$19="gross",X109,X110))) -> 45.50784612 | Y112: =IF(Inputs!$F$20=1,IF(Y$31=0,0,IF(Inputs!$F$19="gross",Y109,Y110))-IF(Y109>0,Model!Y111,0),IF(Y39=0,0,IF(Inputs!$F$19="gross",Y109,Y110))) -> 46.41800305 | Z112: =IF(Inputs!$F$20=1,IF(Z$31=0,0,IF(Inputs!$F$19="gross",Z109,Z110))-IF(Z109>0,Model!Z111,0),IF(Z39=0,0,IF(Inputs!$F$19="gross",Z109,Z110))) -> 47.34636311 | AA112: =IF(Inputs!$F$20=1,IF(AA$31=0,0,IF(Inputs!$F$19="gross",AA109,AA110))-IF(AA109>0,Model!AA111,0),IF(AA39=0,0,IF(Inputs!$F$19="gross",AA109,AA110))) -> 48.29329037 | AB112: =IF(Inputs!$F$20=1,IF(AB$31=0,0,IF(Inputs!$F$19="gross",AB109,AB110))-IF(AB109>0,Model!AB111,0),IF(AB39=0,0,IF(Inputs!$F$19="gross",AB109,AB110))) -> 19.70366247 | AC112: =IF(Inputs!$F$20=1,IF(AC$31=0,0,IF(Inputs!$F$19="gross",AC109,AC110))-IF(AC109>0,Model!AC111,0),IF(AC39=0,0,IF(Inputs!$F$19="gross",AC109,AC110))) -> 0 | AD112: =IF(Inputs!$F$20=1,IF(AD$31=0,0,IF(Inputs!$F$19="gross",AD109,AD110))-IF(AD109>0,Model!AD111,0),IF(AD39=0,0,IF(Inputs!$F$19="gross",AD109,AD110))) -> 0 | AE112: =IF(Inputs!$F$20=1,IF(AE$31=0,0,IF(Inputs!$F$19="gross",AE109,AE110))-IF(AE109>0,Model!AE111,0),IF(AE39=0,0,IF(Inputs!$F$19="gross",AE109,AE110))) -> 0 | AF112: =IF(Inputs!$F$20=1,IF(AF$31=0,0,IF(Inputs!$F$19="gross",AF109,AF110))-IF(AF109>0,Model!AF111,0),IF(AF39=0,0,IF(Inputs!$F$19="gross",AF109,AF110))) -> 0 | AG112: =IF(Inputs!$F$20=1,IF(AG$31=0,0,IF(Inputs!$F$19="gross",AG109,AG110))-IF(AG109>0,Model!AG111,0),IF(AG39=0,0,IF(Inputs!$F$19="gross",AG109,AG110))) -> 0 | AH112: =IF(Inputs!$F$20=1,IF(AH$31=0,0,IF(Inputs!$F$19="gross",AH109,AH110))-IF(AH109>0,Model!AH111,0),IF(AH39=0,0,IF(Inputs!$F$19="gross",AH109,AH110))) -> 0 | AI112: =IF(Inputs!$F$20=1,IF(AI$31=0,0,IF(Inputs!$F$19="gross",AI109,AI110))-IF(AI109>0,Model!AI111,0),IF(AI39=0,0,IF(Inputs!$F$19="gross",AI109,AI110))) -> 0 | AJ112: =IF(Inputs!$F$20=1,IF(AJ$31=0,0,IF(Inputs!$F$19="gross",AJ109,AJ110))-IF(AJ109>0,Model!AJ111,0),IF(AJ39=0,0,IF(Inputs!$F$19="gross",AJ109,AJ110))) -> 0 | AK112: =IF(Inputs!$F$20=1,IF(AK$31=0,0,IF(Inputs!$F$19="gross",AK109,AK110))-IF(AK109>0,Model!AK111,0),IF(AK39=0,0,IF(Inputs!$F$19="gross",AK109,AK110))) -> 0 | AL112: =IF(Inputs!$F$20=1,IF(AL$31=0,0,IF(Inputs!$F$19="gross",AL109,AL110))-IF(AL109>0,Model!AL111,0),IF(AL39=0,0,IF(Inputs!$F$19="gross",AL109,AL110))) -> 0 | AM112: =IF(Inputs!$F$20=1,IF(AM$31=0,0,IF(Inputs!$F$19="gross",AM109,AM110))-IF(AM109>0,Model!AM111,0),IF(AM39=0,0,IF(Inputs!$F$19="gross",AM109,AM110))) -> 0 | AN112: =IF(Inputs!$F$20=1,IF(AN$31=0,0,IF(Inputs!$F$19="gross",AN109,AN110))-IF(AN109>0,Model!AN111,0),IF(AN39=0,0,IF(Inputs!$F$19="gross",AN109,AN110))) -> 0 | AO112: =IF(Inputs!$F$20=1,IF(AO$31=0,0,IF(Inputs!$F$19="gross",AO109,AO110))-IF(AO109>0,Model!AO111,0),IF(AO39=0,0,IF(Inputs!$F$19="gross",AO109,AO110))) -> 0 | AP112: =IF(Inputs!$F$20=1,IF(AP$31=0,0,IF(Inputs!$F$19="gross",AP109,AP110))-IF(AP109>0,Model!AP111,0),IF(AP39=0,0,IF(Inputs!$F$19="gross",AP109,AP110))) -> 0 | AQ112: =IF(Inputs!$F$20=1,IF(AQ$31=0,0,IF(Inputs!$F$19="gross",AQ109,AQ110))-IF(AQ109>0,Model!AQ111,0),IF(AQ39=0,0,IF(Inputs!$F$19="gross",AQ109,AQ110))) -> 0 | AR112: =IF(Inputs!$F$20=1,IF(AR$31=0,0,IF(Inputs!$F$19="gross",AR109,AR110))-IF(AR109>0,Model!AR111,0),IF(AR39=0,0,IF(Inputs!$F$19="gross",AR109,AR110))) -> 0 | AS112: =IF(Inputs!$F$20=1,IF(AS$31=0,0,IF(Inputs!$F$19="gross",AS109,AS110))-IF(AS109>0,Model!AS111,0),IF(AS39=0,0,IF(Inputs!$F$19="gross",AS109,AS110))) -> 0 | AT112: =IF(Inputs!$F$20=1,IF(AT$31=0,0,IF(Inputs!$F$19="gross",AT109,AT110))-IF(AT109>0,Model!AT111,0),IF(AT39=0,0,IF(Inputs!$F$19="gross",AT109,AT110))) -> 0 | AU112: =IF(Inputs!$F$20=1,IF(AU$31=0,0,IF(Inputs!$F$19="gross",AU109,AU110))-IF(AU109>0,Model!AU111,0),IF(AU39=0,0,IF(Inputs!$F$19="gross",AU109,AU110))) -> 0 | AV112: =IF(Inputs!$F$20=1,IF(AV$31=0,0,IF(Inputs!$F$19="gross",AV109,AV110))-IF(AV109>0,Model!AV111,0),IF(AV39=0,0,IF(Inputs!$F$19="gross",AV109,AV110))) -> 0 | AW112: =IF(Inputs!$F$20=1,IF(AW$31=0,0,IF(Inputs!$F$19="gross",AW109,AW110))-IF(AW109>0,Model!AW111,0),IF(AW39=0,0,IF(Inputs!$F$19="gross",AW109,AW110))) -> 0 | AX112: =IF(Inputs!$F$20=1,IF(AX$31=0,0,IF(Inputs!$F$19="gross",AX109,AX110))-IF(AX109>0,Model!AX111,0),IF(AX39=0,0,IF(Inputs!$F$19="gross",AX109,AX110))) -> 0 | AY112: =IF(Inputs!$F$20=1,IF(AY$31=0,0,IF(Inputs!$F$19="gross",AY109,AY110))-IF(AY109>0,Model!AY111,0),IF(AY39=0,0,IF(Inputs!$F$19="gross",AY109,AY110))) -> 0 | AZ112: =IF(Inputs!$F$20=1,IF(AZ$31=0,0,IF(Inputs!$F$19="gross",AZ109,AZ110))-IF(AZ109>0,Model!AZ111,0),IF(AZ39=0,0,IF(Inputs!$F$19="gross",AZ109,AZ110))) -> 0 | BA112: =IF(Inputs!$F$20=1,IF(BA$31=0,0,IF(Inputs!$F$19="gross",BA109,BA110))-IF(BA109>0,Model!BA111,0),IF(BA39=0,0,IF(Inputs!$F$19="gross",BA109,BA110))) -> 0 | BB112: =IF(Inputs!$F$20=1,IF(BB$31=0,0,IF(Inputs!$F$19="gross",BB109,BB110))-IF(BB109>0,Model!BB111,0),IF(BB39=0,0,IF(Inputs!$F$19="gross",BB109,BB110))) -> 0 | BC112: =IF(Inputs!$F$20=1,IF(BC$31=0,0,IF(Inputs!$F$19="gross",BC109,BC110))-IF(BC109>0,Model!BC111,0),IF(BC39=0,0,IF(Inputs!$F$19="gross",BC109,BC110))) -> 0 | BD112: =IF(Inputs!$F$20=1,IF(BD$31=0,0,IF(Inputs!$F$19="gross",BD109,BD110))-IF(BD109>0,Model!BD111,0),IF(BD39=0,0,IF(Inputs!$F$19="gross",BD109,BD110))) -> 0
D113: Rate | E113: % | G113: =CHOOSE(Inputs!$E$6,Inputs!$F$16,Inputs!$F$17,Inputs!$F$18)+Inputs!$F$21 -> 0.07 | H113: =CHOOSE(Inputs!$E$6,Inputs!$F$16,Inputs!$F$17,Inputs!$F$18)+Inputs!$F$21 -> 0.07 | I113: =CHOOSE(Inputs!$E$6,Inputs!$F$16,Inputs!$F$17,Inputs!$F$18)+Inputs!$F$21 -> 0.07 | J113: =CHOOSE(Inputs!$E$6,Inputs!$F$16,Inputs!$F$17,Inputs!$F$18)+Inputs!$F$21 -> 0.07 | K113: =CHOOSE(Inputs!$E$6,Inputs!$F$16,Inputs!$F$17,Inputs!$F$18)+Inputs!$F$21 -> 0.07 | L113: =CHOOSE(Inputs!$E$6,Inputs!$F$16,Inputs!$F$17,Inputs!$F$18)+Inputs!$F$21 -> 0.07 | M113: =CHOOSE(Inputs!$E$6,Inputs!$F$16,Inputs!$F$17,Inputs!$F$18)+Inputs!$F$21 -> 0.07 | N113: =CHOOSE(Inputs!$E$6,Inputs!$F$16,Inputs!$F$17,Inputs!$F$18)+Inputs!$F$21 -> 0.07 | O113: =CHOOSE(Inputs!$E$6,Inputs!$F$16,Inputs!$F$17,Inputs!$F$18)+Inputs!$F$21 -> 0.07 | P113: =CHOOSE(Inputs!$E$6,Inputs!$F$16,Inputs!$F$17,Inputs!$F$18)+Inputs!$F$21 -> 0.07 | Q113: =CHOOSE(Inputs!$E$6,Inputs!$F$16,Inputs!$F$17,Inputs!$F$18)+Inputs!$F$21 -> 0.07 | R113: =CHOOSE(Inputs!$E$6,Inputs!$F$16,Inputs!$F$17,Inputs!$F$18)+Inputs!$F$21 -> 0.07 | S113: =CHOOSE(Inputs!$E$6,Inputs!$F$16,Inputs!$F$17,Inputs!$F$18)+Inputs!$F$21 -> 0.07 | T113: =CHOOSE(Inputs!$E$6,Inputs!$F$16,Inputs!$F$17,Inputs!$F$18)+Inputs!$F$21 -> 0.07 | U113: =CHOOSE(Inputs!$E$6,Inputs!$F$16,Inputs!$F$17,Inputs!$F$18)+Inputs!$F$21 -> 0.07 | V113: =CHOOSE(Inputs!$E$6,Inputs!$F$16,Inputs!$F$17,Inputs!$F$18)+Inputs!$F$21 -> 0.07 | W113: =CHOOSE(Inputs!$E$6,Inputs!$F$16,Inputs!$F$17,Inputs!$F$18)+Inputs!$F$21 -> 0.07 | X113: =CHOOSE(Inputs!$E$6,Inputs!$F$16,Inputs!$F$17,Inputs!$F$18)+Inputs!$F$21 -> 0.07 | Y113: =CHOOSE(Inputs!$E$6,Inputs!$F$16,Inputs!$F$17,Inputs!$F$18)+Inputs!$F$21 -> 0.07 | Z113: =CHOOSE(Inputs!$E$6,Inputs!$F$16,Inputs!$F$17,Inputs!$F$18)+Inputs!$F$21 -> 0.07 | AA113: =CHOOSE(Inputs!$E$6,Inputs!$F$16,Inputs!$F$17,Inputs!$F$18)+Inputs!$F$21 -> 0.07 | AB113: =CHOOSE(Inputs!$E$6,Inputs!$F$16,Inputs!$F$17,Inputs!$F$18)+Inputs!$F$21 -> 0.07 | AC113: =CHOOSE(Inputs!$E$6,Inputs!$F$16,Inputs!$F$17,Inputs!$F$18)+Inputs!$F$21 -> 0.07 | AD113: =CHOOSE(Inputs!$E$6,Inputs!$F$16,Inputs!$F$17,Inputs!$F$18)+Inputs!$F$21 -> 0.07 | AE113: =CHOOSE(Inputs!$E$6,Inputs!$F$16,Inputs!$F$17,Inputs!$F$18)+Inputs!$F$21 -> 0.07 | AF113: =CHOOSE(Inputs!$E$6,Inputs!$F$16,Inputs!$F$17,Inputs!$F$18)+Inputs!$F$21 -> 0.07 | AG113: =CHOOSE(Inputs!$E$6,Inputs!$F$16,Inputs!$F$17,Inputs!$F$18)+Inputs!$F$21 -> 0.07 | AH113: =CHOOSE(Inputs!$E$6,Inputs!$F$16,Inputs!$F$17,Inputs!$F$18)+Inputs!$F$21 -> 0.07 | AI113: =CHOOSE(Inputs!$E$6,Inputs!$F$16,Inputs!$F$17,Inputs!$F$18)+Inputs!$F$21 -> 0.07 | AJ113: =CHOOSE(Inputs!$E$6,Inputs!$F$16,Inputs!$F$17,Inputs!$F$18)+Inputs!$F$21 -> 0.07 | AK113: =CHOOSE(Inputs!$E$6,Inputs!$F$16,Inputs!$F$17,Inputs!$F$18)+Inputs!$F$21 -> 0.07 | AL113: =CHOOSE(Inputs!$E$6,Inputs!$F$16,Inputs!$F$17,Inputs!$F$18)+Inputs!$F$21 -> 0.07 | AM113: =CHOOSE(Inputs!$E$6,Inputs!$F$16,Inputs!$F$17,Inputs!$F$18)+Inputs!$F$21 -> 0.07 | AN113: =CHOOSE(Inputs!$E$6,Inputs!$F$16,Inputs!$F$17,Inputs!$F$18)+Inputs!$F$21 -> 0.07 | AO113: =CHOOSE(Inputs!$E$6,Inputs!$F$16,Inputs!$F$17,Inputs!$F$18)+Inputs!$F$21 -> 0.07 | AP113: =CHOOSE(Inputs!$E$6,Inputs!$F$16,Inputs!$F$17,Inputs!$F$18)+Inputs!$F$21 -> 0.07 | AQ113: =CHOOSE(Inputs!$E$6,Inputs!$F$16,Inputs!$F$17,Inputs!$F$18)+Inputs!$F$21 -> 0.07 | AR113: =CHOOSE(Inputs!$E$6,Inputs!$F$16,Inputs!$F$17,Inputs!$F$18)+Inputs!$F$21 -> 0.07 | AS113: =CHOOSE(Inputs!$E$6,Inputs!$F$16,Inputs!$F$17,Inputs!$F$18)+Inputs!$F$21 -> 0.07 | AT113: =CHOOSE(Inputs!$E$6,Inputs!$F$16,Inputs!$F$17,Inputs!$F$18)+Inputs!$F$21 -> 0.07 | AU113: =CHOOSE(Inputs!$E$6,Inputs!$F$16,Inputs!$F$17,Inputs!$F$18)+Inputs!$F$21 -> 0.07 | AV113: =CHOOSE(Inputs!$E$6,Inputs!$F$16,Inputs!$F$17,Inputs!$F$18)+Inputs!$F$21 -> 0.07 | AW113: =CHOOSE(Inputs!$E$6,Inputs!$F$16,Inputs!$F$17,Inputs!$F$18)+Inputs!$F$21 -> 0.07 | AX113: =CHOOSE(Inputs!$E$6,Inputs!$F$16,Inputs!$F$17,Inputs!$F$18)+Inputs!$F$21 -> 0.07 | AY113: =CHOOSE(Inputs!$E$6,Inputs!$F$16,Inputs!$F$17,Inputs!$F$18)+Inputs!$F$21 -> 0.07 | AZ113: =CHOOSE(Inputs!$E$6,Inputs!$F$16,Inputs!$F$17,Inputs!$F$18)+Inputs!$F$21 -> 0.07 | BA113: =CHOOSE(Inputs!$E$6,Inputs!$F$16,Inputs!$F$17,Inputs!$F$18)+Inputs!$F$21 -> 0.07 | BB113: =CHOOSE(Inputs!$E$6,Inputs!$F$16,Inputs!$F$17,Inputs!$F$18)+Inputs!$F$21 -> 0.07 | BC113: =CHOOSE(Inputs!$E$6,Inputs!$F$16,Inputs!$F$17,Inputs!$F$18)+Inputs!$F$21 -> 0.07 | BD113: =CHOOSE(Inputs!$E$6,Inputs!$F$16,Inputs!$F$17,Inputs!$F$18)+Inputs!$F$21 -> 0.07
C114: =SUM(G114:BD114) -> 54.02065699 | D114: Royalty payable (co-product) | E114: $mm nominal | G114: =G112*G113 -> 0 | H114: =H112*H113 -> 0 | I114: =I112*I113 -> 0.946764 | J114: =J112*J113 -> 2.4142482 | K114: 2.462533164 | L114: 2.511783827 | M114: 2.562019504 | N114: 2.613259894 | O114: 2.665525092 | P114: 2.718835594 | Q114: 2.773212305 | R114: 2.828676552 | S114: 2.885250083 | T114: 2.942955084 | U114: 3.001814186 | V114: 3.06185047 | W114: 3.123087479 | X114: 3.185549229 | Y114: 3.249260213 | Z114: 3.314245418 | AA114: 3.380530326 | AB114: 1.379256373 | AC114: 0 | AD114: 0 | AE114: 0 | AF114: 0 | AG114: 0 | AH114: 0 | AI114: 0 | AJ114: 0 | AK114: 0 | AL114: 0 | AM114: 0 | AN114: 0 | AO114: 0 | AP114: 0 | AQ114: 0 | AR114: 0 | AS114: 0 | AT114: 0 | AU114: 0 | AV114: 0 | AW114: 0 | AX114: 0 | AY114: 0 | AZ114: 0 | BA114: 0 | BB114: 0 | BC114: 0 | BD114: 0
D116: Variable rate royalty - revenue based
D117: Base | E117: $mm nominal | G117: =IF(AND(G104>Inputs!$E$101,G104<Inputs!$E$108),G104,0) -> 0 | H117: =IF(AND(H104>Inputs!$E$101,H104<Inputs!$E$108),H104,0) -> 0 | I117: =IF(AND(I104>Inputs!$E$101,I104<Inputs!$E$108),I104,0) -> 135.252 | J117: =IF(AND(J104>Inputs!$E$101,J104<Inputs!$E$108),J104,0) -> 344.8926 | K117: =IF(AND(K104>Inputs!$E$101,K104<Inputs!$E$108),K104,0) -> 0 | L117: =IF(AND(L104>Inputs!$E$101,L104<Inputs!$E$108),L104,0) -> 0 | M117: =IF(AND(M104>Inputs!$E$101,M104<Inputs!$E$108),M104,0) -> 0 | N117: =IF(AND(N104>Inputs!$E$101,N104<Inputs!$E$108),N104,0) -> 0 | O117: =IF(AND(O104>Inputs!$E$101,O104<Inputs!$E$108),O104,0) -> 0 | P117: =IF(AND(P104>Inputs!$E$101,P104<Inputs!$E$108),P104,0) -> 0 | Q117: =IF(AND(Q104>Inputs!$E$101,Q104<Inputs!$E$108),Q104,0) -> 0 | R117: =IF(AND(R104>Inputs!$E$101,R104<Inputs!$E$108),R104,0) -> 0 | S117: =IF(AND(S104>Inputs!$E$101,S104<Inputs!$E$108),S104,0) -> 0 | T117: =IF(AND(T104>Inputs!$E$101,T104<Inputs!$E$108),T104,0) -> 0 | U117: =IF(AND(U104>Inputs!$E$101,U104<Inputs!$E$108),U104,0) -> 0 | V117: =IF(AND(V104>Inputs!$E$101,V104<Inputs!$E$108),V104,0) -> 0 | W117: =IF(AND(W104>Inputs!$E$101,W104<Inputs!$E$108),W104,0) -> 0 | X117: =IF(AND(X104>Inputs!$E$101,X104<Inputs!$E$108),X104,0) -> 0 | Y117: =IF(AND(Y104>Inputs!$E$101,Y104<Inputs!$E$108),Y104,0) -> 0 | Z117: =IF(AND(Z104>Inputs!$E$101,Z104<Inputs!$E$108),Z104,0) -> 0 | AA117: =IF(AND(AA104>Inputs!$E$101,AA104<Inputs!$E$108),AA104,0) -> 0 | AB117: =IF(AND(AB104>Inputs!$E$101,AB104<Inputs!$E$108),AB104,0) -> 197.0366247 | AC117: =IF(AND(AC104>Inputs!$E$101,AC104<Inputs!$E$108),AC104,0) -> 0 | AD117: =IF(AND(AD104>Inputs!$E$101,AD104<Inputs!$E$108),AD104,0) -> 0 | AE117: =IF(AND(AE104>Inputs!$E$101,AE104<Inputs!$E$108),AE104,0) -> 0 | AF117: =IF(AND(AF104>Inputs!$E$101,AF104<Inputs!$E$108),AF104,0) -> 0 | AG117: =IF(AND(AG104>Inputs!$E$101,AG104<Inputs!$E$108),AG104,0) -> 0 | AH117: =IF(AND(AH104>Inputs!$E$101,AH104<Inputs!$E$108),AH104,0) -> 0 | AI117: =IF(AND(AI104>Inputs!$E$101,AI104<Inputs!$E$108),AI104,0) -> 0 | AJ117: =IF(AND(AJ104>Inputs!$E$101,AJ104<Inputs!$E$108),AJ104,0) -> 0 | AK117: =IF(AND(AK104>Inputs!$E$101,AK104<Inputs!$E$108),AK104,0) -> 0 | AL117: =IF(AND(AL104>Inputs!$E$101,AL104<Inputs!$E$108),AL104,0) -> 0 | AM117: =IF(AND(AM104>Inputs!$E$101,AM104<Inputs!$E$108),AM104,0) -> 0 | AN117: =IF(AND(AN104>Inputs!$E$101,AN104<Inputs!$E$108),AN104,0) -> 0 | AO117: =IF(AND(AO104>Inputs!$E$101,AO104<Inputs!$E$108),AO104,0) -> 0 | AP117: =IF(AND(AP104>Inputs!$E$101,AP104<Inputs!$E$108),AP104,0) -> 0 | AQ117: =IF(AND(AQ104>Inputs!$E$101,AQ104<Inputs!$E$108),AQ104,0) -> 0 | AR117: =IF(AND(AR104>Inputs!$E$101,AR104<Inputs!$E$108),AR104,0) -> 0 | AS117: =IF(AND(AS104>Inputs!$E$101,AS104<Inputs!$E$108),AS104,0) -> 0 | AT117: =IF(AND(AT104>Inputs!$E$101,AT104<Inputs!$E$108),AT104,0) -> 0 | AU117: =IF(AND(AU104>Inputs!$E$101,AU104<Inputs!$E$108),AU104,0) -> 0 | AV117: =IF(AND(AV104>Inputs!$E$101,AV104<Inputs!$E$108),AV104,0) -> 0 | AW117: =IF(AND(AW104>Inputs!$E$101,AW104<Inputs!$E$108),AW104,0) -> 0 | AX117: =IF(AND(AX104>Inputs!$E$101,AX104<Inputs!$E$108),AX104,0) -> 0 | AY117: =IF(AND(AY104>Inputs!$E$101,AY104<Inputs!$E$108),AY104,0) -> 0 | AZ117: =IF(AND(AZ104>Inputs!$E$101,AZ104<Inputs!$E$108),AZ104,0) -> 0 | BA117: =IF(AND(BA104>Inputs!$E$101,BA104<Inputs!$E$108),BA104,0) -> 0 | BB117: =IF(AND(BB104>Inputs!$E$101,BB104<Inputs!$E$108),BB104,0) -> 0 | BC117: =IF(AND(BC104>Inputs!$E$101,BC104<Inputs!$E$108),BC104,0) -> 0 | BD117: =IF(AND(BD104>Inputs!$E$101,BD104<Inputs!$E$108),BD104,0) -> 0
D119: Bracket 1 | E119: $mm nominal | G119: =MIN(G117,Inputs!$E$101) -> 0 | H119: =MIN(H117,Inputs!$E$101) -> 0 | I119: =MIN(I117,Inputs!$E$101) -> 72 | J119: =MIN(J117,Inputs!$E$101) -> 72 | K119: =MIN(K117,Inputs!$E$101) -> 0 | L119: =MIN(L117,Inputs!$E$101) -> 0 | M119: =MIN(M117,Inputs!$E$101) -> 0 | N119: =MIN(N117,Inputs!$E$101) -> 0 | O119: =MIN(O117,Inputs!$E$101) -> 0 | P119: =MIN(P117,Inputs!$E$101) -> 0 | Q119: =MIN(Q117,Inputs!$E$101) -> 0 | R119: =MIN(R117,Inputs!$E$101) -> 0 | S119: =MIN(S117,Inputs!$E$101) -> 0 | T119: =MIN(T117,Inputs!$E$101) -> 0 | U119: =MIN(U117,Inputs!$E$101) -> 0 | V119: =MIN(V117,Inputs!$E$101) -> 0 | W119: =MIN(W117,Inputs!$E$101) -> 0 | X119: =MIN(X117,Inputs!$E$101) -> 0 | Y119: =MIN(Y117,Inputs!$E$101) -> 0 | Z119: =MIN(Z117,Inputs!$E$101) -> 0 | AA119: =MIN(AA117,Inputs!$E$101) -> 0 | AB119: =MIN(AB117,Inputs!$E$101) -> 72 | AC119: =MIN(AC117,Inputs!$E$101) -> 0 | AD119: =MIN(AD117,Inputs!$E$101) -> 0 | AE119: =MIN(AE117,Inputs!$E$101) -> 0 | AF119: =MIN(AF117,Inputs!$E$101) -> 0 | AG119: =MIN(AG117,Inputs!$E$101) -> 0 | AH119: =MIN(AH117,Inputs!$E$101) -> 0 | AI119: =MIN(AI117,Inputs!$E$101) -> 0 | AJ119: =MIN(AJ117,Inputs!$E$101) -> 0 | AK119: =MIN(AK117,Inputs!$E$101) -> 0 | AL119: =MIN(AL117,Inputs!$E$101) -> 0 | AM119: =MIN(AM117,Inputs!$E$101) -> 0 | AN119: =MIN(AN117,Inputs!$E$101) -> 0 | AO119: =MIN(AO117,Inputs!$E$101) -> 0 | AP119: =MIN(AP117,Inputs!$E$101) -> 0 | AQ119: =MIN(AQ117,Inputs!$E$101) -> 0 | AR119: =MIN(AR117,Inputs!$E$101) -> 0 | AS119: =MIN(AS117,Inputs!$E$101) -> 0 | AT119: =MIN(AT117,Inputs!$E$101) -> 0 | AU119: =MIN(AU117,Inputs!$E$101) -> 0 | AV119: =MIN(AV117,Inputs!$E$101) -> 0 | AW119: =MIN(AW117,Inputs!$E$101) -> 0 | AX119: =MIN(AX117,Inputs!$E$101) -> 0 | AY119: =MIN(AY117,Inputs!$E$101) -> 0 | AZ119: =MIN(AZ117,Inputs!$E$101) -> 0 | BA119: =MIN(BA117,Inputs!$E$101) -> 0 | BB119: =MIN(BB117,Inputs!$E$101) -> 0 | BC119: =MIN(BC117,Inputs!$E$101) -> 0 | BD119: =MIN(BD117,Inputs!$E$101) -> 0
D120: Bracket 2 | E120: $mm nominal | G120: =(G$117>Inputs!$E101)*(G$117-Inputs!$E101-G121-G122-G126-G124-G125-G123-G127-G128-G129-G130-G131-G132) -> 0 | H120: =(H$117>Inputs!$E101)*(H$117-Inputs!$E101-H121-H122-H126-H124-H125-H123-H127-H128-H129-H130-H131-H132) -> 0 | I120: =(I$117>Inputs!$E101)*(I$117-Inputs!$E101-I121-I122-I126-I124-I125-I123-I127-I128-I129-I130-I131-I132) -> 18 | J120: =(J$117>Inputs!$E101)*(J$117-Inputs!$E101-J121-J122-J126-J124-J125-J123-J127-J128-J129-J130-J131-J132) -> 18 | K120: =(K$117>Inputs!$E101)*(K$117-Inputs!$E101-K121-K122-K126-K124-K125-K123-K127-K128-K129-K130-K131-K132) -> 0 | L120: =(L$117>Inputs!$E101)*(L$117-Inputs!$E101-L121-L122-L126-L124-L125-L123-L127-L128-L129-L130-L131-L132) -> 0 | M120: =(M$117>Inputs!$E101)*(M$117-Inputs!$E101-M121-M122-M126-M124-M125-M123-M127-M128-M129-M130-M131-M132) -> 0 | N120: =(N$117>Inputs!$E101)*(N$117-Inputs!$E101-N121-N122-N126-N124-N125-N123-N127-N128-N129-N130-N131-N132) -> 0 | O120: =(O$117>Inputs!$E101)*(O$117-Inputs!$E101-O121-O122-O126-O124-O125-O123-O127-O128-O129-O130-O131-O132) -> 0 | P120: =(P$117>Inputs!$E101)*(P$117-Inputs!$E101-P121-P122-P126-P124-P125-P123-P127-P128-P129-P130-P131-P132) -> 0 | Q120: =(Q$117>Inputs!$E101)*(Q$117-Inputs!$E101-Q121-Q122-Q126-Q124-Q125-Q123-Q127-Q128-Q129-Q130-Q131-Q132) -> 0 | R120: =(R$117>Inputs!$E101)*(R$117-Inputs!$E101-R121-R122-R126-R124-R125-R123-R127-R128-R129-R130-R131-R132) -> 0 | S120: =(S$117>Inputs!$E101)*(S$117-Inputs!$E101-S121-S122-S126-S124-S125-S123-S127-S128-S129-S130-S131-S132) -> 0 | T120: =(T$117>Inputs!$E101)*(T$117-Inputs!$E101-T121-T122-T126-T124-T125-T123-T127-T128-T129-T130-T131-T132) -> 0 | U120: =(U$117>Inputs!$E101)*(U$117-Inputs!$E101-U121-U122-U126-U124-U125-U123-U127-U128-U129-U130-U131-U132) -> 0 | V120: =(V$117>Inputs!$E101)*(V$117-Inputs!$E101-V121-V122-V126-V124-V125-V123-V127-V128-V129-V130-V131-V132) -> 0 | W120: =(W$117>Inputs!$E101)*(W$117-Inputs!$E101-W121-W122-W126-W124-W125-W123-W127-W128-W129-W130-W131-W132) -> 0 | X120: =(X$117>Inputs!$E101)*(X$117-Inputs!$E101-X121-X122-X126-X124-X125-X123-X127-X128-X129-X130-X131-X132) -> 0 | Y120: =(Y$117>Inputs!$E101)*(Y$117-Inputs!$E101-Y121-Y122-Y126-Y124-Y125-Y123-Y127-Y128-Y129-Y130-Y131-Y132) -> 0 | Z120: =(Z$117>Inputs!$E101)*(Z$117-Inputs!$E101-Z121-Z122-Z126-Z124-Z125-Z123-Z127-Z128-Z129-Z130-Z131-Z132) -> 0 | AA120: =(AA$117>Inputs!$E101)*(AA$117-Inputs!$E101-AA121-AA122-AA126-AA124-AA125-AA123-AA127-AA128-AA129-AA130-AA131-AA132) -> 0 | AB120: =(AB$117>Inputs!$E101)*(AB$117-Inputs!$E101-AB121-AB122-AB126-AB124-AB125-AB123-AB127-AB128-AB129-AB130-AB131-AB132) -> 18 | AC120: =(AC$117>Inputs!$E101)*(AC$117-Inputs!$E101-AC121-AC122-AC126-AC124-AC125-AC123-AC127-AC128-AC129-AC130-AC131-AC132) -> 0 | AD120: =(AD$117>Inputs!$E101)*(AD$117-Inputs!$E101-AD121-AD122-AD126-AD124-AD125-AD123-AD127-AD128-AD129-AD130-AD131-AD132) -> 0 | AE120: =(AE$117>Inputs!$E101)*(AE$117-Inputs!$E101-AE121-AE122-AE126-AE124-AE125-AE123-AE127-AE128-AE129-AE130-AE131-AE132) -> 0 | AF120: =(AF$117>Inputs!$E101)*(AF$117-Inputs!$E101-AF121-AF122-AF126-AF124-AF125-AF123-AF127-AF128-AF129-AF130-AF131-AF132) -> 0 | AG120: =(AG$117>Inputs!$E101)*(AG$117-Inputs!$E101-AG121-AG122-AG126-AG124-AG125-AG123-AG127-AG128-AG129-AG130-AG131-AG132) -> 0 | AH120: =(AH$117>Inputs!$E101)*(AH$117-Inputs!$E101-AH121-AH122-AH126-AH124-AH125-AH123-AH127-AH128-AH129-AH130-AH131-AH132) -> 0 | AI120: =(AI$117>Inputs!$E101)*(AI$117-Inputs!$E101-AI121-AI122-AI126-AI124-AI125-AI123-AI127-AI128-AI129-AI130-AI131-AI132) -> 0 | AJ120: =(AJ$117>Inputs!$E101)*(AJ$117-Inputs!$E101-AJ121-AJ122-AJ126-AJ124-AJ125-AJ123-AJ127-AJ128-AJ129-AJ130-AJ131-AJ132) -> 0 | AK120: =(AK$117>Inputs!$E101)*(AK$117-Inputs!$E101-AK121-AK122-AK126-AK124-AK125-AK123-AK127-AK128-AK129-AK130-AK131-AK132) -> 0 | AL120: =(AL$117>Inputs!$E101)*(AL$117-Inputs!$E101-AL121-AL122-AL126-AL124-AL125-AL123-AL127-AL128-AL129-AL130-AL131-AL132) -> 0 | AM120: =(AM$117>Inputs!$E101)*(AM$117-Inputs!$E101-AM121-AM122-AM126-AM124-AM125-AM123-AM127-AM128-AM129-AM130-AM131-AM132) -> 0 | AN120: =(AN$117>Inputs!$E101)*(AN$117-Inputs!$E101-AN121-AN122-AN126-AN124-AN125-AN123-AN127-AN128-AN129-AN130-AN131-AN132) -> 0 | AO120: =(AO$117>Inputs!$E101)*(AO$117-Inputs!$E101-AO121-AO122-AO126-AO124-AO125-AO123-AO127-AO128-AO129-AO130-AO131-AO132) -> 0 | AP120: =(AP$117>Inputs!$E101)*(AP$117-Inputs!$E101-AP121-AP122-AP126-AP124-AP125-AP123-AP127-AP128-AP129-AP130-AP131-AP132) -> 0 | AQ120: =(AQ$117>Inputs!$E101)*(AQ$117-Inputs!$E101-AQ121-AQ122-AQ126-AQ124-AQ125-AQ123-AQ127-AQ128-AQ129-AQ130-AQ131-AQ132) -> 0 | AR120: =(AR$117>Inputs!$E101)*(AR$117-Inputs!$E101-AR121-AR122-AR126-AR124-AR125-AR123-AR127-AR128-AR129-AR130-AR131-AR132) -> 0 | AS120: =(AS$117>Inputs!$E101)*(AS$117-Inputs!$E101-AS121-AS122-AS126-AS124-AS125-AS123-AS127-AS128-AS129-AS130-AS131-AS132) -> 0 | AT120: =(AT$117>Inputs!$E101)*(AT$117-Inputs!$E101-AT121-AT122-AT126-AT124-AT125-AT123-AT127-AT128-AT129-AT130-AT131-AT132) -> 0 | AU120: =(AU$117>Inputs!$E101)*(AU$117-Inputs!$E101-AU121-AU122-AU126-AU124-AU125-AU123-AU127-AU128-AU129-AU130-AU131-AU132) -> 0 | AV120: =(AV$117>Inputs!$E101)*(AV$117-Inputs!$E101-AV121-AV122-AV126-AV124-AV125-AV123-AV127-AV128-AV129-AV130-AV131-AV132) -> 0 | AW120: =(AW$117>Inputs!$E101)*(AW$117-Inputs!$E101-AW121-AW122-AW126-AW124-AW125-AW123-AW127-AW128-AW129-AW130-AW131-AW132) -> 0 | AX120: =(AX$117>Inputs!$E101)*(AX$117-Inputs!$E101-AX121-AX122-AX126-AX124-AX125-AX123-AX127-AX128-AX129-AX130-AX131-AX132) -> 0 | AY120: =(AY$117>Inputs!$E101)*(AY$117-Inputs!$E101-AY121-AY122-AY126-AY124-AY125-AY123-AY127-AY128-AY129-AY130-AY131-AY132) -> 0 | AZ120: =(AZ$117>Inputs!$E101)*(AZ$117-Inputs!$E101-AZ121-AZ122-AZ126-AZ124-AZ125-AZ123-AZ127-AZ128-AZ129-AZ130-AZ131-AZ132) -> 0 | BA120: =(BA$117>Inputs!$E101)*(BA$117-Inputs!$E101-BA121-BA122-BA126-BA124-BA125-BA123-BA127-BA128-BA129-BA130-BA131-BA132) -> 0 | BB120: =(BB$117>Inputs!$E101)*(BB$117-Inputs!$E101-BB121-BB122-BB126-BB124-BB125-BB123-BB127-BB128-BB129-BB130-BB131-BB132) -> 0 | BC120: =(BC$117>Inputs!$E101)*(BC$117-Inputs!$E101-BC121-BC122-BC126-BC124-BC125-BC123-BC127-BC128-BC129-BC130-BC131-BC132) -> 0 | BD120: =(BD$117>Inputs!$E101)*(BD$117-Inputs!$E101-BD121-BD122-BD126-BD124-BD125-BD123-BD127-BD128-BD129-BD130-BD131-BD132) -> 0
D121: Bracket 3 | E121: $mm nominal | G121: =(G$117>Inputs!$E102)*(G$117-Inputs!$E102-G122-G123-G127-G125-G126-G124-G128-G129-G130-G131-G132) -> 0 | H121: =(H$117>Inputs!$E102)*(H$117-Inputs!$E102-H122-H123-H127-H125-H126-H124-H128-H129-H130-H131-H132) -> 0 | I121: =(I$117>Inputs!$E102)*(I$117-Inputs!$E102-I122-I123-I127-I125-I126-I124-I128-I129-I130-I131-I132) -> 30 | J121: =(J$117>Inputs!$E102)*(J$117-Inputs!$E102-J122-J123-J127-J125-J126-J124-J128-J129-J130-J131-J132) -> 30 | K121: =(K$117>Inputs!$E102)*(K$117-Inputs!$E102-K122-K123-K127-K125-K126-K124-K128-K129-K130-K131-K132) -> 0 | L121: =(L$117>Inputs!$E102)*(L$117-Inputs!$E102-L122-L123-L127-L125-L126-L124-L128-L129-L130-L131-L132) -> 0 | M121: =(M$117>Inputs!$E102)*(M$117-Inputs!$E102-M122-M123-M127-M125-M126-M124-M128-M129-M130-M131-M132) -> 0 | N121: =(N$117>Inputs!$E102)*(N$117-Inputs!$E102-N122-N123-N127-N125-N126-N124-N128-N129-N130-N131-N132) -> 0 | O121: =(O$117>Inputs!$E102)*(O$117-Inputs!$E102-O122-O123-O127-O125-O126-O124-O128-O129-O130-O131-O132) -> 0 | P121: =(P$117>Inputs!$E102)*(P$117-Inputs!$E102-P122-P123-P127-P125-P126-P124-P128-P129-P130-P131-P132) -> 0 | Q121: =(Q$117>Inputs!$E102)*(Q$117-Inputs!$E102-Q122-Q123-Q127-Q125-Q126-Q124-Q128-Q129-Q130-Q131-Q132) -> 0 | R121: =(R$117>Inputs!$E102)*(R$117-Inputs!$E102-R122-R123-R127-R125-R126-R124-R128-R129-R130-R131-R132) -> 0 | S121: =(S$117>Inputs!$E102)*(S$117-Inputs!$E102-S122-S123-S127-S125-S126-S124-S128-S129-S130-S131-S132) -> 0 | T121: =(T$117>Inputs!$E102)*(T$117-Inputs!$E102-T122-T123-T127-T125-T126-T124-T128-T129-T130-T131-T132) -> 0 | U121: =(U$117>Inputs!$E102)*(U$117-Inputs!$E102-U122-U123-U127-U125-U126-U124-U128-U129-U130-U131-U132) -> 0 | V121: =(V$117>Inputs!$E102)*(V$117-Inputs!$E102-V122-V123-V127-V125-V126-V124-V128-V129-V130-V131-V132) -> 0 | W121: =(W$117>Inputs!$E102)*(W$117-Inputs!$E102-W122-W123-W127-W125-W126-W124-W128-W129-W130-W131-W132) -> 0 | X121: =(X$117>Inputs!$E102)*(X$117-Inputs!$E102-X122-X123-X127-X125-X126-X124-X128-X129-X130-X131-X132) -> 0 | Y121: =(Y$117>Inputs!$E102)*(Y$117-Inputs!$E102-Y122-Y123-Y127-Y125-Y126-Y124-Y128-Y129-Y130-Y131-Y132) -> 0 | Z121: =(Z$117>Inputs!$E102)*(Z$117-Inputs!$E102-Z122-Z123-Z127-Z125-Z126-Z124-Z128-Z129-Z130-Z131-Z132) -> 0 | AA121: =(AA$117>Inputs!$E102)*(AA$117-Inputs!$E102-AA122-AA123-AA127-AA125-AA126-AA124-AA128-AA129-AA130-AA131-AA132) -> 0 | AB121: =(AB$117>Inputs!$E102)*(AB$117-Inputs!$E102-AB122-AB123-AB127-AB125-AB126-AB124-AB128-AB129-AB130-AB131-AB132) -> 30 | AC121: =(AC$117>Inputs!$E102)*(AC$117-Inputs!$E102-AC122-AC123-AC127-AC125-AC126-AC124-AC128-AC129-AC130-AC131-AC132) -> 0 | AD121: =(AD$117>Inputs!$E102)*(AD$117-Inputs!$E102-AD122-AD123-AD127-AD125-AD126-AD124-AD128-AD129-AD130-AD131-AD132) -> 0 | AE121: =(AE$117>Inputs!$E102)*(AE$117-Inputs!$E102-AE122-AE123-AE127-AE125-AE126-AE124-AE128-AE129-AE130-AE131-AE132) -> 0 | AF121: =(AF$117>Inputs!$E102)*(AF$117-Inputs!$E102-AF122-AF123-AF127-AF125-AF126-AF124-AF128-AF129-AF130-AF131-AF132) -> 0 | AG121: =(AG$117>Inputs!$E102)*(AG$117-Inputs!$E102-AG122-AG123-AG127-AG125-AG126-AG124-AG128-AG129-AG130-AG131-AG132) -> 0 | AH121: =(AH$117>Inputs!$E102)*(AH$117-Inputs!$E102-AH122-AH123-AH127-AH125-AH126-AH124-AH128-AH129-AH130-AH131-AH132) -> 0 | AI121: =(AI$117>Inputs!$E102)*(AI$117-Inputs!$E102-AI122-AI123-AI127-AI125-AI126-AI124-AI128-AI129-AI130-AI131-AI132) -> 0 | AJ121: =(AJ$117>Inputs!$E102)*(AJ$117-Inputs!$E102-AJ122-AJ123-AJ127-AJ125-AJ126-AJ124-AJ128-AJ129-AJ130-AJ131-AJ132) -> 0 | AK121: =(AK$117>Inputs!$E102)*(AK$117-Inputs!$E102-AK122-AK123-AK127-AK125-AK126-AK124-AK128-AK129-AK130-AK131-AK132) -> 0 | AL121: =(AL$117>Inputs!$E102)*(AL$117-Inputs!$E102-AL122-AL123-AL127-AL125-AL126-AL124-AL128-AL129-AL130-AL131-AL132) -> 0 | AM121: =(AM$117>Inputs!$E102)*(AM$117-Inputs!$E102-AM122-AM123-AM127-AM125-AM126-AM124-AM128-AM129-AM130-AM131-AM132) -> 0 | AN121: =(AN$117>Inputs!$E102)*(AN$117-Inputs!$E102-AN122-AN123-AN127-AN125-AN126-AN124-AN128-AN129-AN130-AN131-AN132) -> 0 | AO121: =(AO$117>Inputs!$E102)*(AO$117-Inputs!$E102-AO122-AO123-AO127-AO125-AO126-AO124-AO128-AO129-AO130-AO131-AO132) -> 0 | AP121: =(AP$117>Inputs!$E102)*(AP$117-Inputs!$E102-AP122-AP123-AP127-AP125-AP126-AP124-AP128-AP129-AP130-AP131-AP132) -> 0 | AQ121: =(AQ$117>Inputs!$E102)*(AQ$117-Inputs!$E102-AQ122-AQ123-AQ127-AQ125-AQ126-AQ124-AQ128-AQ129-AQ130-AQ131-AQ132) -> 0 | AR121: =(AR$117>Inputs!$E102)*(AR$117-Inputs!$E102-AR122-AR123-AR127-AR125-AR126-AR124-AR128-AR129-AR130-AR131-AR132) -> 0 | AS121: =(AS$117>Inputs!$E102)*(AS$117-Inputs!$E102-AS122-AS123-AS127-AS125-AS126-AS124-AS128-AS129-AS130-AS131-AS132) -> 0 | AT121: =(AT$117>Inputs!$E102)*(AT$117-Inputs!$E102-AT122-AT123-AT127-AT125-AT126-AT124-AT128-AT129-AT130-AT131-AT132) -> 0 | AU121: =(AU$117>Inputs!$E102)*(AU$117-Inputs!$E102-AU122-AU123-AU127-AU125-AU126-AU124-AU128-AU129-AU130-AU131-AU132) -> 0 | AV121: =(AV$117>Inputs!$E102)*(AV$117-Inputs!$E102-AV122-AV123-AV127-AV125-AV126-AV124-AV128-AV129-AV130-AV131-AV132) -> 0 | AW121: =(AW$117>Inputs!$E102)*(AW$117-Inputs!$E102-AW122-AW123-AW127-AW125-AW126-AW124-AW128-AW129-AW130-AW131-AW132) -> 0 | AX121: =(AX$117>Inputs!$E102)*(AX$117-Inputs!$E102-AX122-AX123-AX127-AX125-AX126-AX124-AX128-AX129-AX130-AX131-AX132) -> 0 | AY121: =(AY$117>Inputs!$E102)*(AY$117-Inputs!$E102-AY122-AY123-AY127-AY125-AY126-AY124-AY128-AY129-AY130-AY131-AY132) -> 0 | AZ121: =(AZ$117>Inputs!$E102)*(AZ$117-Inputs!$E102-AZ122-AZ123-AZ127-AZ125-AZ126-AZ124-AZ128-AZ129-AZ130-AZ131-AZ132) -> 0 | BA121: =(BA$117>Inputs!$E102)*(BA$117-Inputs!$E102-BA122-BA123-BA127-BA125-BA126-BA124-BA128-BA129-BA130-BA131-BA132) -> 0 | BB121: =(BB$117>Inputs!$E102)*(BB$117-Inputs!$E102-BB122-BB123-BB127-BB125-BB126-BB124-BB128-BB129-BB130-BB131-BB132) -> 0 | BC121: =(BC$117>Inputs!$E102)*(BC$117-Inputs!$E102-BC122-BC123-BC127-BC125-BC126-BC124-BC128-BC129-BC130-BC131-BC132) -> 0 | BD121: =(BD$117>Inputs!$E102)*(BD$117-Inputs!$E102-BD122-BD123-BD127-BD125-BD126-BD124-BD128-BD129-BD130-BD131-BD132) -> 0
D122: Bracket 4 | E122: $mm nominal | G122: =(G$117>Inputs!$E103)*(G$117-Inputs!$E103-G123-G124-G128-G126-G127-G125-G129-G130-G131-G132) -> 0 | H122: =(H$117>Inputs!$E103)*(H$117-Inputs!$E103-H123-H124-H128-H126-H127-H125-H129-H130-H131-H132) -> 0 | I122: =(I$117>Inputs!$E103)*(I$117-Inputs!$E103-I123-I124-I128-I126-I127-I125-I129-I130-I131-I132) -> -120 | J122: =(J$117>Inputs!$E103)*(J$117-Inputs!$E103-J123-J124-J128-J126-J127-J125-J129-J130-J131-J132) -> 30 | K122: =(K$117>Inputs!$E103)*(K$117-Inputs!$E103-K123-K124-K128-K126-K127-K125-K129-K130-K131-K132) -> 0 | L122: =(L$117>Inputs!$E103)*(L$117-Inputs!$E103-L123-L124-L128-L126-L127-L125-L129-L130-L131-L132) -> 0 | M122: =(M$117>Inputs!$E103)*(M$117-Inputs!$E103-M123-M124-M128-M126-M127-M125-M129-M130-M131-M132) -> 0 | N122: =(N$117>Inputs!$E103)*(N$117-Inputs!$E103-N123-N124-N128-N126-N127-N125-N129-N130-N131-N132) -> 0 | O122: =(O$117>Inputs!$E103)*(O$117-Inputs!$E103-O123-O124-O128-O126-O127-O125-O129-O130-O131-O132) -> 0 | P122: =(P$117>Inputs!$E103)*(P$117-Inputs!$E103-P123-P124-P128-P126-P127-P125-P129-P130-P131-P132) -> 0 | Q122: =(Q$117>Inputs!$E103)*(Q$117-Inputs!$E103-Q123-Q124-Q128-Q126-Q127-Q125-Q129-Q130-Q131-Q132) -> 0 | R122: =(R$117>Inputs!$E103)*(R$117-Inputs!$E103-R123-R124-R128-R126-R127-R125-R129-R130-R131-R132) -> 0 | S122: =(S$117>Inputs!$E103)*(S$117-Inputs!$E103-S123-S124-S128-S126-S127-S125-S129-S130-S131-S132) -> 0 | T122: =(T$117>Inputs!$E103)*(T$117-Inputs!$E103-T123-T124-T128-T126-T127-T125-T129-T130-T131-T132) -> 0 | U122: =(U$117>Inputs!$E103)*(U$117-Inputs!$E103-U123-U124-U128-U126-U127-U125-U129-U130-U131-U132) -> 0 | V122: =(V$117>Inputs!$E103)*(V$117-Inputs!$E103-V123-V124-V128-V126-V127-V125-V129-V130-V131-V132) -> 0 | W122: =(W$117>Inputs!$E103)*(W$117-Inputs!$E103-W123-W124-W128-W126-W127-W125-W129-W130-W131-W132) -> 0 | X122: =(X$117>Inputs!$E103)*(X$117-Inputs!$E103-X123-X124-X128-X126-X127-X125-X129-X130-X131-X132) -> 0 | Y122: =(Y$117>Inputs!$E103)*(Y$117-Inputs!$E103-Y123-Y124-Y128-Y126-Y127-Y125-Y129-Y130-Y131-Y132) -> 0 | Z122: =(Z$117>Inputs!$E103)*(Z$117-Inputs!$E103-Z123-Z124-Z128-Z126-Z127-Z125-Z129-Z130-Z131-Z132) -> 0 | AA122: =(AA$117>Inputs!$E103)*(AA$117-Inputs!$E103-AA123-AA124-AA128-AA126-AA127-AA125-AA129-AA130-AA131-AA132) -> 0 | AB122: =(AB$117>Inputs!$E103)*(AB$117-Inputs!$E103-AB123-AB124-AB128-AB126-AB127-AB125-AB129-AB130-AB131-AB132) -> 30 | AC122: =(AC$117>Inputs!$E103)*(AC$117-Inputs!$E103-AC123-AC124-AC128-AC126-AC127-AC125-AC129-AC130-AC131-AC132) -> 0 | AD122: =(AD$117>Inputs!$E103)*(AD$117-Inputs!$E103-AD123-AD124-AD128-AD126-AD127-AD125-AD129-AD130-AD131-AD132) -> 0 | AE122: =(AE$117>Inputs!$E103)*(AE$117-Inputs!$E103-AE123-AE124-AE128-AE126-AE127-AE125-AE129-AE130-AE131-AE132) -> 0 | AF122: =(AF$117>Inputs!$E103)*(AF$117-Inputs!$E103-AF123-AF124-AF128-AF126-AF127-AF125-AF129-AF130-AF131-AF132) -> 0 | AG122: =(AG$117>Inputs!$E103)*(AG$117-Inputs!$E103-AG123-AG124-AG128-AG126-AG127-AG125-AG129-AG130-AG131-AG132) -> 0 | AH122: =(AH$117>Inputs!$E103)*(AH$117-Inputs!$E103-AH123-AH124-AH128-AH126-AH127-AH125-AH129-AH130-AH131-AH132) -> 0 | AI122: =(AI$117>Inputs!$E103)*(AI$117-Inputs!$E103-AI123-AI124-AI128-AI126-AI127-AI125-AI129-AI130-AI131-AI132) -> 0 | AJ122: =(AJ$117>Inputs!$E103)*(AJ$117-Inputs!$E103-AJ123-AJ124-AJ128-AJ126-AJ127-AJ125-AJ129-AJ130-AJ131-AJ132) -> 0 | AK122: =(AK$117>Inputs!$E103)*(AK$117-Inputs!$E103-AK123-AK124-AK128-AK126-AK127-AK125-AK129-AK130-AK131-AK132) -> 0 | AL122: =(AL$117>Inputs!$E103)*(AL$117-Inputs!$E103-AL123-AL124-AL128-AL126-AL127-AL125-AL129-AL130-AL131-AL132) -> 0 | AM122: =(AM$117>Inputs!$E103)*(AM$117-Inputs!$E103-AM123-AM124-AM128-AM126-AM127-AM125-AM129-AM130-AM131-AM132) -> 0 | AN122: =(AN$117>Inputs!$E103)*(AN$117-Inputs!$E103-AN123-AN124-AN128-AN126-AN127-AN125-AN129-AN130-AN131-AN132) -> 0 | AO122: =(AO$117>Inputs!$E103)*(AO$117-Inputs!$E103-AO123-AO124-AO128-AO126-AO127-AO125-AO129-AO130-AO131-AO132) -> 0 | AP122: =(AP$117>Inputs!$E103)*(AP$117-Inputs!$E103-AP123-AP124-AP128-AP126-AP127-AP125-AP129-AP130-AP131-AP132) -> 0 | AQ122: =(AQ$117>Inputs!$E103)*(AQ$117-Inputs!$E103-AQ123-AQ124-AQ128-AQ126-AQ127-AQ125-AQ129-AQ130-AQ131-AQ132) -> 0 | AR122: =(AR$117>Inputs!$E103)*(AR$117-Inputs!$E103-AR123-AR124-AR128-AR126-AR127-AR125-AR129-AR130-AR131-AR132) -> 0 | AS122: =(AS$117>Inputs!$E103)*(AS$117-Inputs!$E103-AS123-AS124-AS128-AS126-AS127-AS125-AS129-AS130-AS131-AS132) -> 0 | AT122: =(AT$117>Inputs!$E103)*(AT$117-Inputs!$E103-AT123-AT124-AT128-AT126-AT127-AT125-AT129-AT130-AT131-AT132) -> 0 | AU122: =(AU$117>Inputs!$E103)*(AU$117-Inputs!$E103-AU123-AU124-AU128-AU126-AU127-AU125-AU129-AU130-AU131-AU132) -> 0 | AV122: =(AV$117>Inputs!$E103)*(AV$117-Inputs!$E103-AV123-AV124-AV128-AV126-AV127-AV125-AV129-AV130-AV131-AV132) -> 0 | AW122: =(AW$117>Inputs!$E103)*(AW$117-Inputs!$E103-AW123-AW124-AW128-AW126-AW127-AW125-AW129-AW130-AW131-AW132) -> 0 | AX122: =(AX$117>Inputs!$E103)*(AX$117-Inputs!$E103-AX123-AX124-AX128-AX126-AX127-AX125-AX129-AX130-AX131-AX132) -> 0 | AY122: =(AY$117>Inputs!$E103)*(AY$117-Inputs!$E103-AY123-AY124-AY128-AY126-AY127-AY125-AY129-AY130-AY131-AY132) -> 0 | AZ122: =(AZ$117>Inputs!$E103)*(AZ$117-Inputs!$E103-AZ123-AZ124-AZ128-AZ126-AZ127-AZ125-AZ129-AZ130-AZ131-AZ132) -> 0 | BA122: =(BA$117>Inputs!$E103)*(BA$117-Inputs!$E103-BA123-BA124-BA128-BA126-BA127-BA125-BA129-BA130-BA131-BA132) -> 0 | BB122: =(BB$117>Inputs!$E103)*(BB$117-Inputs!$E103-BB123-BB124-BB128-BB126-BB127-BB125-BB129-BB130-BB131-BB132) -> 0 | BC122: =(BC$117>Inputs!$E103)*(BC$117-Inputs!$E103-BC123-BC124-BC128-BC126-BC127-BC125-BC129-BC130-BC131-BC132) -> 0 | BD122: =(BD$117>Inputs!$E103)*(BD$117-Inputs!$E103-BD123-BD124-BD128-BD126-BD127-BD125-BD129-BD130-BD131-BD132) -> 0
D123: Bracket 5 | E123: $mm nominal | G123: =(G$117>Inputs!$E104)*(G$117-Inputs!$E104-G124-G125-G129-G127-G128-G126-G130-G131-G132) -> 0 | H123: =(H$117>Inputs!$E104)*(H$117-Inputs!$E104-H124-H125-H129-H127-H128-H126-H130-H131-H132) -> 0 | I123: =(I$117>Inputs!$E104)*(I$117-Inputs!$E104-I124-I125-I129-I127-I128-I126-I130-I131-I132) -> 0 | J123: =(J$117>Inputs!$E104)*(J$117-Inputs!$E104-J124-J125-J129-J127-J128-J126-J130-J131-J132) -> 30 | K123: =(K$117>Inputs!$E104)*(K$117-Inputs!$E104-K124-K125-K129-K127-K128-K126-K130-K131-K132) -> 0 | L123: =(L$117>Inputs!$E104)*(L$117-Inputs!$E104-L124-L125-L129-L127-L128-L126-L130-L131-L132) -> 0 | M123: =(M$117>Inputs!$E104)*(M$117-Inputs!$E104-M124-M125-M129-M127-M128-M126-M130-M131-M132) -> 0 | N123: =(N$117>Inputs!$E104)*(N$117-Inputs!$E104-N124-N125-N129-N127-N128-N126-N130-N131-N132) -> 0 | O123: =(O$117>Inputs!$E104)*(O$117-Inputs!$E104-O124-O125-O129-O127-O128-O126-O130-O131-O132) -> 0 | P123: =(P$117>Inputs!$E104)*(P$117-Inputs!$E104-P124-P125-P129-P127-P128-P126-P130-P131-P132) -> 0 | Q123: =(Q$117>Inputs!$E104)*(Q$117-Inputs!$E104-Q124-Q125-Q129-Q127-Q128-Q126-Q130-Q131-Q132) -> 0 | R123: =(R$117>Inputs!$E104)*(R$117-Inputs!$E104-R124-R125-R129-R127-R128-R126-R130-R131-R132) -> 0 | S123: =(S$117>Inputs!$E104)*(S$117-Inputs!$E104-S124-S125-S129-S127-S128-S126-S130-S131-S132) -> 0 | T123: =(T$117>Inputs!$E104)*(T$117-Inputs!$E104-T124-T125-T129-T127-T128-T126-T130-T131-T132) -> 0 | U123: =(U$117>Inputs!$E104)*(U$117-Inputs!$E104-U124-U125-U129-U127-U128-U126-U130-U131-U132) -> 0 | V123: =(V$117>Inputs!$E104)*(V$117-Inputs!$E104-V124-V125-V129-V127-V128-V126-V130-V131-V132) -> 0 | W123: =(W$117>Inputs!$E104)*(W$117-Inputs!$E104-W124-W125-W129-W127-W128-W126-W130-W131-W132) -> 0 | X123: =(X$117>Inputs!$E104)*(X$117-Inputs!$E104-X124-X125-X129-X127-X128-X126-X130-X131-X132) -> 0 | Y123: =(Y$117>Inputs!$E104)*(Y$117-Inputs!$E104-Y124-Y125-Y129-Y127-Y128-Y126-Y130-Y131-Y132) -> 0 | Z123: =(Z$117>Inputs!$E104)*(Z$117-Inputs!$E104-Z124-Z125-Z129-Z127-Z128-Z126-Z130-Z131-Z132) -> 0 | AA123: =(AA$117>Inputs!$E104)*(AA$117-Inputs!$E104-AA124-AA125-AA129-AA127-AA128-AA126-AA130-AA131-AA132) -> 0 | AB123: =(AB$117>Inputs!$E104)*(AB$117-Inputs!$E104-AB124-AB125-AB129-AB127-AB128-AB126-AB130-AB131-AB132) -> 30 | AC123: =(AC$117>Inputs!$E104)*(AC$117-Inputs!$E104-AC124-AC125-AC129-AC127-AC128-AC126-AC130-AC131-AC132) -> 0 | AD123: =(AD$117>Inputs!$E104)*(AD$117-Inputs!$E104-AD124-AD125-AD129-AD127-AD128-AD126-AD130-AD131-AD132) -> 0 | AE123: =(AE$117>Inputs!$E104)*(AE$117-Inputs!$E104-AE124-AE125-AE129-AE127-AE128-AE126-AE130-AE131-AE132) -> 0 | AF123: =(AF$117>Inputs!$E104)*(AF$117-Inputs!$E104-AF124-AF125-AF129-AF127-AF128-AF126-AF130-AF131-AF132) -> 0 | AG123: =(AG$117>Inputs!$E104)*(AG$117-Inputs!$E104-AG124-AG125-AG129-AG127-AG128-AG126-AG130-AG131-AG132) -> 0 | AH123: =(AH$117>Inputs!$E104)*(AH$117-Inputs!$E104-AH124-AH125-AH129-AH127-AH128-AH126-AH130-AH131-AH132) -> 0 | AI123: =(AI$117>Inputs!$E104)*(AI$117-Inputs!$E104-AI124-AI125-AI129-AI127-AI128-AI126-AI130-AI131-AI132) -> 0 | AJ123: =(AJ$117>Inputs!$E104)*(AJ$117-Inputs!$E104-AJ124-AJ125-AJ129-AJ127-AJ128-AJ126-AJ130-AJ131-AJ132) -> 0 | AK123: =(AK$117>Inputs!$E104)*(AK$117-Inputs!$E104-AK124-AK125-AK129-AK127-AK128-AK126-AK130-AK131-AK132) -> 0 | AL123: =(AL$117>Inputs!$E104)*(AL$117-Inputs!$E104-AL124-AL125-AL129-AL127-AL128-AL126-AL130-AL131-AL132) -> 0 | AM123: =(AM$117>Inputs!$E104)*(AM$117-Inputs!$E104-AM124-AM125-AM129-AM127-AM128-AM126-AM130-AM131-AM132) -> 0 | AN123: =(AN$117>Inputs!$E104)*(AN$117-Inputs!$E104-AN124-AN125-AN129-AN127-AN128-AN126-AN130-AN131-AN132) -> 0 | AO123: =(AO$117>Inputs!$E104)*(AO$117-Inputs!$E104-AO124-AO125-AO129-AO127-AO128-AO126-AO130-AO131-AO132) -> 0 | AP123: =(AP$117>Inputs!$E104)*(AP$117-Inputs!$E104-AP124-AP125-AP129-AP127-AP128-AP126-AP130-AP131-AP132) -> 0 | AQ123: =(AQ$117>Inputs!$E104)*(AQ$117-Inputs!$E104-AQ124-AQ125-AQ129-AQ127-AQ128-AQ126-AQ130-AQ131-AQ132) -> 0 | AR123: =(AR$117>Inputs!$E104)*(AR$117-Inputs!$E104-AR124-AR125-AR129-AR127-AR128-AR126-AR130-AR131-AR132) -> 0 | AS123: =(AS$117>Inputs!$E104)*(AS$117-Inputs!$E104-AS124-AS125-AS129-AS127-AS128-AS126-AS130-AS131-AS132) -> 0 | AT123: =(AT$117>Inputs!$E104)*(AT$117-Inputs!$E104-AT124-AT125-AT129-AT127-AT128-AT126-AT130-AT131-AT132) -> 0 | AU123: =(AU$117>Inputs!$E104)*(AU$117-Inputs!$E104-AU124-AU125-AU129-AU127-AU128-AU126-AU130-AU131-AU132) -> 0 | AV123: =(AV$117>Inputs!$E104)*(AV$117-Inputs!$E104-AV124-AV125-AV129-AV127-AV128-AV126-AV130-AV131-AV132) -> 0 | AW123: =(AW$117>Inputs!$E104)*(AW$117-Inputs!$E104-AW124-AW125-AW129-AW127-AW128-AW126-AW130-AW131-AW132) -> 0 | AX123: =(AX$117>Inputs!$E104)*(AX$117-Inputs!$E104-AX124-AX125-AX129-AX127-AX128-AX126-AX130-AX131-AX132) -> 0 | AY123: =(AY$117>Inputs!$E104)*(AY$117-Inputs!$E104-AY124-AY125-AY129-AY127-AY128-AY126-AY130-AY131-AY132) -> 0 | AZ123: =(AZ$117>Inputs!$E104)*(AZ$117-Inputs!$E104-AZ124-AZ125-AZ129-AZ127-AZ128-AZ126-AZ130-AZ131-AZ132) -> 0 | BA123: =(BA$117>Inputs!$E104)*(BA$117-Inputs!$E104-BA124-BA125-BA129-BA127-BA128-BA126-BA130-BA131-BA132) -> 0 | BB123: =(BB$117>Inputs!$E104)*(BB$117-Inputs!$E104-BB124-BB125-BB129-BB127-BB128-BB126-BB130-BB131-BB132) -> 0 | BC123: =(BC$117>Inputs!$E104)*(BC$117-Inputs!$E104-BC124-BC125-BC129-BC127-BC128-BC126-BC130-BC131-BC132) -> 0 | BD123: =(BD$117>Inputs!$E104)*(BD$117-Inputs!$E104-BD124-BD125-BD129-BD127-BD128-BD126-BD130-BD131-BD132) -> 0
D124: Bracket 6 | E124: $mm nominal | G124: =(G$117>Inputs!$E105)*(G$117-Inputs!$E105-G125-G126-G130-G128-G129-G127-G131-G132) -> 0 | H124: =(H$117>Inputs!$E105)*(H$117-Inputs!$E105-H125-H126-H130-H128-H129-H127-H131-H132) -> 0 | I124: =(I$117>Inputs!$E105)*(I$117-Inputs!$E105-I125-I126-I130-I128-I129-I127-I131-I132) -> 0 | J124: =(J$117>Inputs!$E105)*(J$117-Inputs!$E105-J125-J126-J130-J128-J129-J127-J131-J132) -> 30 | K124: =(K$117>Inputs!$E105)*(K$117-Inputs!$E105-K125-K126-K130-K128-K129-K127-K131-K132) -> 0 | L124: =(L$117>Inputs!$E105)*(L$117-Inputs!$E105-L125-L126-L130-L128-L129-L127-L131-L132) -> 0 | M124: =(M$117>Inputs!$E105)*(M$117-Inputs!$E105-M125-M126-M130-M128-M129-M127-M131-M132) -> 0 | N124: =(N$117>Inputs!$E105)*(N$117-Inputs!$E105-N125-N126-N130-N128-N129-N127-N131-N132) -> 0 | O124: =(O$117>Inputs!$E105)*(O$117-Inputs!$E105-O125-O126-O130-O128-O129-O127-O131-O132) -> 0 | P124: =(P$117>Inputs!$E105)*(P$117-Inputs!$E105-P125-P126-P130-P128-P129-P127-P131-P132) -> 0 | Q124: =(Q$117>Inputs!$E105)*(Q$117-Inputs!$E105-Q125-Q126-Q130-Q128-Q129-Q127-Q131-Q132) -> 0 | R124: =(R$117>Inputs!$E105)*(R$117-Inputs!$E105-R125-R126-R130-R128-R129-R127-R131-R132) -> 0 | S124: =(S$117>Inputs!$E105)*(S$117-Inputs!$E105-S125-S126-S130-S128-S129-S127-S131-S132) -> 0 | T124: =(T$117>Inputs!$E105)*(T$117-Inputs!$E105-T125-T126-T130-T128-T129-T127-T131-T132) -> 0 | U124: =(U$117>Inputs!$E105)*(U$117-Inputs!$E105-U125-U126-U130-U128-U129-U127-U131-U132) -> 0 | V124: =(V$117>Inputs!$E105)*(V$117-Inputs!$E105-V125-V126-V130-V128-V129-V127-V131-V132) -> 0 | W124: =(W$117>Inputs!$E105)*(W$117-Inputs!$E105-W125-W126-W130-W128-W129-W127-W131-W132) -> 0 | X124: =(X$117>Inputs!$E105)*(X$117-Inputs!$E105-X125-X126-X130-X128-X129-X127-X131-X132) -> 0 | Y124: =(Y$117>Inputs!$E105)*(Y$117-Inputs!$E105-Y125-Y126-Y130-Y128-Y129-Y127-Y131-Y132) -> 0 | Z124: =(Z$117>Inputs!$E105)*(Z$117-Inputs!$E105-Z125-Z126-Z130-Z128-Z129-Z127-Z131-Z132) -> 0 | AA124: =(AA$117>Inputs!$E105)*(AA$117-Inputs!$E105-AA125-AA126-AA130-AA128-AA129-AA127-AA131-AA132) -> 0 | AB124: =(AB$117>Inputs!$E105)*(AB$117-Inputs!$E105-AB125-AB126-AB130-AB128-AB129-AB127-AB131-AB132) -> -180 | AC124: =(AC$117>Inputs!$E105)*(AC$117-Inputs!$E105-AC125-AC126-AC130-AC128-AC129-AC127-AC131-AC132) -> 0 | AD124: =(AD$117>Inputs!$E105)*(AD$117-Inputs!$E105-AD125-AD126-AD130-AD128-AD129-AD127-AD131-AD132) -> 0 | AE124: =(AE$117>Inputs!$E105)*(AE$117-Inputs!$E105-AE125-AE126-AE130-AE128-AE129-AE127-AE131-AE132) -> 0 | AF124: =(AF$117>Inputs!$E105)*(AF$117-Inputs!$E105-AF125-AF126-AF130-AF128-AF129-AF127-AF131-AF132) -> 0 | AG124: =(AG$117>Inputs!$E105)*(AG$117-Inputs!$E105-AG125-AG126-AG130-AG128-AG129-AG127-AG131-AG132) -> 0 | AH124: =(AH$117>Inputs!$E105)*(AH$117-Inputs!$E105-AH125-AH126-AH130-AH128-AH129-AH127-AH131-AH132) -> 0 | AI124: =(AI$117>Inputs!$E105)*(AI$117-Inputs!$E105-AI125-AI126-AI130-AI128-AI129-AI127-AI131-AI132) -> 0 | AJ124: =(AJ$117>Inputs!$E105)*(AJ$117-Inputs!$E105-AJ125-AJ126-AJ130-AJ128-AJ129-AJ127-AJ131-AJ132) -> 0 | AK124: =(AK$117>Inputs!$E105)*(AK$117-Inputs!$E105-AK125-AK126-AK130-AK128-AK129-AK127-AK131-AK132) -> 0 | AL124: =(AL$117>Inputs!$E105)*(AL$117-Inputs!$E105-AL125-AL126-AL130-AL128-AL129-AL127-AL131-AL132) -> 0 | AM124: =(AM$117>Inputs!$E105)*(AM$117-Inputs!$E105-AM125-AM126-AM130-AM128-AM129-AM127-AM131-AM132) -> 0 | AN124: =(AN$117>Inputs!$E105)*(AN$117-Inputs!$E105-AN125-AN126-AN130-AN128-AN129-AN127-AN131-AN132) -> 0 | AO124: =(AO$117>Inputs!$E105)*(AO$117-Inputs!$E105-AO125-AO126-AO130-AO128-AO129-AO127-AO131-AO132) -> 0 | AP124: =(AP$117>Inputs!$E105)*(AP$117-Inputs!$E105-AP125-AP126-AP130-AP128-AP129-AP127-AP131-AP132) -> 0 | AQ124: =(AQ$117>Inputs!$E105)*(AQ$117-Inputs!$E105-AQ125-AQ126-AQ130-AQ128-AQ129-AQ127-AQ131-AQ132) -> 0 | AR124: =(AR$117>Inputs!$E105)*(AR$117-Inputs!$E105-AR125-AR126-AR130-AR128-AR129-AR127-AR131-AR132) -> 0 | AS124: =(AS$117>Inputs!$E105)*(AS$117-Inputs!$E105-AS125-AS126-AS130-AS128-AS129-AS127-AS131-AS132) -> 0 | AT124: =(AT$117>Inputs!$E105)*(AT$117-Inputs!$E105-AT125-AT126-AT130-AT128-AT129-AT127-AT131-AT132) -> 0 | AU124: =(AU$117>Inputs!$E105)*(AU$117-Inputs!$E105-AU125-AU126-AU130-AU128-AU129-AU127-AU131-AU132) -> 0 | AV124: =(AV$117>Inputs!$E105)*(AV$117-Inputs!$E105-AV125-AV126-AV130-AV128-AV129-AV127-AV131-AV132) -> 0 | AW124: =(AW$117>Inputs!$E105)*(AW$117-Inputs!$E105-AW125-AW126-AW130-AW128-AW129-AW127-AW131-AW132) -> 0 | AX124: =(AX$117>Inputs!$E105)*(AX$117-Inputs!$E105-AX125-AX126-AX130-AX128-AX129-AX127-AX131-AX132) -> 0 | AY124: =(AY$117>Inputs!$E105)*(AY$117-Inputs!$E105-AY125-AY126-AY130-AY128-AY129-AY127-AY131-AY132) -> 0 | AZ124: =(AZ$117>Inputs!$E105)*(AZ$117-Inputs!$E105-AZ125-AZ126-AZ130-AZ128-AZ129-AZ127-AZ131-AZ132) -> 0 | BA124: =(BA$117>Inputs!$E105)*(BA$117-Inputs!$E105-BA125-BA126-BA130-BA128-BA129-BA127-BA131-BA132) -> 0 | BB124: =(BB$117>Inputs!$E105)*(BB$117-Inputs!$E105-BB125-BB126-BB130-BB128-BB129-BB127-BB131-BB132) -> 0 | BC124: =(BC$117>Inputs!$E105)*(BC$117-Inputs!$E105-BC125-BC126-BC130-BC128-BC129-BC127-BC131-BC132) -> 0 | BD124: =(BD$117>Inputs!$E105)*(BD$117-Inputs!$E105-BD125-BD126-BD130-BD128-BD129-BD127-BD131-BD132) -> 0
D125: Bracket 7 | E125: $mm nominal | G125: =(G$117>Inputs!$E106)*(G$117-Inputs!$E106-G126-G127-G131-G129-G130-G128-G132) -> 0 | H125: =(H$117>Inputs!$E106)*(H$117-Inputs!$E106-H126-H127-H131-H129-H130-H128-H132) -> 0 | I125: =(I$117>Inputs!$E106)*(I$117-Inputs!$E106-I126-I127-I131-I129-I130-I128-I132) -> 0 | J125: =(J$117>Inputs!$E106)*(J$117-Inputs!$E106-J126-J127-J131-J129-J130-J128-J132) -> 30 | K125: =(K$117>Inputs!$E106)*(K$117-Inputs!$E106-K126-K127-K131-K129-K130-K128-K132) -> 0 | L125: =(L$117>Inputs!$E106)*(L$117-Inputs!$E106-L126-L127-L131-L129-L130-L128-L132) -> 0 | M125: =(M$117>Inputs!$E106)*(M$117-Inputs!$E106-M126-M127-M131-M129-M130-M128-M132) -> 0 | N125: =(N$117>Inputs!$E106)*(N$117-Inputs!$E106-N126-N127-N131-N129-N130-N128-N132) -> 0 | O125: =(O$117>Inputs!$E106)*(O$117-Inputs!$E106-O126-O127-O131-O129-O130-O128-O132) -> 0 | P125: =(P$117>Inputs!$E106)*(P$117-Inputs!$E106-P126-P127-P131-P129-P130-P128-P132) -> 0 | Q125: =(Q$117>Inputs!$E106)*(Q$117-Inputs!$E106-Q126-Q127-Q131-Q129-Q130-Q128-Q132) -> 0 | R125: =(R$117>Inputs!$E106)*(R$117-Inputs!$E106-R126-R127-R131-R129-R130-R128-R132) -> 0 | S125: =(S$117>Inputs!$E106)*(S$117-Inputs!$E106-S126-S127-S131-S129-S130-S128-S132) -> 0 | T125: =(T$117>Inputs!$E106)*(T$117-Inputs!$E106-T126-T127-T131-T129-T130-T128-T132) -> 0 | U125: =(U$117>Inputs!$E106)*(U$117-Inputs!$E106-U126-U127-U131-U129-U130-U128-U132) -> 0 | V125: =(V$117>Inputs!$E106)*(V$117-Inputs!$E106-V126-V127-V131-V129-V130-V128-V132) -> 0 | W125: =(W$117>Inputs!$E106)*(W$117-Inputs!$E106-W126-W127-W131-W129-W130-W128-W132) -> 0 | X125: =(X$117>Inputs!$E106)*(X$117-Inputs!$E106-X126-X127-X131-X129-X130-X128-X132) -> 0 | Y125: =(Y$117>Inputs!$E106)*(Y$117-Inputs!$E106-Y126-Y127-Y131-Y129-Y130-Y128-Y132) -> 0 | Z125: =(Z$117>Inputs!$E106)*(Z$117-Inputs!$E106-Z126-Z127-Z131-Z129-Z130-Z128-Z132) -> 0 | AA125: =(AA$117>Inputs!$E106)*(AA$117-Inputs!$E106-AA126-AA127-AA131-AA129-AA130-AA128-AA132) -> 0 | AB125: =(AB$117>Inputs!$E106)*(AB$117-Inputs!$E106-AB126-AB127-AB131-AB129-AB130-AB128-AB132) -> 0 | AC125: =(AC$117>Inputs!$E106)*(AC$117-Inputs!$E106-AC126-AC127-AC131-AC129-AC130-AC128-AC132) -> 0 | AD125: =(AD$117>Inputs!$E106)*(AD$117-Inputs!$E106-AD126-AD127-AD131-AD129-AD130-AD128-AD132) -> 0 | AE125: =(AE$117>Inputs!$E106)*(AE$117-Inputs!$E106-AE126-AE127-AE131-AE129-AE130-AE128-AE132) -> 0 | AF125: =(AF$117>Inputs!$E106)*(AF$117-Inputs!$E106-AF126-AF127-AF131-AF129-AF130-AF128-AF132) -> 0 | AG125: =(AG$117>Inputs!$E106)*(AG$117-Inputs!$E106-AG126-AG127-AG131-AG129-AG130-AG128-AG132) -> 0 | AH125: =(AH$117>Inputs!$E106)*(AH$117-Inputs!$E106-AH126-AH127-AH131-AH129-AH130-AH128-AH132) -> 0 | AI125: =(AI$117>Inputs!$E106)*(AI$117-Inputs!$E106-AI126-AI127-AI131-AI129-AI130-AI128-AI132) -> 0 | AJ125: =(AJ$117>Inputs!$E106)*(AJ$117-Inputs!$E106-AJ126-AJ127-AJ131-AJ129-AJ130-AJ128-AJ132) -> 0 | AK125: =(AK$117>Inputs!$E106)*(AK$117-Inputs!$E106-AK126-AK127-AK131-AK129-AK130-AK128-AK132) -> 0 | AL125: =(AL$117>Inputs!$E106)*(AL$117-Inputs!$E106-AL126-AL127-AL131-AL129-AL130-AL128-AL132) -> 0 | AM125: =(AM$117>Inputs!$E106)*(AM$117-Inputs!$E106-AM126-AM127-AM131-AM129-AM130-AM128-AM132) -> 0 | AN125: =(AN$117>Inputs!$E106)*(AN$117-Inputs!$E106-AN126-AN127-AN131-AN129-AN130-AN128-AN132) -> 0 | AO125: =(AO$117>Inputs!$E106)*(AO$117-Inputs!$E106-AO126-AO127-AO131-AO129-AO130-AO128-AO132) -> 0 | AP125: =(AP$117>Inputs!$E106)*(AP$117-Inputs!$E106-AP126-AP127-AP131-AP129-AP130-AP128-AP132) -> 0 | AQ125: =(AQ$117>Inputs!$E106)*(AQ$117-Inputs!$E106-AQ126-AQ127-AQ131-AQ129-AQ130-AQ128-AQ132) -> 0 | AR125: =(AR$117>Inputs!$E106)*(AR$117-Inputs!$E106-AR126-AR127-AR131-AR129-AR130-AR128-AR132) -> 0 | AS125: =(AS$117>Inputs!$E106)*(AS$117-Inputs!$E106-AS126-AS127-AS131-AS129-AS130-AS128-AS132) -> 0 | AT125: =(AT$117>Inputs!$E106)*(AT$117-Inputs!$E106-AT126-AT127-AT131-AT129-AT130-AT128-AT132) -> 0 | AU125: =(AU$117>Inputs!$E106)*(AU$117-Inputs!$E106-AU126-AU127-AU131-AU129-AU130-AU128-AU132) -> 0 | AV125: =(AV$117>Inputs!$E106)*(AV$117-Inputs!$E106-AV126-AV127-AV131-AV129-AV130-AV128-AV132) -> 0 | AW125: =(AW$117>Inputs!$E106)*(AW$117-Inputs!$E106-AW126-AW127-AW131-AW129-AW130-AW128-AW132) -> 0 | AX125: =(AX$117>Inputs!$E106)*(AX$117-Inputs!$E106-AX126-AX127-AX131-AX129-AX130-AX128-AX132) -> 0 | AY125: =(AY$117>Inputs!$E106)*(AY$117-Inputs!$E106-AY126-AY127-AY131-AY129-AY130-AY128-AY132) -> 0 | AZ125: =(AZ$117>Inputs!$E106)*(AZ$117-Inputs!$E106-AZ126-AZ127-AZ131-AZ129-AZ130-AZ128-AZ132) -> 0 | BA125: =(BA$117>Inputs!$E106)*(BA$117-Inputs!$E106-BA126-BA127-BA131-BA129-BA130-BA128-BA132) -> 0 | BB125: =(BB$117>Inputs!$E106)*(BB$117-Inputs!$E106-BB126-BB127-BB131-BB129-BB130-BB128-BB132) -> 0 | BC125: =(BC$117>Inputs!$E106)*(BC$117-Inputs!$E106-BC126-BC127-BC131-BC129-BC130-BC128-BC132) -> 0 | BD125: =(BD$117>Inputs!$E106)*(BD$117-Inputs!$E106-BD126-BD127-BD131-BD129-BD130-BD128-BD132) -> 0
D126: Bracket 8 | E126: $mm nominal | G126: =(G$117>Inputs!$E107)*(G$117-Inputs!$E107-G127-G128-G132-G130-G131-G129) -> 0 | H126: =(H$117>Inputs!$E107)*(H$117-Inputs!$E107-H127-H128-H132-H130-H131-H129) -> 0 | I126: =(I$117>Inputs!$E107)*(I$117-Inputs!$E107-I127-I128-I132-I130-I131-I129) -> 0 | J126: =(J$117>Inputs!$E107)*(J$117-Inputs!$E107-J127-J128-J132-J130-J131-J129) -> -240 | K126: =(K$117>Inputs!$E107)*(K$117-Inputs!$E107-K127-K128-K132-K130-K131-K129) -> 0 | L126: =(L$117>Inputs!$E107)*(L$117-Inputs!$E107-L127-L128-L132-L130-L131-L129) -> 0 | M126: =(M$117>Inputs!$E107)*(M$117-Inputs!$E107-M127-M128-M132-M130-M131-M129) -> 0 | N126: =(N$117>Inputs!$E107)*(N$117-Inputs!$E107-N127-N128-N132-N130-N131-N129) -> 0 | O126: =(O$117>Inputs!$E107)*(O$117-Inputs!$E107-O127-O128-O132-O130-O131-O129) -> 0 | P126: =(P$117>Inputs!$E107)*(P$117-Inputs!$E107-P127-P128-P132-P130-P131-P129) -> 0 | Q126: =(Q$117>Inputs!$E107)*(Q$117-Inputs!$E107-Q127-Q128-Q132-Q130-Q131-Q129) -> 0 | R126: =(R$117>Inputs!$E107)*(R$117-Inputs!$E107-R127-R128-R132-R130-R131-R129) -> 0 | S126: =(S$117>Inputs!$E107)*(S$117-Inputs!$E107-S127-S128-S132-S130-S131-S129) -> 0 | T126: =(T$117>Inputs!$E107)*(T$117-Inputs!$E107-T127-T128-T132-T130-T131-T129) -> 0 | U126: =(U$117>Inputs!$E107)*(U$117-Inputs!$E107-U127-U128-U132-U130-U131-U129) -> 0 | V126: =(V$117>Inputs!$E107)*(V$117-Inputs!$E107-V127-V128-V132-V130-V131-V129) -> 0 | W126: =(W$117>Inputs!$E107)*(W$117-Inputs!$E107-W127-W128-W132-W130-W131-W129) -> 0 | X126: =(X$117>Inputs!$E107)*(X$117-Inputs!$E107-X127-X128-X132-X130-X131-X129) -> 0 | Y126: =(Y$117>Inputs!$E107)*(Y$117-Inputs!$E107-Y127-Y128-Y132-Y130-Y131-Y129) -> 0 | Z126: =(Z$117>Inputs!$E107)*(Z$117-Inputs!$E107-Z127-Z128-Z132-Z130-Z131-Z129) -> 0 | AA126: =(AA$117>Inputs!$E107)*(AA$117-Inputs!$E107-AA127-AA128-AA132-AA130-AA131-AA129) -> 0 | AB126: =(AB$117>Inputs!$E107)*(AB$117-Inputs!$E107-AB127-AB128-AB132-AB130-AB131-AB129) -> 0 | AC126: =(AC$117>Inputs!$E107)*(AC$117-Inputs!$E107-AC127-AC128-AC132-AC130-AC131-AC129) -> 0 | AD126: =(AD$117>Inputs!$E107)*(AD$117-Inputs!$E107-AD127-AD128-AD132-AD130-AD131-AD129) -> 0 | AE126: =(AE$117>Inputs!$E107)*(AE$117-Inputs!$E107-AE127-AE128-AE132-AE130-AE131-AE129) -> 0 | AF126: =(AF$117>Inputs!$E107)*(AF$117-Inputs!$E107-AF127-AF128-AF132-AF130-AF131-AF129) -> 0 | AG126: =(AG$117>Inputs!$E107)*(AG$117-Inputs!$E107-AG127-AG128-AG132-AG130-AG131-AG129) -> 0 | AH126: =(AH$117>Inputs!$E107)*(AH$117-Inputs!$E107-AH127-AH128-AH132-AH130-AH131-AH129) -> 0 | AI126: =(AI$117>Inputs!$E107)*(AI$117-Inputs!$E107-AI127-AI128-AI132-AI130-AI131-AI129) -> 0 | AJ126: =(AJ$117>Inputs!$E107)*(AJ$117-Inputs!$E107-AJ127-AJ128-AJ132-AJ130-AJ131-AJ129) -> 0 | AK126: =(AK$117>Inputs!$E107)*(AK$117-Inputs!$E107-AK127-AK128-AK132-AK130-AK131-AK129) -> 0 | AL126: =(AL$117>Inputs!$E107)*(AL$117-Inputs!$E107-AL127-AL128-AL132-AL130-AL131-AL129) -> 0 | AM126: =(AM$117>Inputs!$E107)*(AM$117-Inputs!$E107-AM127-AM128-AM132-AM130-AM131-AM129) -> 0 | AN126: =(AN$117>Inputs!$E107)*(AN$117-Inputs!$E107-AN127-AN128-AN132-AN130-AN131-AN129) -> 0 | AO126: =(AO$117>Inputs!$E107)*(AO$117-Inputs!$E107-AO127-AO128-AO132-AO130-AO131-AO129) -> 0 | AP126: =(AP$117>Inputs!$E107)*(AP$117-Inputs!$E107-AP127-AP128-AP132-AP130-AP131-AP129) -> 0 | AQ126: =(AQ$117>Inputs!$E107)*(AQ$117-Inputs!$E107-AQ127-AQ128-AQ132-AQ130-AQ131-AQ129) -> 0 | AR126: =(AR$117>Inputs!$E107)*(AR$117-Inputs!$E107-AR127-AR128-AR132-AR130-AR131-AR129) -> 0 | AS126: =(AS$117>Inputs!$E107)*(AS$117-Inputs!$E107-AS127-AS128-AS132-AS130-AS131-AS129) -> 0 | AT126: =(AT$117>Inputs!$E107)*(AT$117-Inputs!$E107-AT127-AT128-AT132-AT130-AT131-AT129) -> 0 | AU126: =(AU$117>Inputs!$E107)*(AU$117-Inputs!$E107-AU127-AU128-AU132-AU130-AU131-AU129) -> 0 | AV126: =(AV$117>Inputs!$E107)*(AV$117-Inputs!$E107-AV127-AV128-AV132-AV130-AV131-AV129) -> 0 | AW126: =(AW$117>Inputs!$E107)*(AW$117-Inputs!$E107-AW127-AW128-AW132-AW130-AW131-AW129) -> 0 | AX126: =(AX$117>Inputs!$E107)*(AX$117-Inputs!$E107-AX127-AX128-AX132-AX130-AX131-AX129) -> 0 | AY126: =(AY$117>Inputs!$E107)*(AY$117-Inputs!$E107-AY127-AY128-AY132-AY130-AY131-AY129) -> 0 | AZ126: =(AZ$117>Inputs!$E107)*(AZ$117-Inputs!$E107-AZ127-AZ128-AZ132-AZ130-AZ131-AZ129) -> 0 | BA126: =(BA$117>Inputs!$E107)*(BA$117-Inputs!$E107-BA127-BA128-BA132-BA130-BA131-BA129) -> 0 | BB126: =(BB$117>Inputs!$E107)*(BB$117-Inputs!$E107-BB127-BB128-BB132-BB130-BB131-BB129) -> 0 | BC126: =(BC$117>Inputs!$E107)*(BC$117-Inputs!$E107-BC127-BC128-BC132-BC130-BC131-BC129) -> 0 | BD126: =(BD$117>Inputs!$E107)*(BD$117-Inputs!$E107-BD127-BD128-BD132-BD130-BD131-BD129) -> 0
D127: Bracket 9 | E127: $mm nominal | G127: =(G$117>Inputs!$E108)*(G$117-Inputs!$E108-G128-G129-G131-G132-G130) -> 0 | H127: =(H$117>Inputs!$E108)*(H$117-Inputs!$E108-H128-H129-H131-H132-H130) -> 0 | I127: =(I$117>Inputs!$E108)*(I$117-Inputs!$E108-I128-I129-I131-I132-I130) -> 0 | J127: =(J$117>Inputs!$E108)*(J$117-Inputs!$E108-J128-J129-J131-J132-J130) -> 0 | K127: =(K$117>Inputs!$E108)*(K$117-Inputs!$E108-K128-K129-K131-K132-K130) -> 0 | L127: =(L$117>Inputs!$E108)*(L$117-Inputs!$E108-L128-L129-L131-L132-L130) -> 0 | M127: =(M$117>Inputs!$E108)*(M$117-Inputs!$E108-M128-M129-M131-M132-M130) -> 0 | N127: =(N$117>Inputs!$E108)*(N$117-Inputs!$E108-N128-N129-N131-N132-N130) -> 0 | O127: =(O$117>Inputs!$E108)*(O$117-Inputs!$E108-O128-O129-O131-O132-O130) -> 0 | P127: =(P$117>Inputs!$E108)*(P$117-Inputs!$E108-P128-P129-P131-P132-P130) -> 0 | Q127: =(Q$117>Inputs!$E108)*(Q$117-Inputs!$E108-Q128-Q129-Q131-Q132-Q130) -> 0 | R127: =(R$117>Inputs!$E108)*(R$117-Inputs!$E108-R128-R129-R131-R132-R130) -> 0 | S127: =(S$117>Inputs!$E108)*(S$117-Inputs!$E108-S128-S129-S131-S132-S130) -> 0 | T127: =(T$117>Inputs!$E108)*(T$117-Inputs!$E108-T128-T129-T131-T132-T130) -> 0 | U127: =(U$117>Inputs!$E108)*(U$117-Inputs!$E108-U128-U129-U131-U132-U130) -> 0 | V127: =(V$117>Inputs!$E108)*(V$117-Inputs!$E108-V128-V129-V131-V132-V130) -> 0 | W127: =(W$117>Inputs!$E108)*(W$117-Inputs!$E108-W128-W129-W131-W132-W130) -> 0 | X127: =(X$117>Inputs!$E108)*(X$117-Inputs!$E108-X128-X129-X131-X132-X130) -> 0 | Y127: =(Y$117>Inputs!$E108)*(Y$117-Inputs!$E108-Y128-Y129-Y131-Y132-Y130) -> 0 | Z127: =(Z$117>Inputs!$E108)*(Z$117-Inputs!$E108-Z128-Z129-Z131-Z132-Z130) -> 0 | AA127: =(AA$117>Inputs!$E108)*(AA$117-Inputs!$E108-AA128-AA129-AA131-AA132-AA130) -> 0 | AB127: =(AB$117>Inputs!$E108)*(AB$117-Inputs!$E108-AB128-AB129-AB131-AB132-AB130) -> 0 | AC127: =(AC$117>Inputs!$E108)*(AC$117-Inputs!$E108-AC128-AC129-AC131-AC132-AC130) -> 0 | AD127: =(AD$117>Inputs!$E108)*(AD$117-Inputs!$E108-AD128-AD129-AD131-AD132-AD130) -> 0 | AE127: =(AE$117>Inputs!$E108)*(AE$117-Inputs!$E108-AE128-AE129-AE131-AE132-AE130) -> 0 | AF127: =(AF$117>Inputs!$E108)*(AF$117-Inputs!$E108-AF128-AF129-AF131-AF132-AF130) -> 0 | AG127: =(AG$117>Inputs!$E108)*(AG$117-Inputs!$E108-AG128-AG129-AG131-AG132-AG130) -> 0 | AH127: =(AH$117>Inputs!$E108)*(AH$117-Inputs!$E108-AH128-AH129-AH131-AH132-AH130) -> 0 | AI127: =(AI$117>Inputs!$E108)*(AI$117-Inputs!$E108-AI128-AI129-AI131-AI132-AI130) -> 0 | AJ127: =(AJ$117>Inputs!$E108)*(AJ$117-Inputs!$E108-AJ128-AJ129-AJ131-AJ132-AJ130) -> 0 | AK127: =(AK$117>Inputs!$E108)*(AK$117-Inputs!$E108-AK128-AK129-AK131-AK132-AK130) -> 0 | AL127: =(AL$117>Inputs!$E108)*(AL$117-Inputs!$E108-AL128-AL129-AL131-AL132-AL130) -> 0 | AM127: =(AM$117>Inputs!$E108)*(AM$117-Inputs!$E108-AM128-AM129-AM131-AM132-AM130) -> 0 | AN127: =(AN$117>Inputs!$E108)*(AN$117-Inputs!$E108-AN128-AN129-AN131-AN132-AN130) -> 0 | AO127: =(AO$117>Inputs!$E108)*(AO$117-Inputs!$E108-AO128-AO129-AO131-AO132-AO130) -> 0 | AP127: =(AP$117>Inputs!$E108)*(AP$117-Inputs!$E108-AP128-AP129-AP131-AP132-AP130) -> 0 | AQ127: =(AQ$117>Inputs!$E108)*(AQ$117-Inputs!$E108-AQ128-AQ129-AQ131-AQ132-AQ130) -> 0 | AR127: =(AR$117>Inputs!$E108)*(AR$117-Inputs!$E108-AR128-AR129-AR131-AR132-AR130) -> 0 | AS127: =(AS$117>Inputs!$E108)*(AS$117-Inputs!$E108-AS128-AS129-AS131-AS132-AS130) -> 0 | AT127: =(AT$117>Inputs!$E108)*(AT$117-Inputs!$E108-AT128-AT129-AT131-AT132-AT130) -> 0 | AU127: =(AU$117>Inputs!$E108)*(AU$117-Inputs!$E108-AU128-AU129-AU131-AU132-AU130) -> 0 | AV127: =(AV$117>Inputs!$E108)*(AV$117-Inputs!$E108-AV128-AV129-AV131-AV132-AV130) -> 0 | AW127: =(AW$117>Inputs!$E108)*(AW$117-Inputs!$E108-AW128-AW129-AW131-AW132-AW130) -> 0 | AX127: =(AX$117>Inputs!$E108)*(AX$117-Inputs!$E108-AX128-AX129-AX131-AX132-AX130) -> 0 | AY127: =(AY$117>Inputs!$E108)*(AY$117-Inputs!$E108-AY128-AY129-AY131-AY132-AY130) -> 0 | AZ127: =(AZ$117>Inputs!$E108)*(AZ$117-Inputs!$E108-AZ128-AZ129-AZ131-AZ132-AZ130) -> 0 | BA127: =(BA$117>Inputs!$E108)*(BA$117-Inputs!$E108-BA128-BA129-BA131-BA132-BA130) -> 0 | BB127: =(BB$117>Inputs!$E108)*(BB$117-Inputs!$E108-BB128-BB129-BB131-BB132-BB130) -> 0 | BC127: =(BC$117>Inputs!$E108)*(BC$117-Inputs!$E108-BC128-BC129-BC131-BC132-BC130) -> 0 | BD127: =(BD$117>Inputs!$E108)*(BD$117-Inputs!$E108-BD128-BD129-BD131-BD132-BD130) -> 0
D128: Bracket 10 | E128: $mm nominal | G128: =(G$117>Inputs!$E109)*(G$117-Inputs!$E109-G129-G130-G132-G131) -> 0 | H128: =(H$117>Inputs!$E109)*(H$117-Inputs!$E109-H129-H130-H132-H131) -> 0 | I128: =(I$117>Inputs!$E109)*(I$117-Inputs!$E109-I129-I130-I132-I131) -> 0 | J128: =(J$117>Inputs!$E109)*(J$117-Inputs!$E109-J129-J130-J132-J131) -> 0 | K128: =(K$117>Inputs!$E109)*(K$117-Inputs!$E109-K129-K130-K132-K131) -> 0 | L128: =(L$117>Inputs!$E109)*(L$117-Inputs!$E109-L129-L130-L132-L131) -> 0 | M128: =(M$117>Inputs!$E109)*(M$117-Inputs!$E109-M129-M130-M132-M131) -> 0 | N128: =(N$117>Inputs!$E109)*(N$117-Inputs!$E109-N129-N130-N132-N131) -> 0 | O128: =(O$117>Inputs!$E109)*(O$117-Inputs!$E109-O129-O130-O132-O131) -> 0 | P128: =(P$117>Inputs!$E109)*(P$117-Inputs!$E109-P129-P130-P132-P131) -> 0 | Q128: =(Q$117>Inputs!$E109)*(Q$117-Inputs!$E109-Q129-Q130-Q132-Q131) -> 0 | R128: =(R$117>Inputs!$E109)*(R$117-Inputs!$E109-R129-R130-R132-R131) -> 0 | S128: =(S$117>Inputs!$E109)*(S$117-Inputs!$E109-S129-S130-S132-S131) -> 0 | T128: =(T$117>Inputs!$E109)*(T$117-Inputs!$E109-T129-T130-T132-T131) -> 0 | U128: =(U$117>Inputs!$E109)*(U$117-Inputs!$E109-U129-U130-U132-U131) -> 0 | V128: =(V$117>Inputs!$E109)*(V$117-Inputs!$E109-V129-V130-V132-V131) -> 0 | W128: =(W$117>Inputs!$E109)*(W$117-Inputs!$E109-W129-W130-W132-W131) -> 0 | X128: =(X$117>Inputs!$E109)*(X$117-Inputs!$E109-X129-X130-X132-X131) -> 0 | Y128: =(Y$117>Inputs!$E109)*(Y$117-Inputs!$E109-Y129-Y130-Y132-Y131) -> 0 | Z128: =(Z$117>Inputs!$E109)*(Z$117-Inputs!$E109-Z129-Z130-Z132-Z131) -> 0 | AA128: =(AA$117>Inputs!$E109)*(AA$117-Inputs!$E109-AA129-AA130-AA132-AA131) -> 0 | AB128: =(AB$117>Inputs!$E109)*(AB$117-Inputs!$E109-AB129-AB130-AB132-AB131) -> 0 | AC128: =(AC$117>Inputs!$E109)*(AC$117-Inputs!$E109-AC129-AC130-AC132-AC131) -> 0 | AD128: =(AD$117>Inputs!$E109)*(AD$117-Inputs!$E109-AD129-AD130-AD132-AD131) -> 0 | AE128: =(AE$117>Inputs!$E109)*(AE$117-Inputs!$E109-AE129-AE130-AE132-AE131) -> 0 | AF128: =(AF$117>Inputs!$E109)*(AF$117-Inputs!$E109-AF129-AF130-AF132-AF131) -> 0 | AG128: =(AG$117>Inputs!$E109)*(AG$117-Inputs!$E109-AG129-AG130-AG132-AG131) -> 0 | AH128: =(AH$117>Inputs!$E109)*(AH$117-Inputs!$E109-AH129-AH130-AH132-AH131) -> 0 | AI128: =(AI$117>Inputs!$E109)*(AI$117-Inputs!$E109-AI129-AI130-AI132-AI131) -> 0 | AJ128: =(AJ$117>Inputs!$E109)*(AJ$117-Inputs!$E109-AJ129-AJ130-AJ132-AJ131) -> 0 | AK128: =(AK$117>Inputs!$E109)*(AK$117-Inputs!$E109-AK129-AK130-AK132-AK131) -> 0 | AL128: =(AL$117>Inputs!$E109)*(AL$117-Inputs!$E109-AL129-AL130-AL132-AL131) -> 0 | AM128: =(AM$117>Inputs!$E109)*(AM$117-Inputs!$E109-AM129-AM130-AM132-AM131) -> 0 | AN128: =(AN$117>Inputs!$E109)*(AN$117-Inputs!$E109-AN129-AN130-AN132-AN131) -> 0 | AO128: =(AO$117>Inputs!$E109)*(AO$117-Inputs!$E109-AO129-AO130-AO132-AO131) -> 0 | AP128: =(AP$117>Inputs!$E109)*(AP$117-Inputs!$E109-AP129-AP130-AP132-AP131) -> 0 | AQ128: =(AQ$117>Inputs!$E109)*(AQ$117-Inputs!$E109-AQ129-AQ130-AQ132-AQ131) -> 0 | AR128: =(AR$117>Inputs!$E109)*(AR$117-Inputs!$E109-AR129-AR130-AR132-AR131) -> 0 | AS128: =(AS$117>Inputs!$E109)*(AS$117-Inputs!$E109-AS129-AS130-AS132-AS131) -> 0 | AT128: =(AT$117>Inputs!$E109)*(AT$117-Inputs!$E109-AT129-AT130-AT132-AT131) -> 0 | AU128: =(AU$117>Inputs!$E109)*(AU$117-Inputs!$E109-AU129-AU130-AU132-AU131) -> 0 | AV128: =(AV$117>Inputs!$E109)*(AV$117-Inputs!$E109-AV129-AV130-AV132-AV131) -> 0 | AW128: =(AW$117>Inputs!$E109)*(AW$117-Inputs!$E109-AW129-AW130-AW132-AW131) -> 0 | AX128: =(AX$117>Inputs!$E109)*(AX$117-Inputs!$E109-AX129-AX130-AX132-AX131) -> 0 | AY128: =(AY$117>Inputs!$E109)*(AY$117-Inputs!$E109-AY129-AY130-AY132-AY131) -> 0 | AZ128: =(AZ$117>Inputs!$E109)*(AZ$117-Inputs!$E109-AZ129-AZ130-AZ132-AZ131) -> 0 | BA128: =(BA$117>Inputs!$E109)*(BA$117-Inputs!$E109-BA129-BA130-BA132-BA131) -> 0 | BB128: =(BB$117>Inputs!$E109)*(BB$117-Inputs!$E109-BB129-BB130-BB132-BB131) -> 0 | BC128: =(BC$117>Inputs!$E109)*(BC$117-Inputs!$E109-BC129-BC130-BC132-BC131) -> 0 | BD128: =(BD$117>Inputs!$E109)*(BD$117-Inputs!$E109-BD129-BD130-BD132-BD131) -> 0
D129: Bracket 11 | E129: $mm nominal | G129: =(G$117>Inputs!$E110)*(G$117-Inputs!$E110-G130-G131-G132) -> 0 | H129: =(H$117>Inputs!$E110)*(H$117-Inputs!$E110-H130-H131-H132) -> 0 | I129: =(I$117>Inputs!$E110)*(I$117-Inputs!$E110-I130-I131-I132) -> 0 | J129: =(J$117>Inputs!$E110)*(J$117-Inputs!$E110-J130-J131-J132) -> 0 | K129: =(K$117>Inputs!$E110)*(K$117-Inputs!$E110-K130-K131-K132) -> 0 | L129: =(L$117>Inputs!$E110)*(L$117-Inputs!$E110-L130-L131-L132) -> 0 | M129: =(M$117>Inputs!$E110)*(M$117-Inputs!$E110-M130-M131-M132) -> 0 | N129: =(N$117>Inputs!$E110)*(N$117-Inputs!$E110-N130-N131-N132) -> 0 | O129: =(O$117>Inputs!$E110)*(O$117-Inputs!$E110-O130-O131-O132) -> 0 | P129: =(P$117>Inputs!$E110)*(P$117-Inputs!$E110-P130-P131-P132) -> 0 | Q129: =(Q$117>Inputs!$E110)*(Q$117-Inputs!$E110-Q130-Q131-Q132) -> 0 | R129: =(R$117>Inputs!$E110)*(R$117-Inputs!$E110-R130-R131-R132) -> 0 | S129: =(S$117>Inputs!$E110)*(S$117-Inputs!$E110-S130-S131-S132) -> 0 | T129: =(T$117>Inputs!$E110)*(T$117-Inputs!$E110-T130-T131-T132) -> 0 | U129: =(U$117>Inputs!$E110)*(U$117-Inputs!$E110-U130-U131-U132) -> 0 | V129: =(V$117>Inputs!$E110)*(V$117-Inputs!$E110-V130-V131-V132) -> 0 | W129: =(W$117>Inputs!$E110)*(W$117-Inputs!$E110-W130-W131-W132) -> 0 | X129: =(X$117>Inputs!$E110)*(X$117-Inputs!$E110-X130-X131-X132) -> 0 | Y129: =(Y$117>Inputs!$E110)*(Y$117-Inputs!$E110-Y130-Y131-Y132) -> 0 | Z129: =(Z$117>Inputs!$E110)*(Z$117-Inputs!$E110-Z130-Z131-Z132) -> 0 | AA129: =(AA$117>Inputs!$E110)*(AA$117-Inputs!$E110-AA130-AA131-AA132) -> 0 | AB129: =(AB$117>Inputs!$E110)*(AB$117-Inputs!$E110-AB130-AB131-AB132) -> 0 | AC129: =(AC$117>Inputs!$E110)*(AC$117-Inputs!$E110-AC130-AC131-AC132) -> 0 | AD129: =(AD$117>Inputs!$E110)*(AD$117-Inputs!$E110-AD130-AD131-AD132) -> 0 | AE129: =(AE$117>Inputs!$E110)*(AE$117-Inputs!$E110-AE130-AE131-AE132) -> 0 | AF129: =(AF$117>Inputs!$E110)*(AF$117-Inputs!$E110-AF130-AF131-AF132) -> 0 | AG129: =(AG$117>Inputs!$E110)*(AG$117-Inputs!$E110-AG130-AG131-AG132) -> 0 | AH129: =(AH$117>Inputs!$E110)*(AH$117-Inputs!$E110-AH130-AH131-AH132) -> 0 | AI129: =(AI$117>Inputs!$E110)*(AI$117-Inputs!$E110-AI130-AI131-AI132) -> 0 | AJ129: =(AJ$117>Inputs!$E110)*(AJ$117-Inputs!$E110-AJ130-AJ131-AJ132) -> 0 | AK129: =(AK$117>Inputs!$E110)*(AK$117-Inputs!$E110-AK130-AK131-AK132) -> 0 | AL129: =(AL$117>Inputs!$E110)*(AL$117-Inputs!$E110-AL130-AL131-AL132) -> 0 | AM129: =(AM$117>Inputs!$E110)*(AM$117-Inputs!$E110-AM130-AM131-AM132) -> 0 | AN129: =(AN$117>Inputs!$E110)*(AN$117-Inputs!$E110-AN130-AN131-AN132) -> 0 | AO129: =(AO$117>Inputs!$E110)*(AO$117-Inputs!$E110-AO130-AO131-AO132) -> 0 | AP129: =(AP$117>Inputs!$E110)*(AP$117-Inputs!$E110-AP130-AP131-AP132) -> 0 | AQ129: =(AQ$117>Inputs!$E110)*(AQ$117-Inputs!$E110-AQ130-AQ131-AQ132) -> 0 | AR129: =(AR$117>Inputs!$E110)*(AR$117-Inputs!$E110-AR130-AR131-AR132) -> 0 | AS129: =(AS$117>Inputs!$E110)*(AS$117-Inputs!$E110-AS130-AS131-AS132) -> 0 | AT129: =(AT$117>Inputs!$E110)*(AT$117-Inputs!$E110-AT130-AT131-AT132) -> 0 | AU129: =(AU$117>Inputs!$E110)*(AU$117-Inputs!$E110-AU130-AU131-AU132) -> 0 | AV129: =(AV$117>Inputs!$E110)*(AV$117-Inputs!$E110-AV130-AV131-AV132) -> 0 | AW129: =(AW$117>Inputs!$E110)*(AW$117-Inputs!$E110-AW130-AW131-AW132) -> 0 | AX129: =(AX$117>Inputs!$E110)*(AX$117-Inputs!$E110-AX130-AX131-AX132) -> 0 | AY129: =(AY$117>Inputs!$E110)*(AY$117-Inputs!$E110-AY130-AY131-AY132) -> 0 | AZ129: =(AZ$117>Inputs!$E110)*(AZ$117-Inputs!$E110-AZ130-AZ131-AZ132) -> 0 | BA129: =(BA$117>Inputs!$E110)*(BA$117-Inputs!$E110-BA130-BA131-BA132) -> 0 | BB129: =(BB$117>Inputs!$E110)*(BB$117-Inputs!$E110-BB130-BB131-BB132) -> 0 | BC129: =(BC$117>Inputs!$E110)*(BC$117-Inputs!$E110-BC130-BC131-BC132) -> 0 | BD129: =(BD$117>Inputs!$E110)*(BD$117-Inputs!$E110-BD130-BD131-BD132) -> 0
D130: Bracket 12 | E130: $mm nominal | G130: =(G$117>Inputs!$E111)*(G$117-Inputs!$E111-G131-G132) -> 0 | H130: =(H$117>Inputs!$E111)*(H$117-Inputs!$E111-H131-H132) -> 0 | I130: =(I$117>Inputs!$E111)*(I$117-Inputs!$E111-I131-I132) -> 0 | J130: =(J$117>Inputs!$E111)*(J$117-Inputs!$E111-J131-J132) -> 0 | K130: =(K$117>Inputs!$E111)*(K$117-Inputs!$E111-K131-K132) -> 0 | L130: =(L$117>Inputs!$E111)*(L$117-Inputs!$E111-L131-L132) -> 0 | M130: =(M$117>Inputs!$E111)*(M$117-Inputs!$E111-M131-M132) -> 0 | N130: =(N$117>Inputs!$E111)*(N$117-Inputs!$E111-N131-N132) -> 0 | O130: =(O$117>Inputs!$E111)*(O$117-Inputs!$E111-O131-O132) -> 0 | P130: =(P$117>Inputs!$E111)*(P$117-Inputs!$E111-P131-P132) -> 0 | Q130: =(Q$117>Inputs!$E111)*(Q$117-Inputs!$E111-Q131-Q132) -> 0 | R130: =(R$117>Inputs!$E111)*(R$117-Inputs!$E111-R131-R132) -> 0 | S130: =(S$117>Inputs!$E111)*(S$117-Inputs!$E111-S131-S132) -> 0 | T130: =(T$117>Inputs!$E111)*(T$117-Inputs!$E111-T131-T132) -> 0 | U130: =(U$117>Inputs!$E111)*(U$117-Inputs!$E111-U131-U132) -> 0 | V130: =(V$117>Inputs!$E111)*(V$117-Inputs!$E111-V131-V132) -> 0 | W130: =(W$117>Inputs!$E111)*(W$117-Inputs!$E111-W131-W132) -> 0 | X130: =(X$117>Inputs!$E111)*(X$117-Inputs!$E111-X131-X132) -> 0 | Y130: =(Y$117>Inputs!$E111)*(Y$117-Inputs!$E111-Y131-Y132) -> 0 | Z130: =(Z$117>Inputs!$E111)*(Z$117-Inputs!$E111-Z131-Z132) -> 0 | AA130: =(AA$117>Inputs!$E111)*(AA$117-Inputs!$E111-AA131-AA132) -> 0 | AB130: =(AB$117>Inputs!$E111)*(AB$117-Inputs!$E111-AB131-AB132) -> 0 | AC130: =(AC$117>Inputs!$E111)*(AC$117-Inputs!$E111-AC131-AC132) -> 0 | AD130: =(AD$117>Inputs!$E111)*(AD$117-Inputs!$E111-AD131-AD132) -> 0 | AE130: =(AE$117>Inputs!$E111)*(AE$117-Inputs!$E111-AE131-AE132) -> 0 | AF130: =(AF$117>Inputs!$E111)*(AF$117-Inputs!$E111-AF131-AF132) -> 0 | AG130: =(AG$117>Inputs!$E111)*(AG$117-Inputs!$E111-AG131-AG132) -> 0 | AH130: =(AH$117>Inputs!$E111)*(AH$117-Inputs!$E111-AH131-AH132) -> 0 | AI130: =(AI$117>Inputs!$E111)*(AI$117-Inputs!$E111-AI131-AI132) -> 0 | AJ130: =(AJ$117>Inputs!$E111)*(AJ$117-Inputs!$E111-AJ131-AJ132) -> 0 | AK130: =(AK$117>Inputs!$E111)*(AK$117-Inputs!$E111-AK131-AK132) -> 0 | AL130: =(AL$117>Inputs!$E111)*(AL$117-Inputs!$E111-AL131-AL132) -> 0 | AM130: =(AM$117>Inputs!$E111)*(AM$117-Inputs!$E111-AM131-AM132) -> 0 | AN130: =(AN$117>Inputs!$E111)*(AN$117-Inputs!$E111-AN131-AN132) -> 0 | AO130: =(AO$117>Inputs!$E111)*(AO$117-Inputs!$E111-AO131-AO132) -> 0 | AP130: =(AP$117>Inputs!$E111)*(AP$117-Inputs!$E111-AP131-AP132) -> 0 | AQ130: =(AQ$117>Inputs!$E111)*(AQ$117-Inputs!$E111-AQ131-AQ132) -> 0 | AR130: =(AR$117>Inputs!$E111)*(AR$117-Inputs!$E111-AR131-AR132) -> 0 | AS130: =(AS$117>Inputs!$E111)*(AS$117-Inputs!$E111-AS131-AS132) -> 0 | AT130: =(AT$117>Inputs!$E111)*(AT$117-Inputs!$E111-AT131-AT132) -> 0 | AU130: =(AU$117>Inputs!$E111)*(AU$117-Inputs!$E111-AU131-AU132) -> 0 | AV130: =(AV$117>Inputs!$E111)*(AV$117-Inputs!$E111-AV131-AV132) -> 0 | AW130: =(AW$117>Inputs!$E111)*(AW$117-Inputs!$E111-AW131-AW132) -> 0 | AX130: =(AX$117>Inputs!$E111)*(AX$117-Inputs!$E111-AX131-AX132) -> 0 | AY130: =(AY$117>Inputs!$E111)*(AY$117-Inputs!$E111-AY131-AY132) -> 0 | AZ130: =(AZ$117>Inputs!$E111)*(AZ$117-Inputs!$E111-AZ131-AZ132) -> 0 | BA130: =(BA$117>Inputs!$E111)*(BA$117-Inputs!$E111-BA131-BA132) -> 0 | BB130: =(BB$117>Inputs!$E111)*(BB$117-Inputs!$E111-BB131-BB132) -> 0 | BC130: =(BC$117>Inputs!$E111)*(BC$117-Inputs!$E111-BC131-BC132) -> 0 | BD130: =(BD$117>Inputs!$E111)*(BD$117-Inputs!$E111-BD131-BD132) -> 0
D131: Bracket 13 | E131: $mm nominal | G131: =(G$117>Inputs!$E112)*(G$117-Inputs!$E112-G132) -> 0 | H131: =(H$117>Inputs!$E112)*(H$117-Inputs!$E112-H132) -> 0 | I131: =(I$117>Inputs!$E112)*(I$117-Inputs!$E112-I132) -> 135.252 | J131: =(J$117>Inputs!$E112)*(J$117-Inputs!$E112-J132) -> 240 | K131: =(K$117>Inputs!$E112)*(K$117-Inputs!$E112-K132) -> 0 | L131: =(L$117>Inputs!$E112)*(L$117-Inputs!$E112-L132) -> 0 | M131: =(M$117>Inputs!$E112)*(M$117-Inputs!$E112-M132) -> 0 | N131: =(N$117>Inputs!$E112)*(N$117-Inputs!$E112-N132) -> 0 | O131: =(O$117>Inputs!$E112)*(O$117-Inputs!$E112-O132) -> 0 | P131: =(P$117>Inputs!$E112)*(P$117-Inputs!$E112-P132) -> 0 | Q131: =(Q$117>Inputs!$E112)*(Q$117-Inputs!$E112-Q132) -> 0 | R131: =(R$117>Inputs!$E112)*(R$117-Inputs!$E112-R132) -> 0 | S131: =(S$117>Inputs!$E112)*(S$117-Inputs!$E112-S132) -> 0 | T131: =(T$117>Inputs!$E112)*(T$117-Inputs!$E112-T132) -> 0 | U131: =(U$117>Inputs!$E112)*(U$117-Inputs!$E112-U132) -> 0 | V131: =(V$117>Inputs!$E112)*(V$117-Inputs!$E112-V132) -> 0 | W131: =(W$117>Inputs!$E112)*(W$117-Inputs!$E112-W132) -> 0 | X131: =(X$117>Inputs!$E112)*(X$117-Inputs!$E112-X132) -> 0 | Y131: =(Y$117>Inputs!$E112)*(Y$117-Inputs!$E112-Y132) -> 0 | Z131: =(Z$117>Inputs!$E112)*(Z$117-Inputs!$E112-Z132) -> 0 | AA131: =(AA$117>Inputs!$E112)*(AA$117-Inputs!$E112-AA132) -> 0 | AB131: =(AB$117>Inputs!$E112)*(AB$117-Inputs!$E112-AB132) -> 197.0366247 | AC131: =(AC$117>Inputs!$E112)*(AC$117-Inputs!$E112-AC132) -> 0 | AD131: =(AD$117>Inputs!$E112)*(AD$117-Inputs!$E112-AD132) -> 0 | AE131: =(AE$117>Inputs!$E112)*(AE$117-Inputs!$E112-AE132) -> 0 | AF131: =(AF$117>Inputs!$E112)*(AF$117-Inputs!$E112-AF132) -> 0 | AG131: =(AG$117>Inputs!$E112)*(AG$117-Inputs!$E112-AG132) -> 0 | AH131: =(AH$117>Inputs!$E112)*(AH$117-Inputs!$E112-AH132) -> 0 | AI131: =(AI$117>Inputs!$E112)*(AI$117-Inputs!$E112-AI132) -> 0 | AJ131: =(AJ$117>Inputs!$E112)*(AJ$117-Inputs!$E112-AJ132) -> 0 | AK131: =(AK$117>Inputs!$E112)*(AK$117-Inputs!$E112-AK132) -> 0 | AL131: =(AL$117>Inputs!$E112)*(AL$117-Inputs!$E112-AL132) -> 0 | AM131: =(AM$117>Inputs!$E112)*(AM$117-Inputs!$E112-AM132) -> 0 | AN131: =(AN$117>Inputs!$E112)*(AN$117-Inputs!$E112-AN132) -> 0 | AO131: =(AO$117>Inputs!$E112)*(AO$117-Inputs!$E112-AO132) -> 0 | AP131: =(AP$117>Inputs!$E112)*(AP$117-Inputs!$E112-AP132) -> 0 | AQ131: =(AQ$117>Inputs!$E112)*(AQ$117-Inputs!$E112-AQ132) -> 0 | AR131: =(AR$117>Inputs!$E112)*(AR$117-Inputs!$E112-AR132) -> 0 | AS131: =(AS$117>Inputs!$E112)*(AS$117-Inputs!$E112-AS132) -> 0 | AT131: =(AT$117>Inputs!$E112)*(AT$117-Inputs!$E112-AT132) -> 0 | AU131: =(AU$117>Inputs!$E112)*(AU$117-Inputs!$E112-AU132) -> 0 | AV131: =(AV$117>Inputs!$E112)*(AV$117-Inputs!$E112-AV132) -> 0 | AW131: =(AW$117>Inputs!$E112)*(AW$117-Inputs!$E112-AW132) -> 0 | AX131: =(AX$117>Inputs!$E112)*(AX$117-Inputs!$E112-AX132) -> 0 | AY131: =(AY$117>Inputs!$E112)*(AY$117-Inputs!$E112-AY132) -> 0 | AZ131: =(AZ$117>Inputs!$E112)*(AZ$117-Inputs!$E112-AZ132) -> 0 | BA131: =(BA$117>Inputs!$E112)*(BA$117-Inputs!$E112-BA132) -> 0 | BB131: =(BB$117>Inputs!$E112)*(BB$117-Inputs!$E112-BB132) -> 0 | BC131: =(BC$117>Inputs!$E112)*(BC$117-Inputs!$E112-BC132) -> 0 | BD131: =(BD$117>Inputs!$E112)*(BD$117-Inputs!$E112-BD132) -> 0
D132: Bracket 14 | E132: $mm nominal | G132: =IF(G$117>Inputs!$E$107,Model!G$117-Inputs!$E$107,0) -> 0 | H132: =IF(H$117>Inputs!$E$107,Model!H$117-Inputs!$E$107,0) -> 0 | I132: =IF(I$117>Inputs!$E$107,Model!I$117-Inputs!$E$107,0) -> 0 | J132: =IF(J$117>Inputs!$E$107,Model!J$117-Inputs!$E$107,0) -> 104.8926 | K132: =IF(K$117>Inputs!$E$107,Model!K$117-Inputs!$E$107,0) -> 0 | L132: =IF(L$117>Inputs!$E$107,Model!L$117-Inputs!$E$107,0) -> 0 | M132: =IF(M$117>Inputs!$E$107,Model!M$117-Inputs!$E$107,0) -> 0 | N132: =IF(N$117>Inputs!$E$107,Model!N$117-Inputs!$E$107,0) -> 0 | O132: =IF(O$117>Inputs!$E$107,Model!O$117-Inputs!$E$107,0) -> 0 | P132: =IF(P$117>Inputs!$E$107,Model!P$117-Inputs!$E$107,0) -> 0 | Q132: =IF(Q$117>Inputs!$E$107,Model!Q$117-Inputs!$E$107,0) -> 0 | R132: =IF(R$117>Inputs!$E$107,Model!R$117-Inputs!$E$107,0) -> 0 | S132: =IF(S$117>Inputs!$E$107,Model!S$117-Inputs!$E$107,0) -> 0 | T132: =IF(T$117>Inputs!$E$107,Model!T$117-Inputs!$E$107,0) -> 0 | U132: =IF(U$117>Inputs!$E$107,Model!U$117-Inputs!$E$107,0) -> 0 | V132: =IF(V$117>Inputs!$E$107,Model!V$117-Inputs!$E$107,0) -> 0 | W132: =IF(W$117>Inputs!$E$107,Model!W$117-Inputs!$E$107,0) -> 0 | X132: =IF(X$117>Inputs!$E$107,Model!X$117-Inputs!$E$107,0) -> 0 | Y132: =IF(Y$117>Inputs!$E$107,Model!Y$117-Inputs!$E$107,0) -> 0 | Z132: =IF(Z$117>Inputs!$E$107,Model!Z$117-Inputs!$E$107,0) -> 0 | AA132: =IF(AA$117>Inputs!$E$107,Model!AA$117-Inputs!$E$107,0) -> 0 | AB132: =IF(AB$117>Inputs!$E$107,Model!AB$117-Inputs!$E$107,0) -> 0 | AC132: =IF(AC$117>Inputs!$E$107,Model!AC$117-Inputs!$E$107,0) -> 0 | AD132: =IF(AD$117>Inputs!$E$107,Model!AD$117-Inputs!$E$107,0) -> 0 | AE132: =IF(AE$117>Inputs!$E$107,Model!AE$117-Inputs!$E$107,0) -> 0 | AF132: =IF(AF$117>Inputs!$E$107,Model!AF$117-Inputs!$E$107,0) -> 0 | AG132: =IF(AG$117>Inputs!$E$107,Model!AG$117-Inputs!$E$107,0) -> 0 | AH132: =IF(AH$117>Inputs!$E$107,Model!AH$117-Inputs!$E$107,0) -> 0 | AI132: =IF(AI$117>Inputs!$E$107,Model!AI$117-Inputs!$E$107,0) -> 0 | AJ132: =IF(AJ$117>Inputs!$E$107,Model!AJ$117-Inputs!$E$107,0) -> 0 | AK132: =IF(AK$117>Inputs!$E$107,Model!AK$117-Inputs!$E$107,0) -> 0 | AL132: =IF(AL$117>Inputs!$E$107,Model!AL$117-Inputs!$E$107,0) -> 0 | AM132: =IF(AM$117>Inputs!$E$107,Model!AM$117-Inputs!$E$107,0) -> 0 | AN132: =IF(AN$117>Inputs!$E$107,Model!AN$117-Inputs!$E$107,0) -> 0 | AO132: =IF(AO$117>Inputs!$E$107,Model!AO$117-Inputs!$E$107,0) -> 0 | AP132: =IF(AP$117>Inputs!$E$107,Model!AP$117-Inputs!$E$107,0) -> 0 | AQ132: =IF(AQ$117>Inputs!$E$107,Model!AQ$117-Inputs!$E$107,0) -> 0 | AR132: =IF(AR$117>Inputs!$E$107,Model!AR$117-Inputs!$E$107,0) -> 0 | AS132: =IF(AS$117>Inputs!$E$107,Model!AS$117-Inputs!$E$107,0) -> 0 | AT132: =IF(AT$117>Inputs!$E$107,Model!AT$117-Inputs!$E$107,0) -> 0 | AU132: =IF(AU$117>Inputs!$E$107,Model!AU$117-Inputs!$E$107,0) -> 0 | AV132: =IF(AV$117>Inputs!$E$107,Model!AV$117-Inputs!$E$107,0) -> 0 | AW132: =IF(AW$117>Inputs!$E$107,Model!AW$117-Inputs!$E$107,0) -> 0 | AX132: =IF(AX$117>Inputs!$E$107,Model!AX$117-Inputs!$E$107,0) -> 0 | AY132: =IF(AY$117>Inputs!$E$107,Model!AY$117-Inputs!$E$107,0) -> 0 | AZ132: =IF(AZ$117>Inputs!$E$107,Model!AZ$117-Inputs!$E$107,0) -> 0 | BA132: =IF(BA$117>Inputs!$E$107,Model!BA$117-Inputs!$E$107,0) -> 0 | BB132: =IF(BB$117>Inputs!$E$107,Model!BB$117-Inputs!$E$107,0) -> 0 | BC132: =IF(BC$117>Inputs!$E$107,Model!BC$117-Inputs!$E$107,0) -> 0 | BD132: =IF(BD$117>Inputs!$E$107,Model!BD$117-Inputs!$E$107,0) -> 0
A134: =SUM(G134:BD134)=SUM(G117:BD117) -> TRUE | D134: Total | E134: $mm nominal | G134: =SUM(G119:G132) -> 0 | H134: 0 | I134: 135.252 | J134: 344.8926 | K134: 0 | L134: 0 | M134: 0 | N134: 0 | O134: 0 | P134: 0 | Q134: 0 | R134: 0 | S134: 0 | T134: 0 | U134: 0 | V134: 0 | W134: 0 | X134: 0 | Y134: 0 | Z134: 0 | AA134: 0 | AB134: 197.0366247 | AC134: 0 | AD134: 0 | AE134: 0 | AF134: 0 | AG134: 0 | AH134: 0 | AI134: 0 | AJ134: 0 | AK134: 0 | AL134: 0 | AM134: =SUM(AM119:AM132) -> 0 | AN134: 0 | AO134: 0 | AP134: 0 | AQ134: 0 | AR134: 0 | AS134: 0 | AT134: 0 | AU134: 0 | AV134: 0 | AW134: 0 | AX134: 0 | AY134: 0 | AZ134: 0 | BA134: 0 | BB134: 0 | BC134: 0 | BD134: 0
D136: Average royalty rate | E136: %
C137: =SUM(G137:BD137) -> 0 | D137: Variable rate royalty - revenue | E137: $mm nominal | G137: =G136*G117 -> 0 | H137: 0 | I137: 0 | J137: 0 | K137: =K136*K117 -> 0 | L137: 0 | M137: 0 | N137: 0 | O137: 0 | P137: 0 | Q137: 0 | R137: 0 | S137: 0 | T137: 0 | U137: 0 | V137: 0 | W137: 0 | X137: 0 | Y137: 0 | Z137: 0 | AA137: 0 | AB137: 0 | AC137: 0 | AD137: 0 | AE137: 0 | AF137: 0 | AG137: 0 | AH137: 0 | AI137: 0 | AJ137: 0 | AK137: 0 | AL137: 0 | AM137: =AM136*AM117 -> 0 | AN137: 0 | AO137: 0 | AP137: 0 | AQ137: 0 | AR137: 0 | AS137: 0 | AT137: 0 | AU137: 0 | AV137: 0 | AW137: 0 | AX137: 0 | AY137: 0 | AZ137: 0 | BA137: 0 | BB137: 0 | BC137: 0 | BD137: 0
D139: Variable rate royalty (price based, non-marginal)
D140: Base | G140: =G104 -> 0 | H140: 0 | I140: 135.252 | J140: 344.8926 | K140: 351.790452 | L140: 358.826261 | M140: 366.0027863 | N140: 373.322842 | O140: 380.7892988 | P140: 388.4050848 | Q140: 396.1731865 | R140: 404.0966502 | S140: 412.1785832 | T140: 420.4221549 | U140: 428.830598 | V140: 437.40721 | W140: 446.1553542 | X140: 455.0784612 | Y140: 464.1800305 | Z140: 473.4636311 | AA140: 482.9329037 | AB140: 197.0366247 | AC140: 0 | AD140: 0 | AE140: 0 | AF140: 0 | AG140: 0 | AH140: 0 | AI140: 0 | AJ140: 0 | AK140: 0 | AL140: 0 | AM140: =AM104 -> 0 | AN140: 0 | AO140: 0 | AP140: 0 | AQ140: 0 | AR140: 0 | AS140: 0 | AT140: 0 | AU140: 0 | AV140: 0 | AW140: 0 | AX140: 0 | AY140: 0 | AZ140: 0 | BA140: 0 | BB140: 0 | BC140: 0 | BD140: 0
D142: Price bracket 1 | E142: % | G142: =IF(Inputs!G$190<Inputs!$E119,Inputs!$F118,"") ->  | H142: =IF(Inputs!H$190<Inputs!$E119,Inputs!$F118,"") ->  | I142: =IF(Inputs!I$190<Inputs!$E119,Inputs!$F118,"") ->  | J142: =IF(Inputs!J$190<Inputs!$E119,Inputs!$F118,"") ->  | K142: =IF(Inputs!K$190<Inputs!$E119,Inputs!$F118,"") ->  | L142: =IF(Inputs!L$190<Inputs!$E119,Inputs!$F118,"") ->  | M142: =IF(Inputs!M$190<Inputs!$E119,Inputs!$F118,"") ->  | N142: =IF(Inputs!N$190<Inputs!$E119,Inputs!$F118,"") ->  | O142: =IF(Inputs!O$190<Inputs!$E119,Inputs!$F118,"") ->  | P142: =IF(Inputs!P$190<Inputs!$E119,Inputs!$F118,"") ->  | Q142: =IF(Inputs!Q$190<Inputs!$E119,Inputs!$F118,"") ->  | R142: =IF(Inputs!R$190<Inputs!$E119,Inputs!$F118,"") ->  | S142: =IF(Inputs!S$190<Inputs!$E119,Inputs!$F118,"") ->  | T142: =IF(Inputs!T$190<Inputs!$E119,Inputs!$F118,"") ->  | U142: =IF(Inputs!U$190<Inputs!$E119,Inputs!$F118,"") ->  | V142: =IF(Inputs!V$190<Inputs!$E119,Inputs!$F118,"") ->  | W142: =IF(Inputs!W$190<Inputs!$E119,Inputs!$F118,"") ->  | X142: =IF(Inputs!X$190<Inputs!$E119,Inputs!$F118,"") ->  | Y142: =IF(Inputs!Y$190<Inputs!$E119,Inputs!$F118,"") ->  | Z142: =IF(Inputs!Z$190<Inputs!$E119,Inputs!$F118,"") ->  | AA142: =IF(Inputs!AA$190<Inputs!$E119,Inputs!$F118,"") ->  | AB142: =IF(Inputs!AB$190<Inputs!$E119,Inputs!$F118,"") ->  | AC142: =IF(Inputs!AC$190<Inputs!$E119,Inputs!$F118,"") ->  | AD142: =IF(Inputs!AD$190<Inputs!$E119,Inputs!$F118,"") ->  | AE142: =IF(Inputs!AE$190<Inputs!$E119,Inputs!$F118,"") ->  | AF142: =IF(Inputs!AF$190<Inputs!$E119,Inputs!$F118,"") ->  | AG142: =IF(Inputs!AG$190<Inputs!$E119,Inputs!$F118,"") ->  | AH142: =IF(Inputs!AH$190<Inputs!$E119,Inputs!$F118,"") ->  | AI142: =IF(Inputs!AI$190<Inputs!$E119,Inputs!$F118,"") ->  | AJ142: =IF(Inputs!AJ$190<Inputs!$E119,Inputs!$F118,"") ->  | AK142: =IF(Inputs!AK$190<Inputs!$E119,Inputs!$F118,"") ->  | AL142: =IF(Inputs!AL$190<Inputs!$E119,Inputs!$F118,"") ->  | AM142: =IF(Inputs!AM$190<Inputs!$E119,Inputs!$F118,"") ->  | AN142: =IF(Inputs!AN$190<Inputs!$E119,Inputs!$F118,"") ->  | AO142: =IF(Inputs!AO$190<Inputs!$E119,Inputs!$F118,"") ->  | AP142: =IF(Inputs!AP$190<Inputs!$E119,Inputs!$F118,"") ->  | AQ142: =IF(Inputs!AQ$190<Inputs!$E119,Inputs!$F118,"") ->  | AR142: =IF(Inputs!AR$190<Inputs!$E119,Inputs!$F118,"") ->  | AS142: =IF(Inputs!AS$190<Inputs!$E119,Inputs!$F118,"") ->  | AT142: =IF(Inputs!AT$190<Inputs!$E119,Inputs!$F118,"") ->  | AU142: =IF(Inputs!AU$190<Inputs!$E119,Inputs!$F118,"") ->  | AV142: =IF(Inputs!AV$190<Inputs!$E119,Inputs!$F118,"") ->  | AW142: =IF(Inputs!AW$190<Inputs!$E119,Inputs!$F118,"") ->  | AX142: =IF(Inputs!AX$190<Inputs!$E119,Inputs!$F118,"") ->  | AY142: =IF(Inputs!AY$190<Inputs!$E119,Inputs!$F118,"") ->  | AZ142: =IF(Inputs!AZ$190<Inputs!$E119,Inputs!$F118,"") ->  | BA142: =IF(Inputs!BA$190<Inputs!$E119,Inputs!$F118,"") ->  | BB142: =IF(Inputs!BB$190<Inputs!$E119,Inputs!$F118,"") ->  | BC142: =IF(Inputs!BC$190<Inputs!$E119,Inputs!$F118,"") ->  | BD142: =IF(Inputs!BD$190<Inputs!$E119,Inputs!$F118,"") -> 
D143: Price bracket 2 | E143: % | G143: =IF(Inputs!G$190>=Inputs!$E119,IF(Inputs!G$190<Inputs!$E120,Inputs!$F119,""),"") -> 0.03 | H143: =IF(Inputs!H$190>=Inputs!$E119,IF(Inputs!H$190<Inputs!$E120,Inputs!$F119,""),"") -> 0.03 | I143: =IF(Inputs!I$190>=Inputs!$E119,IF(Inputs!I$190<Inputs!$E120,Inputs!$F119,""),"") -> 0.03 | J143: =IF(Inputs!J$190>=Inputs!$E119,IF(Inputs!J$190<Inputs!$E120,Inputs!$F119,""),"") -> 0.03 | K143: =IF(Inputs!K$190>=Inputs!$E119,IF(Inputs!K$190<Inputs!$E120,Inputs!$F119,""),"") -> 0.03 | L143: =IF(Inputs!L$190>=Inputs!$E119,IF(Inputs!L$190<Inputs!$E120,Inputs!$F119,""),"") -> 0.03 | M143: =IF(Inputs!M$190>=Inputs!$E119,IF(Inputs!M$190<Inputs!$E120,Inputs!$F119,""),"") -> 0.03 | N143: =IF(Inputs!N$190>=Inputs!$E119,IF(Inputs!N$190<Inputs!$E120,Inputs!$F119,""),"") -> 0.03 | O143: =IF(Inputs!O$190>=Inputs!$E119,IF(Inputs!O$190<Inputs!$E120,Inputs!$F119,""),"") -> 0.03 | P143: =IF(Inputs!P$190>=Inputs!$E119,IF(Inputs!P$190<Inputs!$E120,Inputs!$F119,""),"") -> 0.03 | Q143: =IF(Inputs!Q$190>=Inputs!$E119,IF(Inputs!Q$190<Inputs!$E120,Inputs!$F119,""),"") -> 0.03 | R143: =IF(Inputs!R$190>=Inputs!$E119,IF(Inputs!R$190<Inputs!$E120,Inputs!$F119,""),"") -> 0.03 | S143: =IF(Inputs!S$190>=Inputs!$E119,IF(Inputs!S$190<Inputs!$E120,Inputs!$F119,""),"") -> 0.03 | T143: =IF(Inputs!T$190>=Inputs!$E119,IF(Inputs!T$190<Inputs!$E120,Inputs!$F119,""),"") -> 0.03 | U143: =IF(Inputs!U$190>=Inputs!$E119,IF(Inputs!U$190<Inputs!$E120,Inputs!$F119,""),"") -> 0.03 | V143: =IF(Inputs!V$190>=Inputs!$E119,IF(Inputs!V$190<Inputs!$E120,Inputs!$F119,""),"") -> 0.03 | W143: =IF(Inputs!W$190>=Inputs!$E119,IF(Inputs!W$190<Inputs!$E120,Inputs!$F119,""),"") -> 0.03 | X143: =IF(Inputs!X$190>=Inputs!$E119,IF(Inputs!X$190<Inputs!$E120,Inputs!$F119,""),"") -> 0.03 | Y143: =IF(Inputs!Y$190>=Inputs!$E119,IF(Inputs!Y$190<Inputs!$E120,Inputs!$F119,""),"") -> 0.03 | Z143: =IF(Inputs!Z$190>=Inputs!$E119,IF(Inputs!Z$190<Inputs!$E120,Inputs!$F119,""),"") -> 0.03 | AA143: =IF(Inputs!AA$190>=Inputs!$E119,IF(Inputs!AA$190<Inputs!$E120,Inputs!$F119,""),"") -> 0.03 | AB143: =IF(Inputs!AB$190>=Inputs!$E119,IF(Inputs!AB$190<Inputs!$E120,Inputs!$F119,""),"") -> 0.03 | AC143: =IF(Inputs!AC$190>=Inputs!$E119,IF(Inputs!AC$190<Inputs!$E120,Inputs!$F119,""),"") -> 0.03 | AD143: =IF(Inputs!AD$190>=Inputs!$E119,IF(Inputs!AD$190<Inputs!$E120,Inputs!$F119,""),"") -> 0.03 | AE143: =IF(Inputs!AE$190>=Inputs!$E119,IF(Inputs!AE$190<Inputs!$E120,Inputs!$F119,""),"") -> 0.03 | AF143: =IF(Inputs!AF$190>=Inputs!$E119,IF(Inputs!AF$190<Inputs!$E120,Inputs!$F119,""),"") -> 0.03 | AG143: =IF(Inputs!AG$190>=Inputs!$E119,IF(Inputs!AG$190<Inputs!$E120,Inputs!$F119,""),"") -> 0.03 | AH143: =IF(Inputs!AH$190>=Inputs!$E119,IF(Inputs!AH$190<Inputs!$E120,Inputs!$F119,""),"") -> 0.03 | AI143: =IF(Inputs!AI$190>=Inputs!$E119,IF(Inputs!AI$190<Inputs!$E120,Inputs!$F119,""),"") -> 0.03 | AJ143: =IF(Inputs!AJ$190>=Inputs!$E119,IF(Inputs!AJ$190<Inputs!$E120,Inputs!$F119,""),"") -> 0.03 | AK143: =IF(Inputs!AK$190>=Inputs!$E119,IF(Inputs!AK$190<Inputs!$E120,Inputs!$F119,""),"") -> 0.03 | AL143: =IF(Inputs!AL$190>=Inputs!$E119,IF(Inputs!AL$190<Inputs!$E120,Inputs!$F119,""),"") -> 0.03 | AM143: =IF(Inputs!AM$190>=Inputs!$E119,IF(Inputs!AM$190<Inputs!$E120,Inputs!$F119,""),"") -> 0.03 | AN143: =IF(Inputs!AN$190>=Inputs!$E119,IF(Inputs!AN$190<Inputs!$E120,Inputs!$F119,""),"") -> 0.03 | AO143: =IF(Inputs!AO$190>=Inputs!$E119,IF(Inputs!AO$190<Inputs!$E120,Inputs!$F119,""),"") -> 0.03 | AP143: =IF(Inputs!AP$190>=Inputs!$E119,IF(Inputs!AP$190<Inputs!$E120,Inputs!$F119,""),"") -> 0.03 | AQ143: =IF(Inputs!AQ$190>=Inputs!$E119,IF(Inputs!AQ$190<Inputs!$E120,Inputs!$F119,""),"") -> 0.03 | AR143: =IF(Inputs!AR$190>=Inputs!$E119,IF(Inputs!AR$190<Inputs!$E120,Inputs!$F119,""),"") -> 0.03 | AS143: =IF(Inputs!AS$190>=Inputs!$E119,IF(Inputs!AS$190<Inputs!$E120,Inputs!$F119,""),"") -> 0.03 | AT143: =IF(Inputs!AT$190>=Inputs!$E119,IF(Inputs!AT$190<Inputs!$E120,Inputs!$F119,""),"") -> 0.03 | AU143: =IF(Inputs!AU$190>=Inputs!$E119,IF(Inputs!AU$190<Inputs!$E120,Inputs!$F119,""),"") -> 0.03 | AV143: =IF(Inputs!AV$190>=Inputs!$E119,IF(Inputs!AV$190<Inputs!$E120,Inputs!$F119,""),"") -> 0.03 | AW143: =IF(Inputs!AW$190>=Inputs!$E119,IF(Inputs!AW$190<Inputs!$E120,Inputs!$F119,""),"") -> 0.03 | AX143: =IF(Inputs!AX$190>=Inputs!$E119,IF(Inputs!AX$190<Inputs!$E120,Inputs!$F119,""),"") -> 0.03 | AY143: =IF(Inputs!AY$190>=Inputs!$E119,IF(Inputs!AY$190<Inputs!$E120,Inputs!$F119,""),"") -> 0.03 | AZ143: =IF(Inputs!AZ$190>=Inputs!$E119,IF(Inputs!AZ$190<Inputs!$E120,Inputs!$F119,""),"") -> 0.03 | BA143: =IF(Inputs!BA$190>=Inputs!$E119,IF(Inputs!BA$190<Inputs!$E120,Inputs!$F119,""),"") -> 0.03 | BB143: =IF(Inputs!BB$190>=Inputs!$E119,IF(Inputs!BB$190<Inputs!$E120,Inputs!$F119,""),"") -> 0.03 | BC143: =IF(Inputs!BC$190>=Inputs!$E119,IF(Inputs!BC$190<Inputs!$E120,Inputs!$F119,""),"") -> 0.03 | BD143: =IF(Inputs!BD$190>=Inputs!$E119,IF(Inputs!BD$190<Inputs!$E120,Inputs!$F119,""),"") -> 0.03
D144: Price bracket 3 | E144: % | G144: =IF(Inputs!G$190>=Inputs!$E120,IF(Inputs!G$190<Inputs!$E121,Inputs!$F120,""),"") ->  | H144: =IF(Inputs!H$190>=Inputs!$E120,IF(Inputs!H$190<Inputs!$E121,Inputs!$F120,""),"") ->  | I144: =IF(Inputs!I$190>=Inputs!$E120,IF(Inputs!I$190<Inputs!$E121,Inputs!$F120,""),"") ->  | J144: =IF(Inputs!J$190>=Inputs!$E120,IF(Inputs!J$190<Inputs!$E121,Inputs!$F120,""),"") ->  | K144: =IF(Inputs!K$190>=Inputs!$E120,IF(Inputs!K$190<Inputs!$E121,Inputs!$F120,""),"") ->  | L144: =IF(Inputs!L$190>=Inputs!$E120,IF(Inputs!L$190<Inputs!$E121,Inputs!$F120,""),"") ->  | M144: =IF(Inputs!M$190>=Inputs!$E120,IF(Inputs!M$190<Inputs!$E121,Inputs!$F120,""),"") ->  | N144: =IF(Inputs!N$190>=Inputs!$E120,IF(Inputs!N$190<Inputs!$E121,Inputs!$F120,""),"") ->  | O144: =IF(Inputs!O$190>=Inputs!$E120,IF(Inputs!O$190<Inputs!$E121,Inputs!$F120,""),"") ->  | P144: =IF(Inputs!P$190>=Inputs!$E120,IF(Inputs!P$190<Inputs!$E121,Inputs!$F120,""),"") ->  | Q144: =IF(Inputs!Q$190>=Inputs!$E120,IF(Inputs!Q$190<Inputs!$E121,Inputs!$F120,""),"") ->  | R144: =IF(Inputs!R$190>=Inputs!$E120,IF(Inputs!R$190<Inputs!$E121,Inputs!$F120,""),"") ->  | S144: =IF(Inputs!S$190>=Inputs!$E120,IF(Inputs!S$190<Inputs!$E121,Inputs!$F120,""),"") ->  | T144: =IF(Inputs!T$190>=Inputs!$E120,IF(Inputs!T$190<Inputs!$E121,Inputs!$F120,""),"") ->  | U144: =IF(Inputs!U$190>=Inputs!$E120,IF(Inputs!U$190<Inputs!$E121,Inputs!$F120,""),"") ->  | V144: =IF(Inputs!V$190>=Inputs!$E120,IF(Inputs!V$190<Inputs!$E121,Inputs!$F120,""),"") ->  | W144: =IF(Inputs!W$190>=Inputs!$E120,IF(Inputs!W$190<Inputs!$E121,Inputs!$F120,""),"") ->  | X144: =IF(Inputs!X$190>=Inputs!$E120,IF(Inputs!X$190<Inputs!$E121,Inputs!$F120,""),"") ->  | Y144: =IF(Inputs!Y$190>=Inputs!$E120,IF(Inputs!Y$190<Inputs!$E121,Inputs!$F120,""),"") ->  | Z144: =IF(Inputs!Z$190>=Inputs!$E120,IF(Inputs!Z$190<Inputs!$E121,Inputs!$F120,""),"") ->  | AA144: =IF(Inputs!AA$190>=Inputs!$E120,IF(Inputs!AA$190<Inputs!$E121,Inputs!$F120,""),"") ->  | AB144: =IF(Inputs!AB$190>=Inputs!$E120,IF(Inputs!AB$190<Inputs!$E121,Inputs!$F120,""),"") ->  | AC144: =IF(Inputs!AC$190>=Inputs!$E120,IF(Inputs!AC$190<Inputs!$E121,Inputs!$F120,""),"") ->  | AD144: =IF(Inputs!AD$190>=Inputs!$E120,IF(Inputs!AD$190<Inputs!$E121,Inputs!$F120,""),"") ->  | AE144: =IF(Inputs!AE$190>=Inputs!$E120,IF(Inputs!AE$190<Inputs!$E121,Inputs!$F120,""),"") ->  | AF144: =IF(Inputs!AF$190>=Inputs!$E120,IF(Inputs!AF$190<Inputs!$E121,Inputs!$F120,""),"") ->  | AG144: =IF(Inputs!AG$190>=Inputs!$E120,IF(Inputs!AG$190<Inputs!$E121,Inputs!$F120,""),"") ->  | AH144: =IF(Inputs!AH$190>=Inputs!$E120,IF(Inputs!AH$190<Inputs!$E121,Inputs!$F120,""),"") ->  | AI144: =IF(Inputs!AI$190>=Inputs!$E120,IF(Inputs!AI$190<Inputs!$E121,Inputs!$F120,""),"") ->  | AJ144: =IF(Inputs!AJ$190>=Inputs!$E120,IF(Inputs!AJ$190<Inputs!$E121,Inputs!$F120,""),"") ->  | AK144: =IF(Inputs!AK$190>=Inputs!$E120,IF(Inputs!AK$190<Inputs!$E121,Inputs!$F120,""),"") ->  | AL144: =IF(Inputs!AL$190>=Inputs!$E120,IF(Inputs!AL$190<Inputs!$E121,Inputs!$F120,""),"") ->  | AM144: =IF(Inputs!AM$190>=Inputs!$E120,IF(Inputs!AM$190<Inputs!$E121,Inputs!$F120,""),"") ->  | AN144: =IF(Inputs!AN$190>=Inputs!$E120,IF(Inputs!AN$190<Inputs!$E121,Inputs!$F120,""),"") ->  | AO144: =IF(Inputs!AO$190>=Inputs!$E120,IF(Inputs!AO$190<Inputs!$E121,Inputs!$F120,""),"") ->  | AP144: =IF(Inputs!AP$190>=Inputs!$E120,IF(Inputs!AP$190<Inputs!$E121,Inputs!$F120,""),"") ->  | AQ144: =IF(Inputs!AQ$190>=Inputs!$E120,IF(Inputs!AQ$190<Inputs!$E121,Inputs!$F120,""),"") ->  | AR144: =IF(Inputs!AR$190>=Inputs!$E120,IF(Inputs!AR$190<Inputs!$E121,Inputs!$F120,""),"") ->  | AS144: =IF(Inputs!AS$190>=Inputs!$E120,IF(Inputs!AS$190<Inputs!$E121,Inputs!$F120,""),"") ->  | AT144: =IF(Inputs!AT$190>=Inputs!$E120,IF(Inputs!AT$190<Inputs!$E121,Inputs!$F120,""),"") ->  | AU144: =IF(Inputs!AU$190>=Inputs!$E120,IF(Inputs!AU$190<Inputs!$E121,Inputs!$F120,""),"") ->  | AV144: =IF(Inputs!AV$190>=Inputs!$E120,IF(Inputs!AV$190<Inputs!$E121,Inputs!$F120,""),"") ->  | AW144: =IF(Inputs!AW$190>=Inputs!$E120,IF(Inputs!AW$190<Inputs!$E121,Inputs!$F120,""),"") ->  | AX144: =IF(Inputs!AX$190>=Inputs!$E120,IF(Inputs!AX$190<Inputs!$E121,Inputs!$F120,""),"") ->  | AY144: =IF(Inputs!AY$190>=Inputs!$E120,IF(Inputs!AY$190<Inputs!$E121,Inputs!$F120,""),"") ->  | AZ144: =IF(Inputs!AZ$190>=Inputs!$E120,IF(Inputs!AZ$190<Inputs!$E121,Inputs!$F120,""),"") ->  | BA144: =IF(Inputs!BA$190>=Inputs!$E120,IF(Inputs!BA$190<Inputs!$E121,Inputs!$F120,""),"") ->  | BB144: =IF(Inputs!BB$190>=Inputs!$E120,IF(Inputs!BB$190<Inputs!$E121,Inputs!$F120,""),"") ->  | BC144: =IF(Inputs!BC$190>=Inputs!$E120,IF(Inputs!BC$190<Inputs!$E121,Inputs!$F120,""),"") ->  | BD144: =IF(Inputs!BD$190>=Inputs!$E120,IF(Inputs!BD$190<Inputs!$E121,Inputs!$F120,""),"") -> 
